Workbook

Sheet LDC Info
Z3: 1 | AA3: Algoma Power Inc.
Z4: 2 | AA4: Atikokan Hydro Inc.
Z5: 3 | AA5: Attawapiskat Power Corporation
Z6: 4 | AA6: Bluewater Power Distribution Corporation
Z7: 5 | AA7: Brantford Power Inc.
Z8: 6 | AA8: Burlington Hydro Inc.
Z9: 7 | AA9: Canadian Niagara Power Inc.
Z10: 8 | AA10: Centre Wellington Hydro Ltd.
Z11: 9 | AA11: Chapleau Public Utilities Corporation
Z12: 10 | AA12: COLLUS PowerStream Corp.
Z13: 11 | AA13: Cooperative Hydro Embrun Inc.
D14: Utility Name | E14: Innpower Corporation | Z14: 12 | AA14: E.L.K. Energy Inc.
Z15: 13 | AA15: Energy + Inc.
D16: Assigned EB Number | E16: EB-2016-0085 | Z16: 14 | AA16: Enersource Hydro Mississauga Inc.
Z17: 15 | AA17: Entegrus Powerlines Inc.
D18: Name of Contact and Title | E18: Brenda L Pinke | Z18: 16 | AA18: ENWIN Utilities Ltd.
Z19: 17 | AA19: Erie Thames Powerlines Corporation
D20: Phone Number | E20: 705-431-6870 Ext 262 | Z20: 18 | AA20: Espanola Regional Hydro Distribution Corporation
Z21: 19 | AA21: Essex Powerlines Corporation
D22: Email Address | E22: brendap"innpower.ca | Z22: 20 | AA22: Festival Hydro Inc.
Z23: 21 | AA23: Fort Albany Power Corporation
D24: Test Year | E24: 2017 | Z24: 22 | AA24: Fort Frances Power Corporation
Z25: 23 | AA25: Greater Sudbury Hydro Inc.
D26: Bridge Year | E26: =IF(ISBLANK(E24), "", E24-1) -> 2016 | Z26: 24 | AA26: Grimsby Power Inc.
Z27: 25 | AA27: Guelph Hydro Electric Systems Inc.
D28: Last Rebasing Year | E28: 2013 | Z28: 26 | AA28: Haldimand County Hydro Inc.
Z29: 27 | AA29: Halton Hills Hydro Inc.
A30: Identify the accounting standard used for the test year | Z30: 28 | AA30: Hearst Power Distribution Company Limited
E31: MIFRS | Z31: 29 | AA31: Horizon Utilities Corporation
Z32: 30 | AA32: Hydro 2000 Inc.
A33: Did you update your depreciation and capitalization policies and reflect the changes in policies in a prior rebasing application? | Z33: 31 | AA33: Hydro Hawkesbury Inc.
E34: Yes | Z34: 32 | AA34: Hydro One Brampton Networks Inc.
Z35: 33 | AA35: Hydro One Networks Inc.
A36: When did you update your actual depreciation and capitalization policies? | Z36: 34 | AA36: Hydro One Networks Inc. - Norfolk
E37: 2001-01-01 | F37: 2012 | Z37: 35 | AA37: Hydro One Remote Communities Inc.
Z38: 36 | AA38: Hydro Ottawa Limited
A39: Identify the year the applicant adopted IFRS for financial reporting purposes | Z39: 37 | AA39: Innpower Corporation
E40: 2015 | Z40: 38 | AA40: Kashechewan Power Corporation
Z41: 39 | AA41: Kenora Hydro Electric Corporation Ltd.
Z42: 40 | AA42: Kingston Hydro Corporation
A43: Are you applying for cost recovery for the test and/or future year(s) for Green Energy initiatives? | Z43: 41 | AA43: Kitchener-Wilmot Hydro Inc.
E44: No | Z44: 42 | AA44: Lakefront Utilities Inc.
Z45: 43 | AA45: Lakeland Power Distribution Ltd.
A46: ="Is " & E14 & " an embedded distributor?" -> Is Innpower Corporation an embedded distributor? | E46: No | Z46: 44 | AA46: London Hydro Inc.
Z47: 45 | AA47: Midland Power Utility Corporation
Z48: 46 | AA48: Milton Hydro Distribution Inc.
B49: Notes | Z49: 47 | AA49: Newmarket-Tay Power Distribution Ltd.
Z50: 48 | AA50: Niagara Peninsula Energy Inc.
C51: Pale green cells represent input cells. | Z51: 49 | AA51: Niagara-on-the-Lake Hydro Inc.
Z52: 50 | AA52: North Bay Hydro Distribution Limited
C53: Pale blue cells represent drop-down lists. The applicant should select the appropriate item from the drop-down list. | Z53: 51 | AA53: Northern Ontario Wires Inc.
Z54: 52 | AA54: Oakville Hydro Electricity Distribution Inc.
C55: White cells contain fixed values, automatically generated values or formulae. | N55: =IF(LEN($G55)>1, (SUMPRODUCT(--($C$78:$C$1000=$C55),--($A$78:$A$1000=$D55), --($B$78:$B$1000=$B55&"_TOTAL"), $L$78:$L$1000)), "") ->  | O55: =IF(LEN($G55)>1, (SUMPRODUCT(--($C$78:$C$1000=$C55),--($A$78:$A$1000=$D55), --($B$78:$B$1000=$B55&"_TOTAL"), $M$78:$M$1000)), "") ->  | Z55: 53 | AA55: Orangeville Hydro Limited
N56: =IF(LEN($G56)>1, (SUMPRODUCT(--($C$78:$C$1000=$C56),--($A$78:$A$1000=$D56), --($B$78:$B$1000=$B56&"_TOTAL"), $L$78:$L$1000)), "") ->  | O56: =IF(LEN($G56)>1, (SUMPRODUCT(--($C$78:$C$1000=$C56),--($A$78:$A$1000=$D56), --($B$78:$B$1000=$B56&"_TOTAL"), $M$78:$M$1000)), "") ->  | Z56: 54 | AA56: Orillia Power Distribution Corporation
Z57: 55 | AA57: Oshawa PUC Networks Inc.
Z58: 56 | AA58: Ottawa River Power Corporation
Z59: 57 | AA59: Peterborough Distribution Inc.
Z60: 58 | AA60: PowerStream Inc.
Z61: 59 | AA61: PUC Distribution Inc.
Z62: 60 | AA62: Renfrew Hydro Inc.
Z63: 61 | AA63: Rideau St. Lawrence Distribution Inc.
Z64: 62 | AA64: Sioux Lookout Hydro Inc.
Z65: 63 | AA65: St. Thomas Energy Inc.
Z66: 64 | AA66: Thunder Bay Hydro Electricity Distribution Inc.
Z67: 65 | AA67: Tillsonburg Hydro Inc.
Z68: 66 | AA68: Toronto Hydro-Electric System Limited
Z69: 67 | AA69: Veridian Connections Inc.
Z70: 68 | AA70: Wasaga Distribution Inc.
Z71: 69 | AA71: Waterloo North Hydro Inc.
Z72: 70 | AA72: Welland Hydro-Electric System Corp.
Z73: 71 | AA73: Wellington North Power Inc.
Z74: 72 | AA74: West Coast Huron Energy Inc.
Z75: 73 | AA75: Westario Power Inc.
Z76: 74 | AA76: Whitby Hydro Electric Corporation
Z77: 75 | AA77: Woodstock Hydro Services Inc.

Sheet Index
A15: 1 | B15: LDC Information Sheet | E15: 27 | F15: App.2-G: Service Reliability Indicators
A16: 2 | B16: Index | E16: 28 | F16: App.2-H: Other Operating Revenue
A17: 3 | B17: Cost of Service Application Flowchart | E17: 29 | F17: App.2-I: Load Forecast CDM Adjustment Workform
A18: 4 | B18: List of Key References | E18: 30 | F18: App.2-IA: Load Forecast Data Instructions
A19: 5 | B19: App.2-A: List of Requested Approvals | E19: 31 | F19: App.2-IB: Actual and Forecast Load and Customer Data
A20: 6 | B20: App.2-AA: Capital Projects Table | E20: 32 | F20: App.2-JA: OM&A Summary Analysis
A21: 7 | B21: App.2-AB: Capital Expenditures | E21: 33 | F21: App.2-JB: Recoverable OM&A Cost Driver Table
A22: 8 | B22: App. 2-AC: Customer Engagement Worksheet | E22: 34 | F22: App.2-JC: OM&A Programs Table
A23: 9 | B23: App.2-B: General Accounting Instructions | E23: 35 | F23: App.2-K: Employee Costs
A24: 10 | B24: App.2-BA: Fixed Asset Continuity Schedule | E24: 36 | F24: App.2-KA: OPEBs (Other Post-Employment Benefits) Costs
A25: 11 | B25: Appendix 2-BB: Service Life Comparison | E25: 37 | F25: App.2-L: Recoverable OM&A Cost per Customer and per FTE
A26: 12 | B26: App.2-CA: Year 1 Depreciation and Amortization Expense (Old CGAAP) | E26: 38 | F26: App.2-M: Regulatory Costs Schedule
A27: 13 | B27: App.2-CB: Year 1 Depreciation and Amortization Expense (New CGAAP) | E27: 39 | F27: App.2-N: Shared Services and Corporate Cost Allocation
A28: 14 | B28: App.2-CC: Year 2 Depreciation and Amortization Expense (New CGAAP) | E28: 40 | F28: App.2-OA: Capital Structure and Cost of Capital
A29: 15 | B29: App.2-CD: Year 3 Depreciation and Amortization Expense (New CGAAP or MIFRS) | E29: 41 | F29: App.2-OB: Debt Instruments
A30: 16 | B30: App.2-CE: Year 4 Depreciation and Amortization Expense (MIFRS) | E30: 42 | F30: App.2-Q: Cost of Serving Embedded Distributor(s)
A31: 17 | B31: App.2-CF: Year 5 Depreciation and Amortization Expense (MIFRS) | E31: 43 | F31: App.2-R: Loss Factors
A32: 18 | B32: App.2-CG: Year 6 Depreciation and Amortization Expense (Old CGAAP) | E32: 44 | F32: App.2-S: Stranded Meter Treatment
A33: 19 | B33: App.2-CH: Depreciation and Amortization Expense (MIFRS) | E33: 45 | F33: App.2-Y: Transition to MIFRS Summary Impact
A34: 20 | B34: App.2-D: Overhead Expenses | E34: 46 | F34: App.2-YA: One-Time Incremental IFRS Transition Costs
A35: 21 | B35: App.2-EA: Account 1575 PP&E Deferral Account (2015 IFRS Adopters)
A36: 22 | B36: App.2-EB: Account 1576 - Accounting Changes Under CGAAP (2012 Changes)
A37: 23 | B37: App.2-EC: Account 1576 - Accounting Changes Under CGAAP (2013 Changes)
A38: 24 | B38: App.2-FA: Renewable Generation Connection Investment Summary
A39: 25 | B39: App.2-FB: Calculation of Renewable Generation Connection Direct Benefits/Provincial Amount: Renewable Enabling Improvement Investments
A40: 26 | B40: App.2-FC: Calculation of Renewable Generation Connection Direct Benefits/Provincial Amount: Renewable Expansion Investments
A42: Note: | B42: Appendices for the Tariff of Rates and Charges at Current and Proposed Rates, and for the Bill Impacts are now in a separate spreadsheet model. These appendices were formerly 2-Z and 2-W.

Sheet COS Flowchart
B4: Cost of Service Rate Application Schematic
B6: The Cost of Service Rate Application Schematic is a flowchart that is included as a guide for the components of an application. The schematic demonstrates how demand and costs interrelate to derive the revenue requirement and how the revenue requirement is allocated between classes and through fixed/variable splits to derive rates that will be compensatory for the annual revenue requirement, based on the the forecasted demand. There is no form to be filled out; therefore, this Schedule is not required to be filed.

Sheet List of Key References
B3: List of Key References
A5: A list of key references for understanding the Filing Requirements has been embedded in the document below. To access the list of references and associated hyperlinks double-click the icon below.

Sheet App.2-A_Requested_Approvals
G1: File Number: | H1: =EBNUMBER -> EB-2016-0085
G2: Exhibit: | H2: 1
G3: Tab:
G4: Schedule:
G5: Page:
G7: Date: | H7: 2016-11-28
B9: Appendix 2-A
B10: List of Requested Approvals
B12: The distributor must fill out the following sheet with the complete list of specific approvals requested and relevant section(s) of the legislation must be provided. All approvals, including accounting orders (deferral and variance accounts) new rate classes, revised specific service charges or retail service charges which the applicant is seeking, must be separately identified, as well being clearly documented in the appropriate sections of the application.
B14: Additional requests may be added by copying and pasting blank input rows, as needed.
B16: If additional requests arise, or requested approvals are removed, during the processing of the application, the distributor should update this list.
B18: =CONCATENATE('LDC Info'!E14," is seeking the following approvals in this application:") -> Innpower Corporation is seeking the following approvals in this application:
B20: 1
B22: 2
B24: 3
B26: 4
B28: 5
B30: 6
B32: 7
B34: 8
B36: 9
B38: 10
B40: 11
B43: 12
B46: 13

Sheet App.2-AA_Capital Projects
G1: File Number: | H1: =EBNUMBER -> EB-2016-0085
G2: Exhibit: | H2: 2
G3: Tab:
G4: Schedule:
G5: Page:
G7: Date: | H7: 2016-11-28
A9: Appendix 2-AA
A10: Capital Projects Table
A13: Projects | B13: =C13-1 -> 2012 | C13: =D13-1 -> 2013 | D13: =E13-1 -> 2014 | E13: =BridgeYear - 1 -> 2015 | F13: =BridgeYear & " Bridge Year" -> 2016 Bridge Year | G13: =TestYear & " Test Year" -> 2017 Test Year
A14: Reporting Basis | B14: CGAAP | C14: MIFRS | D14: MIFRS | E14: MIFRS | F14: MIFRS | G14: MIFRS
A15: SYSTEM ACCESS
A16: DO-015 County relocates IBR & 20th SDRD | B16: 203
A17: DO-016 County relocated 7th Line & 20th SDRD | B17: 297101.43
A18: DO-017 County relocates IBR & 10th SDRD | B18: 441029.24
A19: DO-018 Urbanization carry forward | B19: 119210.37
A20: DO-022 TS Land | B20: 526913
A21: DB-001 Retail meters | B21: 50794 | C21: 96757 | D21: 120569
A22: Base | B22: 1016719 | C22: 968603 | D22: 1665195
A23: Economic Evaluation | B23: 942138 | D23: 893568
A24: DO-009 Big Bay Point F3 for BBPT development | C24: 2979
A25: DO-010 Utility relocates | C25: 1766
A26: DO-012 BBPT line ext for BBPT dev & new 27.6 kV sub stn | C26: 397894
A27: IPC2015BASE1 - C & CTC WORK ORDERS | E27: 282319 | F27: 275010 | G27: 116880
A28: IPC2015BASE2 - PO WORK ORDERS | E28: 30806 | F28: 36248 | G28: 34254
A29: IPC2015BASE3 - L, DG, RPO, RCTC WORK ORDERS | E29: 901869 | F29: 900530 | G29: 945557
A30: IPC2015BASE4 - SD WORK ORDERS | E30: 1557550 | F30: 3711228 | G30: 641280
A31: IPC2015DB001 - RETAIL/WHOLESALE METERS | E31: 95343 | F31: 147500 | G31: 230000
A32: IPC2015DO013 - COUNTY RELOCATES IBR & 20TH SR | E32: 253796
A33: Intersection Widening IBR & Yonge St | G33: 430000
A34: Intersection Widening IBR & 5 SR | G34: 656981
A35: Contributions | B35: -1643538 | C35: -428863 | D35: -1416471 | E35: -2225541 | F35: -3986075 | G35: -1869254
A36: Sub-Total System Access | B36: =SUM(B16:B35) -> 1750570.04 | C36: 1039136 | D36: 1262861 | E36: 896142 | F36: 1084441 | G36: 1185698
A37: SYSTEM RENEWAL
A38: DO-005 2012 Pole Replacement Program | B38: 446005
A39: DO-006 System Renewal | B39: 163797
A40: DO-012 UG padmount TX replacements | B40: 16873
A41: DO-013 Substandard trnasformer rehabs | B41: 27623
A42: DO-004 System Renewal & Betterments | C42: 181259
A43: DO-005 U/G Padmounted TX Replacements & painting | C43: 81562
A44: DO-006 Substandard Transformer Rehabs | C44: 179665
A45: DO-007 Pole Replacements | C45: 395175
A46: DO-015 3 ph 44kV Repoling/Reconductoring 20th btwn 6th & 7th | C46: 149284
A47: DO-001 Pole replacement | D47: 401651
A48: DO-002 Substandard Transformer Rehabs | D48: 131794
A49: DO-003 Transformer/Switchgear replacements & painting | D49: 7574
A50: DO-004 System Renewal & betterments | D50: 156029
A51: IPC2015DO008 - POLE REPLACEMENT 2015 | E51: 114433
A52: IPC2015DO009 - INFRASTRUCTURE REPLACEMENTS & BETTERMENTS | E52: 185862
A53: IPC2015DO010 - TRANSFORMER/SWITCHGEAR REPLACEMENTS | E53: 30455
A54: IPC2015DO017 - DS TRANSFORMER OIL RE-INHIBIT PROGRAM | E54: 18591
A55: IPC2015GB003 - INFRASTRUCTURE REPLACEMENT | E55: 16883
A56: IPC2015DO005 - LINE RECLOSER REFURBISHMENT | E56: 17459
A57: IPC2015DO006 - SUBSTANDARD TRANSFORMER REHAB | E57: 103800
A58: IPC2016DO001 - Substandard Infrastructure Replacement | F58: 109505
A59: IPC2016DO002 - Pole Replacement Program | F59: 200914
A60: IPC2016DO003 - Infrastructure Replacements and Betterments | F60: 143098
A61: IPC2016DO004 - Line Reclosure Refurbishments - 4 Year Cycle | F61: 15186
A62: IPC2016DO005 - DS Oil Re-inhibit Treatment per/each | F62: 26216
A63: IPC2016DO006 - U/G Padmounted Transformer and Switchgear | F63: 83256
A64: IPC2016DO012 - Station Reliability Upgrade | F64: 199280
A65: IPC2016DO015 - Ewart Street Rebuild | F65: 101790
A66: IPC2016DO016 - Transformers | F66: 120000
A67: Base 1 (50%) | G67: 116885
A68: Substandard Transformer Rehab | G68: 85000
A69: Pole Replacement Program | G69: 126470
A70: Infrastructure Replacements and Betterments | G70: 150253
A71: Line Reclosure Refurbishments - 4 Year Cycle | G71: 15945
A72: DS Oil Re-inhibit Treatment | G72: 27526.5
A73: Padmounted Transformer and Switchgear Replacements and Painting | G73: 43709.5
A74: Station rehab | G74: 104300
A75: Ewart Street Rebuild - Phased Approach | G75: 105000
A76: Transformers | G76: 100000
A77: Reliability Rebuild: Subtransmission - Lockhart Road | G77: 170650
A78: Reliability Rebuild: Subtransmission - 5 Side Road | G78: 75000
A79: Reliability Rebuild: Distribution - Cookstown | G79: 50000
A80: Reliability Rebuild: Distribution - Alcona | G80: 22500
A81: Reliability Rebuild: Distribution - Lefroy | G81: 22500
A82: Sub-Total System Renewal | B82: =SUM(B38:B81) -> 654298 | C82: 986945 | D82: 697048 | E82: 487483 | F82: 999245 | G82: 1215739
A83: SYSTEM SERVICE
A84: DO-007 Reclosurer automation | B84: 33443
A85: DO-009 27.6kv Mechanized SCADA Load Interpt | B85: 124767
A86: DO-010 44kv Mechanized SCADA Load Interpt | B86: 149065
A87: GO-004 System Supervisory | B87: 19208
A88: GO-005 Radio repeated faulted indicators | B88: 3800
A89: GO-011 Scada program conversion | B89: 253248
A90: DO-009 - 27.6kv Mechanized SCADA Load Interpt | B90: 69
A91: DO-010 - 44kv Mechanized SCADA Load Interpt | B91: 2375
A92: DO-001 Station Reclosurer | C92: 169828
A93: DO-002 44 kV Alduti Ruptor | C93: 185785
A94: DO-003 27.6 kV Mechanized SCADA controlled load interpt | C94: 13384
A95: DO-008 27 kV Extension 20th SR, BBPT to 13th Line | C95: 687654
A96: DO-014 3 ph 27.6kV conductoring 20th btwn 5th & 7th | C96: 123174
A97: GO-007 System Supervisory | C97: 45457
A98: GO-012 Scada program conversion | C98: 151319
A99: DO-005 Reclosurere automation & replacement 4 yr cycle | D99: 214679
A100: DO-010 Lefroy Distribution Station | D100: 2336737
A101: GO-007 System Supervisory | D101: 54572
A102: GO-012 Scada program conversion | D102: 212788
A103: IPC2015DO002 - LINE EXT MAPLEVIEW RD 20TH SR TO PR WILLIAM WAY | E103: 325911
A104: IPC2015DO004 - LINE REBUILD YONGE ST FROM LOCKHART TO MAPLEVIW | E104: 433436
A105: IPC2015DO007 - LINE EXT BBP RD & 25TH SR TO FRIDAY HARBOUR S ENTR | E105: 599917
A106: IPC2015DO020 - LOCKHART ROAD REBUILD PHASE 1 | E106: 260002
A107: IPC2015DO012 - 44KV ALDUTIRUPTOR SCADA CONTROLLED SWITCHES | E107: 175151
A108: IPC2015DO014 - DS ELECTRICAL CODE COMPLIANCE UPGRADE | E108: 129692
A109: IPC2015DO015 - DS BATTERY BACKUP SYSTEM | E109: 545994
A110: IPC2015DO018 - RADIO COMMUNICATION 2014 CARRYFORWARD | E110: 136938
A111: IPC2015DO019 - LEFROY DS UPGRADE | E111: 152900
A112: IPC2015GO014 - SCADA BATTERIES & CHARGERS & CABINET REPLCMNT | E112: 183883
A113: IPC2015DO011 & IPC2015GO11 | E113: 273
A114: IPC2016DO008 - Cedar Point DS Transformer Upgrade | F114: 1578016
A115: IPC2016DO013 - Stroud DS Automation | F115: 164590
A116: Distribution SCADA controlled load interrupting gang switch | G116: 75000
A117: Repoling: Big Bay Point Road - Friday Harbour DS to Friday Harbour Development | G117: 362570
A118: Repoling: Lockhart Road - Huronia Road to Stroud DS | G118: 618932
A119: Sandy Cove DS automation | G119: 125000
A120: Repoling: Mapleview Drive - Prince William Way to Seline Crescent | G120: 837831
A121: Repoling: 5 SR - McKay Road to Salem Rd | G121: 636000
A122: DS Transformer oil containment | G122: 45000
A123: Repoling: McKay Rd - 5 SR to 10 SR | G123: 400041
A124: Sub-Total System Service | B124: =SUM(B83:B123) -> 585975 | C124: 1376601 | D124: 2818776 | E124: 2944097 | F124: 1742606 | G124: 3100374
A125: GENERAL PLANT
A126: GO-010 New Building | B126: 662562
A127: GB-001 Hardware General | B127: 73117
A128: GO-001 New Building & Land | C128: 1015496
A129: GB-001 Hardware General | C129: 53604
A130: GB-001 Software General | C130: 124394
A131: GO-003 Transport Equipment | C131: 64048
A132: GB-002A Hardware General | D132: 80063
A133: GB-002B Software General | D133: 88347
A134: IPC2015GB001A - HARDWARE GENERAL | E134: 148675
A135: IPC2015GB001B - SOFTWARE GENERAL | E135: 61990
A136: IPC2015GF001 - FINANCE & REGULATORY IT HW & SW | E136: 94356
A137: IPC2015GO001 - ENGINEERING IT PROJECT | E137: 82472
A138: IPC2015GO005 - STORES EQUIPMENT | E138: 117204
A139: IPC2015GO009 - SYSTEM SUPERVISORY & CONTROL ROOM | E139: 67317
A140: IPC2015GO013 - NEW BUILDING | E140: 12475713
A141: IPC2015GO015 - POLE BUNK | E141: 68583
A142: IPC2016GB001 - IT Hardware | F142: 130000
A143: IPC2016GB001 - IT Hardware | F143: 115000
A144: IPC2016GF001 - Finance IT | F144: 122000
A145: IPC2016GO001 - Engineering IT | F145: 121500
A146: IPC2016GO006 - Distribution Fault Current Indicators | F146: 41001
A147: IPC2016GO007 - System Supervisory | F147: 43000
A148: IT Hardware | G148: 165000
A149: IT Software | G149: 95000
A150: Finance IT | G150: 77000
A151: Engineering IT | G151: 167325
A152: Transprtation/Vehicles | G152: 505500
A153: System Supervisory | G153: 32400
A154: Miscellaneous | B154: 91856 | C154: 90911 | D154: 84288 | E154: 133674 | F154: 88000 | G154: 144910
A155: Sub-Total General Plant | B155: =SUM(B125:B154) -> 827535 | C155: 1348453 | D155: 252698 | E155: 13249984 | F155: 660501 | G155: 1187135
A156: Total Capital (Net of Contibutions) | B156: =B155+B124+B82+B36 -> 3818378.04 | C156: =C155+C124+C82+C36 -> 4751135 | D156: =D155+D124+D82+D36 -> 5031383 | E156: =SUM(E155+E124+E82+E36) -> 17577706 | F156: =SUM(F155+F124+F82+F36) -> 4486793 | G156: =SUM(G155+G124+G82+G36) -> 6688946
A158: Total
A159: Less Renewable Generation Facility Assets and Other Non-Rate-Regulated Utility Assets (input as negative)
A160: Total
A162: Notes:
A164: 1 Please provide a breakdown of the major components of each capital project undertaken in each year. Please ensure that all projects below the materiality threshold are included in the miscellaneous line. Add more projects as required.
A165: 2 The applicant should group projects appropriately and avoid presentations that result in classification of significant components of the capital budget in the miscellaneous category.

Sheet App.2-AB_Capital Expenditures
S1: File Number: | U1: =EBNUMBER -> EB-2016-0085
S2: Exhibit: | U2: 2
S3: Tab:
S4: Schedule:
S5: Page:
S7: Date: | U7: 2016-11-28
A9: Appendix 2-AB
A10: Table 2 - Capital Expenditure Summary from Chapter 5 Consolidated Distribution System Plan Filing Requirements
A12: First year of Forecast Period: | B12: =TestYear -> 2017
A13: CATEGORY | B13: Historical Period (previous plan1 & actual) | Q13: Forecast Period (planned)
B14: =E14-1 -> 2012 | E14: =H14-1 -> 2013 | H14: =K14-1 -> 2014 | K14: =N14-1 -> 2015 | N14: =Q14-1 -> 2016 | Q14: =B12 -> 2017 | R14: =Q14+1 -> 2018 | S14: =R14+1 -> 2019 | T14: 2020 | U14: 2021
B15: Plan | C15: Actual | D15: Var | E15: Plan | F15: Actual | G15: Var | H15: Plan | I15: Actual | J15: Var | K15: Plan | L15: Actual | M15: Var | N15: Plan | O15: Actual2 | P15: Var
B16: $ '000 | D16: % | E16: $ '000 | G16: % | H16: $ '000 | J16: % | K16: $ '000 | M16: % | N16: $ '000 | P16: % | Q16: $ '000
A17: System Access | C17: ='App.2-AA_Capital Projects'!B36*$A$27 -> 1750.57004 | D17: =IF(ISERROR((C17-B17)/B17),"--",(C17-B17)/B17) -> -- | F17: ='App.2-AA_Capital Projects'!C36*$A$27 -> 1039.136 | G17: =IF(ISERROR((F17-E17)/E17),"--",(F17-E17)/E17) -> -- | I17: ='App.2-AA_Capital Projects'!D36*$A$27 -> 1262.861 | J17: =IF(ISERROR((I17-H17)/H17),"--",(I17-H17)/H17) -> -- | L17: ='App.2-AA_Capital Projects'!E36*$A$27 -> 896.142 | M17: =IF(ISERROR((L17-K17)/K17),"--",(L17-K17)/K17) -> -- | O17: ='App.2-AA_Capital Projects'!F36*$A$27 -> 1084.441 | P17: =IF(ISERROR((O17-N17)/N17),"--",(O17-N17)/N17) -> -- | Q17: ='App.2-AA_Capital Projects'!G36*$A$27 -> 1185.698 | R17: 1984 | S17: 1595 | T17: 1598 | U17: 2013
A18: System Renewal | C18: ='App.2-AA_Capital Projects'!B82*$A$27 -> 654.298 | D18: =IF(ISERROR((C18-B18)/B18),"--",(C18-B18)/B18) -> -- | F18: ='App.2-AA_Capital Projects'!C82*$A$27 -> 986.945 | G18: =IF(ISERROR((F18-E18)/E18),"--",(F18-E18)/E18) -> -- | I18: ='App.2-AA_Capital Projects'!D82*$A$27 -> 697.048 | J18: =IF(ISERROR((I18-H18)/H18),"--",(I18-H18)/H18) -> -- | L18: ='App.2-AA_Capital Projects'!E82*$A$27 -> 487.483 | M18: =IF(ISERROR((L18-K18)/K18),"--",(L18-K18)/K18) -> -- | O18: ='App.2-AA_Capital Projects'!F82*$A$27 -> 999.245 | P18: =IF(ISERROR((O18-N18)/N18),"--",(O18-N18)/N18) -> -- | Q18: ='App.2-AA_Capital Projects'!G82*$A$27 -> 1215.739 | R18: 1140 | S18: 2919 | T18: 2400 | U18: 2109
A19: System Service | C19: ='App.2-AA_Capital Projects'!B124*$A$27 -> 585.975 | D19: -- | F19: ='App.2-AA_Capital Projects'!C124*$A$27 -> 1376.601 | G19: -- | I19: ='App.2-AA_Capital Projects'!D124*$A$27 -> 2818.776 | J19: -- | L19: ='App.2-AA_Capital Projects'!E124*$A$27 -> 2944.097 | M19: -- | O19: ='App.2-AA_Capital Projects'!F124*$A$27 -> 1742.606 | P19: -- | Q19: ='App.2-AA_Capital Projects'!G124*$A$27 -> 3100.374 | R19: 2829 | S19: 1276 | T19: 1556 | U19: 1402
A20: General Plant | C20: ='App.2-AA_Capital Projects'!B155*$A$27 -> 827.535 | D20: -- | F20: ='App.2-AA_Capital Projects'!C155*$A$27 -> 1348.453 | G20: -- | I20: ='App.2-AA_Capital Projects'!D155*$A$27 -> 252.698 | J20: -- | L20: ='App.2-AA_Capital Projects'!E155*$A$27 -> 13249.984 | M20: -- | O20: ='App.2-AA_Capital Projects'!F155*$A$27 -> 660.501 | P20: -- | Q20: ='App.2-AA_Capital Projects'!G155*$A$27 -> 1187.135 | R20: 1423 | S20: 897 | T20: 680 | U20: 706
A21: TOTAL EXPENDITURE | B21: 6084 | C21: =SUM(C17:C20) -> 3818.37804 | D21: -0.3723901972 | E21: 9021 | F21: 4751.135 | G21: -0.4733250194 | H21: 13038 | I21: 5031.383 | J21: -0.6140985581 | K21: 5674 | L21: 17577.706 | M21: 2.09793902 | N21: 4487 | O21: 4486.793 | P21: -4.61332739e-05 | Q21: 6688.946 | R21: 7376 | S21: 6687 | T21: 6234 | U21: =SUM(U17:U20) -> 6230
A22: System O&M | C22: 1761 | D22: -- | F22: 1787 | G22: -- | I22: 1814 | J22: -- | L22: 1805 | M22: -- | O22: 1986 | P22: -- | Q22: 2246 | R22: 2245 | S22: 2246 | T22: 2246 | U22: 2246
A24: Notes to the Table:
A25: 1. Historical “previous plan” data is not required unless a plan has previously been filed. However, use the last Board-approved, at least on a Total (Capital) Expenditure basis for the last cost of service rebasing year, and the applicant should include their planned budget in each subsequent historical year up to and including the Bridge Year.
A26: 2. Indicate the number of months of 'actual' data included in the last year of the Historical Period (normally a 'bridge' year): | J26: 6
A27: 0.001
A28: Explanatory Notes on Variances (complete only if applicable)
A29: Notes on shifts in forecast vs. historical budgets by category
A32: Notes on year over year Plan vs. Actual variances for Total Expenditures
A35: Notes on Plan vs. Actual variance trends for individual expenditure categories

Sheet App.2-AC_Customer Engagement
B1: File Number: | C1: =EBNUMBER -> EB-2016-0085
B2: Exhibit: | C2: 1
B3: Tab:
B4: Schedule:
B5: Page:
B7: Date: | C7: 2016-11-28
A9: Appendix 2-AC
A10: Customer Engagement Activities Summary
A12: Provide a list of customer engagement activities | B12: Provide a list of customer needs and preferences identified through each engagement activity | C12: Actions taken to respond to identified needs and preferences. If no action was taken, explain why.
A13: Call Centre/Customer Service Activities
A14: Providing service to approximately 6,000 customer walk-ins per year | B14: Need to explain the bill, need to make payment arrangements, account balances, billing inquiries, services such as e-Billing, TOU rates, outages, conservation programs, bill components. Enhancing customer education/knowledge | C14: Maintain this service option including an ability to make payment in-person. Trained all front office staff to handle majority of issues, one stop service. Raised issues and concerns are discussed at customer service weekly huddle for communication and action to appropriate department.
A15: InnPower Corporation managed over 21,000 inbound calls in 2015 | B15: Need to explain the bill, need to make payment arrangements, account balances, billing inquiries, services such as e-Billing, TOU rates, outages, conservation programs, bill components. Enhancing customer education/knowledge | C15: Trained all front office staff to handle majority of issues, one stop service. Raised issues and concerns are discussed at customer service weekly huddle for communication and action to appropriate department.
A16: Low Income customers and or customers having difficulty making payments | B16: Low-income customers in need of assistance require information about low income programs available to them. | C16: Participation in the Low Income Energy Assistance Program Continuous training for Customer Service Representatives for AMP arrangements, OESP, LEAP and HAP CDM program
A17: Services for disabled customers | B17: Disabled customers need to receive the same level and quality of service as non-disabled customers, regardless of any barriers there may be. | C17: InnPower Corporation is firmly committed to providing accessible, quality service to all customers and visitors in compliance with the Accessibility for Ontarians with Disability Act (AODA). InnPower Corporate Headquarters was designed to incorporate accessible building features Customer Service staff and all other employees have been trained and re-trained annually to accommodate the needs of customers with disabilities.
A18: Community Outreach and Consumer Education | B18: Customers and their families need information about how to understand your bill, causes of high bills, new energy programs (TOU,OESP) and conservation programs. | C18: Customer Service, CDM and Operational staff attend community events to provide information, answer questions and provide face to face interaction to our customers. From 2011 to 2015 InnPower has spent a total of 102 days at community events and educational sessions.
A19: Operations Customer Engagement
A20: Emergency First Responders: Fire, Police, Ambulance | B20: Emergency first responders must be made aware of electrical hazards they may encounter when responding to emergencies and taught how to keep themselves safe. | C20: InnPower Corporation works closely with First Responders to ensure adequate knowledge of electrical hazards.
A21: Customer Demand Work | B21: Customer require new services, service upgrades, increased transformation, sevice new developments including subdivisions | C21: Requests are managed via a scheduling process with appropriate priorization.
A22: Trouble call response | B22: Customer need for power restoration | C22: 24/7 coverage with ability to call in necessary resources to respond to most contingency situations
A23: Customers Impacted by Capital Improvements, Reconstruction Projects or Tree-Trimming | B23: Customers need to be informed of planned outages or tree-trimming. | C23: Customers who will be impacted by a planned outage or tree-trimming receive a hand-delivered notice that outlines details of the project and provides a number to call for questions.
A24: Locating electrical infrastructure, approximately 4,000 requests per year | B24: Need to build new infrastructure requires electrical plant to be safely located so construction can proceed | C24: Locates are all now scheduled through On1Call as mandated by the Government of Ontario. On1Call then contacts InnPower Corporation via a file transfer process to schedule the appointment.
A25: Municipal Government Consultations - Town of Innisfil, Town of Barrie | B25: Need for shared information on planning and development | C25: Plans need to be communicated in order to ensure appropriate design or construction decisions and system planning, and future capital planning.
A26: Conservation Demand Management (CDM) Activities
A27: 102 days of participation in community events and educational sessions on conservation programs from 2011 - 2016 (year to date). Full listing of all events and potentially outreach potential is detailed in Exhibit 1 Section 2.1.6 Customer Engagement. | B27: Customers and their families need information about how to understand your bill, causes of high bills, new energy programs (TOU,OESP) and conservation programs and household conservation tips to assist customers to reduce overall consumption. | C27: Community events and energy educational sessions are constantly updated based on customer feedback. Feedback is also provided to all departments via Management meetings to ensure opportunities can be addressed.
A28: Commercial and Industrial Customer Site Visits | B28: Commercial and industrial customers need technical expertise to identify and implement complex commercial or industrial energy conservation projects. | C28: More than 167 commerical and industrial customer visits were made between 2013 -2016 (YTD) by IPC's Roving Energy Manager and Conservation specialist. The purpose of the visits was to assist these customers in identifying and implementing complex commercial or industrial energy conservation projects as well as in submitting applications saveONenergy programs.
A29: Customer Service TV | B29: Customers and their families need information about how to understand your bill, causes of high bills, new energy programs (TOU,OESP) and conservation programs and household conservation tips to assist customers to reduce overall consumption. | C29: Customer Service TV is constantly updated reflecting new rates, conservation programs, consumer alerts, etc.
A30: Social Media - Facebook and Twitter | B30: Customer behaviour during power outages has indicated their strong desire for up-to-the minute outage information and an almost immediate Twitter response to outages, 24 hours a day. Safety information prior to severe weather events appears to be greatly appreciated by customers. Information about scams, energy conservation tips, safety information, etc. are retweeted by followers indicating a strong level of interest in these topics. | C30: Community events and energy educational sessions are posted on social media. Outage updates are updated via Twitter which automatically posts to Facebooks providing customers options for updates.
A31: InnPower Corporation Corporate Engagement
A32: UtilityPulse Customer Satisfaction Survey 2014 | B32: Customers want low price and high value, customer service, company leadership, the business to be a good corporate steward, operational effectiveness and power quality/reliability. Customers require various communication channels to be kept informed | C32: InnPower Corporation is in the process of developing a formal communication plan as to how IPC can continously improve communications to our customers.
A33: Shareholder Meetings | B33: InnPower Corporation regulary meets with its shareholders to discuss IPC's plans, rates and the impact on customers. | C33: IPC takes shareholder feedback and integrates into strategic planning
A34: Bill messages, bill inserts, envelope messages, advertising | B34: Customers require information on rate changes, conservation programs, etc. Some customers prefer to receive information in print form. | C34: Regular bill messages, bill inserts, envelope messages and print advertising informs customers about changes in rates, conservation programs, electrical safety topics, customer surveys, holiday hours, etc.
A35: Media Releases, Information Alerts | B35: Customers require information on material issues such as power outages, new services and price increases as well energy conservation initiatives. | C35: InnPower Corporation sends out media releases and information alerts to keep customers informed.
A36: InnPower Open House - opportunity to tour InnPower Corporations new Corporate Headquarters | B36: InnPower Corporation hosted an open house of the new Coporate Headquarters. The focus was on the services and tools available to customers. Over 500 customers attended the open house. | C36: Management and staff on hand to meet with InnPower Corporation customers and discussed electricity concerns and electricity conservation practices
A38: Note: Use "ALT-ENTER" to go to the next line within a cell

Sheet App.2-B_Acctg Instructions
A1: General Instructions to MIFRS Appendices
A2: Types of Schedules to File
A4: The purpose of this tab is to provide general instructions. The specific instructions to each appendix are listed in footnotes of each appendix.
A6: The typical applicant is expected to have made capitalization and depreciation policy changes under CGAAP as permitted by the Board on January 1, 2012 or mandated by the Board by January 1, 2013, and adopted IFRS for reporting purposes on January 1, 2015 (transition date January 1, 2014). Some distributors filing for 2017 rates have rebased with these accounting changes reflected in a prior rebasing application. If that is the case, information relating to pre-accounting policy changes is not generally required. The information to be provided by applicants will depend on when the accounting policy changes were made and when they last rebased. In general, applicants should provide the following information in the appendices:
E9: Reflecting Accounting Policy Changes in Current Application | G9: Reflected Accounting Policy Changes in Prior Application3
E10: Accounting Policy Changes in 2012 and Adopted IFRS in 2015 | F10: Accounting Policy Changes in 2013 and Adopted IFRS in 2015 | G10: Adopted IFRS in 2015
A11: Information to be filed in 2017 CoS Application | B11: 2017 | C11: Test | E11: MIFRS | F11: MIFRS | G11: MIFRS
B12: 2016 | C12: Bridge | E12: MIFRS | F12: MIFRS | G12: MIFRS
B13: 2015 | C13: Historical | E13: MIFRS | F13: MIFRS | G13: MIFRS
B14: 2014 | C14: Historical | E14: MIFRS and Revised CGAAP1 | F14: MIFRS and Revised CGAAP1 | G14: MIFRS and Revised CGAAP1
B15: 2013 | C15: Historical | E15: Revised CGAAP | F15: CGAAP and Revised CGAAP2 | G15: Rebased under Revised CGAAP
B16: 2012 | C16: Historical | E16: CGAAP and Revised CGAAP2 | F16: CGAAP | G16: Rebased under Revised CGAAP
B17: Prior | C17: Historicals | E17: Rebased under CGAAP | F17: Rebased under CGAAP | G17: N/A
A19: 1) For the transition year (2014), the applicant may file two appendices, one under Revised CGAAP and one under MIFRS, depending on the materiality of impacts. See the specific instructions under each appendix below for further details.
A20: 2) For applicants that are reflecting accounting policy changes for the first time in a rebasing application, the applicant must file two appendices in the year that the applicant implemented changes to its capitalization and depreciation policies (2012 or 2013), one before and one after the policy changes.
A21: 3) Applicants should provide CGGAP and Revised CGAAP schedules (i.e. as indicated in the first two columns of the above table) to support balances in Account 1576 if the account has yet to be disposed of.
A23: Appendix 2-BA - Fixed Asset Schedule
A25: Applicants are to provide Appendix 2-BA in accordance with the years and corresponding accounting standards noted in the above table to provide a year over year continuity in fixed assets.
A26: For the transition year (2014), the applicant should file two appendices, one under Revised CGAAP and one under MIFRS if the change between Revised CGAAP and MIFRS is material. If the change from the accounting standards is not material, the applicant may choose to only provide one appendix under MIFRS. However, the applicant must also indicate the fixed asset net book value balance under Revised CGAAP, the total dollar value of the change and explain why it is not material.
A30: Regulatory Gross Assets of Property, Plant and Equipment
A32: For an applicant that adopted IFRS on January 1, 2015 for financial reporting purposes, the applicant must establish the continuity of historic cost by using the December 31, 2013 regulatory gross assets of property, plant and equipment as the opening January 1, 2014 regulatory gross assets. The applicant must provide schedules (including Appendix 2-BA, Fixed Asset Continuity Schedule) which must identify the following details to substantiate the continuity of historic cost for regulatory purposes:
A35: · December 31, 2013 regulatory gross assets of property, plant and equipment, by asset class; and
A36: · January 1, 2014 regulatory gross assets of property, plant and equipment, by asset class.
A38: Accumulated Depreciation
A40: For an applicant that adopted IFRS on January 1, 2015 for financial reporting purposes, the applicant must establish the continuity of historic cost by using the December 31, 2013 regulatory accumulated depreciation as the opening January 1, 2014 regulatory accumulated depreciation. The applicant must provide schedules (including Appendix 2-BA, Fixed Asset Continuity Schedule) which must identify the following details to substantiate the continuity of historic cost for regulatory purposes:
A43: · December 31, 2013 regulatory accumulated depreciation, by asset class; and
A44: · January 1, 2014 regulatory accumulated depreciation, by asset class.
A46: Appendix 2-Cx - Depreciation and Amortization
A48: Applicants are to provide Appendix 2-Cx in accordance with the years and corresponding accounting standards listed in the above table.
A49: · | B49: If an applicant is reflecting changes to its depreciation policies for the first time in a rebasing application, the applicant should complete Appendix 2-CA to 2-CG (changes made in 2012) or Appendix 2-CA to 2-CF (changes made in 2013). In this set of appendices, the applicant will need to indicate the year it made the accounting policy changes. The applicant must provide data starting from the year it made changes to its capitalization and depreciation policies.
B52: *Depreciation accounting policy changes were mandated by the Board by January 1, 2013. In general, no further changes to an applicant's depreciation policy (i.e. assets' service lives) are expected after the Board mandated changes by January 1, 2013. The set of Appendix 2-CA to 2-CG assumes this to be the case. If the applicant has made any changes to its depreciation policy subsequent to the Board mandated changes, applicants must identify the change, explain the nature of the change, the reason for the change, quantify the impact of the change, and quantify the depreciation expense before and after the change.
A53: · | B53: If an applicant changed depreciation policies and reflected these changes in a prior rebasing application, the applicant should complete Appendix 2-CH. The applicant must provide data starting from the earlier of 1) all historical years back to its last rebasing; or 2) at least three years of historical actuals, in addition to Bridge Year and Test Year forecasts.
A56: Appendix 2-E - Account 1575, IFRS-CGAAP Transitional PP&E Amounts (2-EA), Account 1576, Accounting Changes Under CGAAP (2-EB, 2-EC)
A58: 1) For an applicant that has a balance in Account 1576 to dispose:
A59: · | B59: If an applicant changed capitalization and depreciation policies effective January 1, 2012, the applicant must complete Appendix 2-EB
A60: · | B60: If an applicant changed capitalization and depreciation policies effective January 1, 2013, the applicant must complete Appendix 2-EC
A62: 2) For an applicant that has a balance in Account 1575 to dispose:
A63: · | B63: The applicant must complete 2-EA
A64: If the applicant did not make any further PP&E accounting policy changes beyond the capitalization and depreciation policy changes as mandated by the Board by January 1, 2013 (i.e. no further changes made on transition to IFRS), the applicant must indicate this and does not need to complete Appendix 2-EA.
A69: Please refer to section 2.12.4 and 2.12.5 of the Filing Requirements for further details.
A71: Appendix 2-Y - Summary of Impacts to Revenue Requirement from Transition to MIFRS
A73: An applicant must provide a summary of the dollar impacts of MIFRS to each component of the revenue requirement (e.g. rate base, operating costs, etc.), including the overall impact on the proposed revenue requirement. Accordingly, the applicant must identify financial differences and resulting revenue requirement impacts arising from the adoption of MIFRS as compared to CGAAP. If the applicant is reflecting the changes in capitalization and depreciation policies for the first time in a rebasing application, then a comparison between MIFRS and CGAAP before the change in accounting policies should be completed. If the applicant changed capitalization and depreciation policies and reflected these changes in a prior rebasing application, then a comparison between MIFRS and CGAAP after the change in accounting policies should be completed.

Sheet App.2-BA_Fixed Asset Cont
L1: File Number: | M1: =EBNUMBER -> EB-2016-0085
L2: Exhibit:
L3: Tab:
L4: Schedule:
L5: Page:
L7: Date: | M7: 2016-11-28
A9: Appendix 2-BA
A10: Fixed Asset Continuity Schedule 1
E12: Accounting Standard | F12: CGAAP
E13: Year | F13: 2013
D15: Cost | J15: Accumulated Depreciation
A16: CCA Class 2 | B16: OEB Account 3 | C16: Description 3 | D16: Opening Balance | E16: Additions 4 | F16: Disposals 6 | G16: Closing Balance | I16: Opening Balance | J16: Additions | K16: Disposals 6 | L16: Closing Balance | M16: Net Book Value
A17: 12 | B17: 1611 | C17: Computer Software (Formally known as Account 1925) | D17: ='[11]FA Continuity 2013'!$D50 -> 463501.72 | E17: ='[11]FA Continuity 2013'!$E50 -> 177249.6 | F17: ='[11]FA Continuity 2013'!$F50 -> 0 | G17: =D17+E17+F17 -> 640751.32 | I17: ='[11]FA Continuity 2013'!$I50 -> -342235.44 | J17: ='[11]FA Continuity 2013'!$J$50 -> -95944.42 | K17: ='[11]FA Continuity 2013'!$K50 -> 0 | L17: =I17+J17+K17 -> -438179.86 | M17: =G17+L17 -> 202571.46
A18: CEC | B18: 1612 | C18: Land Rights (Formally known as Account 1906) | D18: ='[11]FA Continuity 2013'!$D10 -> 982510.18 | E18: ='[11]FA Continuity 2013'!$E10 -> 0 | F18: ='[11]FA Continuity 2013'!$F10 -> 0 | G18: =D18+E18+F18 -> 982510.18 | I18: ='[11]FA Continuity 2013'!$I10 -> -572921.02 | J18: ='[11]FA Continuity 2013'!$J10 -> -15126 | K18: ='[11]FA Continuity 2013'!$K10 -> 0 | L18: =I18+J18+K18 -> -588047.02 | M18: =G18+L18 -> 394463.16
A19: N/A | B19: 1805 | C19: Land | D19: ='[11]FA Continuity 2013'!$D11 -> 792971.28 | E19: ='[11]FA Continuity 2013'!$E11 -> 179065.56 | F19: ='[11]FA Continuity 2013'!$F11 -> 0 | G19: =D19+E19+F19 -> 972036.84 | I19: ='[11]FA Continuity 2013'!$I11 -> 0 | J19: ='[11]FA Continuity 2013'!$J11 -> 0 | K19: ='[11]FA Continuity 2013'!$K11 -> 0 | L19: =I19+J19+K19 -> 0 | M19: =G19+L19 -> 972036.84
A20: 47 | B20: 1808 | C20: Buildings | D20: ='[11]FA Continuity 2013'!$D12 -> 0 | G20: =D20+E20+F20 -> 0 | J20: ='[11]FA Continuity 2013'!$J12 -> 0 | L20: =I20+J20+K20 -> 0 | M20: =G20+L20 -> 0
A21: 13 | B21: 1810 | C21: Leasehold Improvements | D21: ='[11]FA Continuity 2013'!$D13 -> 86252 | E21: ='[11]FA Continuity 2013'!$E13 -> 0 | F21: ='[11]FA Continuity 2013'!$F13 -> 0 | G21: 86252 | I21: ='[11]FA Continuity 2013'!$I13 -> -86252 | J21: ='[11]FA Continuity 2013'!$J13 -> 0 | K21: ='[11]FA Continuity 2013'!$K13 -> 0 | L21: -86252 | M21: 0
A22: 47 | B22: 1815 | C22: Transformer Station Equipment >50 kV | G22: 0 | J22: ='[11]FA Continuity 2013'!$J14 -> -85926.76 | L22: -85926.76 | M22: -85926.76
A23: 47 | B23: 1820 | C23: Distribution Station Equipment <50 kV | D23: ='[11]FA Continuity 2013'!$D14 -> 4311364.45 | E23: ='[11]FA Continuity 2013'!$E$14 -> 164417.71 | F23: ='[11]FA Continuity 2013'!$F$14 -> 0 | G23: 4475782.16 | I23: ='[11]FA Continuity 2013'!$I$14 -> -2413615.15 | J23: ='[11]FA Continuity 2013'!$J15 -> 0 | K23: ='[11]FA Continuity 2013'!$K$14 -> 0 | L23: -2413615.15 | M23: 2062167.01
A24: 47 | B24: 1825 | C24: Storage Battery Equipment | G24: 0 | L24: 0 | M24: 0
A25: 47 | B25: 1830 | C25: Poles, Towers & Fixtures | D25: ='[11]FA Continuity 2013'!$D$18 -> 10110986.04 | E25: ='[11]FA Continuity 2013'!$E$18 -> 1112471.55 | F25: ='[11]FA Continuity 2013'!$F$18 -> -92325.18 | G25: 11131132.41 | I25: ='[11]FA Continuity 2013'!$I$18 -> -4379463.64 | J25: ='[11]FA Continuity 2013'!$J$18 -> -196350.05 | K25: ='[11]FA Continuity 2013'!$K$18 -> 70398.08 | L25: -4505415.61 | M25: 6625716.8
A26: 47 | B26: 1835 | C26: Overhead Conductors & Devices | D26: ='[11]FA Continuity 2013'!$D$21 -> 14057885.67 | E26: ='[11]FA Continuity 2013'!$E$21 -> 1403523.4 | F26: ='[11]FA Continuity 2013'!$F$21 -> -50073.4 | G26: 15411335.67 | I26: ='[11]FA Continuity 2013'!$I$21 -> -7537250.03 | J26: ='[11]FA Continuity 2013'!$J$21 -> -188425.3 | K26: ='[11]FA Continuity 2013'!$K$21 -> 38213.61 | L26: -7687461.72 | M26: 7723873.95
A27: 47 | B27: 1840 | C27: Underground Conduit | D27: ='[11]FA Continuity 2013'!$D$26 -> 2440333.38 | E27: ='[11]FA Continuity 2013'!$E$26 -> 20539.09 | F27: ='[11]FA Continuity 2013'!$F$26 -> 0 | G27: 2460872.47 | I27: ='[11]FA Continuity 2013'!$I$26 -> -549272.55 | J27: ='[11]FA Continuity 2013'!$J$26 -> -66667.86 | K27: ='[11]FA Continuity 2013'!$K$26 -> 0 | L27: -615940.41 | M27: 1844932.06
A28: 47 | B28: 1845 | C28: Underground Conductors & Devices | D28: ='[11]FA Continuity 2013'!$D$29+'[11]FA Continuity 2013'!$D$35 -> 17022213.81 | E28: ='[11]FA Continuity 2013'!$E$29+'[11]FA Continuity 2013'!$E$35 -> 260368.63 | F28: ='[11]FA Continuity 2013'!$F$29+'[11]FA Continuity 2013'!$F$35 -> -72273.49 | G28: 17210308.95 | I28: ='[11]FA Continuity 2013'!$I$29+'[11]FA Continuity 2013'!$I$35 -> -7648015.1 | J28: ='[11]FA Continuity 2013'!$J$29 -> -243721.91 | K28: ='[11]FA Continuity 2013'!$K$29+'[11]FA Continuity 2013'!$K$35 -> 33489.33 | L28: -7858247.68 | M28: 9352061.27
A29: 47 | B29: 1850 | C29: Line Transformers | D29: ='[11]FA Continuity 2013'!$D$34 -> 4090747.32 | E29: ='[11]FA Continuity 2013'!$E$34 -> 132221.36 | F29: ='[11]FA Continuity 2013'!$F$34 -> 29578.9 | G29: 4252547.58 | I29: ='[11]FA Continuity 2013'!$I$34 -> -2611639.43 | J29: ='[11]FA Continuity 2013'!$J$34+'[11]FA Continuity 2013'!$J$35 -> -136314.89 | K29: ='[11]FA Continuity 2013'!$K$34 -> 39601.71 | L29: -2708352.61 | M29: 1544194.97
A30: 47 | B30: 1855 | C30: Services (Overhead & Underground) | D30: ='[11]FA Continuity 2013'!$D$37 -> 4238781.24 | E30: ='[11]FA Continuity 2013'!$E$37 -> 228275.51 | F30: ='[11]FA Continuity 2013'!$F$37 -> 0 | G30: 4467056.75 | I30: ='[11]FA Continuity 2013'!$I$37 -> -1824389.14 | J30: ='[11]FA Continuity 2013'!$J$37 -> -72190.61 | K30: ='[11]FA Continuity 2013'!$K$37 -> 0 | L30: -1896579.75 | M30: 2570477
A31: 47 | B31: 1860 | C31: Meters (Smart Meters) | D31: ='[11]FA Continuity 2013'!$D$39 -> 2446555.35 | E31: ='[11]FA Continuity 2013'!$E$39 -> 126985.75 | F31: ='[11]FA Continuity 2013'!$F$39 -> -18761.58 | G31: 2554779.52 | I31: ='[11]FA Continuity 2013'!$I$39 -> -570645.44 | J31: ='[11]FA Continuity 2013'!$J$39 -> -182147.8 | K31: ='[11]FA Continuity 2013'!$K$39 -> 16357.7 | L31: -736435.54 | M31: 1818343.98
A32: 47 | B32: 1860 | C32: Meters | G32: 0 | L32: 0 | M32: 0
A33: N/A | B33: 1905 | C33: Land | D33: ='[11]FA Continuity 2013'!$D$43 -> 863610.64 | E33: ='[11]FA Continuity 2013'!$E$43 -> 1015496.3 | F33: ='[11]FA Continuity 2013'!$F$43 -> -662561.64 | G33: 1216545.3 | I33: ='[11]FA Continuity 2013'!$I$43 -> 0 | J33: ='[11]FA Continuity 2013'!$J$43 -> 0 | K33: ='[11]FA Continuity 2013'!$K$43 -> 0 | L33: 0 | M33: 1216545.3
A34: 47 | B34: 1908 | C34: Buildings & Fixtures | D34: ='[11]FA Continuity 2013'!$D$45 -> 744088.66 | E34: ='[11]FA Continuity 2013'!$E$45 -> 4303.58 | F34: ='[11]FA Continuity 2013'!$F$45 -> 0 | G34: 748392.24 | I34: ='[11]FA Continuity 2013'!$I$45 -> -285190.46 | J34: ='[11]FA Continuity 2013'!$J$45 -> -11324.18 | K34: ='[11]FA Continuity 2013'!$K$45 -> 0 | L34: -296514.64 | M34: 451877.6
A35: 13 | B35: 1910 | C35: Leasehold Improvements | G35: 0 | L35: 0 | M35: 0
A36: 8 | B36: 1915 | C36: Office Furniture & Equipment (10 years) | D36: ='[11]FA Continuity 2013'!$D$47 -> 314602.76 | E36: ='[11]FA Continuity 2013'!$E$47 -> 12060 | F36: ='[11]FA Continuity 2013'!$F$47 -> 0 | G36: 326662.76 | I36: ='[11]FA Continuity 2013'!$I$47 -> -247407.11 | J36: ='[11]FA Continuity 2013'!$J$47 -> -14563.45 | K36: ='[11]FA Continuity 2013'!$K$47 -> 0 | L36: -261970.56 | M36: 64692.2
A37: 8 | B37: 1915 | C37: Office Furniture & Equipment (5 years) | G37: 0 | L37: 0 | M37: 0
A38: 10 | B38: 1920 | C38: Computer Equipment - Hardware | D38: ='[11]FA Continuity 2013'!$D$48 -> 570318.02 | E38: ='[11]FA Continuity 2013'!$E$48 -> 61163.5 | F38: ='[11]FA Continuity 2013'!$F$48 -> -33392.05 | G38: 598089.47 | I38: ='[11]FA Continuity 2013'!$I$48 -> -387788.75 | J38: ='[11]FA Continuity 2013'!$J$48 -> -66218.02 | K38: ='[11]FA Continuity 2013'!$K$48 -> 33174.01 | L38: -420832.76 | M38: 177256.71
A39: 45 | B39: 1920 | C39: Computer Equip.-Hardware(Post Mar. 22/04) | G39: 0 | L39: 0 | M39: 0
A40: 45.1 | B40: 1920 | C40: Computer Equip.-Hardware(Post Mar. 19/07) | G40: 0 | L40: 0 | M40: 0
A41: 10 | B41: 1930 | C41: Transportation Equipment | D41: ='[11]FA Continuity 2013'!$D$51 -> 1167493.23 | E41: ='[11]FA Continuity 2013'!$E$51 -> 65100.15 | F41: ='[11]FA Continuity 2013'!$F$51 -> 0 | G41: 1232593.38 | I41: ='[11]FA Continuity 2013'!$I$51 -> -598070.48 | J41: ='[11]FA Continuity 2013'!$J$51 -> -144358.04 | K41: ='[11]FA Continuity 2013'!$K$51 -> 0 | L41: -742428.52 | M41: 490164.86
A42: 8 | B42: 1935 | C42: Stores Equipment | D42: ='[11]FA Continuity 2013'!$D$52 -> 36284.95 | E42: ='[11]FA Continuity 2013'!$E$52 -> 0 | F42: ='[11]FA Continuity 2013'!$F$52 -> 0 | G42: 36284.95 | I42: ='[11]FA Continuity 2013'!$I$52 -> -20437.29 | J42: ='[11]FA Continuity 2013'!$J$52 -> -2445.36 | K42: ='[11]FA Continuity 2013'!$K$52 -> 0 | L42: -22882.65 | M42: 13402.3
A43: 8 | B43: 1940 | C43: Tools, Shop & Garage Equipment | D43: ='[11]FA Continuity 2013'!$D$53 -> 500835 | E43: ='[11]FA Continuity 2013'!$E$53 -> 8336.94 | F43: ='[11]FA Continuity 2013'!$F$53 -> 0 | G43: 509171.94 | I43: ='[11]FA Continuity 2013'!$I$53 -> -225010.46 | J43: ='[11]FA Continuity 2013'!$J$53 -> -37618.38 | K43: ='[11]FA Continuity 2013'!$K$53 -> 0 | L43: -262628.84 | M43: 246543.1
A44: 8 | B44: 1945 | C44: Measurement & Testing Equipment | D44: ='[11]FA Continuity 2013'!$D$54 -> 40374.72 | E44: ='[11]FA Continuity 2013'!$E$54 -> 5794.24 | F44: ='[11]FA Continuity 2013'!$F$54 -> 0 | G44: 46168.96 | I44: ='[11]FA Continuity 2013'!$I$54 -> -17081.9 | J44: ='[11]FA Continuity 2013'!$J$54 -> -3486.3 | K44: ='[11]FA Continuity 2013'!$K$54 -> 0 | L44: -20568.2 | M44: 25600.76
A45: 8 | B45: 1950 | C45: Power Operated Equipment | G45: 0 | L45: 0 | M45: 0
A46: 8 | B46: 1955 | C46: Communications Equipment | G46: 0 | L46: 0 | M46: 0
A47: 8 | B47: 1955 | C47: Communication Equipment (Smart Meters) | G47: 0 | L47: 0 | M47: 0
A48: 8 | B48: 1960 | C48: Miscellaneous Equipment | G48: 0 | L48: 0 | M48: 0
A49: 47 | B49: 1970 | C49: Load Management Controls Customer Premises | G49: 0 | L49: 0 | M49: 0
A50: 47 | B50: 1975 | C50: Load Management Controls Utility Premises | G50: 0 | L50: 0 | M50: 0
A51: 47 | B51: 1980 | C51: System Supervisor Equipment | D51: ='[11]FA Continuity 2013'!$D$58 -> 1692883.1 | E51: ='[11]FA Continuity 2013'!$E$58 -> 202625.3 | F51: ='[11]FA Continuity 2013'!$F$58 -> 0 | G51: 1895508.4 | I51: ='[11]FA Continuity 2013'!$I$58 -> -887493.9 | J51: ='[11]FA Continuity 2013'!$J$58 -> -112506.33 | K51: ='[11]FA Continuity 2013'!$K$58 -> 0 | L51: -1000000.23 | M51: 895508.17
A52: 47 | B52: 1985 | C52: Miscellaneous Fixed Assets | G52: 0 | L52: 0 | M52: 0
A53: 47 | B53: 1990 | C53: Other Tangible Property | G53: 0 | L53: 0 | M53: 0
A54: 47 | B54: 1995 | C54: Contributions & Grants | D54: ='[11]FA Continuity 2013'!$D$63 -> -9364011.73 | E54: ='[11]FA Continuity 2013'!$E$63 -> -428862.62 | F54: ='[11]FA Continuity 2013'!$F$63 -> 0 | G54: -9792874.35 | I54: ='[11]FA Continuity 2013'!$I$63 -> 1793095.54 | J54: ='[11]FA Continuity 2013'!$J$63 -> 243767.61 | K54: ='[11]FA Continuity 2013'!$K$63 -> 0 | L54: 2036863.15 | M54: -7756011.2
A55: 47 | B55: 2440 | C55: Deferred Revenue5
G56: 0 | L56: 0 | M56: 0
C57: Sub-Total | D57: =SUM(D17:D56) -> 57610581.79 | E57: =SUM(E17:E56) -> 4751135.55 | F57: =SUM(F17:F56) -> -899808.44 | G57: =SUM(G17:G56) -> 61461908.9 | I57: =SUM(I17:I56) -> -29411083.75 | J57: =SUM(J17:J56) -> -1431568.05 | K57: =SUM(K17:K56) -> 231234.44 | L57: =SUM(L17:L56) -> -30611417.36 | M57: =SUM(M17:M56) -> 30850491.54
C58: Less Socialized Renewable Energy Generation Investments (input as negative) | G58: =D58+E58+F58 -> 0 | L58: =I58+J58+K58 -> 0 | M58: =G58+L58 -> 0
C59: Less Other Non Rate-Regulated Utility Assets (input as negative) | G59: 0 | L59: 0 | M59: 0
C60: Total PP&E | D60: =SUM(D57:D59) -> 57610581.79 | E60: =SUM(E57:E59) -> 4751135.55 | F60: -899808.44 | G60: 61461908.9 | I60: =SUM(I57:I59) -> -29411083.75 | J60: -1431568.05 | K60: 231234.44 | L60: -30611417.36 | M60: 30850491.54
C61: Depreciation Expense adj. from gain or loss on the retirement of assets (pool of like assets), if applicable6
C62: Total | J62: =J60+J61 -> -1431568.05
I64: Less: Fully Allocated Depreciation
A65: 10 | C65: Transportation | I65: Transportation | K65: -144358
A66: 8 | C66: Stores Equipment | I66: Stores Equipment
I67: Net Depreciation | K67: =J62-K65-K66 -> -1287210.05
A69: Notes:
A71: 1 | B71: Tables in the format outlined above covering all fixed asset accounts should be submitted for the Test Year, Bridge Year and all relevant historical years. At a minimum , the applicant must provide data for the earlier of: 1) all historical years back to its last rebasing; or 2) at least three years of historical actuals, in addition to Bridge Year and Test Year forecasts.
A74: 2 | B74: The "CCA Class" for fixed assets should agree with the CCA Class used for tax purposes in Tax Returns. Fixed Assets sub-components may be used where the underlying asset components are classified under multiple CCA Classes for tax purposes. If an applicant uses any different classes from those shown in the table, an explanation should be provided. (also see note 3).
A77: 3 | B77: The table may need to be customized for a utility's asset categories or for any new asset accounts announced or authorized by the Board.
A79: 4 | B79: The additions in column (E) must not include construction work in progress (CWIP).
A81: 5 | B81: Effective on the date of IFRS adoption, customer contributions will no longer be recorded in Account 1995 Contributions & Grants, but will be recorded in Account 2440, Deferred Revenues.
A83: 6 | B83: The applicant must ensure that all asset disposals have been clearly identified in the Chapter 2 Appendices for all historic, bridge and test years. Where a distributor for general financial reporting purposes under IFRS has accounted for the amount of gain or loss on the retirement of assets in a pool of like assets as a charge or credit to income, for reporting and rate application filings, the distributor shall reclassify such gains and losses as depreciation expense, and disclose the amount separately.
A89: Appendix 2-BA
A90: Fixed Asset Continuity Schedule 1
E92: Accounting Standard | F92: CGAAP
E93: Year | F93: 2014
D95: Cost | J95: Accumulated Depreciation
A96: CCA Class 2 | B96: OEB Account 3 | C96: Description 3 | D96: Opening Balance | E96: Additions 4 | F96: Disposals 6 | G96: Closing Balance | I96: Opening Balance | J96: Additions | K96: Disposals 6 | L96: Closing Balance | M96: Net Book Value
A97: 12 | B97: 1611 | C97: Computer Software (Formally known as Account 1925) | D97: ='[11]FA Continuity CGAAP 2014'!$D$50 -> 640751.32 | E97: ='[11]FA Continuity CGAAP 2014'!$E$50 -> 198584.75 | F97: ='[11]FA Continuity CGAAP 2014'!$F$50 -> -10519.15 | G97: =D97+E97+F97 -> 828816.92 | I97: ='[11]FA Continuity CGAAP 2014'!$I$50 -> -438179.86 | J97: ='[11]FA Continuity CGAAP 2014'!$J$50 -> -133980.8 | K97: ='[11]FA Continuity CGAAP 2014'!$K$50 -> 10519.15 | L97: =I97+J97+K97 -> -561641.51 | M97: =G97+L97 -> 267175.41
A98: CEC | B98: 1612 | C98: Land Rights (Formally known as Account 1906) | D98: ='[11]FA Continuity CGAAP 2014'!$D$10 -> 982510.18 | E98: ='[11]FA Continuity CGAAP 2014'!$E$10 -> 0 | F98: ='[11]FA Continuity CGAAP 2014'!$F$10 -> 0 | G98: =D98+E98+F98 -> 982510.18 | I98: ='[11]FA Continuity CGAAP 2014'!$I$10 -> -588047.02 | J98: ='[11]FA Continuity CGAAP 2014'!$J$10 -> -15126 | K98: ='[11]FA Continuity CGAAP 2014'!$K$10 -> 0 | L98: =I98+J98+K98 -> -603173.02 | M98: =G98+L98 -> 379337.16
A99: N/A | B99: 1805 | C99: Land | D99: ='[11]FA Continuity CGAAP 2014'!$D$11 -> 972036.84 | E99: ='[11]FA Continuity CGAAP 2014'!$E$11 -> 0 | F99: ='[11]FA Continuity CGAAP 2014'!$F$11 -> 0 | G99: =D99+E99+F99 -> 972036.84 | I99: ='[11]FA Continuity CGAAP 2014'!$I$11 -> 0 | J99: ='[11]FA Continuity CGAAP 2014'!$J$11 -> 0 | K99: ='[11]FA Continuity CGAAP 2014'!$K$11 -> 0 | L99: =I99+J99+K99 -> 0 | M99: =G99+L99 -> 972036.84
A100: 47 | B100: 1808 | C100: Buildings | D100: ='[11]FA Continuity CGAAP 2014'!$D$12 -> 0 | E100: ='[11]FA Continuity CGAAP 2014'!$E$12 -> 0 | F100: ='[11]FA Continuity CGAAP 2014'!$F$12 -> 0 | G100: =D100+E100+F100 -> 0 | I100: ='[11]FA Continuity CGAAP 2014'!$I$12 -> 0 | J100: ='[11]FA Continuity CGAAP 2014'!$J$12 -> 0 | K100: ='[11]FA Continuity CGAAP 2014'!$K$12 -> 0 | L100: =I100+J100+K100 -> 0 | M100: =G100+L100 -> 0
A101: 13 | B101: 1810 | C101: Leasehold Improvements | D101: ='[11]FA Continuity CGAAP 2014'!$D$13 -> 86252 | E101: ='[11]FA Continuity CGAAP 2014'!$E$13 -> 0 | F101: ='[11]FA Continuity CGAAP 2014'!$F$13 -> 0 | G101: 86252 | I101: ='[11]FA Continuity CGAAP 2014'!$I$13 -> -86252 | J101: ='[11]FA Continuity CGAAP 2014'!$J$13 -> 0 | K101: ='[11]FA Continuity CGAAP 2014'!$K$13 -> 0 | L101: -86252 | M101: 0
A102: 47 | B102: 1815 | C102: Transformer Station Equipment >50 kV | G102: 0 | L102: 0 | M102: 0
A103: 47 | B103: 1820 | C103: Distribution Station Equipment <50 kV | D103: ='[11]FA Continuity CGAAP 2014'!$D$14 -> 4475782.16 | E103: ='[11]FA Continuity CGAAP 2014'!$E$14 -> 2895486.45 | F103: ='[11]FA Continuity CGAAP 2014'!$F$14 -> -391900.8 | G103: 6979367.81 | I103: ='[11]FA Continuity CGAAP 2014'!$I$14 -> -2499541.91 | J103: ='[11]FA Continuity CGAAP 2014'!$J$14 -> -133796.77 | K103: ='[11]FA Continuity CGAAP 2014'!$K$14 -> 229098.42 | L103: -2404240.26 | M103: 4575127.55
A104: 47 | B104: 1825 | C104: Storage Battery Equipment | G104: 0 | L104: 0 | M104: 0
A105: 47 | B105: 1830 | C105: Poles, Towers & Fixtures | D105: ='[11]FA Continuity CGAAP 2014'!$D$18 -> 11131132.41 | E105: ='[11]FA Continuity CGAAP 2014'!$E$18 -> 576010.85 | F105: ='[11]FA Continuity CGAAP 2014'!$F$18 -> -28624.76 | G105: 11678518.5 | I105: ='[11]FA Continuity CGAAP 2014'!$I$18 -> -4505415.61 | J105: ='[11]FA Continuity CGAAP 2014'!$J$18 -> -214178.88 | K105: ='[11]FA Continuity CGAAP 2014'!$K$18 -> 17611.52 | L105: -4701982.97 | M105: 6976535.53
A106: 47 | B106: 1835 | C106: Overhead Conductors & Devices | D106: ='[11]FA Continuity CGAAP 2014'!$D$21 -> 15411335.67 | E106: ='[11]FA Continuity CGAAP 2014'!$E$21 -> 724698.04 | F106: ='[11]FA Continuity CGAAP 2014'!$F$21 -> -37174.42 | G106: 16098859.29 | I106: ='[11]FA Continuity CGAAP 2014'!$I$21 -> -7687461.72 | J106: ='[11]FA Continuity CGAAP 2014'!$J$21 -> -206930.88 | K106: ='[11]FA Continuity CGAAP 2014'!$K$21 -> 28198.54 | L106: -7866194.06 | M106: 8232665.23
A107: 47 | B107: 1840 | C107: Underground Conduit | D107: ='[11]FA Continuity CGAAP 2014'!$D$26 -> 2460872.47 | E107: ='[11]FA Continuity CGAAP 2014'!$E$26 -> 320502.08 | F107: ='[11]FA Continuity CGAAP 2014'!$F$26 -> 0 | G107: 2781374.55 | I107: ='[11]FA Continuity CGAAP 2014'!$I$26 -> -615940.41 | J107: ='[11]FA Continuity CGAAP 2014'!$J$26 -> -70930.88 | K107: ='[11]FA Continuity CGAAP 2014'!$K$26 -> 0 | L107: -686871.29 | M107: 2094503.26
A108: 47 | B108: 1845 | C108: Underground Conductors & Devices | D108: ='[11]FA Continuity CGAAP 2014'!$D$29 -> 12070665.5 | E108: ='[11]FA Continuity CGAAP 2014'!$E$29 -> 279956.42 | F108: ='[11]FA Continuity CGAAP 2014'!$F$29 -> -11882.33 | G108: 12338739.59 | I108: ='[11]FA Continuity CGAAP 2014'!$I$29 -> -4814495.42 | J108: ='[11]FA Continuity CGAAP 2014'!$J$29 -> -247482.95 | K108: ='[11]FA Continuity CGAAP 2014'!$K$29 -> 5208.37 | L108: -5056770 | M108: 7281969.59
A109: 47 | B109: 1850 | C109: Line Transformers | D109: ='[11]FA Continuity CGAAP 2014'!$D$34 -> 9392191.03 | E109: ='[11]FA Continuity CGAAP 2014'!$E$34 -> 556533.29 | F109: ='[11]FA Continuity CGAAP 2014'!$F$34 -> -116969.44 | G109: 9831754.88 | I109: ='[11]FA Continuity CGAAP 2014'!$I$34 -> -5752104.87 | J109: ='[11]FA Continuity CGAAP 2014'!$J$34 -> -146575.75 | K109: ='[11]FA Continuity CGAAP 2014'!$K$34 -> 46068.49 | L109: -5852612.13 | M109: 3979142.75
A110: 47 | B110: 1855 | C110: Services (Overhead & Underground) | D110: ='[11]FA Continuity CGAAP 2014'!$D$37 -> 4467056.75 | E110: ='[11]FA Continuity CGAAP 2014'!$E$37 -> 519763.79 | F110: ='[11]FA Continuity CGAAP 2014'!$F$37 -> -2272.98 | G110: 4984547.56 | I110: ='[11]FA Continuity CGAAP 2014'!$I$37 -> -1896579.75 | J110: ='[11]FA Continuity CGAAP 2014'!$J$37 -> -81169.09 | K110: ='[11]FA Continuity CGAAP 2014'!$K$37 -> 180.84 | L110: -1977568 | M110: 3006979.56
A111: 47 | B111: 1860 | C111: Meters (Smart Meters) | D111: ='[11]FA Continuity CGAAP 2014'!$D$39 -> 2554779.52 | E111: ='[11]FA Continuity CGAAP 2014'!$E$39 -> 131826.75 | F111: ='[11]FA Continuity CGAAP 2014'!$F$39 -> -61196.32 | G111: 2625409.95 | I111: ='[11]FA Continuity CGAAP 2014'!$I$39 -> -736435.54 | J111: ='[11]FA Continuity CGAAP 2014'!$J$39 -> -176031.72 | K111: ='[11]FA Continuity CGAAP 2014'!$K$39 -> 14831.32 | L111: -897635.94 | M111: 1727774.01
A112: 47 | B112: 1860 | C112: Meters | G112: 0 | L112: 0 | M112: 0
A113: N/A | B113: 1905 | C113: Land | D113: ='[11]FA Continuity CGAAP 2014'!$D$43 -> 1216545.3 | E113: ='[11]FA Continuity CGAAP 2014'!$E$43 -> 0 | F113: ='[11]FA Continuity CGAAP 2014'!$F$43 -> 0 | G113: 1216545.3 | I113: ='[11]FA Continuity CGAAP 2014'!$I$43 -> 0 | J113: ='[11]FA Continuity CGAAP 2014'!$J$43 -> 0 | K113: ='[11]FA Continuity CGAAP 2014'!$K$43 -> 0 | L113: 0 | M113: 1216545.3
A114: 47 | B114: 1908 | C114: Buildings & Fixtures | D114: ='[11]FA Continuity CGAAP 2014'!$D$45 -> 748392.24 | E114: ='[11]FA Continuity CGAAP 2014'!$E$45 -> 0 | F114: ='[11]FA Continuity CGAAP 2014'!$F$45 -> 0 | G114: 748392.24 | I114: ='[11]FA Continuity CGAAP 2014'!$I$45 -> -296514.64 | J114: ='[11]FA Continuity CGAAP 2014'!$J$45 -> -11367.21 | K114: ='[11]FA Continuity CGAAP 2014'!$K$45 -> 0 | L114: -307881.85 | M114: 440510.39
A115: 13 | B115: 1910 | C115: Leasehold Improvements | G115: 0 | L115: 0 | M115: 0
A116: 8 | B116: 1915 | C116: Office Furniture & Equipment (10 years) | D116: ='[11]FA Continuity CGAAP 2014'!$D$47 -> 326662.76 | E116: ='[11]FA Continuity CGAAP 2014'!$E$47 -> 9292 | F116: ='[11]FA Continuity CGAAP 2014'!$F$47 -> 0 | G116: 335954.76 | I116: ='[11]FA Continuity CGAAP 2014'!$I$47 -> -261970.56 | J116: ='[11]FA Continuity CGAAP 2014'!$J$47 -> -14034 | K116: ='[11]FA Continuity CGAAP 2014'!$K$47 -> 0 | L116: -276004.56 | M116: 59950.2
A117: 8 | B117: 1915 | C117: Office Furniture & Equipment (5 years) | G117: 0 | L117: 0 | M117: 0
A118: 10 | B118: 1920 | C118: Computer Equipment - Hardware | D118: ='[11]FA Continuity CGAAP 2014'!$D$48 -> 598089.47 | E118: ='[11]FA Continuity CGAAP 2014'!$E$48 -> 80063.46 | F118: ='[11]FA Continuity CGAAP 2014'!$F$48 -> -130613.09 | G118: 547539.84 | I118: ='[11]FA Continuity CGAAP 2014'!$I$48 -> -420832.76 | J118: ='[11]FA Continuity CGAAP 2014'!$J$48 -> -70671.01 | K118: ='[11]FA Continuity CGAAP 2014'!$K$48 -> 130613.09 | L118: -360890.68 | M118: 186649.16
A119: 45 | B119: 1920 | C119: Computer Equip.-Hardware(Post Mar. 22/04) | G119: 0 | L119: 0 | M119: 0
A120: 45.1 | B120: 1920 | C120: Computer Equip.-Hardware(Post Mar. 19/07) | G120: 0 | L120: 0 | M120: 0
A121: 10 | B121: 1930 | C121: Transportation Equipment | D121: ='[11]FA Continuity CGAAP 2014'!$D$51 -> 1232593.38 | E121: ='[11]FA Continuity CGAAP 2014'!$E$51 -> 3267.67 | F121: ='[11]FA Continuity CGAAP 2014'!$F$51 -> 0 | G121: 1235861.05 | I121: ='[11]FA Continuity CGAAP 2014'!$I$51 -> -742428.52 | J121: ='[11]FA Continuity CGAAP 2014'!$J$51 -> -139931.45 | K121: ='[11]FA Continuity CGAAP 2014'!$K$51 -> 0 | L121: -882359.97 | M121: 353501.08
A122: 8 | B122: 1935 | C122: Stores Equipment | D122: ='[11]FA Continuity CGAAP 2014'!$D$52 -> 36284.95 | E122: ='[11]FA Continuity CGAAP 2014'!$E$52 -> 4787.59 | F122: ='[11]FA Continuity CGAAP 2014'!$F$52 -> 0 | G122: 41072.54 | I122: ='[11]FA Continuity CGAAP 2014'!$I$52 -> -22882.65 | J122: ='[11]FA Continuity CGAAP 2014'!$J$52 -> -2588.65 | K122: ='[11]FA Continuity CGAAP 2014'!$K$52 -> 0 | L122: -25471.3 | M122: 15601.24
A123: 8 | B123: 1940 | C123: Tools, Shop & Garage Equipment | D123: ='[11]FA Continuity CGAAP 2014'!$D$53 -> 509171.94 | E123: ='[11]FA Continuity CGAAP 2014'!$E$53 -> 17552.58 | F123: ='[11]FA Continuity CGAAP 2014'!$F$53 -> 0 | G123: 526724.52 | I123: ='[11]FA Continuity CGAAP 2014'!$I$53 -> -262628.84 | J123: ='[11]FA Continuity CGAAP 2014'!$J$53 -> -38485.83 | K123: ='[11]FA Continuity CGAAP 2014'!$K$53 -> 0 | L123: -301114.67 | M123: 225609.85
A124: 8 | B124: 1945 | C124: Measurement & Testing Equipment | D124: ='[11]FA Continuity CGAAP 2014'!$D$54 -> 46168.96 | E124: ='[11]FA Continuity CGAAP 2014'!$E$54 -> 4066.7 | F124: ='[11]FA Continuity CGAAP 2014'!$F$54 -> 0 | G124: 50235.66 | I124: ='[11]FA Continuity CGAAP 2014'!$I$54 -> -20568.2 | J124: ='[11]FA Continuity CGAAP 2014'!$J$54 -> -3979.35 | K124: ='[11]FA Continuity CGAAP 2014'!$K$54 -> 0 | L124: -24547.55 | M124: 25688.11
A125: 8 | B125: 1950 | C125: Power Operated Equipment | G125: 0 | L125: 0 | M125: 0
A126: 8 | B126: 1955 | C126: Communications Equipment | G126: 0 | L126: 0 | M126: 0
A127: 8 | B127: 1955 | C127: Communication Equipment (Smart Meters) | G127: 0 | L127: 0 | M127: 0
A128: 8 | B128: 1960 | C128: Miscellaneous Equipment | G128: 0 | L128: 0 | M128: 0
A129: 47 | B129: 1970 | C129: Load Management Controls Customer Premises | G129: 0 | L129: 0 | M129: 0
A130: 47 | B130: 1975 | C130: Load Management Controls Utility Premises | G130: 0 | L130: 0 | M130: 0
A131: 47 | B131: 1980 | C131: System Supervisor Equipment | D131: ='[11]FA Continuity CGAAP 2014'!$D$58 -> 1895508.4 | E131: ='[11]FA Continuity CGAAP 2014'!$E$58 -> 125462.03 | F131: ='[11]FA Continuity CGAAP 2014'!$F$58 -> 0 | G131: 2020970.43 | I131: ='[11]FA Continuity CGAAP 2014'!$I$58 -> -1000000.23 | J131: ='[11]FA Continuity CGAAP 2014'!$J$58 -> -118906.41 | K131: ='[11]FA Continuity CGAAP 2014'!$K$58 -> 0 | L131: -1118906.64 | M131: 902063.79
A132: 47 | B132: 1985 | C132: Miscellaneous Fixed Assets | G132: 0 | L132: 0 | M132: 0
A133: 47 | B133: 1990 | C133: Other Tangible Property | G133: 0 | L133: 0 | M133: 0
A134: 47 | B134: 1995 | C134: Contributions & Grants | D134: ='[11]FA Continuity CGAAP 2014'!$D$63 -> -9792874.35 | E134: ='[11]FA Continuity CGAAP 2014'!$E$63 -> -1416471.4 | F134: ='[11]FA Continuity CGAAP 2014'!$F$63 -> 3874.77 | G134: -11205470.98 | I134: ='[11]FA Continuity CGAAP 2014'!$I$63 -> 2036863.15 | J134: ='[11]FA Continuity CGAAP 2014'!$J$63 -> 268851.62 | K134: ='[11]FA Continuity CGAAP 2014'!$K$63 -> -6.43 | L134: 2305708.34 | M134: -8899762.64
A135: 47 | B135: 2440 | C135: Deferred Revenue5
G136: =D136+E136+F136 -> 0 | L136: =I136+J136+K136 -> 0 | M136: =G136+L136 -> 0
C137: Sub-Total | D137: =SUM(D97:D136) -> 61461908.9 | E137: =SUM(E97:E136) -> 5031383.05 | F137: =SUM(F97:F136) -> -787278.52 | G137: =SUM(G97:G136) -> 65706013.43 | I137: =SUM(I97:I136) -> -30611417.36 | J137: =SUM(J97:J136) -> -1557316.01 | K137: =SUM(K97:K136) -> 482323.31 | L137: =SUM(L97:L136) -> -31686410.06 | M137: =SUM(M97:M136) -> 34019603.37
C138: Less Socialized Renewable Energy Generation Investments (input as negative) | G138: =D138+E138+F138 -> 0 | L138: =I138+J138+K138 -> 0 | M138: =G138+L138 -> 0
C139: Less Other Non Rate-Regulated Utility Assets (input as negative) | G139: 0 | L139: 0 | M139: 0
C140: Total PP&E | D140: =SUM(D137:D139) -> 61461908.9 | E140: =SUM(E137:E139) -> 5031383.05 | F140: -787278.52 | G140: 65706013.43 | I140: =SUM(I137:I139) -> -30611417.36 | J140: -1557316.01 | K140: 482323.31 | L140: -31686410.06 | M140: 34019603.37
C141: Depreciation Expense adj. from gain or loss on the retirement of assets (pool of like assets), if applicable6
C142: Total | J142: =J140+J141 -> -1557316.01
I144: Less: Fully Allocated Depreciation
A145: 10 | C145: Transportation | I145: Transportation | K145: -139931
A146: 8 | C146: Stores Equipment | I146: Stores Equipment
I147: Net Depreciation | K147: =J142-K145-K146 -> -1417385.01
A150: Appendix 2-BA
A151: Fixed Asset Continuity Schedule 1
E153: Accounting Standard | F153: MIFRS
E154: Year | F154: 2014
D156: Cost | J156: Accumulated Depreciation
A157: CCA Class 2 | B157: OEB Account 3 | C157: Description 3 | D157: Opening Balance | E157: Additions 4 | F157: Disposals 6 | G157: Closing Balance | I157: Opening Balance | J157: Additions | K157: Disposals 6 | L157: Closing Balance | M157: Net Book Value
A158: 12 | B158: 1611 | C158: Computer Software (Formally known as Account 1925) | D158: ='[11]FA Continuity MIFRS 2014'!$D$50 -> 202571.46 | E158: ='[11]FA Continuity MIFRS 2014'!$E$50 -> 198584.75 | F158: ='[11]FA Continuity MIFRS 2014'!$F$50 -> 0 | G158: =D158+E158+F158 -> 401156.21 | I158: ='[11]FA Continuity MIFRS 2014'!$I$50 -> 0 | J158: ='[11]FA Continuity MIFRS 2014'!$J$50 -> -133980.8 | K158: ='[11]FA Continuity MIFRS 2014'!$K$50 -> 0 | L158: =I158+J158+K158 -> -133980.8 | M158: =G158+L158 -> 267175.41
A159: CEC | B159: 1612 | C159: Land Rights (Formally known as Account 1906) | D159: ='[11]FA Continuity MIFRS 2014'!$D$10 -> 394463.16 | E159: ='[11]FA Continuity MIFRS 2014'!$E$10 -> 0 | F159: ='[11]FA Continuity MIFRS 2014'!$F$10 -> 0 | G159: =D159+E159+F159 -> 394463.16 | I159: ='[11]FA Continuity MIFRS 2014'!$I$10 -> 0 | J159: ='[11]FA Continuity MIFRS 2014'!$J$10 -> -15126 | K159: ='[11]FA Continuity MIFRS 2014'!$K$10 -> 0 | L159: =I159+J159+K159 -> -15126 | M159: =G159+L159 -> 379337.16
A160: N/A | B160: 1805 | C160: Land | D160: ='[11]FA Continuity MIFRS 2014'!$D$11 -> 972036.84 | E160: ='[11]FA Continuity MIFRS 2014'!$E$11 -> 0 | F160: ='[11]FA Continuity MIFRS 2014'!$F$11 -> 0 | G160: =D160+E160+F160 -> 972036.84 | I160: ='[11]FA Continuity MIFRS 2014'!$I$11 -> 0 | J160: ='[11]FA Continuity MIFRS 2014'!$J$11 -> 0 | K160: ='[11]FA Continuity MIFRS 2014'!$K$11 -> 0 | L160: =I160+J160+K160 -> 0 | M160: =G160+L160 -> 972036.84
A161: 47 | B161: 1808 | C161: Buildings | G161: =D161+E161+F161 -> 0 | L161: =I161+J161+K161 -> 0 | M161: =G161+L161 -> 0
A162: 13 | B162: 1810 | C162: Leasehold Improvements | G162: 0 | L162: 0 | M162: 0
A163: 47 | B163: 1815 | C163: Transformer Station Equipment >50 kV | G163: 0 | L163: 0 | M163: 0
A164: 47 | B164: 1820 | C164: Distribution Station Equipment <50 kV | D164: ='[11]FA Continuity MIFRS 2014'!$D$14 -> 1976240.25 | E164: ='[11]FA Continuity MIFRS 2014'!$E$14 -> 2895486.45 | F164: ='[11]FA Continuity MIFRS 2014'!$F$14 -> -162802.38 | G164: 4708924.32 | I164: ='[11]FA Continuity MIFRS 2014'!$I$14 -> 0 | J164: ='[11]FA Continuity MIFRS 2014'!$J$14 -> -133796.77 | K164: ='[11]FA Continuity MIFRS 2014'!$K$14 -> 0 | L164: -133796.77 | M164: 4575127.55
A165: 47 | B165: 1825 | C165: Storage Battery Equipment | G165: 0 | L165: 0 | M165: 0
A166: 47 | B166: 1830 | C166: Poles, Towers & Fixtures | D166: ='[11]FA Continuity MIFRS 2014'!$D$18 -> 6625716.8 | E166: ='[11]FA Continuity MIFRS 2014'!$E$18 -> 576010.85 | F166: ='[11]FA Continuity MIFRS 2014'!$F$18 -> -11013.24 | G166: 7190714.41 | I166: ='[11]FA Continuity MIFRS 2014'!$I$18 -> 0 | J166: ='[11]FA Continuity MIFRS 2014'!$J$18 -> -214178.88 | K166: ='[11]FA Continuity MIFRS 2014'!$K$18 -> 0 | L166: -214178.88 | M166: 6976535.53
A167: 47 | B167: 1835 | C167: Overhead Conductors & Devices | D167: ='[11]FA Continuity MIFRS 2014'!$D$21 -> 7723873.95 | E167: ='[11]FA Continuity MIFRS 2014'!$E$21 -> 724698.04 | F167: ='[11]FA Continuity MIFRS 2014'!$F$21 -> -8975.88 | G167: 8439596.11 | I167: ='[11]FA Continuity MIFRS 2014'!$I$21 -> 0 | J167: ='[11]FA Continuity MIFRS 2014'!$J$21 -> -206930.88 | K167: ='[11]FA Continuity MIFRS 2014'!$K$21 -> 0 | L167: -206930.88 | M167: 8232665.23
A168: 47 | B168: 1840 | C168: Underground Conduit | D168: ='[11]FA Continuity MIFRS 2014'!$D$26 -> 1844932.06 | E168: ='[11]FA Continuity MIFRS 2014'!$E$26 -> 320502.08 | F168: ='[11]FA Continuity MIFRS 2014'!$F$26 -> 0 | G168: 2165434.14 | I168: ='[11]FA Continuity MIFRS 2014'!$I$26 -> 0 | J168: ='[11]FA Continuity MIFRS 2014'!$J$26 -> -70930.88 | K168: ='[11]FA Continuity MIFRS 2014'!$K$26 -> 0 | L168: -70930.88 | M168: 2094503.26
A169: 47 | B169: 1845 | C169: Underground Conductors & Devices | D169: ='[11]FA Continuity MIFRS 2014'!$D$29 -> 7256170.08 | E169: ='[11]FA Continuity MIFRS 2014'!$E$29 -> 279956.42 | F169: ='[11]FA Continuity MIFRS 2014'!$F$29 -> -6673.96 | G169: 7529452.54 | I169: ='[11]FA Continuity MIFRS 2014'!$I$29 -> 0 | J169: ='[11]FA Continuity MIFRS 2014'!$J$29 -> -247482.95 | K169: ='[11]FA Continuity MIFRS 2014'!$K$29 -> 0 | L169: -247482.95 | M169: 7281969.59
A170: 47 | B170: 1850 | C170: Line Transformers | D170: ='[11]FA Continuity MIFRS 2014'!$D$34 -> 3640086.16 | E170: ='[11]FA Continuity MIFRS 2014'!$E$34 -> 556533.29 | F170: ='[11]FA Continuity MIFRS 2014'!$F$34 -> -70900.95 | G170: 4125718.5 | I170: ='[11]FA Continuity MIFRS 2014'!$I$34 -> 0 | J170: ='[11]FA Continuity MIFRS 2014'!$J$34 -> -146575.75 | K170: ='[11]FA Continuity MIFRS 2014'!$K$34 -> 0 | L170: -146575.75 | M170: 3979142.75
A171: 47 | B171: 1855 | C171: Services (Overhead & Underground) | D171: ='[11]FA Continuity MIFRS 2014'!$D$37 -> 2570477 | E171: ='[11]FA Continuity MIFRS 2014'!$E$37 -> 519763.79 | F171: ='[11]FA Continuity MIFRS 2014'!$F$37 -> -2092.14 | G171: 3088148.65 | I171: ='[11]FA Continuity MIFRS 2014'!$I$37 -> 0 | J171: ='[11]FA Continuity MIFRS 2014'!$J$37 -> -81169.09 | K171: ='[11]FA Continuity MIFRS 2014'!$K$37 -> 0 | L171: -81169.09 | M171: 3006979.56
A172: 47 | B172: 1860 | C172: Meters (Smart Meters) | D172: ='[11]FA Continuity MIFRS 2014'!$D$39 -> 1818343.98 | E172: ='[11]FA Continuity MIFRS 2014'!$E$39 -> 131826.75 | F172: ='[11]FA Continuity MIFRS 2014'!$F$39 -> -46365 | G172: 1903805.73 | I172: ='[11]FA Continuity MIFRS 2014'!$I$39 -> 0 | J172: ='[11]FA Continuity MIFRS 2014'!$J$39 -> -176031.72 | K172: ='[11]FA Continuity MIFRS 2014'!$K$39 -> 0 | L172: -176031.72 | M172: 1727774.01
A173: 47 | B173: 1860 | C173: Meters | G173: 0 | L173: 0 | M173: 0
A174: N/A | B174: 1905 | C174: Land | D174: ='[11]FA Continuity MIFRS 2014'!$D$43 -> 1216545.3 | E174: ='[11]FA Continuity MIFRS 2014'!$E$43 -> 0 | F174: ='[11]FA Continuity MIFRS 2014'!$F$43 -> 0 | G174: 1216545.3 | I174: ='[11]FA Continuity MIFRS 2014'!$I$43 -> 0 | J174: ='[11]FA Continuity MIFRS 2014'!$J$43 -> 0 | K174: ='[11]FA Continuity MIFRS 2014'!$K$43 -> 0 | L174: 0 | M174: 1216545.3
A175: 47 | B175: 1908 | C175: Buildings & Fixtures | D175: ='[11]FA Continuity MIFRS 2014'!$D$45 -> 451877.6 | E175: ='[11]FA Continuity MIFRS 2014'!$E$45 -> 0 | F175: ='[11]FA Continuity MIFRS 2014'!$F$45 -> 0 | G175: 451877.6 | I175: ='[11]FA Continuity MIFRS 2014'!$I$45 -> 0 | J175: ='[11]FA Continuity MIFRS 2014'!$J$45 -> -11367.21 | K175: ='[11]FA Continuity MIFRS 2014'!$K$45 -> 0 | L175: -11367.21 | M175: 440510.39
A176: 13 | B176: 1910 | C176: Leasehold Improvements | G176: 0 | L176: 0 | M176: 0
A177: 8 | B177: 1915 | C177: Office Furniture & Equipment (10 years) | D177: ='[11]FA Continuity MIFRS 2014'!$D$47 -> 64692.2 | E177: ='[11]FA Continuity MIFRS 2014'!$E$47 -> 9292 | F177: ='[11]FA Continuity MIFRS 2014'!$F$47 -> 0 | G177: 73984.2 | I177: ='[11]FA Continuity MIFRS 2014'!$I$47 -> 0 | J177: ='[11]FA Continuity MIFRS 2014'!$J$47 -> -14034 | K177: ='[11]FA Continuity MIFRS 2014'!$K$47 -> 0 | L177: -14034 | M177: 59950.2
A178: 8 | B178: 1915 | C178: Office Furniture & Equipment (5 years) | G178: 0 | L178: 0 | M178: 0
A179: 10 | B179: 1920 | C179: Computer Equipment - Hardware | D179: ='[11]FA Continuity MIFRS 2014'!$D$48 -> 177256.71 | E179: ='[11]FA Continuity MIFRS 2014'!$E$48 -> 80063.46 | F179: ='[11]FA Continuity MIFRS 2014'!$F$48 -> 0 | G179: 257320.17 | I179: ='[11]FA Continuity MIFRS 2014'!$I$48 -> 0 | J179: ='[11]FA Continuity MIFRS 2014'!$J$48 -> -70671.01 | K179: ='[11]FA Continuity MIFRS 2014'!$K$48 -> 0 | L179: -70671.01 | M179: 186649.16
A180: 45 | B180: 1920 | C180: Computer Equip.-Hardware(Post Mar. 22/04) | G180: 0 | L180: 0 | M180: 0
A181: 45.1 | B181: 1920 | C181: Computer Equip.-Hardware(Post Mar. 19/07) | G181: 0 | L181: 0 | M181: 0
A182: 10 | B182: 1930 | C182: Transportation Equipment | D182: ='[11]FA Continuity MIFRS 2014'!$D$51 -> 490164.86 | E182: ='[11]FA Continuity MIFRS 2014'!$E$51 -> 3267.67 | F182: ='[11]FA Continuity MIFRS 2014'!$F$51 -> 0 | G182: 493432.53 | I182: ='[11]FA Continuity MIFRS 2014'!$I$51 -> 0 | J182: ='[11]FA Continuity MIFRS 2014'!$J$51 -> -139931.45 | K182: ='[11]FA Continuity MIFRS 2014'!$K$51 -> 0 | L182: -139931.45 | M182: 353501.08
A183: 8 | B183: 1935 | C183: Stores Equipment | D183: ='[11]FA Continuity MIFRS 2014'!$D$52 -> 13402.3 | E183: ='[11]FA Continuity MIFRS 2014'!$E$52 -> 4787.59 | F183: ='[11]FA Continuity MIFRS 2014'!$F$52 -> 0 | G183: 18189.89 | I183: ='[11]FA Continuity MIFRS 2014'!$I$52 -> 0 | J183: ='[11]FA Continuity MIFRS 2014'!$J$52 -> -2588.65 | K183: ='[11]FA Continuity MIFRS 2014'!$K$52 -> 0 | L183: -2588.65 | M183: 15601.24
A184: 8 | B184: 1940 | C184: Tools, Shop & Garage Equipment | D184: ='[11]FA Continuity MIFRS 2014'!$D$53 -> 246543.1 | E184: ='[11]FA Continuity MIFRS 2014'!$E$53 -> 17552.58 | F184: ='[11]FA Continuity MIFRS 2014'!$F$53 -> 0 | G184: 264095.68 | I184: ='[11]FA Continuity MIFRS 2014'!$I$53 -> 0 | J184: ='[11]FA Continuity MIFRS 2014'!$J$53 -> -38485.83 | K184: ='[11]FA Continuity MIFRS 2014'!$K$53 -> 0 | L184: -38485.83 | M184: 225609.85
A185: 8 | B185: 1945 | C185: Measurement & Testing Equipment | D185: ='[11]FA Continuity MIFRS 2014'!$D$54 -> 25600.76 | E185: ='[11]FA Continuity MIFRS 2014'!$E$54 -> 4066.7 | F185: ='[11]FA Continuity MIFRS 2014'!$F$54 -> 0 | G185: 29667.46 | I185: ='[11]FA Continuity MIFRS 2014'!$I$54 -> 0 | J185: ='[11]FA Continuity MIFRS 2014'!$J$54 -> -3979.35 | K185: ='[11]FA Continuity MIFRS 2014'!$K$54 -> 0 | L185: -3979.35 | M185: 25688.11
A186: 8 | B186: 1950 | C186: Power Operated Equipment | G186: 0 | L186: 0 | M186: 0
A187: 8 | B187: 1955 | C187: Communications Equipment | G187: 0 | L187: 0 | M187: 0
A188: 8 | B188: 1955 | C188: Communication Equipment (Smart Meters) | G188: 0 | L188: 0 | M188: 0
A189: 8 | B189: 1960 | C189: Miscellaneous Equipment | G189: 0 | L189: 0 | M189: 0
A190: 47 | B190: 1970 | C190: Load Management Controls Customer Premises | G190: 0 | L190: 0 | M190: 0
A191: 47 | B191: 1975 | C191: Load Management Controls Utility Premises | G191: 0 | L191: 0 | M191: 0
A192: 47 | B192: 1980 | C192: System Supervisor Equipment | D192: ='[11]FA Continuity MIFRS 2014'!$D$58 -> 895508.17 | E192: ='[11]FA Continuity MIFRS 2014'!$E$58 -> 125462.03 | F192: ='[11]FA Continuity MIFRS 2014'!$F$58 -> 0 | G192: 1020970.2 | I192: ='[11]FA Continuity MIFRS 2014'!$I$58 -> 0 | J192: ='[11]FA Continuity MIFRS 2014'!$J$58 -> -118833.41 | K192: ='[11]FA Continuity MIFRS 2014'!$K$58 -> 0 | L192: -118833.41 | M192: 902136.79
A193: 47 | B193: 1985 | C193: Miscellaneous Fixed Assets | G193: 0 | L193: 0 | M193: 0
A194: 47 | B194: 1990 | C194: Other Tangible Property | G194: 0 | L194: 0 | M194: 0
A195: 47 | B195: 1995 | C195: Contributions & Grants | D195: ='[11]FA Continuity MIFRS 2014'!$D$63 -> -7756011.2 | E195: ='[11]FA Continuity MIFRS 2014'!$E$63 -> -1416471.4 | F195: ='[11]FA Continuity MIFRS 2014'!$F$63 -> 3868.57 | G195: -9168614.03 | I195: ='[11]FA Continuity MIFRS 2014'!$I$63 -> 0 | J195: ='[11]FA Continuity MIFRS 2014'!$J$63 -> 268928.62 | K195: ='[11]FA Continuity MIFRS 2014'!$K$63 -> 0 | L195: 268928.62 | M195: -8899685.41
A196: 47 | B196: 2440 | C196: Deferred Revenue5
G197: =D197+E197+F197 -> 0 | L197: =I197+J197+K197 -> 0 | M197: =G197+L197 -> 0
C198: Sub-Total | D198: =SUM(D158:D197) -> 30850491.54 | E198: =SUM(E158:E197) -> 5031383.05 | F198: =SUM(F158:F197) -> -304954.98 | G198: =SUM(G158:G197) -> 35576919.61 | I198: =SUM(I158:I197) -> 0 | J198: =SUM(J158:J197) -> -1557166.01 | K198: =SUM(K158:K197) -> 0 | L198: =SUM(L158:L197) -> -1557166.01 | M198: =SUM(M158:M197) -> 34019753.6
C199: Less Socialized Renewable Energy Generation Investments (input as negative) | G199: =D199+E199+F199 -> 0 | L199: =I199+J199+K199 -> 0 | M199: =G199+L199 -> 0
C200: Less Other Non Rate-Regulated Utility Assets (input as negative) | G200: 0 | L200: 0 | M200: 0
C201: Total PP&E | D201: =SUM(D198:D200) -> 30850491.54 | E201: =SUM(E198:E200) -> 5031383.05 | F201: -304954.98 | G201: 35576919.61 | I201: =SUM(I198:I200) -> 0 | J201: -1557166.01 | K201: 0 | L201: -1557166.01 | M201: 34019753.6
C202: Depreciation Expense adj. from gain or loss on the retirement of assets (pool of like assets), if applicable6
C203: Total | J203: =J201+J202 -> -1557166.01
I205: Less: Fully Allocated Depreciation
A206: 10 | C206: Transportation | I206: Transportation | K206: -139931
A207: 8 | C207: Stores Equipment | I207: Stores Equipment
I208: Net Depreciation | K208: =J203-K206-K207 -> -1417235.01
A211: Appendix 2-BA
A212: Fixed Asset Continuity Schedule 1
E214: Accounting Standard | F214: MIFRS
E215: Year | F215: 2015
D217: Cost | J217: Accumulated Depreciation
A218: CCA Class 2 | B218: OEB Account 3 | C218: Description 3 | D218: Opening Balance | E218: Additions 4 | F218: Disposals 6 | G218: Closing Balance | I218: Opening Balance | J218: Additions | K218: Disposals 6 | L218: Closing Balance | M218: Net Book Value
A219: 12 | B219: 1611 | C219: Computer Software (Formally known as Account 1925) | D219: ='[11]FA Continuity MIFRS 2015'!$D$50 -> 401156.21 | E219: ='[11]FA Continuity MIFRS 2015'!$E$50 -> 185053 | F219: ='[11]FA Continuity MIFRS 2015'!$F$50 -> -15673 | G219: =D219+E219+F219 -> 570536.21 | I219: ='[11]FA Continuity MIFRS 2015'!$I$50 -> -133980.8 | J219: ='[11]FA Continuity MIFRS 2015'!$J$50 -> -169499 | K219: ='[11]FA Continuity MIFRS 2015'!$K$50 -> 15673 | L219: =I219+J219+K219 -> -287806.8 | M219: =G219+L219 -> 282729.41
A220: CEC | B220: 1612 | C220: Land Rights (Formally known as Account 1906) | D220: ='[11]FA Continuity MIFRS 2015'!$D$10 -> 394463.16 | E220: ='[11]FA Continuity MIFRS 2015'!$E$10 -> 0 | F220: ='[11]FA Continuity MIFRS 2015'!$F$10 -> -17 | G220: =D220+E220+F220 -> 394446.16 | I220: ='[11]FA Continuity MIFRS 2015'!$I$10 -> -15126 | J220: ='[11]FA Continuity MIFRS 2015'!$J$10 -> -12699 | K220: ='[11]FA Continuity MIFRS 2015'!$K$10 -> 17 | L220: =I220+J220+K220 -> -27808 | M220: =G220+L220 -> 366638.16
A221: N/A | B221: 1805 | C221: Land | D221: ='[11]FA Continuity MIFRS 2015'!$D$11 -> 972036.84 | E221: ='[11]FA Continuity MIFRS 2015'!$E$11 -> 77556 | F221: ='[11]FA Continuity MIFRS 2015'!$F$11 -> 0 | G221: =D221+E221+F221 -> 1049592.84 | I221: ='[11]FA Continuity MIFRS 2015'!$I$11 -> 0 | J221: ='[11]FA Continuity MIFRS 2015'!$J$11 -> 0 | K221: ='[11]FA Continuity MIFRS 2015'!$K$11 -> 0 | L221: =I221+J221+K221 -> 0 | M221: =G221+L221 -> 1049592.84
A222: 47 | B222: 1808 | C222: Buildings | G222: =D222+E222+F222 -> 0 | L222: =I222+J222+K222 -> 0 | M222: =G222+L222 -> 0
A223: 13 | B223: 1810 | C223: Leasehold Improvements | G223: 0 | L223: 0 | M223: 0
A224: 47 | B224: 1815 | C224: Transformer Station Equipment >50 kV | G224: 0 | L224: 0 | M224: 0
A225: 47 | B225: 1820 | C225: Distribution Station Equipment <50 kV | D225: ='[11]FA Continuity MIFRS 2015'!$D$14 -> 4708924.32 | E225: ='[11]FA Continuity MIFRS 2015'!$E$14 -> 779993 | F225: ='[11]FA Continuity MIFRS 2015'!$F$14 -> -3109 | G225: 5485808.32 | I225: ='[11]FA Continuity MIFRS 2015'!$I$14 -> -133796.77 | J225: ='[11]FA Continuity MIFRS 2015'!$J$14 -> -191509 | K225: ='[11]FA Continuity MIFRS 2015'!$K$14 -> 3109 | L225: -322196.77 | M225: 5163611.55
A226: 47 | B226: 1825 | C226: Storage Battery Equipment | G226: 0 | L226: 0 | M226: 0
A227: 47 | B227: 1830 | C227: Poles, Towers & Fixtures | D227: ='[11]FA Continuity MIFRS 2015'!$D$18 -> 7190714.41 | E227: ='[11]FA Continuity MIFRS 2015'!$E$18 -> 1533272 | F227: ='[11]FA Continuity MIFRS 2015'!$F$18 -> -12553 | G227: 8711433.41 | I227: ='[11]FA Continuity MIFRS 2015'!$I$18 -> -214178.88 | J227: ='[11]FA Continuity MIFRS 2015'!$J$18 -> -237728 | K227: ='[11]FA Continuity MIFRS 2015'!$K$18 -> 1204 | L227: -450702.88 | M227: 8260730.53
A228: 47 | B228: 1835 | C228: Overhead Conductors & Devices | D228: ='[11]FA Continuity MIFRS 2015'!$D$21 -> 8439596.11 | E228: ='[11]FA Continuity MIFRS 2015'!$E$21 -> 1390592 | F228: ='[11]FA Continuity MIFRS 2015'!$F$21 -> -9487 | G228: 9820701.11 | I228: ='[11]FA Continuity MIFRS 2015'!$I$21 -> -206930.88 | J228: ='[11]FA Continuity MIFRS 2015'!$J$21 -> -225949 | K228: ='[11]FA Continuity MIFRS 2015'!$K$21 -> 1291 | L228: -431588.88 | M228: 9389112.23
A229: 47 | B229: 1840 | C229: Underground Conduit | D229: ='[11]FA Continuity MIFRS 2015'!$D$26 -> 2165434.14 | E229: ='[11]FA Continuity MIFRS 2015'!$E$26 -> 546399 | F229: ='[11]FA Continuity MIFRS 2015'!$F$26 -> -15253 | G229: 2696580.14 | I229: ='[11]FA Continuity MIFRS 2015'!$I$26 -> -70930.88 | J229: ='[11]FA Continuity MIFRS 2015'!$J$26 -> -81467 | K229: ='[11]FA Continuity MIFRS 2015'!$K$26 -> 192 | L229: -152205.88 | M229: 2544374.26
A230: 47 | B230: 1845 | C230: Underground Conductors & Devices | D230: ='[11]FA Continuity MIFRS 2015'!$D$29 -> 7529452.54 | E230: ='[11]FA Continuity MIFRS 2015'!$E$29 -> 283406 | F230: ='[11]FA Continuity MIFRS 2015'!$F$29 -> -7492 | G230: 7805366.54 | I230: ='[11]FA Continuity MIFRS 2015'!$I$29 -> -247482.95 | J230: ='[11]FA Continuity MIFRS 2015'!$J$29 -> -254303 | K230: ='[11]FA Continuity MIFRS 2015'!$K$29 -> 579 | L230: -501206.95 | M230: 7304159.59
A231: 47 | B231: 1850 | C231: Line Transformers | D231: ='[11]FA Continuity MIFRS 2015'!$D$34 -> 4125718.5 | E231: ='[11]FA Continuity MIFRS 2015'!$E$34 -> 999677 | F231: ='[11]FA Continuity MIFRS 2015'!$F$34 -> -22972 | G231: 5102423.5 | I231: ='[11]FA Continuity MIFRS 2015'!$I$34 -> -146575.75 | J231: ='[11]FA Continuity MIFRS 2015'!$J$34 -> -164241 | K231: ='[11]FA Continuity MIFRS 2015'!$K$34 -> 3807 | L231: -307009.75 | M231: 4795413.75
... 149 more rows

Sheet Appendix 2-BB Service Life
N1: File Number: | P1: 0
N2: Exhibit: | P2: 4
N3: Tab:
N4: Schedule:
N5: Page:
N7: Date: | P7: 2016-11-28
A9: Appendix 2-BB
A10: Service Life Comparison
A11: Table F-1 from Kinetrics Report1
C15: Asset Details | F15: Useful Life | J15: USoA Account Number | K15: USoA Account Description | L15: Current | N15: Proposed | P15: Outside Range of Min, Max TUL?
A16: Parent* | B16: # | C16: Category| Component | Type | F16: MIN UL | G16: TUL | H16: MAX UL | L16: Years | M16: Rate | N16: Years | O16: Rate | P16: Below Min TUL | Q16: Above Max TUL
A17: OH | B17: 1 | C17: Fully Dressed Wood Poles | D17: Overall | F17: 35 | G17: 45 | H17: 75 | J17: 1830 | K17: Poles,Towers and Fixtures | L17: 40 | M17: =IF(ISERROR(1/L17), "", 1/L17) -> 0.025 | N17: 40 | O17: =IF(ISERROR(1/N17), "", 1/N17) -> 0.025 | P17: =IF(ISBLANK(N17),"",IF(N17<F17,"Yes","No")) -> No | Q17: =IF(ISBLANK(N17),"",IF(N17>H17,"Yes","No")) -> No
D18: Cross Arm | E18: Wood | F18: 20 | G18: 40 | H18: 55 | J18: 1830 | K18: Poles,Towers and Fixtures | L18: 40 | M18: =IF(ISERROR(1/L18), "", 1/L18) -> 0.025 | N18: 40 | O18: =IF(ISERROR(1/N18), "", 1/N18) -> 0.025 | P18: =IF(ISBLANK(N18),"",IF(N18<F18,"Yes","No")) -> No | Q18: =IF(ISBLANK(N18),"",IF(N18>H18,"Yes","No")) -> No
E19: Steel | F19: 30 | G19: 70 | H19: 95 | J19: 1830 | K19: Poles,Towers and Fixtures | L19: 40 | M19: 0.025 | N19: 40 | O19: 0.025 | P19: No | Q19: No
B20: 2 | C20: Fully Dressed Concrete Poles | D20: Overall | F20: 50 | G20: 60 | H20: 80 | J20: 1830 | K20: Poles,Towers and Fixtures | L20: 40 | M20: 0.025 | N20: 40 | O20: 0.025 | P20: Yes | Q20: No
D21: Cross Arm | E21: Wood | F21: 20 | G21: 40 | H21: 55 | J21: 1830 | K21: Poles,Towers and Fixtures | L21: 40 | M21: 0.025 | N21: 40 | O21: 0.025 | P21: No | Q21: No
E22: Steel | F22: 30 | G22: 70 | H22: 95 | J22: 1830 | K22: Poles,Towers and Fixtures | L22: 40 | M22: 0.025 | N22: 40 | O22: 0.025 | P22: No | Q22: No
B23: 3 | C23: Fully Dressed Steel Poles | D23: Overall | F23: 60 | G23: 60 | H23: 80 | J23: N/A
D24: Cross Arm | E24: Wood | F24: 20 | G24: 40 | H24: 55 | J24: N/A
E25: Steel | F25: 30 | G25: 70 | H25: 95 | J25: N/A
B26: 4 | C26: OH Line Switch | F26: 30 | G26: 45 | H26: 55 | J26: 1835 | K26: Overhead Conductors & Devices | L26: 40 | M26: 0.025 | N26: 40 | O26: 0.025 | P26: No | Q26: No
B27: 5 | C27: OH Line Switch Motor | F27: 15 | G27: 25 | H27: 25 | J27: 1835 | K27: Overhead Conductors & Devices | L27: 20 | M27: 0.05 | N27: 20 | O27: 0.05 | P27: No | Q27: No
B28: 6 | C28: OH Line Switch RTU | F28: 15 | G28: 20 | H28: 20 | J28: 1835 | K28: Overhead Conductors & Devices | L28: 20 | M28: 0.05 | N28: 20 | O28: 0.05 | P28: No | Q28: No
B29: 7 | C29: OH Integral Switches | F29: 35 | G29: 45 | H29: 60 | J29: 1835 | K29: Overhead Conductors & Devices | L29: 40 | M29: 0.025 | N29: 40 | O29: 0.025 | P29: No | Q29: No
B30: 8 | C30: OH Conductors | F30: 50 | G30: 60 | H30: 75 | J30: 1835 | K30: Overhead Conductors & Devices | L30: 60 | M30: 0.01666666667 | N30: 60 | O30: 0.01666666667 | P30: No | Q30: No
B31: 9 | C31: OH Transformers & Voltage Regulators | F31: 30 | G31: 40 | H31: 60 | J31: 1850 | K31: Line Transformers | L31: 40 | M31: 0.025 | N31: 40 | O31: 0.025 | P31: No | Q31: No
B32: 10 | C32: OH Shunt Capacitor Banks | F32: 25 | G32: 30 | H32: 40 | J32: N/A
B33: 11 | C33: Reclosers | F33: 25 | G33: 40 | H33: 55 | J33: N/A
A34: TS & MS | B34: 12 | C34: Power Transformers | D34: Overall | F34: 30 | G34: 45 | H34: 60 | J34: 1850 | K34: Line Transformers | L34: 40 | M34: 0.025 | N34: 40 | O34: 0.025 | P34: No | Q34: No
D35: Bushing | F35: 10 | G35: 20 | H35: 30
D36: Tap Changer | F36: 20 | G36: 30 | H36: 60
B37: 13 | C37: Station Service Transformer | F37: 30 | G37: 45 | H37: 55
B38: 14 | C38: Station Grounding Transformer | F38: 30 | G38: 40 | H38: 40
B39: 15 | C39: Station DC System | D39: Overall | F39: 10 | G39: 20 | H39: 30
D40: Battery Bank | F40: 10 | G40: 15 | H40: 15 | J40: 1820 | K40: Distribution Station Equipment | L40: 20 | M40: 0.05 | N40: 20 | O40: 0.05 | P40: No | Q40: Yes
D41: Charger | F41: 20 | G41: 20 | H41: 30 | J41: 1820 | K41: Distribution Station Equipment | L41: 20 | M41: 0.05 | N41: 20 | O41: 0.05 | P41: No | Q41: No
B42: 16 | C42: Station Metal Clad Switchgear | D42: Overall | F42: 30 | G42: 40 | H42: 60 | J42: 1820 | K42: Distribution Station Equipment | L42: 40 | M42: 0.025 | N42: 40 | O42: 0.025 | P42: No | Q42: No
D43: Removable Breaker | F43: 25 | G43: 40 | H43: 60
B44: 17 | C44: Station Independent Breakers | F44: 35 | G44: 45 | H44: 65
B45: 18 | C45: Station Switch | F45: 30 | G45: 50 | H45: 60
B46: 19 | C46: Electromechanical Relays | F46: 25 | G46: 35 | H46: 50
B47: 20 | C47: Solid State Relays | F47: 10 | G47: 30 | H47: 45 | J47: 1820 | K47: Distribtion Station Equipment | L47: 30 | M47: 0.03333333333 | N47: 30 | O47: 0.03333333333 | P47: No | Q47: No
B48: 21 | C48: Digital & Numeric Relays | F48: 15 | G48: 20 | H48: 20
B49: 22 | C49: Rigid Busbars | F49: 30 | G49: 55 | H49: 60
B50: 23 | C50: Steel Structure | F50: 35 | G50: 50 | H50: 90
A51: UG | B51: 24 | C51: Primary Paper Insulated Lead Covered (PILC) Cables | F51: 60 | G51: 65 | H51: 75 | J51: N/A
B52: 25 | C52: Primary Ethylene-Propylene Rubber (EPR) Cables | F52: 20 | G52: 25 | H52: 25 | J52: 1845 | K52: Underground Conductors & Devices | L52: 40 | M52: 0.025 | N52: 40 | O52: 0.025 | P52: No | Q52: Yes
B53: 26 | C53: Primary Non-Tree Retardant (TR) Cross Linked Polyethylene (XLPE) Cables Direct Buried | F53: 20 | G53: 25 | H53: 30 | J53: 1845 | K53: Underground Conductors & Devices | L53: 40 | M53: 0.025 | N53: 40 | O53: 0.025 | P53: No | Q53: Yes
B54: 27 | C54: Primary Non-TR XLPE Cables in Duct | F54: 20 | G54: 25 | H54: 30 | J54: 1845 | K54: Underground Conductors & Devices | L54: 40 | M54: 0.025 | N54: 40 | O54: 0.025 | P54: No | Q54: Yes
B55: 30 | C55: Secondary PILC Cables | F55: 70 | G55: 75 | H55: 80 | J55: N/A | P55: No | Q55: Yes
B56: 31 | C56: Secondary Cables Direct Buried | F56: 25 | G56: 35 | H56: 40 | J56: 1855 | K56: Service | L56: 40 | M56: 0.025 | N56: 40 | O56: 0.025 | P56: No | Q56: No
B57: 32 | C57: Secondary Cables in Duct | F57: 35 | G57: 40 | H57: 60 | J57: 1855 | K57: Service
B58: 33 | C58: Network Tranformers | D58: Overall | F58: 20 | G58: 35 | H58: 50 | J58: N/A | P58: No | Q58: Yes
D59: Protector | F59: 20 | G59: 35 | H59: 40 | J59: N/A | P59: No | Q59: Yes
B60: 34 | C60: Pad-Mounted Transformers | F60: 25 | G60: 40 | H60: 45 | J60: 1850 | K60: Line Transformers | L60: 40 | M60: 0.025 | N60: 40 | O60: 0.025 | P60: No | Q60: No
B61: 35 | C61: Submersible/Vault Transformers | F61: 25 | G61: 35 | H61: 45 | J61: 1850 | K61: Line Transformers | L61: 40 | M61: 0.025 | N61: 40 | O61: 0.025 | P61: No | Q61: No
B62: 36 | C62: UG Foundation | F62: 35 | G62: 55 | H62: 70 | J62: 1840 | K62: Underground Conduit | L62: 60 | M62: 0.01666666667 | N62: 60 | O62: 0.01666666667 | P62: No | Q62: No
B63: 37 | C63: UG Vaults | D63: Overall | F63: 40 | G63: 60 | H63: 80 | J63: N/A
D64: Roof | F64: 20 | G64: 30 | H64: 45 | J64: N/A
B65: 38 | C65: UG Vault Switches | F65: 20 | G65: 35 | H65: 50 | J65: 1845 | K65: Underground Conductors & Devices | L65: 30 | M65: 0.03333333333 | N65: 30 | O65: 0.03333333333 | P65: No | Q65: No
B66: 39 | C66: Pad-Mounted Switchgear | F66: 20 | G66: 30 | H66: 45 | J66: 1845 | K66: Underground Conductors & Devices | L66: 30 | M66: 0.03333333333 | N66: 30 | O66: 0.03333333333 | P66: No | Q66: No
B67: 40 | C67: Ducts | F67: 30 | G67: 50 | H67: 85 | J67: 1840 | K67: Underground Conduit | L67: 60 | M67: 0.01666666667 | N67: 60 | O67: 0.01666666667 | P67: No | Q67: No
B68: 41 | C68: Concrete Encased Duct Banks | F68: 35 | G68: 55 | H68: 80 | J68: 1840 | K68: Underground Conduit | L68: 60 | M68: 0.01666666667 | N68: 60 | O68: 0.01666666667 | P68: No | Q68: No
B69: 42 | C69: Cable Chambers | F69: 50 | G69: 60 | H69: 80 | J69: 1840 | K69: Underground Conduit | L69: 60 | M69: 0.01666666667 | N69: 60 | O69: 0.01666666667 | P69: No | Q69: No
A70: S | B70: 43 | C70: Remote SCADA | F70: 15 | G70: 20 | H70: 30
A73: Table F-2 from Kinetrics Report1
C75: Asset Details | F75: Useful Life Range | J75: USoA Account Number | K75: USoA Account Description | L75: Current | N75: Proposed | P75: Outside Range of Min, Max TUL?
B76: # | C76: Category| Component | Type | L76: Years | M76: Rate | N76: Years | O76: Rate | P76: Below Min Range | Q76: Above Max Range
B77: 1 | C77: Office Equipment | F77: 5 | G77: 15 | J77: 1915 | K77: Office Furniture & Equipment | L77: 10 | M77: =IF(ISERROR(1/L77), "", 1/L77) -> 0.1 | N77: 10 | O77: =IF(ISERROR(1/N77), "", 1/N77) -> 0.1 | P77: =IF(ISBLANK(N77),"",IF(N77<F77,"Yes","No")) -> No | Q77: =IF(ISBLANK(N77),"",IF(N77>G77,"Yes","No")) -> No
B78: 2 | C78: Vehicles | D78: Trucks & Buckets | F78: 5 | G78: 15 | J78: 1930 | K78: Transportation Equipment | L78: 15 | M78: =IF(ISERROR(1/L78), "", 1/L78) -> 0.06666666667 | N78: 15 | O78: =IF(ISERROR(1/N78), "", 1/N78) -> 0.06666666667 | P78: =IF(ISBLANK(N78),"",IF(N78<F78,"Yes","No")) -> No | Q78: =IF(ISBLANK(N78),"",IF(N78>G78,"Yes","No")) -> No
D79: Trailers | F79: 5 | G79: 20 | J79: 1930 | K79: Transportation Equipment | L79: 20 | M79: 0.05 | N79: 20 | O79: 0.05 | P79: No | Q79: No
D80: Vans | F80: 5 | G80: 10 | J80: 1930 | K80: Transportation Equipment | L80: 12 | M80: 0.08333333333 | N80: 12 | O80: 0.08333333333 | P80: No | Q80: Yes
B81: 3 | C81: Administrative Buildings | F81: 50 | G81: 75 | J81: 200/201 | K81: Building & Fixtures | L81: 1950-05-01 | M81: 5.43951262e-05 | N81: 1950-05-01 | O81: 5.43951262e-05 | P81: No | Q81: Yes
B82: 4 | C82: Leasehold Improvements | F82: Lease dependent | J82: N/A | L82: 0 | N82: 0
B83: 5 | C83: Station Buildings | D83: Station Buildings | F83: 50 | G83: 75 | J83: 1808 | K83: Building & Fixtures | L83: 50 | M83: 0.02 | N83: 50 | O83: 0.02 | P83: No | Q83: No
D84: Parking | F84: 25 | G84: 30 | J84: 1808 | K84: Building & Fixtures | L84: 30 | M84: 0.03333333333 | N84: 30 | O84: 0.03333333333 | P84: No | Q84: No
D85: Fence | F85: 25 | G85: 60 | J85: 1808 | K85: Building & Fixtures | L85: 25 | M85: 0.04 | N85: 25 | O85: 0.04 | P85: No | Q85: No
D86: Roof | F86: 20 | G86: 30 | J86: 1808 | K86: Building & Fixtures | L86: 20 | M86: 0.05 | N86: 20 | O86: 0.05 | P86: No | Q86: No
B87: 6 | C87: Computer Equipment | D87: Hardware | F87: 3 | G87: 5 | J87: 1920 | K87: Computer Equipment - Hardware | L87: 5 | M87: 0.2 | N87: 5 | O87: 0.2 | P87: No | Q87: No
D88: Software | F88: 2 | G88: 5 | J88: 1925 | K88: Computer Equipment - Software | L88: 5 | M88: 0.2 | N88: 5 | O88: 0.2 | P88: No | Q88: No
B89: 7 | C89: Equipment | D89: Power Operated | F89: 5 | G89: 10 | J89: N/A
D90: Stores | F90: 5 | G90: 10 | J90: 1935 | K90: Stores Equipment | L90: 10 | M90: 0.1 | N90: 10 | O90: 0.1 | P90: No | Q90: No
D91: Tools, Shop, Garage Equipment | F91: 5 | G91: 10 | J91: 1940 | K91: Tools, Shops Garage Equipment | L91: 10 | M91: 0.1 | N91: 10 | O91: 0.1 | P91: No | Q91: No
D92: Measurement & Testing Equipment | F92: 5 | G92: 10 | J92: 1945 | K92: Measurement and Testing Equipment | L92: 10 | M92: 0.1 | N92: 10 | O92: 0.1 | P92: No | Q92: No
B93: 8 | C93: Communication | D93: Towers | F93: 60 | G93: 70 | J93: 1955 | K93: Communication Equipment | L93: 10 | M93: 0.1 | N93: 10 | O93: 0.1 | P93: Yes | Q93: No
D94: Wireless | F94: 2 | G94: 10 | J94: 1955 | K94: Communication Equipment | L94: 10 | M94: 0.1 | N94: 10 | O94: 0.1 | P94: No | Q94: No
B95: 9 | C95: Residential Energy Meters | F95: 25 | G95: 35 | J95: 1860 | K95: Meters | L95: 15 | M95: 0.06666666667 | N95: 15 | O95: 0.06666666667 | P95: Yes | Q95: No
B96: 10 | C96: Industrial/Commercial Energy Meters | F96: 25 | G96: 35 | J96: 1860 | K96: Meters | L96: 20 | M96: 0.05 | N96: 20 | O96: 0.05 | P96: Yes | Q96: No
B97: 11 | C97: Wholesale Energy Meters | F97: 15 | G97: 30 | J97: N/A
B98: 12 | C98: Current & Potential Transformer (CT & PT) | F98: 35 | G98: 50 | J98: 1860 | K98: Meters | L98: 45 | M98: 0.02222222222 | N98: 45 | O98: 0.02222222222 | P98: No | Q98: No
B99: 13 | C99: Smart Meters | F99: 5 | G99: 15 | J99: 1860 | K99: Meters | L99: 15 | M99: 0.06666666667 | N99: 15 | O99: 0.06666666667 | P99: No | Q99: No
B100: 14 | C100: Repeaters - Smart Metering | F100: 10 | G100: 15 | J100: 1915 | K100: Office Furniture & Equipment | L100: 5 | M100: 0.2 | N100: 5 | O100: 0.2 | P100: Yes | Q100: No
B101: 15 | C101: Data Collectors - Smart Metering | F101: 15 | G101: 20 | J101: 1915 | K101: Office Furniture & Equipment | L101: 5 | M101: 0.2 | N101: 5 | O101: 0.2 | P101: Yes | Q101: No
A104: * TS & MS = Transformer and Municipal Stations UG = Underground Systems S = Monitoring and Control Systems
A106: Note 1: | B106: Tables F-1 and F-2 above are to be used as a reference in order to complete columns J, K, L and N.
B107: See pages 17-19 of Kinetrics Report

Sheet App.2-CA_OldCGAAPDepExp_Yr1
K1: File Number: | L1: =EBNUMBER -> EB-2016-0085
K2: Exhibit: | L2: 4
K3: Tab:
K4: Schedule:
K5: Page:
K7: Date: | L7: 2016-11-28
A9: Appendix 2-CA
A10: Depreciation and Amortization Expense
B11: Former CGAAP (Year 1)
A13: Select the set of appendices that apply | K13: Year Reflected in Schedule Below | L13: Accounting Standard
A14: 2012 Set of Appendices (2-CA to 2-CG) | C14: Assumes the applicant made capitalization and depreciation expense accounting policy changes under CGAAP effective January 1, 2012 and has adopted IFRS for financial reporting purposes effective January 1, 2015. Assumes that the applicant is reflecting these changes in a rebasing application for the first time. | K14: 2012 | L14: Former CGAAP
A15: 2013 Set of Appendices (2-CA to 2-CF) | C15: Assumes the applicant made capitalization and depreciation expense accounting policy changes under CGAAP effective January 1, 2013 and has adopted IFRS for financial reporting purposes effective January 1, 2015. Assumes that the applicant is reflecting these changes in a rebasing application for the first time. | K15: 2013 | L15: Former CGAAP
A18: Account | B18: Description | C18: Opening Regulatory Gross PP&E as at Jan. 1 | D18: Less Fully Depreciated | E18: Net for Depreciation | F18: Additions | G18: Total for Depreciation 1 | H18: Years | I18: Depreciation Rate | J18: Current Year Depreciation Expense | K18: Depreciation Expense per Appendix 2-BA Fixed Assets, Column J (l) | L18: Variance 2
C19: (a) | D19: (b) | E19: (c) | F19: (d) | G19: (e) = (c) + ½ x (d) | H19: (f) | I19: (g) = 1 / (f) | J19: (h) = (e) / (f) | L19: (m) = (h) - (l)
A20: 1611 | B20: Computer Software (Formally known as Account 1925) | C20: 363599 | D20: 162914 | E20: =C20-D20 -> 200685 | F20: 99903 | G20: =E20+0.5*F20 -> 250636.5 | H20: 3 | I20: =IF(H20=0,0,1/H20) -> 0.3333333333 | J20: =IF(H20=0,0,G20/H20) -> 83545.5 | K20: 103253 | L20: =IF(ISERROR(+J20-K20), 0, +J20-K20) -> -19707.5
A21: 1612 | B21: Land Rights (Formally known as Account 1906) | C21: 0 | D21: 0 | E21: =C21-D21 -> 0 | F21: 0 | G21: =E21+0.5*F21 -> 0 | H21: 0 | I21: 0 | J21: 0 | K21: 0 | L21: 0
A22: 1805 | B22: Land | C22: 273770 | D22: 0 | E22: 273770 | F22: 0 | G22: 273770 | H22: 0 | I22: 0 | J22: 0 | K22: 0 | L22: 0
A23: 1808 | B23: Buildings | C23: 982703 | D23: 239102.8 | E23: 743600.2 | F23: -195 | G23: 743502.7 | H23: 50 | I23: 0.02 | J23: 14870.054 | K23: 14935 | L23: -64.946
A24: 1810 | B24: Leasehold Improvements | C24: 0 | D24: 0 | E24: 0 | F24: 0 | G24: 0 | H24: 0 | I24: 0 | J24: 0 | K24: 0 | L24: 0
A25: 1815 | B25: Transformer Station Equipment >50 kV | C25: 86252 | D25: 3452 | E25: 82800 | F25: 0 | G25: 82800 | H25: 25 | I25: 0.04 | J25: 3312 | K25: 3450 | L25: -138
A26: 1820 | B26: Distribution Station Equipment <50 kV | C26: 0 | D26: 0 | E26: 0 | F26: 0 | G26: 0 | H26: 0 | I26: 0 | J26: 0 | K26: 0 | L26: 0
A27: 1825 | B27: Storage Battery Equipment | C27: 4358561 | D27: 1353335 | E27: 3005226 | F27: -47197 | G27: 2981627.5 | H27: 25 | I27: 0.04 | J27: 119265.1 | K27: 115044 | L27: 4221.1
A28: 1830 | B28: Poles, Towers & Fixtures | C28: 0 | D28: 0 | E28: 0 | F28: 0 | G28: 0 | H28: 0 | I28: 0 | J28: 0 | K28: 0 | L28: 0
A29: 1835 | B29: Overhead Conductors & Devices | C29: 9077888 | D29: 726324.5 | E29: 8351563.5 | F29: 1161036 | G29: 8932081.5 | H29: 25 | I29: 0.04 | J29: 357283.26 | K29: 288222 | L29: 69061.26
A30: 1840 | B30: Underground Conduit | C30: 13192946 | D30: 6253570.5 | E30: 6939375.5 | F30: 1013377 | G30: 7446064 | H30: 25 | I30: 0.04 | J30: 297842.56 | K30: 247207 | L30: 50635.56
A31: 1845 | B31: Underground Conductors & Devices | C31: 2035571 | D31: 297546.1 | E31: 1738024.9 | F31: 404762 | G31: 1940405.9 | H31: 25 | I31: 0.04 | J31: 77616.236 | K31: 89518 | L31: -11901.764
A32: 1850 | B32: Line Transformers | C32: 11721156 | D32: 546405.9 | E32: 11174750.1 | F32: 316123 | G32: 11332811.6 | H32: 25 | I32: 0.04 | J32: 453312.464 | K32: 475199 | L32: -21886.536
A33: 1855 | B33: Services (Overhead & Underground) | C33: 8602786 | D33: 609566 | E33: 7993220 | F33: 581801 | G33: 8284120.5 | H33: 25 | I33: 0.04 | J33: 331364.82 | K33: 354852 | L33: -23487.18
A34: 1860 | B34: Meters (Smart Meters) | C34: 4017136 | D34: 309263.5 | E34: 3707872.5 | F34: 221645 | G34: 3818695 | H34: 25 | I34: 0.04 | J34: 152747.8 | K34: 165198 | L34: -12450.2
A35: 1860 | B35: Meters | C35: 287258 | D35: 0 | E35: 287258 | F35: 0 | G35: 287258 | H35: 25 | I35: 0.04 | J35: 11490.32 | K35: 8917.24 | L35: 2573.08
A36: 1905 | B36: Land | C36: 2162281 | D36: 0 | E36: 2162281 | F36: 61343 | G36: 2192952.5 | H36: 15 | I36: 0.06666666667 | J36: 146196.8333 | K36: 189557.76 | L36: -43360.92667
A37: 1908 | B37: Buildings & Fixtures | C37: 7646 | D37: 7646 | E37: 0 | F37: 0 | G37: 0 | H37: 25 | I37: 0.04 | J37: 0 | K37: 0 | L37: 0
A38: 1910 | B38: Leasehold Improvements | C38: 201049 | D38: 0 | E38: 201049 | F38: 0 | G38: 201049 | H38: 0 | I38: 0 | J38: 0 | K38: 0 | L38: 0
A39: 1915 | B39: Office Furniture & Equipment (10 years) | C39: 739631 | D39: 0 | E39: 739631 | F39: 4457 | G39: 741859.5 | H39: 25 | I39: 0.04 | J39: 29674.38 | K39: 29717 | L39: -42.62
A40: 1915 | B40: Office Furniture & Equipment (5 years) | C40: 0 | D40: 0 | E40: 0 | F40: 0 | G40: 0 | H40: 0 | I40: 0 | J40: 0 | K40: 0 | L40: 0
A41: 1920 | B41: Computer Equipment - Hardware | C41: 308655 | D41: 196045 | E41: 112610 | F41: 5948 | G41: 115584 | H41: 10 | I41: 0.1 | J41: 11558.4 | K41: 14760 | L41: -3201.6
A42: 1920 | B42: Computer Equip.-Hardware(Post Mar. 22/04) | C42: 0 | D42: 0 | E42: 0 | F42: 0 | G42: 0 | H42: 0 | I42: 0 | J42: 0 | K42: 0 | L42: 0
A43: 1920 | B43: Computer Equip.-Hardware(Post Mar. 19/07) | C43: 515306 | D43: 263231 | E43: 252075 | F43: 143665 | G43: 323907.5 | H43: 5 | I43: 0.2 | J43: 64781.5 | K43: 76124 | L43: -11342.5
A44: 1930 | B44: Transportation Equipment | C44: 0 | D44: 0 | E44: 0 | F44: 0 | G44: 0 | H44: 0 | I44: 0 | J44: 0 | K44: 0 | L44: 0
A45: 1935 | B45: Stores Equipment | C45: 0 | D45: 0 | E45: 0 | F45: 0 | G45: 0 | H45: 0 | I45: 0 | J45: 0 | K45: 0 | L45: 0
A46: 1940 | B46: Tools, Shop & Garage Equipment | C46: 1174196 | E46: 1174196 | F46: -4702 | G46: 1171845 | H46: 7.35 | I46: 0.1360544218 | J46: 159434.6939 | K46: 139936 | L46: 19498.69388
A47: 1945 | B47: Measurement & Testing Equipment | C47: 31824 | D47: 14284 | E47: 17540 | F47: 4461 | G47: 19770.5 | H47: 10 | I47: 0.1 | J47: 1977.05 | K47: 2264 | L47: -286.95
A48: 1950 | B48: Power Operated Equipment | C48: 487684 | D48: 180064 | E48: 307620 | F48: 13151 | G48: 314195.5 | H48: 10 | I48: 0.1 | J48: 31419.55 | K48: 36773 | L48: -5353.45
A49: 1955 | B49: Communications Equipment | C49: 32997 | D49: 10937 | E49: 22060 | F49: 7378 | G49: 25749 | H49: 10 | I49: 0.1 | J49: 2574.9 | K49: 2856 | L49: -281.1
A50: 1955 | B50: Communication Equipment (Smart Meters) | C50: 0 | D50: 0 | E50: 0 | F50: 0 | G50: 0 | H50: 0 | I50: 0 | J50: 0 | K50: 0 | L50: 0
A51: 1960 | B51: Miscellaneous Equipment | C51: 0 | D51: 0 | E51: 0 | F51: 0 | G51: 0 | H51: 0 | I51: 0 | J51: 0 | K51: 0 | L51: 0
A52: 1970 | B52: Load Management Controls Customer Premises | C52: 0 | D52: 0 | E52: 0 | F52: 0 | G52: 0 | H52: 0 | I52: 0 | J52: 0 | K52: 0 | L52: 0
A53: 1975 | B53: Load Management Controls Utility Premises | C53: 0 | D53: 0 | E53: 0 | F53: 0 | G53: 0 | H53: 0 | I53: 0 | J53: 0 | K53: 0 | L53: 0
A54: 1980 | B54: System Supervisor Equipment | C54: 0 | D54: 0 | E54: 0 | F54: 0 | G54: 0 | H54: 0 | I54: 0 | J54: 0 | K54: 0 | L54: 0
A55: 1985 | B55: Miscellaneous Fixed Assets | C55: 1407393 | D55: 132313 | E55: 1275080 | F55: 285490 | G55: 1417825 | H55: 15 | I55: 0.06666666667 | J55: 94521.66667 | K55: 98435 | L55: -3913.333333
A56: 1990 | B56: Other Tangible Property | C56: 0 | D56: 0 | E56: 0 | F56: 0 | G56: 0 | H56: 0 | I56: 0 | J56: 0 | K56: 0 | L56: 0
A57: 1995 | B57: Contributions & Grants | C57: -7714946 | D57: -739898 | E57: -6975048 | F57: -1688744 | G57: -7819420 | H57: 25 | I57: 0.04 | J57: -312776.8 | K57: -343231 | L57: 30454.2
B58: Total | C58: =SUM(C20:C57) -> 54353342 | D58: =SUM(D20:D57) -> 10566102.3 | E58: =SUM(E20:E57) -> 43787239.7 | F58: =SUM(F20:F57) -> 2583702 | G58: =SUM(G20:G57) -> 45079090.7 | J58: =SUM(J20:J57) -> 2132012.288 | K58: =SUM(K20:K57) -> 2112987 | L58: =SUM(L20:L57) -> 19025.28788
A60: Notes:
A62: 1 | B62: Board policy of the "half-year" rule - the applicant must ensure that additions in the year attract a half-year depreciation expense in the first year. Deviations from this standard practice must be supported in the application.
A63: 2 | B63: The applicant must provide an explanation of material variances.
A65: General | B65: Applicants must provide a breakdown of depreciation and amortization expense in the above format for all relevant accounts. Asset Retirement Obligations (AROs), depreciation and accretion expense should be disclosed separately consistent with the Notes of historical Audited Financial Statements.

Sheet App.2-CB_NewCGAAP_DepExp_Yr1
N1: File Number: | O1: =EBNUMBER -> EB-2016-0085
N2: Exhibit: | O2: 4
N3: Tab:
N4: Schedule:
N5: Page:
N7: Date: | O7: 2016-11-28
A9: Appendix 2-CB
A10: Depreciation and Amortization Expense
A11: Revised CGAAP (Year 1)
A13: Select the set of appendices that apply | L13: Year Reflected in Schedule Below | N13: Accounting Standard
A14: 2012 Set of Appendices (2-CA to 2-CG) | C14: Assumes the applicant made capitalization and depreciation expense accounting policy changes under CGAAP effective January 1, 2012 and has adopted IFRS for financial reporting purposes effective January 1, 2015. Assumes that the applicant is reflecting these changes in a rebasing application for the first time. | L14: 2012 | N14: Revised CGAAP
A15: 2013 Set of Appendices (2-CA to 2-CF) | C15: Assumes the applicant made capitalization and depreciation expense accounting policy changes under CGAAP effective January 1, 2013 and has adopted IFRS for financial reporting purposes effective January 1, 2015. Assumes that the applicant is reflecting these changes in a rebasing application for the first time. | L15: 2013 | N15: Revised CGAAP
A18: Account | B18: Description | C18: Opening NBV as at Jan 15 | D18: Additions | E18: Average Remaining Life of Opening NBV 4 | F18: Years (new additions only) 3 | G18: Depreciation Rate on New Additions | H18: Depreciation Expense on Opening NBV | I18: Depreciation Expense on Additions 1 | J18: Current Year Depreciation Expense | K18: Depreciation Expense per Appendix 2-BA Fixed Assets, Column J (l) | L18: Variance 2 | M18: Depreciation Expense on Current Full Year Additions | N18: Less Depreciation Expense on Assets Fully Depreciated During the Year (o) | O18: Current Full Year Depreciation 6
C19: (a) | D19: (d) | E19: (i) | F19: (f) | G19: (g) = 1 / (f) | H19: (j) = (a) / (i) | I19: (h)=((d)*0.5)/(f) | J19: (k) = (j) + (h) | L19: (m) = (k) - (l) | M19: (n) = (d)/(f) | O19: (p) = (j) + (n) - (o)
A20: 1611 | B20: Computer Software (Formally known as Account 1925) | C20: =INDEX('[13]App.2-CG_MIFRS_DepExp_2012'!$C$16:$C$55,MATCH(A20,'[13]App.2-CG_MIFRS_DepExp_2012'!$A$16:$A$55,0)) -> 119195 | D20: =INDEX('[13]App.2-CG_MIFRS_DepExp_2012'!D$16:D$55,MATCH(A20,'[13]App.2-CG_MIFRS_DepExp_2012'!$A$16:$A$55,0)) -> 99903 | E20: 1.35 | F20: =INDEX('[13]App.2-CG_MIFRS_DepExp_2012'!F$16:F$55,MATCH(A20,'[13]App.2-CG_MIFRS_DepExp_2012'!$A$16:$A$55,0)) -> 3 | G20: =IF(F20=0,0,1/F20) -> 0.3333333333 | H20: =IF(E20=0,0,+C20/E20) -> 88292.59259 | I20: =IF(F20=0,0,+(D20*0.5)/F20) -> 16650.5 | J20: =IF(ISERROR(+H20+I20), 0, +H20+I20) -> 104943.0926 | K20: =INDEX('[13]App.2-CG_MIFRS_DepExp_2012'!$K$16:$K$55,MATCH(A20,'[13]App.2-CG_MIFRS_DepExp_2012'!$A$16:$A$55,0)) -> 103253 | L20: =IF(ISERROR(+J20-K20), 0, +J20-K20) -> 1690.092593 | M20: =IF(F20=0,0,+(D20)/F20) -> 33301 | N20: =46300+8800 -> 55100 | O20: =IF(ISERROR(+M20+H20-N20), 0, +M20+H20-N20) -> 66493.59259
A21: 1612 | B21: Land Rights (Formally known as Account 1906) | C21: =INDEX('[13]App.2-CG_MIFRS_DepExp_2012'!C$16:C$55,MATCH(1806,'[13]App.2-CG_MIFRS_DepExp_2012'!$A$16:$A$55,0)) -> 424717 | D21: 0 | E21: =INDEX('[13]App.2-CG_MIFRS_DepExp_2012'!E$16:E$55,MATCH(1806,'[13]App.2-CG_MIFRS_DepExp_2012'!$A$16:$A$55,0)) -> 28.558 | F21: =INDEX('[13]App.2-CG_MIFRS_DepExp_2012'!F$16:F$55,MATCH(1806,'[13]App.2-CG_MIFRS_DepExp_2012'!$A$16:$A$55,0)) -> 50 | G21: 0.02 | H21: 14872.08488 | I21: 0 | J21: 14872.08488 | K21: =INDEX('[13]App.2-CG_MIFRS_DepExp_2012'!K$16:K55,MATCH(1806,'[13]App.2-CG_MIFRS_DepExp_2012'!$A$16:$A$55,0)) -> 14935 | L21: -62.91512011 | M21: 0 | N21: =INDEX('[13]App.2-CG_MIFRS_DepExp_2012'!N$16:N55,MATCH(1806,'[13]App.2-CG_MIFRS_DepExp_2012'!$A$16:$A$55,0)) -> 297 | O21: =IF(ISERROR(+M21+H21-N21), 0, +M21+H21-N21) -> 14575.08488
A22: 1805 | B22: Land | C22: =INDEX('[13]App.2-CG_MIFRS_DepExp_2012'!$C$16:$C$55,MATCH(A22,'[13]App.2-CG_MIFRS_DepExp_2012'!$A$16:$A$55,0)) -> 273770 | D22: =INDEX('[13]App.2-CG_MIFRS_DepExp_2012'!D$16:D$55,MATCH(A22,'[13]App.2-CG_MIFRS_DepExp_2012'!$A$16:$A$55,0)) -> 0 | E22: =INDEX('[13]App.2-CG_MIFRS_DepExp_2012'!E$16:E$55,MATCH(A22,'[13]App.2-CG_MIFRS_DepExp_2012'!$A$16:$A$55,0)) -> 0 | F22: =INDEX('[13]App.2-CG_MIFRS_DepExp_2012'!F$16:F$55,MATCH(A22,'[13]App.2-CG_MIFRS_DepExp_2012'!$A$16:$A$55,0)) -> 0 | G22: 0 | H22: 0 | I22: 0 | J22: 0 | K22: =INDEX('[13]App.2-CG_MIFRS_DepExp_2012'!$K$16:$K$55,MATCH(A22,'[13]App.2-CG_MIFRS_DepExp_2012'!$A$16:$A$55,0)) -> 0 | L22: 0 | M22: 0 | N22: =INDEX('[13]App.2-CG_MIFRS_DepExp_2012'!$N$16:$N$55,MATCH(A22,'[13]App.2-CG_MIFRS_DepExp_2012'!$A$16:$A$55,0)) -> 0 | O22: 0
A23: 1808 | B23: Buildings | C23: =INDEX('[13]App.2-CG_MIFRS_DepExp_2012'!$C$16:$C$55,MATCH(A23,'[13]App.2-CG_MIFRS_DepExp_2012'!$A$16:$A$55,0)) -> 0 | D23: =INDEX('[13]App.2-CG_MIFRS_DepExp_2012'!D$16:D$55,MATCH(A23,'[13]App.2-CG_MIFRS_DepExp_2012'!$A$16:$A$55,0)) -> 0 | E23: =INDEX('[13]App.2-CG_MIFRS_DepExp_2012'!E$16:E$55,MATCH(A23,'[13]App.2-CG_MIFRS_DepExp_2012'!$A$16:$A$55,0)) -> 0 | F23: =INDEX('[13]App.2-CG_MIFRS_DepExp_2012'!F$16:F$55,MATCH(A23,'[13]App.2-CG_MIFRS_DepExp_2012'!$A$16:$A$55,0)) -> 0 | G23: 0 | H23: 0 | I23: 0 | J23: 0 | K23: =INDEX('[13]App.2-CG_MIFRS_DepExp_2012'!$K$16:$K$55,MATCH(A23,'[13]App.2-CG_MIFRS_DepExp_2012'!$A$16:$A$55,0)) -> 0 | L23: 0 | M23: 0 | N23: =INDEX('[13]App.2-CG_MIFRS_DepExp_2012'!$N$16:$N$55,MATCH(A23,'[13]App.2-CG_MIFRS_DepExp_2012'!$A$16:$A$55,0)) -> 0 | O23: 0
A24: 1810 | B24: Leasehold Improvements | C24: =INDEX('[13]App.2-CG_MIFRS_DepExp_2012'!$C$16:$C$55,MATCH(A24,'[13]App.2-CG_MIFRS_DepExp_2012'!$A$16:$A$55,0)) -> 51752 | D24: =INDEX('[13]App.2-CG_MIFRS_DepExp_2012'!D$16:D$55,MATCH(A24,'[13]App.2-CG_MIFRS_DepExp_2012'!$A$16:$A$55,0)) -> 0 | E24: 1 | F24: =INDEX('[13]App.2-CG_MIFRS_DepExp_2012'!F$16:F$55,MATCH(A24,'[13]App.2-CG_MIFRS_DepExp_2012'!$A$16:$A$55,0)) -> 25 | G24: 0.04 | H24: 51752 | I24: 0 | J24: 51752 | K24: =INDEX('[13]App.2-CG_MIFRS_DepExp_2012'!$K$16:$K$55,MATCH(A24,'[13]App.2-CG_MIFRS_DepExp_2012'!$A$16:$A$55,0)) -> 51752 | L24: 0 | M24: 0 | N24: 51752 | O24: 0
A25: 1815 | B25: Transformer Station Equipment >50 kV | C25: =INDEX('[13]App.2-CG_MIFRS_DepExp_2012'!$C$16:$C$55,MATCH(A25,'[13]App.2-CG_MIFRS_DepExp_2012'!$A$16:$A$55,0)) -> 0 | D25: =INDEX('[13]App.2-CG_MIFRS_DepExp_2012'!D$16:D$55,MATCH(A25,'[13]App.2-CG_MIFRS_DepExp_2012'!$A$16:$A$55,0)) -> 0 | E25: =INDEX('[13]App.2-CG_MIFRS_DepExp_2012'!E$16:E$55,MATCH(A25,'[13]App.2-CG_MIFRS_DepExp_2012'!$A$16:$A$55,0)) -> 0 | F25: =INDEX('[13]App.2-CG_MIFRS_DepExp_2012'!F$16:F$55,MATCH(A25,'[13]App.2-CG_MIFRS_DepExp_2012'!$A$16:$A$55,0)) -> 0 | G25: 0 | H25: 0 | I25: 0 | J25: 0 | K25: =INDEX('[13]App.2-CG_MIFRS_DepExp_2012'!$K$16:$K$55,MATCH(A25,'[13]App.2-CG_MIFRS_DepExp_2012'!$A$16:$A$55,0)) -> 0 | L25: 0 | M25: 0 | N25: =INDEX('[13]App.2-CG_MIFRS_DepExp_2012'!$N$16:$N$55,MATCH(A25,'[13]App.2-CG_MIFRS_DepExp_2012'!$A$16:$A$55,0)) -> 0 | O25: 0
A26: 1820 | B26: Distribution Station Equipment <50 kV | C26: =INDEX('[13]App.2-CG_MIFRS_DepExp_2012'!$C$16:$C$55,MATCH(A26,'[13]App.2-CG_MIFRS_DepExp_2012'!$A$16:$A$55,0)) -> 2035685 | D26: 0 | E26: =INDEX('[13]App.2-CG_MIFRS_DepExp_2012'!E$16:E$55,MATCH(A26,'[13]App.2-CG_MIFRS_DepExp_2012'!$A$16:$A$55,0)) -> 22.51 | F26: =INDEX('[13]App.2-CG_MIFRS_DepExp_2012'!F$16:F$55,MATCH(A26,'[13]App.2-CG_MIFRS_DepExp_2012'!$A$16:$A$55,0)) -> 40 | G26: 0.025 | H26: 90434.69569 | I26: 0 | J26: 90434.69569 | K26: =INDEX('[13]App.2-CG_MIFRS_DepExp_2012'!$K$16:$K$55,MATCH(A26,'[13]App.2-CG_MIFRS_DepExp_2012'!$A$16:$A$55,0)) -> 90740 | L26: -305.3043092 | M26: 0 | O26: 90434.69569
A27: 1825 | B27: Storage Battery Equipment | C27: =INDEX('[13]App.2-CG_MIFRS_DepExp_2012'!$C$16:$C$55,MATCH(A27,'[13]App.2-CG_MIFRS_DepExp_2012'!$A$16:$A$55,0)) -> 0 | D27: =INDEX('[13]App.2-CG_MIFRS_DepExp_2012'!D$16:D$55,MATCH(A27,'[13]App.2-CG_MIFRS_DepExp_2012'!$A$16:$A$55,0)) -> 0 | E27: =INDEX('[13]App.2-CG_MIFRS_DepExp_2012'!E$16:E$55,MATCH(A27,'[13]App.2-CG_MIFRS_DepExp_2012'!$A$16:$A$55,0)) -> 0 | F27: =INDEX('[13]App.2-CG_MIFRS_DepExp_2012'!F$16:F$55,MATCH(A27,'[13]App.2-CG_MIFRS_DepExp_2012'!$A$16:$A$55,0)) -> 0 | G27: 0 | H27: 0 | I27: 0 | J27: 0 | K27: =INDEX('[13]App.2-CG_MIFRS_DepExp_2012'!$K$16:$K$55,MATCH(A27,'[13]App.2-CG_MIFRS_DepExp_2012'!$A$16:$A$55,0)) -> 0 | L27: 0 | M27: 0 | O27: 0
A28: 1830 | B28: Poles, Towers & Fixtures | C28: =INDEX('[13]App.2-CG_MIFRS_DepExp_2012'!$C$16:$C$55,MATCH(A28,'[13]App.2-CG_MIFRS_DepExp_2012'!$A$16:$A$55,0)) -> 4791235 | D28: =INDEX('[13]App.2-CG_MIFRS_DepExp_2012'!D$16:D$55,MATCH(A28,'[13]App.2-CG_MIFRS_DepExp_2012'!$A$16:$A$55,0)) -> 1161036 | E28: 31 | F28: =INDEX('[13]App.2-CG_MIFRS_DepExp_2012'!F$16:F$55,MATCH(A28,'[13]App.2-CG_MIFRS_DepExp_2012'!$A$16:$A$55,0)) -> 45 | G28: 0.02222222222 | H28: 154555.9677 | I28: 12900.4 | J28: 167456.3677 | K28: =INDEX('[13]App.2-CG_MIFRS_DepExp_2012'!$K$16:$K$55,MATCH(A28,'[13]App.2-CG_MIFRS_DepExp_2012'!$A$16:$A$55,0)) -> 169153 | L28: -1696.632258 | M28: 25800.8 | N28: =INDEX('[13]App.2-CG_MIFRS_DepExp_2012'!$N$16:$N$55,MATCH(A28,'[13]App.2-CG_MIFRS_DepExp_2012'!$A$16:$A$55,0)) -> 0 | O28: 180356.7677
A29: 1835 | B29: Overhead Conductors & Devices | C29: =INDEX('[13]App.2-CG_MIFRS_DepExp_2012'!$C$16:$C$55,MATCH(A29,'[13]App.2-CG_MIFRS_DepExp_2012'!$A$16:$A$55,0)) -> 5716025 | D29: =INDEX('[13]App.2-CG_MIFRS_DepExp_2012'!D$16:D$55,MATCH(A29,'[13]App.2-CG_MIFRS_DepExp_2012'!$A$16:$A$55,0)) -> 1013377 | E29: 36 | F29: =INDEX('[13]App.2-CG_MIFRS_DepExp_2012'!F$16:F$55,MATCH(A29,'[13]App.2-CG_MIFRS_DepExp_2012'!$A$16:$A$55,0)) -> 60 | G29: 0.01666666667 | H29: 158778.4722 | I29: 8444.808333 | J29: =IF(ISERROR(+H29+I29), 0, +H29+I29) -> 167223.2806 | K29: =INDEX('[13]App.2-CG_MIFRS_DepExp_2012'!$K$16:$K$55,MATCH(A29,'[13]App.2-CG_MIFRS_DepExp_2012'!$A$16:$A$55,0)) -> 168676 | L29: -1452.719444 | M29: 16889.61667 | N29: =INDEX('[13]App.2-CG_MIFRS_DepExp_2012'!$N$16:$N$55,MATCH(A29,'[13]App.2-CG_MIFRS_DepExp_2012'!$A$16:$A$55,0)) -> 0 | O29: 175668.0889
A30: 1840 | B30: Underground Conduit | C30: =INDEX('[13]App.2-CG_MIFRS_DepExp_2012'!$C$16:$C$55,MATCH(A30,'[13]App.2-CG_MIFRS_DepExp_2012'!$A$16:$A$55,0)) -> 1547804 | D30: =INDEX('[13]App.2-CG_MIFRS_DepExp_2012'!D$16:D$55,MATCH(A30,'[13]App.2-CG_MIFRS_DepExp_2012'!$A$16:$A$55,0)) -> 404762 | E30: 27 | F30: =INDEX('[13]App.2-CG_MIFRS_DepExp_2012'!F$16:F$55,MATCH(A30,'[13]App.2-CG_MIFRS_DepExp_2012'!$A$16:$A$55,0)) -> 40 | G30: 0.025 | H30: 57326.07407 | I30: 5059.525 | J30: 62385.59907 | K30: =INDEX('[13]App.2-CG_MIFRS_DepExp_2012'!$K$16:$K$55,MATCH(A30,'[13]App.2-CG_MIFRS_DepExp_2012'!$A$16:$A$55,0)) -> 61506 | L30: 879.5990741 | M30: 10119.05 | N30: =INDEX('[13]App.2-CG_MIFRS_DepExp_2012'!$N$16:$N$55,MATCH(A30,'[13]App.2-CG_MIFRS_DepExp_2012'!$A$16:$A$55,0)) -> 0 | O30: 67445.12407
A31: 1845 | B31: Underground Conductors & Devices | C31: =INDEX('[13]App.2-CG_MIFRS_DepExp_2012'!$C$16:$C$55,MATCH(A31,'[13]App.2-CG_MIFRS_DepExp_2012'!$A$16:$A$55,0)) -> 7382140 | D31: =INDEX('[13]App.2-CG_MIFRS_DepExp_2012'!D$16:D$55,MATCH(A31,'[13]App.2-CG_MIFRS_DepExp_2012'!$A$16:$A$55,0)) -> 316123 | E31: 31.2 | F31: =INDEX('[13]App.2-CG_MIFRS_DepExp_2012'!F$16:F$55,MATCH(A31,'[13]App.2-CG_MIFRS_DepExp_2012'!$A$16:$A$55,0)) -> 40 | G31: 0.025 | H31: =IF(E31=0,0,+C31/E31) -> 236607.0513 | I31: 3951.5375 | J31: 240558.5888 | K31: =INDEX('[13]App.2-CG_MIFRS_DepExp_2012'!$K$16:$K$55,MATCH(A31,'[13]App.2-CG_MIFRS_DepExp_2012'!$A$16:$A$55,0)) -> 240015 | L31: 543.5887821 | M31: 7903.075 | N31: =INDEX('[13]App.2-CG_MIFRS_DepExp_2012'!$N$16:$N$55,MATCH(A31,'[13]App.2-CG_MIFRS_DepExp_2012'!$A$16:$A$55,0)) -> 0 | O31: 244510.1263
A32: 1850 | B32: Line Transformers | C32: =INDEX('[13]App.2-CG_MIFRS_DepExp_2012'!$C$16:$C$55,MATCH(A32,'[13]App.2-CG_MIFRS_DepExp_2012'!$A$16:$A$55,0)) -> 3014840 | D32: =INDEX('[13]App.2-CG_MIFRS_DepExp_2012'!D$16:D$55,MATCH(A32,'[13]App.2-CG_MIFRS_DepExp_2012'!$A$16:$A$55,0)) -> 581801 | E32: 25 | F32: =INDEX('[13]App.2-CG_MIFRS_DepExp_2012'!F$16:F$55,MATCH(A32,'[13]App.2-CG_MIFRS_DepExp_2012'!$A$16:$A$55,0)) -> 40 | G32: 0.025 | H32: 120593.6 | I32: 7272.5125 | J32: 127866.1125 | K32: =INDEX('[13]App.2-CG_MIFRS_DepExp_2012'!$K$16:$K$55,MATCH(A32,'[13]App.2-CG_MIFRS_DepExp_2012'!$A$16:$A$55,0)) -> 127228 | L32: 638.1125 | M32: 14545.025 | N32: 0 | O32: 135138.625
A33: 1855 | B33: Services (Overhead & Underground) | C33: =INDEX('[13]App.2-CG_MIFRS_DepExp_2012'!$C$16:$C$55,MATCH(A33,'[13]App.2-CG_MIFRS_DepExp_2012'!$A$16:$A$55,0)) -> 2259956 | D33: =INDEX('[13]App.2-CG_MIFRS_DepExp_2012'!D$16:D$55,MATCH(A33,'[13]App.2-CG_MIFRS_DepExp_2012'!$A$16:$A$55,0)) -> 221645 | E33: 34 | F33: =INDEX('[13]App.2-CG_MIFRS_DepExp_2012'!F$16:F$55,MATCH(A33,'[13]App.2-CG_MIFRS_DepExp_2012'!$A$16:$A$55,0)) -> 50 | G33: 0.02 | H33: 66469.29412 | I33: 2216.45 | J33: 68685.74412 | K33: =INDEX('[13]App.2-CG_MIFRS_DepExp_2012'!$K$16:$K$55,MATCH(A33,'[13]App.2-CG_MIFRS_DepExp_2012'!$A$16:$A$55,0)) -> 67209 | L33: 1476.744118 | M33: 4432.9 | N33: =INDEX('[13]App.2-CG_MIFRS_DepExp_2012'!$N$16:$N$55,MATCH(A33,'[13]App.2-CG_MIFRS_DepExp_2012'!$A$16:$A$55,0)) -> 0 | O33: 70902.19412
A34: 1860 | B34: Meters (Smart Meters) | C34: 1834786 | D34: 61343 | E34: 9.8 | F34: 15 | G34: 0.06666666667 | H34: 187223.0612 | I34: 2044.766667 | J34: 189267.8279 | K34: 189558 | L34: -290.1721088 | M34: 4089.533333 | N34: 13390 | O34: 177922.5946
A35: 1860 | B35: Meters | C35: 220222 | D35: 0 | E35: 19 | F35: 25 | G35: 0.04 | H35: 11590.63158 | I35: 0 | J35: 11590.63158 | K35: 8917 | L35: 2673.631579 | M35: 0 | N35: 11591 | O35: -0.3684210526
A36: 1905 | B36: Land | C36: =INDEX('[13]App.2-CG_MIFRS_DepExp_2012'!C$16:C$55,MATCH($A$36,'[13]App.2-CG_MIFRS_DepExp_2012'!$A$16:$A$55,0)) -> 201049 | D36: =INDEX('[13]App.2-CG_MIFRS_DepExp_2012'!D$16:D$55,MATCH($A36,'[13]App.2-CG_MIFRS_DepExp_2012'!$A$16:$A$55,0)) -> 0 | E36: =INDEX('[13]App.2-CG_MIFRS_DepExp_2012'!E$16:E$55,MATCH(A36,'[13]App.2-CG_MIFRS_DepExp_2012'!$A$16:$A$55,0)) -> 0 | F36: =INDEX('[13]App.2-CG_MIFRS_DepExp_2012'!F$16:F$55,MATCH(A36,'[13]App.2-CG_MIFRS_DepExp_2012'!$A$16:$A$55,0)) -> 0 | G36: 0 | H36: 0 | I36: 0 | J36: 0 | K36: =INDEX('[13]App.2-CG_MIFRS_DepExp_2012'!$K$16:$K$55,MATCH(A36,'[13]App.2-CG_MIFRS_DepExp_2012'!$A$16:$A$55,0)) -> 0 | L36: 0 | M36: 0 | N36: =INDEX('[13]App.2-CG_MIFRS_DepExp_2012'!$N$16:$N$55,MATCH(A36,'[13]App.2-CG_MIFRS_DepExp_2012'!$A$16:$A$55,0)) -> 0 | O36: 0
A37: 1908 | B37: Buildings & Fixtures | C37: =INDEX('[13]App.2-CG_MIFRS_DepExp_2012'!$C$16:$C$55,MATCH(A37,'[13]App.2-CG_MIFRS_DepExp_2012'!$A$16:$A$55,0)) -> 465719 | D37: 4457 | E37: 35 | F37: =INDEX('[13]App.2-CG_MIFRS_DepExp_2012'!F$16:F$55,MATCH(A37,'[13]App.2-CG_MIFRS_DepExp_2012'!$A$16:$A$55,0)) -> 50 | G37: 0.02 | H37: 13306.25714 | I37: =IF(F37=0,0,+(D37*0.5)/F37) -> 44.57 | J37: 13350.82714 | K37: =INDEX('[13]App.2-CG_MIFRS_DepExp_2012'!$K$16:$K$55,MATCH(A37,'[13]App.2-CG_MIFRS_DepExp_2012'!$A$16:$A$55,0)) -> 11279 | L37: 2071.827143 | M37: 89.14 | N37: =INDEX('[13]App.2-CG_MIFRS_DepExp_2012'!$N$16:$N$55,MATCH(A37,'[13]App.2-CG_MIFRS_DepExp_2012'!$A$16:$A$55,0)) -> 0 | O37: 13395.39714
A38: 1910 | B38: Leasehold Improvements | C38: =INDEX('[13]App.2-CG_MIFRS_DepExp_2012'!$C$16:$C$55,MATCH(A38,'[13]App.2-CG_MIFRS_DepExp_2012'!$A$16:$A$55,0)) -> 0 | D38: =INDEX('[13]App.2-CG_MIFRS_DepExp_2012'!D$16:D$55,MATCH($A38,'[13]App.2-CG_MIFRS_DepExp_2012'!$A$16:$A$55,0)) -> 0 | E38: =INDEX('[13]App.2-CG_MIFRS_DepExp_2012'!E$16:E$55,MATCH(A38,'[13]App.2-CG_MIFRS_DepExp_2012'!$A$16:$A$55,0)) -> 0 | F38: =INDEX('[13]App.2-CG_MIFRS_DepExp_2012'!F$16:F$55,MATCH(A38,'[13]App.2-CG_MIFRS_DepExp_2012'!$A$16:$A$55,0)) -> 0 | G38: 0 | H38: 0 | I38: 0 | J38: 0 | K38: =INDEX('[13]App.2-CG_MIFRS_DepExp_2012'!$K$16:$K$55,MATCH(A38,'[13]App.2-CG_MIFRS_DepExp_2012'!$A$16:$A$55,0)) -> 0 | L38: 0 | M38: 0 | N38: =INDEX('[13]App.2-CG_MIFRS_DepExp_2012'!$N$16:$N$55,MATCH(A38,'[13]App.2-CG_MIFRS_DepExp_2012'!$A$16:$A$55,0)) -> 0 | O38: 0
A39: 1915 | B39: Office Furniture & Equipment (10 years) | C39: =INDEX('[13]App.2-CG_MIFRS_DepExp_2012'!$C$16:$C$55,MATCH(A39,'[13]App.2-CG_MIFRS_DepExp_2012'!$A$16:$A$55,0)) -> 76007 | D39: =INDEX('[13]App.2-CG_MIFRS_DepExp_2012'!D$16:D$55,MATCH($A39,'[13]App.2-CG_MIFRS_DepExp_2012'!$A$16:$A$55,0)) -> 5948 | E39: 5 | F39: =INDEX('[13]App.2-CG_MIFRS_DepExp_2012'!F$16:F$55,MATCH(A39,'[13]App.2-CG_MIFRS_DepExp_2012'!$A$16:$A$55,0)) -> 10 | G39: 0.1 | H39: 15201.4 | I39: 297.4 | J39: 15498.8 | K39: =INDEX('[13]App.2-CG_MIFRS_DepExp_2012'!$K$16:$K$55,MATCH(A39,'[13]App.2-CG_MIFRS_DepExp_2012'!$A$16:$A$55,0)) -> 14760 | L39: 738.8 | M39: 594.8 | N39: =INDEX('[13]App.2-CG_MIFRS_DepExp_2012'!$N$16:$N$55,MATCH(A39,'[13]App.2-CG_MIFRS_DepExp_2012'!$A$16:$A$55,0)) -> 0 | O39: 15796.2
A40: 1915 | B40: Office Furniture & Equipment (5 years) | C40: ='[13]App.2-CG_MIFRS_DepExp_2012'!C$38 -> 0 | D40: ='[13]App.2-CG_MIFRS_DepExp_2012'!D$38 -> 0 | E40: ='[13]App.2-CG_MIFRS_DepExp_2012'!E$38 -> 0 | F40: ='[13]App.2-CG_MIFRS_DepExp_2012'!F$38 -> 0 | G40: 0 | H40: 0 | I40: 0 | J40: 0 | K40: 0 | L40: 0 | M40: 0 | N40: ='[13]App.2-CG_MIFRS_DepExp_2012'!N$32 -> 0 | O40: 0
A41: 1920 | B41: Computer Equipment - Hardware | C41: =INDEX('[13]App.2-CG_MIFRS_DepExp_2012'!C$16:C$55,MATCH($A$41,'[13]App.2-CG_MIFRS_DepExp_2012'!$A$16:$A$55,0)) -> 115225 | D41: =INDEX('[13]App.2-CG_MIFRS_DepExp_2012'!D$16:D$55,MATCH($A$41,'[13]App.2-CG_MIFRS_DepExp_2012'!$A$16:$A$55,0)) -> 143665 | E41: 1.9 | F41: =INDEX('[13]App.2-CG_MIFRS_DepExp_2012'!F$16:F$55,MATCH($A$41,'[13]App.2-CG_MIFRS_DepExp_2012'!$A$16:$A$55,0)) -> 5 | G41: 0.2 | H41: 60644.73684 | I41: 14366.5 | J41: 75011.23684 | K41: =INDEX('[13]App.2-CG_MIFRS_DepExp_2012'!$K$16:$K$55,MATCH(A41,'[13]App.2-CG_MIFRS_DepExp_2012'!$A$16:$A$55,0)) -> 76124 | L41: -1112.763158 | M41: 28733 | N41: 28500 | O41: 60877.73684
A42: 1920 | B42: Computer Equip.-Hardware(Post Mar. 22/04) | C42: ='[13]App.2-CG_MIFRS_DepExp_2012'!C$40 -> 0 | D42: ='[13]App.2-CG_MIFRS_DepExp_2012'!D$40 -> 0 | E42: ='[13]App.2-CG_MIFRS_DepExp_2012'!E$40 -> 0 | F42: ='[13]App.2-CG_MIFRS_DepExp_2012'!F$40 -> 0 | G42: 0 | H42: 0 | I42: 0 | J42: 0 | K42: ='[13]App.2-CG_MIFRS_DepExp_2012'!K40 -> 0 | L42: 0 | M42: 0 | N42: ='[13]App.2-CG_MIFRS_DepExp_2012'!N40 -> 0 | O42: 0
A43: 1920 | B43: Computer Equip.-Hardware(Post Mar. 19/07) | C43: ='[13]App.2-CG_MIFRS_DepExp_2012'!C$41 -> 0 | D43: ='[13]App.2-CG_MIFRS_DepExp_2012'!D$41 -> 0 | E43: ='[13]App.2-CG_MIFRS_DepExp_2012'!E$41 -> 0 | F43: ='[13]App.2-CG_MIFRS_DepExp_2012'!F$41 -> 0 | G43: 0 | H43: 0 | I43: 0 | J43: 0 | K43: ='[13]App.2-CG_MIFRS_DepExp_2012'!K41 -> 0 | L43: 0 | M43: 0 | N43: ='[13]App.2-CG_MIFRS_DepExp_2012'!N41 -> 0 | O43: 0
A44: 1930 | B44: Transportation Equipment | C44: =INDEX('[13]App.2-CG_MIFRS_DepExp_2012'!C$16:C$55,MATCH($A$44,'[13]App.2-CG_MIFRS_DepExp_2012'!$A$16:$A$55,0)) -> 714062 | D44: 0 | E44: 5.1 | F44: =INDEX('[13]App.2-CG_MIFRS_DepExp_2012'!F$16:F$55,MATCH($A44,'[13]App.2-CG_MIFRS_DepExp_2012'!$A$16:$A$55,0)) -> 5 | G44: 0.2 | H44: 140012.1569 | I44: 0 | J44: 140012.1569 | K44: =INDEX('[13]App.2-CG_MIFRS_DepExp_2012'!$K$16:$K$55,MATCH(A44,'[13]App.2-CG_MIFRS_DepExp_2012'!$A$16:$A$55,0)) -> 139936 | L44: 76.15686275 | M44: 0 | N44: =INDEX('[13]App.2-CG_MIFRS_DepExp_2012'!$N$16:$N$55,MATCH(A44,'[13]App.2-CG_MIFRS_DepExp_2012'!$A$16:$A$55,0)) -> 0 | O44: 140012.1569
A45: 1935 | B45: Stores Equipment | C45: =INDEX('[13]App.2-CG_MIFRS_DepExp_2012'!$C$16:$C$55,MATCH(A45,'[13]App.2-CG_MIFRS_DepExp_2012'!$A$16:$A$55,0)) -> 13652 | D45: =INDEX('[13]App.2-CG_MIFRS_DepExp_2012'!D$16:D$55,MATCH($A45,'[13]App.2-CG_MIFRS_DepExp_2012'!$A$16:$A$55,0)) -> 4461 | E45: =INDEX('[13]App.2-CG_MIFRS_DepExp_2012'!E$16:E$55,MATCH($A45,'[13]App.2-CG_MIFRS_DepExp_2012'!$A$16:$A$55,0)) -> 7.785 | F45: =INDEX('[13]App.2-CG_MIFRS_DepExp_2012'!F$16:F$55,MATCH($A45,'[13]App.2-CG_MIFRS_DepExp_2012'!$A$16:$A$55,0)) -> 10 | G45: 0.1 | H45: 1753.628773 | I45: 223.05 | J45: 1976.678773 | K45: =INDEX('[13]App.2-CG_MIFRS_DepExp_2012'!$K$16:$K$55,MATCH(A45,'[13]App.2-CG_MIFRS_DepExp_2012'!$A$16:$A$55,0)) -> 2264 | L45: -287.3212267 | M45: 446.1 | N45: =INDEX('[13]App.2-CG_MIFRS_DepExp_2012'!$N$16:$N$55,MATCH(A45,'[13]App.2-CG_MIFRS_DepExp_2012'!$A$16:$A$55,0)) -> 0 | O45: 2199.728773
A46: 1940 | B46: Tools, Shop & Garage Equipment | C46: =INDEX('[13]App.2-CG_MIFRS_DepExp_2012'!$C$16:$C$55,MATCH(A46,'[13]App.2-CG_MIFRS_DepExp_2012'!$A$16:$A$55,0)) -> 299447 | D46: =INDEX('[13]App.2-CG_MIFRS_DepExp_2012'!D$16:D$55,MATCH($A46,'[13]App.2-CG_MIFRS_DepExp_2012'!$A$16:$A$55,0)) -> 13151 | E46: 8.5 | F46: =INDEX('[13]App.2-CG_MIFRS_DepExp_2012'!F$16:F$55,MATCH($A46,'[13]App.2-CG_MIFRS_DepExp_2012'!$A$16:$A$55,0)) -> 10 | G46: 0.1 | H46: 35229.05882 | I46: 657.55 | J46: 35886.60882 | K46: =INDEX('[13]App.2-CG_MIFRS_DepExp_2012'!$K$16:$K$55,MATCH(A46,'[13]App.2-CG_MIFRS_DepExp_2012'!$A$16:$A$55,0)) -> 36773 | L46: -886.3911765 | M46: 1315.1 | N46: =INDEX('[13]App.2-CG_MIFRS_DepExp_2012'!$N$16:$N$55,MATCH(A46,'[13]App.2-CG_MIFRS_DepExp_2012'!$A$16:$A$55,0)) -> 0 | O46: 36544.15882
A47: 1945 | B47: Measurement & Testing Equipment | C47: =INDEX('[13]App.2-CG_MIFRS_DepExp_2012'!$C$16:$C$55,MATCH(A47,'[13]App.2-CG_MIFRS_DepExp_2012'!$A$16:$A$55,0)) -> 18771 | D47: =INDEX('[13]App.2-CG_MIFRS_DepExp_2012'!D$16:D$55,MATCH($A47,'[13]App.2-CG_MIFRS_DepExp_2012'!$A$16:$A$55,0)) -> 7378 | E47: =INDEX('[13]App.2-CG_MIFRS_DepExp_2012'!E$16:E$55,MATCH($A47,'[13]App.2-CG_MIFRS_DepExp_2012'!$A$16:$A$55,0)) -> 8.51 | F47: =INDEX('[13]App.2-CG_MIFRS_DepExp_2012'!F$16:F$55,MATCH($A47,'[13]App.2-CG_MIFRS_DepExp_2012'!$A$16:$A$55,0)) -> 10 | G47: 0.1 | H47: 2205.757932 | I47: 368.9 | J47: 2574.657932 | K47: =INDEX('[13]App.2-CG_MIFRS_DepExp_2012'!$K$16:$K$55,MATCH(A47,'[13]App.2-CG_MIFRS_DepExp_2012'!$A$16:$A$55,0)) -> 2856 | L47: -281.3420682 | M47: 737.8 | N47: =INDEX('[13]App.2-CG_MIFRS_DepExp_2012'!$N$16:$N$55,MATCH(A47,'[13]App.2-CG_MIFRS_DepExp_2012'!$A$16:$A$55,0)) -> 0 | O47: 2943.557932
A48: 1950 | B48: Power Operated Equipment | C48: =INDEX('[13]App.2-CG_MIFRS_DepExp_2012'!$C$16:$C$55,MATCH(A48,'[13]App.2-CG_MIFRS_DepExp_2012'!$A$16:$A$55,0)) -> 0 | D48: =INDEX('[13]App.2-CG_MIFRS_DepExp_2012'!D$16:D$55,MATCH($A48,'[13]App.2-CG_MIFRS_DepExp_2012'!$A$16:$A$55,0)) -> 0 | E48: =INDEX('[13]App.2-CG_MIFRS_DepExp_2012'!E$16:E$55,MATCH($A48,'[13]App.2-CG_MIFRS_DepExp_2012'!$A$16:$A$55,0)) -> 0 | F48: =INDEX('[13]App.2-CG_MIFRS_DepExp_2012'!F$16:F$55,MATCH($A48,'[13]App.2-CG_MIFRS_DepExp_2012'!$A$16:$A$55,0)) -> 0 | G48: 0 | H48: 0 | I48: 0 | J48: 0 | K48: =INDEX('[13]App.2-CG_MIFRS_DepExp_2012'!$K$16:$K$55,MATCH(A48,'[13]App.2-CG_MIFRS_DepExp_2012'!$A$16:$A$55,0)) -> 0 | L48: 0 | M48: 0 | N48: =INDEX('[13]App.2-CG_MIFRS_DepExp_2012'!$N$16:$N$55,MATCH(A48,'[13]App.2-CG_MIFRS_DepExp_2012'!$A$16:$A$55,0)) -> 0 | O48: 0
A49: 1955 | B49: Communications Equipment | C49: =INDEX('[13]App.2-CG_MIFRS_DepExp_2012'!$C$16:$C$55,MATCH(A49,'[13]App.2-CG_MIFRS_DepExp_2012'!$A$16:$A$55,0)) -> 0 | D49: =INDEX('[13]App.2-CG_MIFRS_DepExp_2012'!D$16:D$55,MATCH($A49,'[13]App.2-CG_MIFRS_DepExp_2012'!$A$16:$A$55,0)) -> 0 | E49: =INDEX('[13]App.2-CG_MIFRS_DepExp_2012'!E$16:E$55,MATCH($A49,'[13]App.2-CG_MIFRS_DepExp_2012'!$A$16:$A$55,0)) -> 0 | F49: =INDEX('[13]App.2-CG_MIFRS_DepExp_2012'!F$16:F$55,MATCH($A49,'[13]App.2-CG_MIFRS_DepExp_2012'!$A$16:$A$55,0)) -> 0 | G49: 0 | H49: 0 | I49: 0 | J49: 0 | K49: =INDEX('[13]App.2-CG_MIFRS_DepExp_2012'!$K$16:$K$55,MATCH(A49,'[13]App.2-CG_MIFRS_DepExp_2012'!$A$16:$A$55,0)) -> 0 | L49: 0 | M49: 0 | N49: =INDEX('[13]App.2-CG_MIFRS_DepExp_2012'!$N$16:$N$55,MATCH(A49,'[13]App.2-CG_MIFRS_DepExp_2012'!$A$16:$A$55,0)) -> 0 | O49: 0
A50: 1955 | B50: Communication Equipment (Smart Meters) | C50: ='[13]App.2-CG_MIFRS_DepExp_2012'!C$47 -> 0 | D50: ='[13]App.2-CG_MIFRS_DepExp_2012'!D$47 -> 0 | E50: ='[13]App.2-CG_MIFRS_DepExp_2012'!E$47 -> 0 | F50: ='[13]App.2-CG_MIFRS_DepExp_2012'!F$47 -> 0 | G50: 0 | H50: 0 | I50: 0 | J50: 0 | K50: ='[13]App.2-CG_MIFRS_DepExp_2012'!K$47 -> 0 | L50: 0 | M50: 0 | N50: ='[13]App.2-CG_MIFRS_DepExp_2012'!N$47 -> 0 | O50: 0
A51: 1960 | B51: Miscellaneous Equipment | C51: =INDEX('[13]App.2-CG_MIFRS_DepExp_2012'!C$16:C$55,MATCH($A$51,'[13]App.2-CG_MIFRS_DepExp_2012'!$A$16:$A$55,0)) -> 0 | D51: =INDEX('[13]App.2-CG_MIFRS_DepExp_2012'!D$16:D$55,MATCH($A51,'[13]App.2-CG_MIFRS_DepExp_2012'!$A$16:$A$55,0)) -> 0 | E51: =INDEX('[13]App.2-CG_MIFRS_DepExp_2012'!E$16:E$55,MATCH($A51,'[13]App.2-CG_MIFRS_DepExp_2012'!$A$16:$A$55,0)) -> 0 | F51: =INDEX('[13]App.2-CG_MIFRS_DepExp_2012'!F$16:F$55,MATCH($A51,'[13]App.2-CG_MIFRS_DepExp_2012'!$A$16:$A$55,0)) -> 0 | G51: 0 | H51: 0 | I51: 0 | J51: 0 | K51: =INDEX('[13]App.2-CG_MIFRS_DepExp_2012'!$K$16:$K$55,MATCH(A51,'[13]App.2-CG_MIFRS_DepExp_2012'!$A$16:$A$55,0)) -> 0 | L51: 0 | M51: 0 | N51: =INDEX('[13]App.2-CG_MIFRS_DepExp_2012'!$N$16:$N$55,MATCH(A51,'[13]App.2-CG_MIFRS_DepExp_2012'!$A$16:$A$55,0)) -> 0 | O51: 0
A52: 1970 | B52: Load Management Controls Customer Premises | G52: 0 | H52: 0 | I52: 0 | J52: 0 | L52: 0 | M52: 0 | O52: 0
A53: 1975 | B53: Load Management Controls Utility Premises | C53: =INDEX('[13]App.2-CG_MIFRS_DepExp_2012'!$C$16:$C$55,MATCH(A53,'[13]App.2-CG_MIFRS_DepExp_2012'!$A$16:$A$55,0)) -> 0 | D53: =INDEX('[13]App.2-CG_MIFRS_DepExp_2012'!D$16:D$55,MATCH($A53,'[13]App.2-CG_MIFRS_DepExp_2012'!$A$16:$A$55,0)) -> 0 | E53: =INDEX('[13]App.2-CG_MIFRS_DepExp_2012'!E$16:E$55,MATCH($A53,'[13]App.2-CG_MIFRS_DepExp_2012'!$A$16:$A$55,0)) -> 0 | F53: =INDEX('[13]App.2-CG_MIFRS_DepExp_2012'!F$16:F$55,MATCH($A53,'[13]App.2-CG_MIFRS_DepExp_2012'!$A$16:$A$55,0)) -> 0 | G53: 0 | H53: 0 | I53: 0 | J53: 0 | K53: =INDEX('[13]App.2-CG_MIFRS_DepExp_2012'!$K$16:$K$55,MATCH(A53,'[13]App.2-CG_MIFRS_DepExp_2012'!$A$16:$A$55,0)) -> 0 | L53: 0 | M53: 0 | N53: =INDEX('[13]App.2-CG_MIFRS_DepExp_2012'!$N$16:$N$55,MATCH(A53,'[13]App.2-CG_MIFRS_DepExp_2012'!$A$16:$A$55,0)) -> 0 | O53: 0
A54: 1980 | B54: System Supervisor Equipment | C54: =INDEX('[13]App.2-CG_MIFRS_DepExp_2012'!$C$16:$C$55,MATCH(A54,'[13]App.2-CG_MIFRS_DepExp_2012'!$A$16:$A$55,0)) -> 618334 | D54: =INDEX('[13]App.2-CG_MIFRS_DepExp_2012'!D$16:D$55,MATCH($A54,'[13]App.2-CG_MIFRS_DepExp_2012'!$A$16:$A$55,0)) -> 285490 | E54: 7 | F54: =INDEX('[13]App.2-CG_MIFRS_DepExp_2012'!F$16:F$55,MATCH($A54,'[13]App.2-CG_MIFRS_DepExp_2012'!$A$16:$A$55,0)) -> 15 | G54: 0.06666666667 | H54: 88333.42857 | I54: 9516.333333 | J54: 97849.7619 | K54: =INDEX('[13]App.2-CG_MIFRS_DepExp_2012'!$K$16:$K$55,MATCH(A54,'[13]App.2-CG_MIFRS_DepExp_2012'!$A$16:$A$55,0)) -> 98435 | L54: -585.2380952 | M54: 19032.66667 | N54: =INDEX('[13]App.2-CG_MIFRS_DepExp_2012'!$N$16:$N$55,MATCH(A54,'[13]App.2-CG_MIFRS_DepExp_2012'!$A$16:$A$55,0)) -> 0 | O54: 107366.0952
A55: 1985 | B55: Miscellaneous Fixed Assets | C55: =INDEX('[13]App.2-CG_MIFRS_DepExp_2012'!$C$16:$C$55,MATCH(A55,'[13]App.2-CG_MIFRS_DepExp_2012'!$A$16:$A$55,0)) -> 0 | D55: =INDEX('[13]App.2-CG_MIFRS_DepExp_2012'!D$16:D$55,MATCH($A55,'[13]App.2-CG_MIFRS_DepExp_2012'!$A$16:$A$55,0)) -> 0 | E55: =INDEX('[13]App.2-CG_MIFRS_DepExp_2012'!E$16:E$55,MATCH($A55,'[13]App.2-CG_MIFRS_DepExp_2012'!$A$16:$A$55,0)) -> 0 | F55: =INDEX('[13]App.2-CG_MIFRS_DepExp_2012'!F$16:F$55,MATCH($A55,'[13]App.2-CG_MIFRS_DepExp_2012'!$A$16:$A$55,0)) -> 0 | G55: 0 | H55: 0 | I55: 0 | J55: 0 | K55: =INDEX('[13]App.2-CG_MIFRS_DepExp_2012'!$K$16:$K$55,MATCH(A55,'[13]App.2-CG_MIFRS_DepExp_2012'!$A$16:$A$55,0)) -> 0 | L55: 0 | M55: 0 | N55: =INDEX('[13]App.2-CG_MIFRS_DepExp_2012'!$N$16:$N$55,MATCH(A55,'[13]App.2-CG_MIFRS_DepExp_2012'!$A$16:$A$55,0)) -> 0 | O55: 0
A56: 1990 | B56: Other Tangible Property | G56: 0 | H56: 0 | I56: 0 | J56: 0 | L56: 0 | M56: 0 | O56: 0
A57: 1995 | B57: Contributions & Grants | C57: =INDEX('[13]App.2-CG_MIFRS_DepExp_2012'!$C$16:$C$55,MATCH(A57,'[13]App.2-CG_MIFRS_DepExp_2012'!$A$16:$A$55,0)) -> -6144728 | D57: =INDEX('[13]App.2-CG_MIFRS_DepExp_2012'!D$16:D$55,MATCH($A57,'[13]App.2-CG_MIFRS_DepExp_2012'!$A$16:$A$55,0)) -> -1688744 | E57: 31 | F57: =INDEX('[13]App.2-CG_MIFRS_DepExp_2012'!F$16:F$55,MATCH($A57,'[13]App.2-CG_MIFRS_DepExp_2012'!$A$16:$A$55,0)) -> 35 | G57: 0.02857142857 | H57: -198217.0323 | I57: -24124.91429 | J57: -222341.9465 | K57: =INDEX('[13]App.2-CG_MIFRS_DepExp_2012'!$K$16:$K$55,MATCH(A57,'[13]App.2-CG_MIFRS_DepExp_2012'!$A$16:$A$55,0)) -> -222877 | L57: 535.0534562 | M57: -48249.82857 | N57: -10900 | O57: -235566.8608
B58: Total | C58: =SUM(C20:C57) -> 26049665 | D58: =SUM(D20:D57) -> 2635796 | H58: =SUM(H20:H57) -> 1396964.918 | I58: 59889.88905 | J58: 1456854.807 | K58: 1452492 | L58: 4362.807142 | M58: 119779.7781 | N58: =SUM(N20:N57) -> 149730 | O58: 1367014.696
A60: Notes:
A62: 1 | B62: Board policy of the "half-year" rule - the applicant must ensure that additions in the year attract a half-year depreciation expense in the first year. Deviations from this standard practice must be supported in the application.
A63: 2 | B63: The applicant must provide an explanation of material variances in evidence.
A64: 3 | B64: The applicant should ensure that the years for new additions of assets are the asset useful lives determined by management in accordance with the Board's regulatory accounting policies. The capitalization and depreciation expense accounting changes should be implemented consistent with the Board’s regulatory accounting policies as set out for modified IFRS as contained in the Report of the Board, Transition to International Financial Reporting Standards, EB-2008-0408, the Kinectrics Report, and the Revised 2012 Accounting Procedures Handbook for Electricity Distributors (“APH”).
A65: 4 | B65: A recalculation should be performed to determine the average remaining life of opening balance of assets (i.e. excluding current year's additions) under the change in policies under CGAAP. For example, Asset A had a useful life of 20 years under CGAAP without the change in policies. On January 1 of the year of policy changes, Asset A was 3 years depreciated. As a result, Asset A would have a remaining service life of 17 years (20 years less 3 years) as at January 1 of the year of policy changes. Due to making the change in policies under CGAAP, management re-assessed the asset useful lives and concluded that the revised useful life of Asset A is now 30 years. Therefore, the average remaining useful life of the opening balance of Asset A is determined to be 27 years (30 years less 3 years) under the revised CGAAP as at January 1 of the year of policy changes.
A66: 5 | B66: NBV must exclude assets still on the books but which have been fully amortized or depreciated.
A67: 6 | B67: This column refers to the calculated full year depreciation but excludes the depreciation expense on assets fully depreciated during the year. This column is used for the purpose of calculating depreciation expense in the following year on the next worksheet.
A69: General: | B69: Applicants must provide a breakdown of depreciation and amortization expense in the above format for all relevant accounts. Asset Retirement Obligations (AROs), depreciation and accretion expense should be disclosed separately consistent with the Notes of historical Audited Financial Statements.

Sheet App.2-CC_DepExp_Yr2
J1: File Number: | K1: =EBNUMBER -> EB-2016-0085
J2: Exhibit: | K2: 4
J3: Tab:
J4: Schedule:
J5: Page:
J7: Date: | K7: 2016-11-28
A9: Appendix 2-CC
A10: Depreciation and Amortization Expense
A11: Revised CGAAP (Year 2) - 2013 Revised CGAAP
A13: Select the set of appendices that apply | J13: Year Reflected in Schedule Below | K13: Accounting Standard
A14: 2012 Set of Appendices (2-CA to 2-CG) | C14: Assumes the applicant made capitalization and depreciation expense accounting policy changes under CGAAP effective January 1, 2012 and has adopted IFRS for financial reporting purposes effective January 1, 2015. Assumes that the applicant is reflecting these changes in a rebasing application for the first time. | J14: 2013 | K14: Revised CGAAP
A15: 2013 Set of Appendices (2-CA to 2-CF) | C15: Assumes the applicant made capitalization and depreciation expense accounting policy changes under CGAAP effective January 1, 2013 and has adopted IFRS for financial reporting purposes effective January 1, 2015. Assumes that the applicant is reflecting these changes in a rebasing application for the first time. | J15: 2014 | K15: Revised CGAAP
A18: Account | B18: Description | C18: Additions | D18: Years (new additions only) | E18: Depreciation Rate on New Additions | F18: Current Year Depreciation Expense 1 | G18: Depreciation Expense per Apppendix 2-BA Fixed Assets, Column J (l) | H18: Variance 2 | I18: Depreciation Expense on Current Full Year Additions | J18: Less Depreciation Expense on Assets Fully Depreciated During the Year (o) | K18: Current Full Year Depreciation 3
C19: (d) | D19: (f) | E19: (g) = 1 / (f) | F19: (h)= Prior Full Year Deprecation + ((d)*0.5)/(f) | H19: (m) = (h) - (l) | I19: (n)=((d))/(f) | K19: (p) = Prior Full Year Depreciation + (n) - (o)
A20: 1611 | B20: Computer Software (Formally known as Account 1925) | C20: 177249.6 | D20: 3 | E20: =IF(D20=0,0,1/D20) -> 0.3333333333 | F20: =IF(D20=0,+'App.2-CB_NewCGAAP_DepExp_Yr1'!O20,+'App.2-CB_NewCGAAP_DepExp_Yr1'!O20+((C20*0.5)/D20)) -> 96035.19259 | G20: =-'App.2-BA_Fixed Asset Cont'!J17 -> 95944.42 | H20: =IF(ISERROR(+F20-G20), 0, +F20-G20) -> 90.77259259 | I20: =IF(D20=0,0,+(C20)/D20) -> 59083.2 | J20: 24600 | K20: =IF(ISERROR(+I20+'App.2-CB_NewCGAAP_DepExp_Yr1'!O20-J20), 0, +I20+'App.2-CB_NewCGAAP_DepExp_Yr1'!O20-J20) -> 100976.7926
A21: 1612 | B21: Land Rights (Formally known as Account 1906) | C21: 0 | D21: 50 | E21: 0.02 | F21: =IF(D21=0,+'App.2-CB_NewCGAAP_DepExp_Yr1'!O21,+'App.2-CB_NewCGAAP_DepExp_Yr1'!O21+((C21*0.5)/D21)) -> 14575.08488 | G21: =-'App.2-BA_Fixed Asset Cont'!J18 -> 15126 | H21: -550.9151201 | I21: 0 | K21: =IF(ISERROR(+I21+'App.2-CB_NewCGAAP_DepExp_Yr1'!O21-J21), 0, +I21+'App.2-CB_NewCGAAP_DepExp_Yr1'!O21-J21) -> 14575.08488
A22: 1805 | B22: Land | C22: 179065.56 | D22: 0 | E22: 0 | F22: =IF(D22=0,+'App.2-CB_NewCGAAP_DepExp_Yr1'!O22,+'App.2-CB_NewCGAAP_DepExp_Yr1'!O22+((C22*0.5)/D22)) -> 0 | G22: =-'App.2-BA_Fixed Asset Cont'!J19 -> 0 | H22: 0 | I22: 0 | K22: =IF(ISERROR(+I22+'App.2-CB_NewCGAAP_DepExp_Yr1'!O22-J22), 0, +I22+'App.2-CB_NewCGAAP_DepExp_Yr1'!O22-J22) -> 0
A23: 1808 | B23: Buildings | C23: 0 | D23: 0 | E23: 0 | F23: =IF(D23=0,+'App.2-CB_NewCGAAP_DepExp_Yr1'!O23,+'App.2-CB_NewCGAAP_DepExp_Yr1'!O23+((C23*0.5)/D23)) -> 0 | G23: =-'App.2-BA_Fixed Asset Cont'!J20 -> 0 | H23: 0 | I23: 0 | K23: =IF(ISERROR(+I23+'App.2-CB_NewCGAAP_DepExp_Yr1'!O23-J23), 0, +I23+'App.2-CB_NewCGAAP_DepExp_Yr1'!O23-J23) -> 0
A24: 1810 | B24: Leasehold Improvements | C24: 0 | D24: 25 | E24: 0.04 | F24: =IF(D24=0,+'App.2-CB_NewCGAAP_DepExp_Yr1'!O24,+'App.2-CB_NewCGAAP_DepExp_Yr1'!O24+((C24*0.5)/D24)) -> 0 | G24: =-'App.2-BA_Fixed Asset Cont'!J21 -> 0 | H24: 0 | I24: 0 | K24: =IF(ISERROR(+I24+'App.2-CB_NewCGAAP_DepExp_Yr1'!O24-J24), 0, +I24+'App.2-CB_NewCGAAP_DepExp_Yr1'!O24-J24) -> 0
A25: 1815 | B25: Transformer Station Equipment >50 kV | C25: 0 | D25: 0 | E25: 0 | F25: =IF(D25=0,+'App.2-CB_NewCGAAP_DepExp_Yr1'!O25,+'App.2-CB_NewCGAAP_DepExp_Yr1'!O25+((C25*0.5)/D25)) -> 0 | G25: 0 | H25: 0 | I25: 0 | K25: =IF(ISERROR(+I25+'App.2-CB_NewCGAAP_DepExp_Yr1'!O25-J25), 0, +I25+'App.2-CB_NewCGAAP_DepExp_Yr1'!O25-J25) -> 0
A26: 1820 | B26: Distribution Station Equipment <50 kV | C26: 164417.71 | D26: 40 | E26: 0.025 | F26: =IF(D26=0,+'App.2-CB_NewCGAAP_DepExp_Yr1'!O26,+'App.2-CB_NewCGAAP_DepExp_Yr1'!O26+((C26*0.5)/D26)) -> 92489.91707 | G26: =-'App.2-BA_Fixed Asset Cont'!J22 -> 85926.76 | H26: 6563.157066 | I26: 4110.44275 | K26: =IF(ISERROR(+I26+'App.2-CB_NewCGAAP_DepExp_Yr1'!O26-J26), 0, +I26+'App.2-CB_NewCGAAP_DepExp_Yr1'!O26-J26) -> 94545.13844
A27: 1825 | B27: Storage Battery Equipment | C27: 0 | D27: 0 | E27: 0 | F27: =IF(D27=0,+'App.2-CB_NewCGAAP_DepExp_Yr1'!O27,+'App.2-CB_NewCGAAP_DepExp_Yr1'!O27+((C27*0.5)/D27)) -> 0 | G27: =-'App.2-BA_Fixed Asset Cont'!J24 -> 0 | H27: 0 | I27: 0 | K27: =IF(ISERROR(+I27+'App.2-CB_NewCGAAP_DepExp_Yr1'!O27-J27), 0, +I27+'App.2-CB_NewCGAAP_DepExp_Yr1'!O27-J27) -> 0
A28: 1830 | B28: Poles, Towers & Fixtures | C28: 1112471.55 | D28: 45 | E28: 0.02222222222 | F28: =IF(D28=0,+'App.2-CB_NewCGAAP_DepExp_Yr1'!O28,+'App.2-CB_NewCGAAP_DepExp_Yr1'!O28+((C28*0.5)/D28)) -> 192717.5627 | G28: =-'App.2-BA_Fixed Asset Cont'!J25 -> 196350.05 | H28: -3632.487258 | I28: 24721.59 | K28: =IF(ISERROR(+I28+'App.2-CB_NewCGAAP_DepExp_Yr1'!O28-J28), 0, +I28+'App.2-CB_NewCGAAP_DepExp_Yr1'!O28-J28) -> 205078.3577
A29: 1835 | B29: Overhead Conductors & Devices | C29: 1403523.4 | D29: 60 | E29: 0.01666666667 | F29: =IF(D29=0,+'App.2-CB_NewCGAAP_DepExp_Yr1'!O29,+'App.2-CB_NewCGAAP_DepExp_Yr1'!O29+((C29*0.5)/D29)) -> 187364.1172 | G29: =-'App.2-BA_Fixed Asset Cont'!J26 -> 188425.3 | H29: -1061.182778 | I29: 23392.05667 | K29: =IF(ISERROR(+I29+'App.2-CB_NewCGAAP_DepExp_Yr1'!O29-J29), 0, +I29+'App.2-CB_NewCGAAP_DepExp_Yr1'!O29-J29) -> 199060.1456
A30: 1840 | B30: Underground Conduit | C30: 20539.09 | D30: 40 | E30: 0.025 | F30: =IF(D30=0,+'App.2-CB_NewCGAAP_DepExp_Yr1'!O30,+'App.2-CB_NewCGAAP_DepExp_Yr1'!O30+((C30*0.5)/D30)) -> 67701.8627 | G30: =-'App.2-BA_Fixed Asset Cont'!J27 -> 66667.86 | H30: 1034.002699 | I30: 513.47725 | K30: =IF(ISERROR(+I30+'App.2-CB_NewCGAAP_DepExp_Yr1'!O30-J30), 0, +I30+'App.2-CB_NewCGAAP_DepExp_Yr1'!O30-J30) -> 67958.60132
A31: 1845 | B31: Underground Conductors & Devices | C31: 51561.65 | D31: 40 | E31: 0.025 | F31: =IF(D31=0,+'App.2-CB_NewCGAAP_DepExp_Yr1'!O31,+'App.2-CB_NewCGAAP_DepExp_Yr1'!O31+((C31*0.5)/D31)) -> 245154.6469 | G31: =-'App.2-BA_Fixed Asset Cont'!J28 -> 243721.91 | H31: 1432.736907 | I31: 1289.04125 | K31: =IF(ISERROR(+I31+'App.2-CB_NewCGAAP_DepExp_Yr1'!O31-J31), 0, +I31+'App.2-CB_NewCGAAP_DepExp_Yr1'!O31-J31) -> 245799.1675
A32: 1850 | B32: Line Transformers | C32: 341028.34 | D32: 40 | E32: 0.025 | F32: =IF(D32=0,+'App.2-CB_NewCGAAP_DepExp_Yr1'!O32,+'App.2-CB_NewCGAAP_DepExp_Yr1'!O32+((C32*0.5)/D32)) -> 139401.4793 | G32: =-'App.2-BA_Fixed Asset Cont'!J29 -> 136314.89 | H32: 3086.58925 | I32: 8525.7085 | J32: 4100 | K32: =IF(ISERROR(+I32+'App.2-CB_NewCGAAP_DepExp_Yr1'!O32-J32), 0, +I32+'App.2-CB_NewCGAAP_DepExp_Yr1'!O32-J32) -> 139564.3335
A33: 1855 | B33: Services (Overhead & Underground) | C33: 228275.51 | D33: 50 | E33: 0.02 | F33: =IF(D33=0,+'App.2-CB_NewCGAAP_DepExp_Yr1'!O33,+'App.2-CB_NewCGAAP_DepExp_Yr1'!O33+((C33*0.5)/D33)) -> 73184.94922 | G33: =-'App.2-BA_Fixed Asset Cont'!J30 -> 72190.61 | H33: 994.3392176 | I33: 4565.5102 | K33: =IF(ISERROR(+I33+'App.2-CB_NewCGAAP_DepExp_Yr1'!O33-J33), 0, +I33+'App.2-CB_NewCGAAP_DepExp_Yr1'!O33-J33) -> 75467.70432
A34: 1860 | B34: Meters (Smart Meters) | C34: 126985.75 | D34: 15 | E34: 0.06666666667 | F34: =IF(D34=0,+'App.2-CB_NewCGAAP_DepExp_Yr1'!O34,+'App.2-CB_NewCGAAP_DepExp_Yr1'!O34+((C34*0.5)/D34)) -> 182155.4529 | G34: =-'App.2-BA_Fixed Asset Cont'!J31 -> 182147.8 | H34: 7.652891156 | I34: 8465.716667 | J34: 14100 | K34: =IF(ISERROR(+I34+'App.2-CB_NewCGAAP_DepExp_Yr1'!O34-J34), 0, +I34+'App.2-CB_NewCGAAP_DepExp_Yr1'!O34-J34) -> 172288.3112
A35: 1860 | B35: Meters | C35: 0 | D35: 25 | E35: 0.04 | F35: =IF(D35=0,+'App.2-CB_NewCGAAP_DepExp_Yr1'!O35,+'App.2-CB_NewCGAAP_DepExp_Yr1'!O35+((C35*0.5)/D35)) -> -0.3684210526 | G35: =-'App.2-BA_Fixed Asset Cont'!J32 -> 0 | H35: -0.3684210526 | I35: 0 | K35: =IF(ISERROR(+I35+'App.2-CB_NewCGAAP_DepExp_Yr1'!O35-J35), 0, +I35+'App.2-CB_NewCGAAP_DepExp_Yr1'!O35-J35) -> -0.3684210526
A36: 1905 | B36: Land | C36: 1015496.3 | D36: 0 | E36: 0 | F36: =IF(D36=0,+'App.2-CB_NewCGAAP_DepExp_Yr1'!O36,+'App.2-CB_NewCGAAP_DepExp_Yr1'!O36+((C36*0.5)/D36)) -> 0 | G36: =-'App.2-BA_Fixed Asset Cont'!J33 -> 0 | H36: 0 | I36: 0 | K36: =IF(ISERROR(+I36+'App.2-CB_NewCGAAP_DepExp_Yr1'!O36-J36), 0, +I36+'App.2-CB_NewCGAAP_DepExp_Yr1'!O36-J36) -> 0
A37: 1908 | B37: Buildings & Fixtures | C37: 4303.58 | D37: 50 | E37: 0.02 | F37: =IF(D37=0,+'App.2-CB_NewCGAAP_DepExp_Yr1'!O37,+'App.2-CB_NewCGAAP_DepExp_Yr1'!O37+((C37*0.5)/D37)) -> 13438.43294 | G37: =-'App.2-BA_Fixed Asset Cont'!J34 -> 11324.18 | H37: 2114.252943 | I37: 86.0716 | K37: =IF(ISERROR(+I37+'App.2-CB_NewCGAAP_DepExp_Yr1'!O37-J37), 0, +I37+'App.2-CB_NewCGAAP_DepExp_Yr1'!O37-J37) -> 13481.46874
A38: 1910 | B38: Leasehold Improvements | C38: 0 | D38: 0 | E38: 0 | F38: =IF(D38=0,+'App.2-CB_NewCGAAP_DepExp_Yr1'!O38,+'App.2-CB_NewCGAAP_DepExp_Yr1'!O38+((C38*0.5)/D38)) -> 0 | G38: =-'App.2-BA_Fixed Asset Cont'!J35 -> 0 | H38: 0 | I38: 0 | K38: =IF(ISERROR(+I38+'App.2-CB_NewCGAAP_DepExp_Yr1'!O38-J38), 0, +I38+'App.2-CB_NewCGAAP_DepExp_Yr1'!O38-J38) -> 0
A39: 1915 | B39: Office Furniture & Equipment (10 years) | C39: 0 | D39: 10 | E39: 0.1 | F39: =IF(D39=0,+'App.2-CB_NewCGAAP_DepExp_Yr1'!O39,+'App.2-CB_NewCGAAP_DepExp_Yr1'!O39+((C39*0.5)/D39)) -> 15796.2 | G39: =-'App.2-BA_Fixed Asset Cont'!J36 -> 14563.45 | H39: 1232.75 | I39: 0 | K39: =IF(ISERROR(+I39+'App.2-CB_NewCGAAP_DepExp_Yr1'!O39-J39), 0, +I39+'App.2-CB_NewCGAAP_DepExp_Yr1'!O39-J39) -> 15796.2
A40: 1915 | B40: Office Furniture & Equipment (5 years) | C40: 0 | D40: 0 | E40: 0 | F40: =IF(D40=0,+'App.2-CB_NewCGAAP_DepExp_Yr1'!O40,+'App.2-CB_NewCGAAP_DepExp_Yr1'!O40+((C40*0.5)/D40)) -> 0 | G40: =-'App.2-BA_Fixed Asset Cont'!J37 -> 0 | H40: 0 | I40: 0 | K40: =IF(ISERROR(+I40+'App.2-CB_NewCGAAP_DepExp_Yr1'!O40-J40), 0, +I40+'App.2-CB_NewCGAAP_DepExp_Yr1'!O40-J40) -> 0
A41: 1920 | B41: Computer Equipment - Hardware | C41: 61163.5 | D41: 5 | E41: 0.2 | F41: =IF(D41=0,+'App.2-CB_NewCGAAP_DepExp_Yr1'!O41,+'App.2-CB_NewCGAAP_DepExp_Yr1'!O41+((C41*0.5)/D41)) -> 66994.08684 | G41: =-'App.2-BA_Fixed Asset Cont'!J38 -> 66218.02 | H41: 776.0668421 | I41: 12232.7 | J41: 10100 | K41: =IF(ISERROR(+I41+'App.2-CB_NewCGAAP_DepExp_Yr1'!O41-J41), 0, +I41+'App.2-CB_NewCGAAP_DepExp_Yr1'!O41-J41) -> 63010.43684
A42: 1920 | B42: Computer Equip.-Hardware(Post Mar. 22/04) | C42: 0 | D42: 0 | E42: 0 | F42: =IF(D42=0,+'App.2-CB_NewCGAAP_DepExp_Yr1'!O42,+'App.2-CB_NewCGAAP_DepExp_Yr1'!O42+((C42*0.5)/D42)) -> 0 | G42: =-'App.2-BA_Fixed Asset Cont'!J39 -> 0 | H42: 0 | I42: 0 | K42: =IF(ISERROR(+I42+'App.2-CB_NewCGAAP_DepExp_Yr1'!O42-J42), 0, +I42+'App.2-CB_NewCGAAP_DepExp_Yr1'!O42-J42) -> 0
A43: 1920 | B43: Computer Equip.-Hardware(Post Mar. 19/07) | C43: 0 | D43: 0 | E43: 0 | F43: =IF(D43=0,+'App.2-CB_NewCGAAP_DepExp_Yr1'!O43,+'App.2-CB_NewCGAAP_DepExp_Yr1'!O43+((C43*0.5)/D43)) -> 0 | G43: =-'App.2-BA_Fixed Asset Cont'!J40 -> 0 | H43: 0 | I43: 0 | K43: =IF(ISERROR(+I43+'App.2-CB_NewCGAAP_DepExp_Yr1'!O43-J43), 0, +I43+'App.2-CB_NewCGAAP_DepExp_Yr1'!O43-J43) -> 0
A44: 1930 | B44: Transportation Equipment | C44: 65100.15 | D44: 5 | E44: 0.2 | F44: =IF(D44=0,+'App.2-CB_NewCGAAP_DepExp_Yr1'!O44,+'App.2-CB_NewCGAAP_DepExp_Yr1'!O44+((C44*0.5)/D44)) -> 146522.1719 | G44: =-'App.2-BA_Fixed Asset Cont'!J41 -> 144358.04 | H44: 2164.131863 | I44: 13020.03 | J44: 13400 | K44: =IF(ISERROR(+I44+'App.2-CB_NewCGAAP_DepExp_Yr1'!O44-J44), 0, +I44+'App.2-CB_NewCGAAP_DepExp_Yr1'!O44-J44) -> 139632.1869
A45: 1935 | B45: Stores Equipment | C45: 0 | D45: 10 | E45: 0.1 | F45: =IF(D45=0,+'App.2-CB_NewCGAAP_DepExp_Yr1'!O45,+'App.2-CB_NewCGAAP_DepExp_Yr1'!O45+((C45*0.5)/D45)) -> 2199.728773 | G45: =-'App.2-BA_Fixed Asset Cont'!J42 -> 2445.36 | H45: -245.6312267 | I45: 0 | K45: =IF(ISERROR(+I45+'App.2-CB_NewCGAAP_DepExp_Yr1'!O45-J45), 0, +I45+'App.2-CB_NewCGAAP_DepExp_Yr1'!O45-J45) -> 2199.728773
A46: 1940 | B46: Tools, Shop & Garage Equipment | C46: 8336.94 | D46: 10 | E46: 0.1 | F46: =IF(D46=0,+'App.2-CB_NewCGAAP_DepExp_Yr1'!O46,+'App.2-CB_NewCGAAP_DepExp_Yr1'!O46+((C46*0.5)/D46)) -> 36961.00582 | G46: =-'App.2-BA_Fixed Asset Cont'!J43 -> 37618.38 | H46: -657.3741765 | I46: 833.694 | K46: =IF(ISERROR(+I46+'App.2-CB_NewCGAAP_DepExp_Yr1'!O46-J46), 0, +I46+'App.2-CB_NewCGAAP_DepExp_Yr1'!O46-J46) -> 37377.85282
A47: 1945 | B47: Measurement & Testing Equipment | C47: 5794.24 | D47: 10 | E47: 0.1 | F47: =IF(D47=0,+'App.2-CB_NewCGAAP_DepExp_Yr1'!O47,+'App.2-CB_NewCGAAP_DepExp_Yr1'!O47+((C47*0.5)/D47)) -> 3233.269932 | G47: =-'App.2-BA_Fixed Asset Cont'!J44 -> 3486.3 | H47: -253.0300682 | I47: 579.424 | K47: =IF(ISERROR(+I47+'App.2-CB_NewCGAAP_DepExp_Yr1'!O47-J47), 0, +I47+'App.2-CB_NewCGAAP_DepExp_Yr1'!O47-J47) -> 3522.981932
A48: 1950 | B48: Power Operated Equipment | C48: 0 | D48: 0 | E48: 0 | F48: =IF(D48=0,+'App.2-CB_NewCGAAP_DepExp_Yr1'!O48,+'App.2-CB_NewCGAAP_DepExp_Yr1'!O48+((C48*0.5)/D48)) -> 0 | G48: =-'App.2-BA_Fixed Asset Cont'!J45 -> 0 | H48: 0 | I48: 0 | K48: =IF(ISERROR(+I48+'App.2-CB_NewCGAAP_DepExp_Yr1'!O48-J48), 0, +I48+'App.2-CB_NewCGAAP_DepExp_Yr1'!O48-J48) -> 0
A49: 1955 | B49: Communications Equipment | C49: 0 | D49: 0 | E49: 0 | F49: =IF(D49=0,+'App.2-CB_NewCGAAP_DepExp_Yr1'!O49,+'App.2-CB_NewCGAAP_DepExp_Yr1'!O49+((C49*0.5)/D49)) -> 0 | G49: ='App.2-BA_Fixed Asset Cont'!J46 -> 0 | H49: 0 | I49: 0 | K49: =IF(ISERROR(+I49+'App.2-CB_NewCGAAP_DepExp_Yr1'!O49-J49), 0, +I49+'App.2-CB_NewCGAAP_DepExp_Yr1'!O49-J49) -> 0
A50: 1955 | B50: Communication Equipment (Smart Meters) | C50: 0 | D50: 0 | E50: 0 | F50: =IF(D50=0,+'App.2-CB_NewCGAAP_DepExp_Yr1'!O50,+'App.2-CB_NewCGAAP_DepExp_Yr1'!O50+((C50*0.5)/D50)) -> 0 | G50: ='App.2-BA_Fixed Asset Cont'!J47 -> 0 | H50: 0 | I50: 0 | K50: =IF(ISERROR(+I50+'App.2-CB_NewCGAAP_DepExp_Yr1'!O50-J50), 0, +I50+'App.2-CB_NewCGAAP_DepExp_Yr1'!O50-J50) -> 0
A51: 1960 | B51: Miscellaneous Equipment | C51: 0 | D51: 0 | E51: 0 | F51: =IF(D51=0,+'App.2-CB_NewCGAAP_DepExp_Yr1'!O51,+'App.2-CB_NewCGAAP_DepExp_Yr1'!O51+((C51*0.5)/D51)) -> 0 | G51: ='App.2-BA_Fixed Asset Cont'!J48 -> 0 | H51: 0 | I51: 0 | K51: =IF(ISERROR(+I51+'App.2-CB_NewCGAAP_DepExp_Yr1'!O51-J51), 0, +I51+'App.2-CB_NewCGAAP_DepExp_Yr1'!O51-J51) -> 0
A52: 1970 | B52: Load Management Controls Customer Premises | C52: 0 | E52: 0 | F52: =IF(D52=0,+'App.2-CB_NewCGAAP_DepExp_Yr1'!O52,+'App.2-CB_NewCGAAP_DepExp_Yr1'!O52+((C52*0.5)/D52)) -> 0 | G52: ='App.2-BA_Fixed Asset Cont'!J49 -> 0 | H52: 0 | I52: 0 | K52: =IF(ISERROR(+I52+'App.2-CB_NewCGAAP_DepExp_Yr1'!O52-J52), 0, +I52+'App.2-CB_NewCGAAP_DepExp_Yr1'!O52-J52) -> 0
A53: 1975 | B53: Load Management Controls Utility Premises | C53: 0 | D53: 0 | E53: 0 | F53: =IF(D53=0,+'App.2-CB_NewCGAAP_DepExp_Yr1'!O53,+'App.2-CB_NewCGAAP_DepExp_Yr1'!O53+((C53*0.5)/D53)) -> 0 | G53: ='App.2-BA_Fixed Asset Cont'!J50 -> 0 | H53: 0 | I53: 0 | K53: =IF(ISERROR(+I53+'App.2-CB_NewCGAAP_DepExp_Yr1'!O53-J53), 0, +I53+'App.2-CB_NewCGAAP_DepExp_Yr1'!O53-J53) -> 0
A54: 1980 | B54: System Supervisor Equipment | C54: 202625.3 | D54: 15 | E54: 0.06666666667 | F54: =IF(D54=0,+'App.2-CB_NewCGAAP_DepExp_Yr1'!O54,+'App.2-CB_NewCGAAP_DepExp_Yr1'!O54+((C54*0.5)/D54)) -> 114120.2719 | G54: =-'App.2-BA_Fixed Asset Cont'!J51 -> 112506.33 | H54: 1613.941905 | I54: 13508.35333 | J54: 6100 | K54: =IF(ISERROR(+I54+'App.2-CB_NewCGAAP_DepExp_Yr1'!O54-J54), 0, +I54+'App.2-CB_NewCGAAP_DepExp_Yr1'!O54-J54) -> 114774.4486
A55: 1985 | B55: Miscellaneous Fixed Assets | C55: 0 | D55: 0 | E55: 0 | F55: =IF(D55=0,+'App.2-CB_NewCGAAP_DepExp_Yr1'!O55,+'App.2-CB_NewCGAAP_DepExp_Yr1'!O55+((C55*0.5)/D55)) -> 0 | G55: ='App.2-BA_Fixed Asset Cont'!J52 -> 0 | H55: 0 | I55: 0 | K55: =IF(ISERROR(+I55+'App.2-CB_NewCGAAP_DepExp_Yr1'!O55-J55), 0, +I55+'App.2-CB_NewCGAAP_DepExp_Yr1'!O55-J55) -> 0
A56: 1990 | B56: Other Tangible Property | C56: 0 | E56: 0 | F56: =IF(D56=0,+'App.2-CB_NewCGAAP_DepExp_Yr1'!O56,+'App.2-CB_NewCGAAP_DepExp_Yr1'!O56+((C56*0.5)/D56)) -> 0 | G56: ='App.2-BA_Fixed Asset Cont'!J53 -> 0 | H56: 0 | I56: 0 | K56: =IF(ISERROR(+I56+'App.2-CB_NewCGAAP_DepExp_Yr1'!O56-J56), 0, +I56+'App.2-CB_NewCGAAP_DepExp_Yr1'!O56-J56) -> 0
A57: 1995 | B57: Contributions & Grants | C57: -428862.62 | D57: 35 | E57: 0.02857142857 | F57: =IF(D57=0,+'App.2-CB_NewCGAAP_DepExp_Yr1'!O57,+'App.2-CB_NewCGAAP_DepExp_Yr1'!O57+((C57*0.5)/D57)) -> -241693.4697 | G57: =-'App.2-BA_Fixed Asset Cont'!J54 -> -243767.61 | H57: 2074.140313 | I57: -12253.21771 | K57: =IF(ISERROR(+I57+'App.2-CB_NewCGAAP_DepExp_Yr1'!O57-J57), 0, +I57+'App.2-CB_NewCGAAP_DepExp_Yr1'!O57-J57) -> -247820.0785
B58: Total | C58: =SUM(C20:C57) -> 4739075.55 | F58: =SUM(F20:F57) -> 1448351.595 | G58: 1431568.05 | H58: 16783.54544 | I58: 162673.7985 | J58: 72400 | K58: 1457288.495
A60: Notes:
A61: 1 | B61: Board policy of the "half-year" rule - the applicant must ensure that additions in the year attract a half-year depreciation expense in the first year. Deviations from this standard practice must be supported in the application.
A62: 2 | B62: The applicant must provide an explanation of material variances in evidence.
A63: 3 | B63: This column refers to the calculated full year depreciation but excludes the depreciation expense on assets fully depreciated during the year. This column is used for the purpose of calculating depreciation expense in the following year on the next worksheet.
A65: General: | B65: Applicants must provide a breakdown of depreciation and amortization expense in the above format for all relevant accounts. Asset Retirement Obligations (AROs), depreciation and accretion expense should be disclosed separately consistent with the Notes of historical Audited Financial Statements.

Sheet App.2-CD_DepExp_Yr3
J1: File Number: | K1: =EBNUMBER -> EB-2016-0085
J2: Exhibit: | K2: 4
J3: Tab:
J4: Schedule:
J5: Page:
J7: Date: | K7: 2016-11-28
A9: Appendix 2-CD
A10: Depreciation and Amortization Expense
A11: Revised CGAAP or MIFRS (Year 3) - 2014 Revised CGAAP
A13: Select the set of appendices that apply | J13: Year Reflected in Schedule Below | K13: Accounting Standard
A14: 2012 Set of Appendices (2-CA to 2-CG) | C14: Assumes the applicant made capitalization and depreciation expense accounting policy changes under CGAAP effective January 1, 2012 and has adopted IFRS for financial reporting purposes effective January 1, 2015. Assumes that the applicant is reflecting these changes in a rebasing application for the first time. | J14: 2014 | K14: Revised CGAAP
A15: 2013 Set of Appendices (2-CA to 2-CF) | C15: Assumes the applicant made capitalization and depreciation expense accounting policy changes under CGAAP effective January 1, 2013 and has adopted IFRS for financial reporting purposes effective January 1, 2015. Assumes that the applicant is reflecting these changes in a rebasing application for the first time. | J15: 2015 | K15: MIFRS
A18: Account | B18: Description | C18: Additions | D18: Years (new additions only) | E18: Depreciation Rate on New Additions | F18: Current Year Depreciation Expense1 | G18: Depreciation Expense per Apppendix 2-BA Fixed Assets, Column J (l) | H18: Variance 2 | I18: Depreciation Expense on Current Full Year Additions | J18: Less Depreciation Expense on Assets Fully Depreciated During the Year (o) | K18: Current Full Year Depreciation 3
C19: (d) | D19: (f) | E19: (g) = 1 / (f) | F19: (h) = Prior Full Year Deprecation + ((d)*0.5)/(f) | H19: (m) = (h) - (l) | I19: (n)=((d))/(f) | K19: (p) = Prior Full Year Depreciation + (n) - (o)
A20: 1611 | B20: Computer Software (Formally known as Account 1925) | C20: 198584.75 | D20: 3 | E20: =IF(D20=0,0,1/D20) -> 0.3333333333 | F20: =IF(D20=0,+'App.2-CC_DepExp_Yr2'!K20,+'App.2-CC_DepExp_Yr2'!K20+((C20*0.5)/D20)) -> 134074.2509 | G20: =-'App.2-BA_Fixed Asset Cont'!J97 -> 133980.8 | H20: =IF(ISERROR(+F20-G20), 0, +F20-G20) -> 93.45092593 | I20: =IF(D20=0,0,+(C20)/D20) -> 66194.91667 | J20: 28500 | K20: =IF(ISERROR(+I20+'App.2-CC_DepExp_Yr2'!K20-J20), 0, +I20+'App.2-CC_DepExp_Yr2'!K20-J20) -> 138671.7093
A21: 1612 | B21: Land Rights (Formally known as Account 1906) | C21: 0 | D21: 50 | E21: 0.02 | F21: =IF(D21=0,+'App.2-CC_DepExp_Yr2'!K21,+'App.2-CC_DepExp_Yr2'!K21+((C21*0.5)/D21)) -> 14575.08488 | G21: =-'App.2-BA_Fixed Asset Cont'!J98 -> 15126 | H21: -550.9151201 | I21: =IF(D21=0,0,+(C21)/D21) -> 0 | K21: =IF(ISERROR(+I21+'App.2-CC_DepExp_Yr2'!K21-J21), 0, +I21+'App.2-CC_DepExp_Yr2'!K21-J21) -> 14575.08488
A22: 1805 | B22: Land | C22: 0 | D22: 0 | E22: 0 | F22: =IF(D22=0,+'App.2-CC_DepExp_Yr2'!K22,+'App.2-CC_DepExp_Yr2'!K22+((C22*0.5)/D22)) -> 0 | G22: =-'App.2-BA_Fixed Asset Cont'!J99 -> 0 | H22: 0 | I22: 0 | K22: =IF(ISERROR(+I22+'App.2-CC_DepExp_Yr2'!K22-J22), 0, +I22+'App.2-CC_DepExp_Yr2'!K22-J22) -> 0
A23: 1808 | B23: Buildings | C23: 0 | D23: 0 | E23: 0 | F23: =IF(D23=0,+'App.2-CC_DepExp_Yr2'!K23,+'App.2-CC_DepExp_Yr2'!K23+((C23*0.5)/D23)) -> 0 | G23: =-'App.2-BA_Fixed Asset Cont'!J100 -> 0 | H23: 0 | I23: 0 | K23: =IF(ISERROR(+I23+'App.2-CC_DepExp_Yr2'!K23-J23), 0, +I23+'App.2-CC_DepExp_Yr2'!K23-J23) -> 0
A24: 1810 | B24: Leasehold Improvements | C24: 0 | D24: 25 | E24: 0.04 | F24: =IF(D24=0,+'App.2-CC_DepExp_Yr2'!K24,+'App.2-CC_DepExp_Yr2'!K24+((C24*0.5)/D24)) -> 0 | G24: =-'App.2-BA_Fixed Asset Cont'!J101 -> 0 | H24: 0 | I24: 0 | K24: =IF(ISERROR(+I24+'App.2-CC_DepExp_Yr2'!K24-J24), 0, +I24+'App.2-CC_DepExp_Yr2'!K24-J24) -> 0
A25: 1815 | B25: Transformer Station Equipment >50 kV | C25: 0 | D25: 0 | E25: 0 | F25: =IF(D25=0,+'App.2-CC_DepExp_Yr2'!K25,+'App.2-CC_DepExp_Yr2'!K25+((C25*0.5)/D25)) -> 0 | G25: =-'App.2-BA_Fixed Asset Cont'!J102 -> 0 | H25: 0 | I25: 0 | K25: =IF(ISERROR(+I25+'App.2-CC_DepExp_Yr2'!K25-J25), 0, +I25+'App.2-CC_DepExp_Yr2'!K25-J25) -> 0
A26: 1820 | B26: Distribution Station Equipment <50 kV | C26: 2895486.45 | D26: 40 | E26: 0.025 | F26: =IF(D26=0,+'App.2-CC_DepExp_Yr2'!K26,+'App.2-CC_DepExp_Yr2'!K26+((C26*0.5)/D26)) -> 130738.7191 | G26: =-'App.2-BA_Fixed Asset Cont'!J103 -> 133796.77 | H26: -3058.050934 | I26: 72387.16125 | K26: =IF(ISERROR(+I26+'App.2-CC_DepExp_Yr2'!K26-J26), 0, +I26+'App.2-CC_DepExp_Yr2'!K26-J26) -> 166932.2997
A27: 1825 | B27: Storage Battery Equipment | C27: 0 | D27: 0 | E27: 0 | F27: =IF(D27=0,+'App.2-CC_DepExp_Yr2'!K27,+'App.2-CC_DepExp_Yr2'!K27+((C27*0.5)/D27)) -> 0 | G27: =-'App.2-BA_Fixed Asset Cont'!J104 -> 0 | H27: 0 | I27: 0 | K27: =IF(ISERROR(+I27+'App.2-CC_DepExp_Yr2'!K27-J27), 0, +I27+'App.2-CC_DepExp_Yr2'!K27-J27) -> 0
A28: 1830 | B28: Poles, Towers & Fixtures | C28: 576010.85 | D28: 45 | E28: 0.02222222222 | F28: =IF(D28=0,+'App.2-CC_DepExp_Yr2'!K28,+'App.2-CC_DepExp_Yr2'!K28+((C28*0.5)/D28)) -> 211478.4783 | G28: =-'App.2-BA_Fixed Asset Cont'!J105 -> 214178.88 | H28: -2700.401703 | I28: 12800.24111 | K28: =IF(ISERROR(+I28+'App.2-CC_DepExp_Yr2'!K28-J28), 0, +I28+'App.2-CC_DepExp_Yr2'!K28-J28) -> 217878.5989
A29: 1835 | B29: Overhead Conductors & Devices | C29: 724698.04 | D29: 60 | E29: 0.01666666667 | F29: =IF(D29=0,+'App.2-CC_DepExp_Yr2'!K29,+'App.2-CC_DepExp_Yr2'!K29+((C29*0.5)/D29)) -> 205099.2959 | G29: =-'App.2-BA_Fixed Asset Cont'!J106 -> 206930.88 | H29: -1831.584111 | I29: 12078.30067 | K29: =IF(ISERROR(+I29+'App.2-CC_DepExp_Yr2'!K29-J29), 0, +I29+'App.2-CC_DepExp_Yr2'!K29-J29) -> 211138.4462
A30: 1840 | B30: Underground Conduit | C30: 320502.08 | D30: 40 | E30: 0.025 | F30: =IF(D30=0,+'App.2-CC_DepExp_Yr2'!K30,+'App.2-CC_DepExp_Yr2'!K30+((C30*0.5)/D30)) -> 71964.87732 | G30: =-'App.2-BA_Fixed Asset Cont'!J107 -> 70930.88 | H30: 1033.997324 | I30: 8012.552 | K30: =IF(ISERROR(+I30+'App.2-CC_DepExp_Yr2'!K30-J30), 0, +I30+'App.2-CC_DepExp_Yr2'!K30-J30) -> 75971.15332
A31: 1845 | B31: Underground Conductors & Devices | C31: 279956.42 | D31: 40 | E31: 0.025 | F31: =IF(D31=0,+'App.2-CC_DepExp_Yr2'!K31,+'App.2-CC_DepExp_Yr2'!K31+((C31*0.5)/D31)) -> 249298.6228 | G31: =-'App.2-BA_Fixed Asset Cont'!J108 -> 247482.95 | H31: 1815.672782 | I31: 6998.9105 | K31: =IF(ISERROR(+I31+'App.2-CC_DepExp_Yr2'!K31-J31), 0, +I31+'App.2-CC_DepExp_Yr2'!K31-J31) -> 252798.078
A32: 1850 | B32: Line Transformers | C32: 556533.29 | D32: 40 | E32: 0.025 | F32: =IF(D32=0,+'App.2-CC_DepExp_Yr2'!K32,+'App.2-CC_DepExp_Yr2'!K32+((C32*0.5)/D32)) -> 146520.9996 | G32: =-'App.2-BA_Fixed Asset Cont'!J109 -> 146575.75 | H32: -54.750375 | I32: 13913.33225 | K32: =IF(ISERROR(+I32+'App.2-CC_DepExp_Yr2'!K32-J32), 0, +I32+'App.2-CC_DepExp_Yr2'!K32-J32) -> 153477.6658
A33: 1855 | B33: Services (Overhead & Underground) | C33: 519763.79 | D33: 50 | E33: 0.02 | F33: =IF(D33=0,+'App.2-CC_DepExp_Yr2'!K33,+'App.2-CC_DepExp_Yr2'!K33+((C33*0.5)/D33)) -> 80665.34222 | G33: =-'App.2-BA_Fixed Asset Cont'!J110 -> 81169.09 | H33: -503.7477824 | I33: 10395.2758 | K33: =IF(ISERROR(+I33+'App.2-CC_DepExp_Yr2'!K33-J33), 0, +I33+'App.2-CC_DepExp_Yr2'!K33-J33) -> 85862.98012
A34: 1860 | B34: Meters (Smart Meters) | C34: 131826.75 | D34: 15 | E34: 0.06666666667 | F34: =IF(D34=0,+'App.2-CC_DepExp_Yr2'!K34,+'App.2-CC_DepExp_Yr2'!K34+((C34*0.5)/D34)) -> 176682.5362 | G34: =-'App.2-BA_Fixed Asset Cont'!J111 -> 176031.72 | H34: 650.8162245 | I34: 8788.45 | J34: 6100 | K34: =IF(ISERROR(+I34+'App.2-CC_DepExp_Yr2'!K34-J34), 0, +I34+'App.2-CC_DepExp_Yr2'!K34-J34) -> 174976.7612
A35: 1860 | B35: Meters | D35: 25 | E35: 0.04 | F35: =IF(D35=0,+'App.2-CC_DepExp_Yr2'!K35,+'App.2-CC_DepExp_Yr2'!K35+((C35*0.5)/D35)) -> -0.3684210526 | G35: =-'App.2-BA_Fixed Asset Cont'!J112 -> 0 | H35: -0.3684210526 | I35: 0 | K35: =IF(ISERROR(+I35+'App.2-CC_DepExp_Yr2'!K35-J35), 0, +I35+'App.2-CC_DepExp_Yr2'!K35-J35) -> -0.3684210526
A36: 1905 | B36: Land | C36: 0 | D36: 0 | E36: 0 | F36: =IF(D36=0,+'App.2-CC_DepExp_Yr2'!K36,+'App.2-CC_DepExp_Yr2'!K36+((C36*0.5)/D36)) -> 0 | G36: =-'App.2-BA_Fixed Asset Cont'!J113 -> 0 | H36: 0 | I36: 0 | K36: =IF(ISERROR(+I36+'App.2-CC_DepExp_Yr2'!K36-J36), 0, +I36+'App.2-CC_DepExp_Yr2'!K36-J36) -> 0
A37: 1908 | B37: Buildings & Fixtures | C37: 0 | D37: 50 | E37: 0.02 | F37: =IF(D37=0,+'App.2-CC_DepExp_Yr2'!K37,+'App.2-CC_DepExp_Yr2'!K37+((C37*0.5)/D37)) -> 13481.46874 | G37: =-'App.2-BA_Fixed Asset Cont'!J114 -> 11367.21 | H37: 2114.258743 | I37: 0 | K37: =IF(ISERROR(+I37+'App.2-CC_DepExp_Yr2'!K37-J37), 0, +I37+'App.2-CC_DepExp_Yr2'!K37-J37) -> 13481.46874
A38: 1910 | B38: Leasehold Improvements | C38: 0 | D38: 0 | E38: 0 | F38: =IF(D38=0,+'App.2-CC_DepExp_Yr2'!K38,+'App.2-CC_DepExp_Yr2'!K38+((C38*0.5)/D38)) -> 0 | G38: =-'App.2-BA_Fixed Asset Cont'!J115 -> 0 | H38: 0 | I38: 0 | K38: =IF(ISERROR(+I38+'App.2-CC_DepExp_Yr2'!K38-J38), 0, +I38+'App.2-CC_DepExp_Yr2'!K38-J38) -> 0
A39: 1915 | B39: Office Furniture & Equipment (10 years) | C39: 0 | D39: 10 | E39: 0.1 | F39: =IF(D39=0,+'App.2-CC_DepExp_Yr2'!K39,+'App.2-CC_DepExp_Yr2'!K39+((C39*0.5)/D39)) -> 15796.2 | G39: =-'App.2-BA_Fixed Asset Cont'!J116 -> 14034 | H39: 1762.2 | I39: 0 | K39: =IF(ISERROR(+I39+'App.2-CC_DepExp_Yr2'!K39-J39), 0, +I39+'App.2-CC_DepExp_Yr2'!K39-J39) -> 15796.2
A40: 1915 | B40: Office Furniture & Equipment (5 years) | C40: 0 | D40: 0 | E40: 0 | F40: =IF(D40=0,+'App.2-CC_DepExp_Yr2'!K40,+'App.2-CC_DepExp_Yr2'!K40+((C40*0.5)/D40)) -> 0 | G40: =-'App.2-BA_Fixed Asset Cont'!J117 -> 0 | H40: 0 | I40: 0 | K40: =IF(ISERROR(+I40+'App.2-CC_DepExp_Yr2'!K40-J40), 0, +I40+'App.2-CC_DepExp_Yr2'!K40-J40) -> 0
A41: 1920 | B41: Computer Equipment - Hardware | C41: 80063.46 | D41: 5 | E41: 0.2 | F41: =IF(D41=0,+'App.2-CC_DepExp_Yr2'!K41,+'App.2-CC_DepExp_Yr2'!K41+((C41*0.5)/D41)) -> 71016.78284 | G41: =-'App.2-BA_Fixed Asset Cont'!J118 -> 70671.01 | H41: 345.7728421 | I41: 16012.692 | J41: 11300 | K41: =IF(ISERROR(+I41+'App.2-CC_DepExp_Yr2'!K41-J41), 0, +I41+'App.2-CC_DepExp_Yr2'!K41-J41) -> 67723.12884
A42: 1920 | B42: Computer Equip.-Hardware(Post Mar. 22/04) | D42: 0 | E42: 0 | F42: =IF(D42=0,+'App.2-CC_DepExp_Yr2'!K42,+'App.2-CC_DepExp_Yr2'!K42+((C42*0.5)/D42)) -> 0 | G42: =-'App.2-BA_Fixed Asset Cont'!J119 -> 0 | H42: 0 | I42: 0 | K42: =IF(ISERROR(+I42+'App.2-CC_DepExp_Yr2'!K42-J42), 0, +I42+'App.2-CC_DepExp_Yr2'!K42-J42) -> 0
A43: 1920 | B43: Computer Equip.-Hardware(Post Mar. 19/07) | D43: 0 | E43: 0 | F43: =IF(D43=0,+'App.2-CC_DepExp_Yr2'!K43,+'App.2-CC_DepExp_Yr2'!K43+((C43*0.5)/D43)) -> 0 | G43: =-'App.2-BA_Fixed Asset Cont'!J120 -> 0 | H43: 0 | I43: 0 | K43: =IF(ISERROR(+I43+'App.2-CC_DepExp_Yr2'!K43-J43), 0, +I43+'App.2-CC_DepExp_Yr2'!K43-J43) -> 0
A44: 1930 | B44: Transportation Equipment | C44: 3267.67 | D44: 5 | E44: 0.2 | F44: =IF(D44=0,+'App.2-CC_DepExp_Yr2'!K44,+'App.2-CC_DepExp_Yr2'!K44+((C44*0.5)/D44)) -> 139958.9539 | G44: =-'App.2-BA_Fixed Asset Cont'!J121 -> 139931.45 | H44: 27.50386275 | I44: 653.534 | J44: 23400 | K44: =IF(ISERROR(+I44+'App.2-CC_DepExp_Yr2'!K44-J44), 0, +I44+'App.2-CC_DepExp_Yr2'!K44-J44) -> 116885.7209
A45: 1935 | B45: Stores Equipment | C45: 4787.59 | D45: 10 | E45: 0.1 | F45: =IF(D45=0,+'App.2-CC_DepExp_Yr2'!K45,+'App.2-CC_DepExp_Yr2'!K45+((C45*0.5)/D45)) -> 2439.108273 | G45: =-'App.2-BA_Fixed Asset Cont'!J122 -> 2588.65 | H45: -149.5417267 | I45: 478.759 | K45: =IF(ISERROR(+I45+'App.2-CC_DepExp_Yr2'!K45-J45), 0, +I45+'App.2-CC_DepExp_Yr2'!K45-J45) -> 2678.487773
A46: 1940 | B46: Tools, Shop & Garage Equipment | C46: 17552.58 | D46: 10 | E46: 0.1 | F46: =IF(D46=0,+'App.2-CC_DepExp_Yr2'!K46,+'App.2-CC_DepExp_Yr2'!K46+((C46*0.5)/D46)) -> 38255.48182 | G46: =-'App.2-BA_Fixed Asset Cont'!J123 -> 38485.83 | H46: -230.3481765 | I46: 1755.258 | K46: =IF(ISERROR(+I46+'App.2-CC_DepExp_Yr2'!K46-J46), 0, +I46+'App.2-CC_DepExp_Yr2'!K46-J46) -> 39133.11082
A47: 1945 | B47: Measurement & Testing Equipment | C47: 4066.7 | D47: 10 | E47: 0.1 | F47: =IF(D47=0,+'App.2-CC_DepExp_Yr2'!K47,+'App.2-CC_DepExp_Yr2'!K47+((C47*0.5)/D47)) -> 3726.316932 | G47: =-'App.2-BA_Fixed Asset Cont'!J124 -> 3979.35 | H47: -253.0330682 | I47: 406.67 | K47: =IF(ISERROR(+I47+'App.2-CC_DepExp_Yr2'!K47-J47), 0, +I47+'App.2-CC_DepExp_Yr2'!K47-J47) -> 3929.651932
A48: 1950 | B48: Power Operated Equipment | C48: 0 | D48: 0 | E48: 0 | F48: =IF(D48=0,+'App.2-CC_DepExp_Yr2'!K48,+'App.2-CC_DepExp_Yr2'!K48+((C48*0.5)/D48)) -> 0 | G48: =-'App.2-BA_Fixed Asset Cont'!J125 -> 0 | H48: 0 | I48: 0 | K48: =IF(ISERROR(+I48+'App.2-CC_DepExp_Yr2'!K48-J48), 0, +I48+'App.2-CC_DepExp_Yr2'!K48-J48) -> 0
A49: 1955 | B49: Communications Equipment | C49: 0 | D49: 0 | E49: 0 | F49: =IF(D49=0,+'App.2-CC_DepExp_Yr2'!K49,+'App.2-CC_DepExp_Yr2'!K49+((C49*0.5)/D49)) -> 0 | G49: =-'App.2-BA_Fixed Asset Cont'!J126 -> 0 | H49: 0 | I49: 0 | K49: =IF(ISERROR(+I49+'App.2-CC_DepExp_Yr2'!K49-J49), 0, +I49+'App.2-CC_DepExp_Yr2'!K49-J49) -> 0
A50: 1955 | B50: Communication Equipment (Smart Meters) | C50: 0 | D50: 0 | E50: 0 | F50: =IF(D50=0,+'App.2-CC_DepExp_Yr2'!K50,+'App.2-CC_DepExp_Yr2'!K50+((C50*0.5)/D50)) -> 0 | G50: =-'App.2-BA_Fixed Asset Cont'!J127 -> 0 | H50: 0 | I50: 0 | K50: =IF(ISERROR(+I50+'App.2-CC_DepExp_Yr2'!K50-J50), 0, +I50+'App.2-CC_DepExp_Yr2'!K50-J50) -> 0
A51: 1960 | B51: Miscellaneous Equipment | C51: 0 | D51: 0 | E51: 0 | F51: =IF(D51=0,+'App.2-CC_DepExp_Yr2'!K51,+'App.2-CC_DepExp_Yr2'!K51+((C51*0.5)/D51)) -> 0 | G51: =-'App.2-BA_Fixed Asset Cont'!J128 -> 0 | H51: 0 | I51: 0 | K51: =IF(ISERROR(+I51+'App.2-CC_DepExp_Yr2'!K51-J51), 0, +I51+'App.2-CC_DepExp_Yr2'!K51-J51) -> 0
A52: 1970 | B52: Load Management Controls Customer Premises | C52: 0 | E52: 0 | F52: =IF(D52=0,+'App.2-CC_DepExp_Yr2'!K52,+'App.2-CC_DepExp_Yr2'!K52+((C52*0.5)/D52)) -> 0 | G52: =-'App.2-BA_Fixed Asset Cont'!J129 -> 0 | H52: 0 | I52: 0 | K52: =IF(ISERROR(+I52+'App.2-CC_DepExp_Yr2'!K52-J52), 0, +I52+'App.2-CC_DepExp_Yr2'!K52-J52) -> 0
A53: 1975 | B53: Load Management Controls Utility Premises | C53: 0 | D53: 0 | E53: 0 | F53: =IF(D53=0,+'App.2-CC_DepExp_Yr2'!K53,+'App.2-CC_DepExp_Yr2'!K53+((C53*0.5)/D53)) -> 0 | G53: =-'App.2-BA_Fixed Asset Cont'!J130 -> 0 | H53: 0 | I53: 0 | K53: =IF(ISERROR(+I53+'App.2-CC_DepExp_Yr2'!K53-J53), 0, +I53+'App.2-CC_DepExp_Yr2'!K53-J53) -> 0
A54: 1980 | B54: System Supervisor Equipment | C54: 125462.03 | D54: 15 | E54: 0.06666666667 | F54: =IF(D54=0,+'App.2-CC_DepExp_Yr2'!K54,+'App.2-CC_DepExp_Yr2'!K54+((C54*0.5)/D54)) -> 118956.5162 | G54: =-'App.2-BA_Fixed Asset Cont'!J131 -> 118906.41 | H54: 50.1062381 | I54: 8364.135333 | J54: 8600 | K54: =IF(ISERROR(+I54+'App.2-CC_DepExp_Yr2'!K54-J54), 0, +I54+'App.2-CC_DepExp_Yr2'!K54-J54) -> 114538.5839
A55: 1985 | B55: Miscellaneous Fixed Assets | C55: 0 | D55: 0 | E55: 0 | F55: =IF(D55=0,+'App.2-CC_DepExp_Yr2'!K55,+'App.2-CC_DepExp_Yr2'!K55+((C55*0.5)/D55)) -> 0 | G55: =-'App.2-BA_Fixed Asset Cont'!J132 -> 0 | H55: 0 | I55: 0 | K55: =IF(ISERROR(+I55+'App.2-CC_DepExp_Yr2'!K55-J55), 0, +I55+'App.2-CC_DepExp_Yr2'!K55-J55) -> 0
A56: 1990 | B56: Other Tangible Property | C56: 0 | E56: 0 | F56: =IF(D56=0,+'App.2-CC_DepExp_Yr2'!K56,+'App.2-CC_DepExp_Yr2'!K56+((C56*0.5)/D56)) -> 0 | G56: =-'App.2-BA_Fixed Asset Cont'!J133 -> 0 | H56: 0 | I56: 0 | K56: =IF(ISERROR(+I56+'App.2-CC_DepExp_Yr2'!K56-J56), 0, +I56+'App.2-CC_DepExp_Yr2'!K56-J56) -> 0
A57: 1995 | B57: Contributions & Grants | C57: -1416471.4 | D57: 35 | E57: =IF(D57=0,0,1/D57) -> 0.02857142857 | F57: =IF(D57=0,+'App.2-CC_DepExp_Yr2'!K57,+'App.2-CC_DepExp_Yr2'!K57+((C57*0.5)/D57)) -> -268055.3843 | G57: =-'App.2-BA_Fixed Asset Cont'!J134 -> -268851.62 | H57: 796.2357419 | I57: -40470.61143 | J57: -7300 | K57: =IF(ISERROR(+I57+'App.2-CC_DepExp_Yr2'!K57-J57), 0, +I57+'App.2-CC_DepExp_Yr2'!K57-J57) -> -280990.69
B58: Total | C58: =SUM(C20:C57) -> 5022091.05 | F58: =SUM(F20:F57) -> 1556673.283 | G58: 1557316.01 | H58: -642.7267334 | I58: 198769.5771 | J58: 70600 | K58: 1585458.072
B59: Depreciation exp. adj. from gain or loss on the retirement of assets (pool of like assets) (under MIFRS)
B60: Total Depreciation Expense | F60: =+F59+F58 -> 1556673.283
A62: Notes:
A63: 1 | B63: Board policy of the "half-year" rule - the applicant must ensure that additions in the year attract a half-year depreciation expense in the first year. Deviations from this standard practice must be supported in the application.
A64: 2 | B64: The applicant must provide an explanation of material variances in evidence.
A65: 3 | B65: This column refers to the calculated full year depreciation but excludes the depreciation expense on assets fully depreciated during the year. This column is used for the purpose of calculating depreciation expense in the following year on the next worksheet.
A67: General: | B67: Applicants must provide a breakdown of depreciation and amortization expense in the above format for all relevant accounts. Asset Retirement Obligations (AROs), depreciation and accretion expense should be disclosed separately consistent with the Notes of historical Audited Financial Statements.

Sheet App.2-CE_DepExp_Yr4
J1: File Number: | K1: =EBNUMBER -> EB-2016-0085
J2: Exhibit: | K2: 4
J3: Tab:
J4: Schedule:
J5: Page:
J7: Date: | K7: 2016-11-28
A9: Appendix 2-CE
A10: Depreciation and Amortization Expense
A11: MIFRS (Year 4) - 2015 MIFRS
A13: Select the set of appendices that apply | J13: Year Reflected in Schedule Below | K13: Accounting Standard
A14: 2012 Set of Appendices (2-CA to 2-CG) | C14: Assumes the applicant made capitalization and depreciation expense accounting policy changes under CGAAP effective January 1, 2012 and has adopted IFRS for financial reporting purposes effective January 1, 2015. Assumes that the applicant is reflecting these changes in a rebasing application for the first time. | J14: 2015 | K14: MIFRS
A15: 2013 Set of Appendices (2-CA to 2-CF) | C15: Assumes the applicant made capitalization and depreciation expense accounting policy changes under CGAAP effective January 1, 2013 and has adopted IFRS for financial reporting purposes effective January 1, 2015. Assumes that the applicant is reflecting these changes in a rebasing application for the first time. | J15: 2016 | K15: MIFRS
A18: Account | B18: Description | C18: Additions | D18: Years (new additions only) | E18: Depreciation Rate on New Additions | F18: Current Year Depreciation Expense1 | G18: Depreciation Expense per Appendix 2-BA Fixed Assets, Column J (l) | H18: Variance 2 | I18: Depreciation Expense on Current Full Year Additions | J18: Less Depreciation Expense on Assets Fully Depreciated During the Year (o) | K18: Current Full Year Depreciation 3
C19: (d) | D19: (f) | E19: (g) = 1 / (f) | F19: (h)=Prior Full Year Depreciation + ((d)*0.5)/(f) | H19: (m) = (h) - (l) | I19: (n)=((d))/(f) | K19: (p) = Prior Full Year Depreciation + (n) - (o)
A20: 1611 | B20: Computer Software (Formally known as Account 1925) | C20: ='App.2-BA_Fixed Asset Cont'!E219 -> 185053 | D20: 3 | E20: =IF(D20=0,0,1/D20) -> 0.3333333333 | F20: =IF(D20=0,'App.2-CD_DepExp_Yr3'!K20,+'App.2-CD_DepExp_Yr3'!K20+((C20*0.5)/D20)) -> 169513.8759 | G20: =-'App.2-BA_Fixed Asset Cont'!J219 -> 169499 | H20: =IF(ISERROR(+F20-G20), 0, +F20-G20) -> 14.87592593 | I20: =IF(D20=0,0,+(C20)/D20) -> 61684.33333 | J20: 60100 | K20: =IF(ISERROR(+I20+'App.2-CD_DepExp_Yr3'!K20-J20), 0, +I20+'App.2-CD_DepExp_Yr3'!K20-J20) -> 140256.0426
A21: 1612 | B21: Land Rights (Formally known as Account 1906) | C21: ='App.2-BA_Fixed Asset Cont'!E220 -> 0 | D21: 50 | E21: 0.02 | F21: =IF(D21=0,'App.2-CD_DepExp_Yr3'!K21,+'App.2-CD_DepExp_Yr3'!K21+((C21*0.5)/D21)) -> 14575.08488 | G21: =-'App.2-BA_Fixed Asset Cont'!J220 -> 12699 | H21: 1876.08488 | I21: =IF(D21=0,0,+(C21)/D21) -> 0 | K21: =IF(ISERROR(+I21+'App.2-CD_DepExp_Yr3'!K21-J21), 0, +I21+'App.2-CD_DepExp_Yr3'!K21-J21) -> 14575.08488
A22: 1805 | B22: Land | C22: ='App.2-BA_Fixed Asset Cont'!E221 -> 77556 | D22: 0 | E22: 0 | F22: =IF(D22=0,'App.2-CD_DepExp_Yr3'!K22,+'App.2-CD_DepExp_Yr3'!K22+((C22*0.5)/D22)) -> 0 | G22: =-'App.2-BA_Fixed Asset Cont'!J221 -> 0 | H22: 0 | I22: 0 | K22: =IF(ISERROR(+I22+'App.2-CD_DepExp_Yr3'!K22-J22), 0, +I22+'App.2-CD_DepExp_Yr3'!K22-J22) -> 0
A23: 1808 | B23: Buildings | C23: ='App.2-BA_Fixed Asset Cont'!E222 -> 0 | D23: 0 | E23: 0 | F23: =IF(D23=0,'App.2-CD_DepExp_Yr3'!K23,+'App.2-CD_DepExp_Yr3'!K23+((C23*0.5)/D23)) -> 0 | G23: =-'App.2-BA_Fixed Asset Cont'!J222 -> 0 | H23: 0 | I23: 0 | K23: =IF(ISERROR(+I23+'App.2-CD_DepExp_Yr3'!K23-J23), 0, +I23+'App.2-CD_DepExp_Yr3'!K23-J23) -> 0
A24: 1810 | B24: Leasehold Improvements | C24: ='App.2-BA_Fixed Asset Cont'!E223 -> 0 | D24: 25 | E24: 0.04 | F24: =IF(D24=0,'App.2-CD_DepExp_Yr3'!K24,+'App.2-CD_DepExp_Yr3'!K24+((C24*0.5)/D24)) -> 0 | G24: =-'App.2-BA_Fixed Asset Cont'!J223 -> 0 | H24: 0 | I24: 0 | K24: =IF(ISERROR(+I24+'App.2-CD_DepExp_Yr3'!K24-J24), 0, +I24+'App.2-CD_DepExp_Yr3'!K24-J24) -> 0
A25: 1815 | B25: Transformer Station Equipment >50 kV | C25: ='App.2-BA_Fixed Asset Cont'!E224 -> 0 | D25: 0 | E25: 0 | F25: =IF(D25=0,'App.2-CD_DepExp_Yr3'!K25,+'App.2-CD_DepExp_Yr3'!K25+((C25*0.5)/D25)) -> 0 | G25: =-'App.2-BA_Fixed Asset Cont'!J224 -> 0 | H25: 0 | I25: 0 | K25: =IF(ISERROR(+I25+'App.2-CD_DepExp_Yr3'!K25-J25), 0, +I25+'App.2-CD_DepExp_Yr3'!K25-J25) -> 0
A26: 1820 | B26: Distribution Station Equipment <50 kV | C26: ='App.2-BA_Fixed Asset Cont'!E225 -> 779993 | D26: 25 | E26: 0.04 | F26: =IF(D26=0,'App.2-CD_DepExp_Yr3'!K26,+'App.2-CD_DepExp_Yr3'!K26+((C26*0.5)/D26)) -> 182532.1597 | G26: =-'App.2-BA_Fixed Asset Cont'!J225 -> 191509 | H26: -8976.840309 | I26: 31199.72 | K26: =IF(ISERROR(+I26+'App.2-CD_DepExp_Yr3'!K26-J26), 0, +I26+'App.2-CD_DepExp_Yr3'!K26-J26) -> 198132.0197
A27: 1825 | B27: Storage Battery Equipment | C27: ='App.2-BA_Fixed Asset Cont'!E226 -> 0 | D27: 0 | E27: 0 | F27: =IF(D27=0,'App.2-CD_DepExp_Yr3'!K27,+'App.2-CD_DepExp_Yr3'!K27+((C27*0.5)/D27)) -> 0 | G27: =-'App.2-BA_Fixed Asset Cont'!J226 -> 0 | H27: 0 | I27: 0 | K27: =IF(ISERROR(+I27+'App.2-CD_DepExp_Yr3'!K27-J27), 0, +I27+'App.2-CD_DepExp_Yr3'!K27-J27) -> 0
A28: 1830 | B28: Poles, Towers & Fixtures | C28: ='App.2-BA_Fixed Asset Cont'!E227 -> 1533272 | D28: 45 | E28: 0.02222222222 | F28: =IF(D28=0,'App.2-CD_DepExp_Yr3'!K28,+'App.2-CD_DepExp_Yr3'!K28+((C28*0.5)/D28)) -> 234914.9544 | G28: =-'App.2-BA_Fixed Asset Cont'!J227 -> 237728 | H28: -2813.045591 | I28: 34072.71111 | K28: =IF(ISERROR(+I28+'App.2-CD_DepExp_Yr3'!K28-J28), 0, +I28+'App.2-CD_DepExp_Yr3'!K28-J28) -> 251951.31
A29: 1835 | B29: Overhead Conductors & Devices | C29: ='App.2-BA_Fixed Asset Cont'!E228 -> 1390592 | D29: 60 | E29: 0.01666666667 | F29: =IF(D29=0,'App.2-CD_DepExp_Yr3'!K29,+'App.2-CD_DepExp_Yr3'!K29+((C29*0.5)/D29)) -> 222726.7129 | G29: =-'App.2-BA_Fixed Asset Cont'!J228 -> 225949 | H29: -3222.287111 | I29: 23176.53333 | K29: =IF(ISERROR(+I29+'App.2-CD_DepExp_Yr3'!K29-J29), 0, +I29+'App.2-CD_DepExp_Yr3'!K29-J29) -> 234314.9796
A30: 1840 | B30: Underground Conduit | C30: ='App.2-BA_Fixed Asset Cont'!E229 -> 546399 | D30: 40 | E30: 0.025 | F30: =IF(D30=0,'App.2-CD_DepExp_Yr3'!K30,+'App.2-CD_DepExp_Yr3'!K30+((C30*0.5)/D30)) -> 82801.14082 | G30: =-'App.2-BA_Fixed Asset Cont'!J229 -> 81467 | H30: 1334.140824 | I30: 13659.975 | K30: =IF(ISERROR(+I30+'App.2-CD_DepExp_Yr3'!K30-J30), 0, +I30+'App.2-CD_DepExp_Yr3'!K30-J30) -> 89631.12832
A31: 1845 | B31: Underground Conductors & Devices | C31: ='App.2-BA_Fixed Asset Cont'!E230 -> 283406 | D31: 40 | E31: 0.025 | F31: =IF(D31=0,'App.2-CD_DepExp_Yr3'!K31,+'App.2-CD_DepExp_Yr3'!K31+((C31*0.5)/D31)) -> 256340.653 | G31: =-'App.2-BA_Fixed Asset Cont'!J230 -> 254303 | H31: 2037.653032 | I31: 7085.15 | K31: =IF(ISERROR(+I31+'App.2-CD_DepExp_Yr3'!K31-J31), 0, +I31+'App.2-CD_DepExp_Yr3'!K31-J31) -> 259883.228
A32: 1850 | B32: Line Transformers | C32: ='App.2-BA_Fixed Asset Cont'!E231 -> 999677 | D32: 40 | E32: 0.025 | F32: =IF(D32=0,'App.2-CD_DepExp_Yr3'!K32,+'App.2-CD_DepExp_Yr3'!K32+((C32*0.5)/D32)) -> 165973.6283 | G32: =-'App.2-BA_Fixed Asset Cont'!J231 -> 164241 | H32: 1732.62825 | I32: 24991.925 | K32: =IF(ISERROR(+I32+'App.2-CD_DepExp_Yr3'!K32-J32), 0, +I32+'App.2-CD_DepExp_Yr3'!K32-J32) -> 178469.5908
A33: 1855 | B33: Services (Overhead & Underground) | C33: ='App.2-BA_Fixed Asset Cont'!E232 -> 479966 | D33: 50 | E33: 0.02 | F33: =IF(D33=0,'App.2-CD_DepExp_Yr3'!K33,+'App.2-CD_DepExp_Yr3'!K33+((C33*0.5)/D33)) -> 90662.64012 | G33: =-'App.2-BA_Fixed Asset Cont'!J232 -> 93028 | H33: -2365.359882 | I33: 9599.32 | K33: =IF(ISERROR(+I33+'App.2-CD_DepExp_Yr3'!K33-J33), 0, +I33+'App.2-CD_DepExp_Yr3'!K33-J33) -> 95462.30012
A34: 1860 | B34: Meters | C34: ='App.2-BA_Fixed Asset Cont'!E233 -> 113146 | D34: 15 | E34: 0.06666666667 | F34: =IF(D34=0,'App.2-CD_DepExp_Yr3'!K34,+'App.2-CD_DepExp_Yr3'!K34+((C34*0.5)/D34)) -> 178748.2946 | G34: =-'App.2-BA_Fixed Asset Cont'!J233 -> 178804 | H34: -55.70544218 | I34: 7543.066667 | K34: =IF(ISERROR(+I34+'App.2-CD_DepExp_Yr3'!K34-J34), 0, +I34+'App.2-CD_DepExp_Yr3'!K34-J34) -> 182519.8279
A35: 1860 | B35: Meters (Smart Meters) | C35: ='App.2-BA_Fixed Asset Cont'!E234 -> 0 | D35: 25 | E35: 0.04 | F35: =IF(D35=0,'App.2-CD_DepExp_Yr3'!K35,+'App.2-CD_DepExp_Yr3'!K35+((C35*0.5)/D35)) -> -0.3684210526 | G35: =-'App.2-BA_Fixed Asset Cont'!J234 -> 0 | H35: -0.3684210526 | I35: 0 | K35: =IF(ISERROR(+I35+'App.2-CD_DepExp_Yr3'!K35-J35), 0, +I35+'App.2-CD_DepExp_Yr3'!K35-J35) -> -0.3684210526
A36: 1905 | B36: Land | C36: ='App.2-BA_Fixed Asset Cont'!E235 -> 0 | D36: 0 | E36: 0 | F36: =IF(D36=0,'App.2-CD_DepExp_Yr3'!K36,+'App.2-CD_DepExp_Yr3'!K36+((C36*0.5)/D36)) -> 0 | G36: =-'App.2-BA_Fixed Asset Cont'!J235 -> 0 | H36: 0 | I36: 0 | K36: =IF(ISERROR(+I36+'App.2-CD_DepExp_Yr3'!K36-J36), 0, +I36+'App.2-CD_DepExp_Yr3'!K36-J36) -> 0
A37: 1908 | B37: Buildings & Fixtures | C37: ='App.2-BA_Fixed Asset Cont'!E236 -> 12430510 | D37: 47 | E37: 0.02127659574 | F37: =IF(D37=0,'App.2-CD_DepExp_Yr3'!K37,+'App.2-CD_DepExp_Yr3'!K37+((C37*0.5)/D37)) -> 145720.9368 | G37: =-'App.2-BA_Fixed Asset Cont'!J236 -> 145132 | H37: 588.936828 | I37: 264478.9362 | J37: 10100 | K37: =IF(ISERROR(+I37+'App.2-CD_DepExp_Yr3'!K37-J37), 0, +I37+'App.2-CD_DepExp_Yr3'!K37-J37) -> 267860.4049
A38: 1910 | B38: Leasehold Improvements | C38: ='App.2-BA_Fixed Asset Cont'!E237 -> 0 | D38: 0 | E38: 0 | F38: =IF(D38=0,'App.2-CD_DepExp_Yr3'!K38,+'App.2-CD_DepExp_Yr3'!K38+((C38*0.5)/D38)) -> 0 | G38: =-'App.2-BA_Fixed Asset Cont'!J237 -> 0 | H38: 0 | I38: 0 | K38: =IF(ISERROR(+I38+'App.2-CD_DepExp_Yr3'!K38-J38), 0, +I38+'App.2-CD_DepExp_Yr3'!K38-J38) -> 0
A39: 1915 | B39: Office Furniture & Equipment (10 years) | C39: ='App.2-BA_Fixed Asset Cont'!E238 -> 154231 | D39: 10 | E39: 0.1 | F39: =IF(D39=0,'App.2-CD_DepExp_Yr3'!K39,+'App.2-CD_DepExp_Yr3'!K39+((C39*0.5)/D39)) -> 23507.75 | G39: =-'App.2-BA_Fixed Asset Cont'!J238 -> 19569 | H39: 3938.75 | I39: 15423.1 | K39: =IF(ISERROR(+I39+'App.2-CD_DepExp_Yr3'!K39-J39), 0, +I39+'App.2-CD_DepExp_Yr3'!K39-J39) -> 31219.3
A40: 1915 | B40: Office Furniture & Equipment (5 years) | C40: ='App.2-BA_Fixed Asset Cont'!E239 -> 0 | D40: 0 | E40: 0 | F40: =IF(D40=0,'App.2-CD_DepExp_Yr3'!K40,+'App.2-CD_DepExp_Yr3'!K40+((C40*0.5)/D40)) -> 0 | G40: =-'App.2-BA_Fixed Asset Cont'!J239 -> 0 | H40: 0 | I40: 0 | K40: =IF(ISERROR(+I40+'App.2-CD_DepExp_Yr3'!K40-J40), 0, +I40+'App.2-CD_DepExp_Yr3'!K40-J40) -> 0
A41: 1920 | B41: Computer Equipment - Hardware | C41: ='App.2-BA_Fixed Asset Cont'!E240 -> 149497 | D41: 5 | E41: 0.2 | F41: =IF(D41=0,'App.2-CD_DepExp_Yr3'!K41,+'App.2-CD_DepExp_Yr3'!K41+((C41*0.5)/D41)) -> 82672.82884 | G41: =-'App.2-BA_Fixed Asset Cont'!J240 -> 82659 | H41: 13.82884211 | I41: 29899.4 | K41: =IF(ISERROR(+I41+'App.2-CD_DepExp_Yr3'!K41-J41), 0, +I41+'App.2-CD_DepExp_Yr3'!K41-J41) -> 97622.52884
A42: 1920 | B42: Computer Equip.-Hardware(Post Mar. 22/04) | C42: ='App.2-BA_Fixed Asset Cont'!E241 -> 0 | D42: 0 | E42: 0 | F42: =IF(D42=0,'App.2-CD_DepExp_Yr3'!K42,+'App.2-CD_DepExp_Yr3'!K42+((C42*0.5)/D42)) -> 0 | G42: =-'App.2-BA_Fixed Asset Cont'!J241 -> 0 | H42: 0 | I42: 0 | K42: =IF(ISERROR(+I42+'App.2-CD_DepExp_Yr3'!K42-J42), 0, +I42+'App.2-CD_DepExp_Yr3'!K42-J42) -> 0
A43: 1920 | B43: Computer Equip.-Hardware(Post Mar. 19/07) | C43: ='App.2-BA_Fixed Asset Cont'!E242 -> 0 | D43: 0 | E43: 0 | F43: =IF(D43=0,'App.2-CD_DepExp_Yr3'!K43,+'App.2-CD_DepExp_Yr3'!K43+((C43*0.5)/D43)) -> 0 | G43: =-'App.2-BA_Fixed Asset Cont'!J242 -> 0 | H43: 0 | I43: 0 | K43: =IF(ISERROR(+I43+'App.2-CD_DepExp_Yr3'!K43-J43), 0, +I43+'App.2-CD_DepExp_Yr3'!K43-J43) -> 0
A44: 1930 | B44: Transportation Equipment | C44: ='App.2-BA_Fixed Asset Cont'!E243 -> 33347 | D44: 5 | E44: 0.2 | F44: =IF(D44=0,'App.2-CD_DepExp_Yr3'!K44,+'App.2-CD_DepExp_Yr3'!K44+((C44*0.5)/D44)) -> 120220.4209 | G44: =-'App.2-BA_Fixed Asset Cont'!J243 -> 120051 | H44: 169.4208627 | I44: 6669.4 | K44: =IF(ISERROR(+I44+'App.2-CD_DepExp_Yr3'!K44-J44), 0, +I44+'App.2-CD_DepExp_Yr3'!K44-J44) -> 123555.1209
A45: 1935 | B45: Stores Equipment | C45: ='App.2-BA_Fixed Asset Cont'!E244 -> 117204 | D45: 10 | E45: 0.1 | F45: =IF(D45=0,'App.2-CD_DepExp_Yr3'!K45,+'App.2-CD_DepExp_Yr3'!K45+((C45*0.5)/D45)) -> 8538.687773 | G45: =-'App.2-BA_Fixed Asset Cont'!J244 -> 8603 | H45: -64.31222672 | I45: 11720.4 | K45: =IF(ISERROR(+I45+'App.2-CD_DepExp_Yr3'!K45-J45), 0, +I45+'App.2-CD_DepExp_Yr3'!K45-J45) -> 14398.88777
A46: 1940 | B46: Tools, Shop & Garage Equipment | C46: ='App.2-BA_Fixed Asset Cont'!E245 -> 41581 | D46: 10 | E46: 0.1 | F46: =IF(D46=0,'App.2-CD_DepExp_Yr3'!K46,+'App.2-CD_DepExp_Yr3'!K46+((C46*0.5)/D46)) -> 41212.16082 | G46: =-'App.2-BA_Fixed Asset Cont'!J245 -> 41285 | H46: -72.83917647 | I46: 4158.1 | K46: =IF(ISERROR(+I46+'App.2-CD_DepExp_Yr3'!K46-J46), 0, +I46+'App.2-CD_DepExp_Yr3'!K46-J46) -> 43291.21082
A47: 1945 | B47: Measurement & Testing Equipment | C47: ='App.2-BA_Fixed Asset Cont'!E246 -> 0 | D47: 10 | E47: 0.1 | F47: =IF(D47=0,'App.2-CD_DepExp_Yr3'!K47,+'App.2-CD_DepExp_Yr3'!K47+((C47*0.5)/D47)) -> 3929.651932 | G47: =-'App.2-BA_Fixed Asset Cont'!J246 -> 4161 | H47: -231.3480682 | I47: 0 | K47: =IF(ISERROR(+I47+'App.2-CD_DepExp_Yr3'!K47-J47), 0, +I47+'App.2-CD_DepExp_Yr3'!K47-J47) -> 3929.651932
A48: 1950 | B48: Power Operated Equipment | C48: ='App.2-BA_Fixed Asset Cont'!E247 -> 0 | D48: 0 | E48: 0 | F48: =IF(D48=0,'App.2-CD_DepExp_Yr3'!K48,+'App.2-CD_DepExp_Yr3'!K48+((C48*0.5)/D48)) -> 0 | G48: =-'App.2-BA_Fixed Asset Cont'!J247 -> 0 | H48: 0 | I48: 0 | K48: =IF(ISERROR(+I48+'App.2-CD_DepExp_Yr3'!K48-J48), 0, +I48+'App.2-CD_DepExp_Yr3'!K48-J48) -> 0
A49: 1955 | B49: Communications Equipment | C49: ='App.2-BA_Fixed Asset Cont'!E248 -> 0 | D49: 0 | E49: 0 | F49: =IF(D49=0,'App.2-CD_DepExp_Yr3'!K49,+'App.2-CD_DepExp_Yr3'!K49+((C49*0.5)/D49)) -> 0 | G49: =-'App.2-BA_Fixed Asset Cont'!J248 -> 0 | H49: 0 | I49: 0 | K49: =IF(ISERROR(+I49+'App.2-CD_DepExp_Yr3'!K49-J49), 0, +I49+'App.2-CD_DepExp_Yr3'!K49-J49) -> 0
A50: 1955 | B50: Communication Equipment (Smart Meters) | C50: ='App.2-BA_Fixed Asset Cont'!E249 -> 0 | D50: 0 | E50: 0 | F50: =IF(D50=0,'App.2-CD_DepExp_Yr3'!K50,+'App.2-CD_DepExp_Yr3'!K50+((C50*0.5)/D50)) -> 0 | G50: =-'App.2-BA_Fixed Asset Cont'!J249 -> 0 | H50: 0 | I50: 0 | K50: =IF(ISERROR(+I50+'App.2-CD_DepExp_Yr3'!K50-J50), 0, +I50+'App.2-CD_DepExp_Yr3'!K50-J50) -> 0
A51: 1960 | B51: Miscellaneous Equipment | C51: ='App.2-BA_Fixed Asset Cont'!E250 -> 0 | D51: 0 | E51: 0 | F51: =IF(D51=0,'App.2-CD_DepExp_Yr3'!K51,+'App.2-CD_DepExp_Yr3'!K51+((C51*0.5)/D51)) -> 0 | G51: =-'App.2-BA_Fixed Asset Cont'!J250 -> 0 | H51: 0 | I51: 0 | K51: =IF(ISERROR(+I51+'App.2-CD_DepExp_Yr3'!K51-J51), 0, +I51+'App.2-CD_DepExp_Yr3'!K51-J51) -> 0
A52: 1970 | B52: Load Management Controls Customer Premises | C52: ='App.2-BA_Fixed Asset Cont'!E251 -> 0 | E52: 0 | F52: =IF(D52=0,'App.2-CD_DepExp_Yr3'!K52,+'App.2-CD_DepExp_Yr3'!K52+((C52*0.5)/D52)) -> 0 | G52: =-'App.2-BA_Fixed Asset Cont'!J251 -> 0 | H52: 0 | I52: 0 | K52: =IF(ISERROR(+I52+'App.2-CD_DepExp_Yr3'!K52-J52), 0, +I52+'App.2-CD_DepExp_Yr3'!K52-J52) -> 0
A53: 1975 | B53: Load Management Controls Utility Premises | C53: ='App.2-BA_Fixed Asset Cont'!E252 -> 0 | D53: 0 | E53: 0 | F53: =IF(D53=0,'App.2-CD_DepExp_Yr3'!K53,+'App.2-CD_DepExp_Yr3'!K53+((C53*0.5)/D53)) -> 0 | G53: =-'App.2-BA_Fixed Asset Cont'!J252 -> 0 | H53: 0 | I53: 0 | K53: =IF(ISERROR(+I53+'App.2-CD_DepExp_Yr3'!K53-J53), 0, +I53+'App.2-CD_DepExp_Yr3'!K53-J53) -> 0
A54: 1980 | B54: System Supervisor Equipment | C54: ='App.2-BA_Fixed Asset Cont'!E253 -> 569196 | D54: 15 | E54: 0.06666666667 | F54: =IF(D54=0,'App.2-CD_DepExp_Yr3'!K54,+'App.2-CD_DepExp_Yr3'!K54+((C54*0.5)/D54)) -> 133511.7839 | G54: =-'App.2-BA_Fixed Asset Cont'!J253 -> 133510 | H54: 1.783904762 | I54: 37946.4 | K54: =IF(ISERROR(+I54+'App.2-CD_DepExp_Yr3'!K54-J54), 0, +I54+'App.2-CD_DepExp_Yr3'!K54-J54) -> 152484.9839
A55: 1985 | B55: Miscellaneous Fixed Assets | C55: ='App.2-BA_Fixed Asset Cont'!E254 -> 0 | D55: 0 | E55: 0 | F55: =IF(D55=0,'App.2-CD_DepExp_Yr3'!K55,+'App.2-CD_DepExp_Yr3'!K55+((C55*0.5)/D55)) -> 0 | G55: =-'App.2-BA_Fixed Asset Cont'!J254 -> 0 | H55: 0 | I55: 0 | K55: =IF(ISERROR(+I55+'App.2-CD_DepExp_Yr3'!K55-J55), 0, +I55+'App.2-CD_DepExp_Yr3'!K55-J55) -> 0
A56: 1990 | B56: Other Tangible Property | C56: ='App.2-BA_Fixed Asset Cont'!E255 -> 0 | E56: 0 | F56: =IF(D56=0,'App.2-CD_DepExp_Yr3'!K56,+'App.2-CD_DepExp_Yr3'!K56+((C56*0.5)/D56)) -> 0 | G56: =-'App.2-BA_Fixed Asset Cont'!J255 -> 0 | H56: 0 | I56: 0 | K56: =IF(ISERROR(+I56+'App.2-CD_DepExp_Yr3'!K56-J56), 0, +I56+'App.2-CD_DepExp_Yr3'!K56-J56) -> 0
A57: 1995 | B57: Contributions & Grants | C57: ='App.2-BA_Fixed Asset Cont'!E256 -> -2267837 | D57: 35 | E57: 0.02857142857 | F57: =IF(D57=0,'App.2-CD_DepExp_Yr3'!K57,+'App.2-CD_DepExp_Yr3'!K57+((C57*0.5)/D57)) -> -313388.3614 | G57: =-'App.2-BA_Fixed Asset Cont'!J256 -> -313336 | H57: -52.36140092 | I57: -64795.34286 | K57: =IF(ISERROR(+I57+'App.2-CD_DepExp_Yr3'!K57-J57), 0, +I57+'App.2-CD_DepExp_Yr3'!K57-J57) -> -345786.0328
B58: Total | C58: =SUM(C20:C57) -> 17616789 | F58: =SUM(F20:F57) -> 1844714.636 | G58: =SUM(G20:G57) -> 1850861 | H58: =SUM(H20:H57) -> -6146.36428 | I58: =SUM(I20:I57) -> 518513.1278 | J58: 70200 | K58: =SUM(K20:K57) -> 2033771.2
B59: Depreciation exp. adj. from gain or loss on the retirement of assets (pool of like assets)
B60: Total Depreciation Expense | F60: =SUM(F58:F59) -> 1844714.636
A61: Notes:
A62: 1 | B62: Board policy of the "half-year" rule - the applicant must ensure that additions in the year attract a half-year depreciation expense in the first year. Deviations from this standard practice must be supported in the application.
A63: 2 | B63: The applicant must provide an explanation of material variances in evidence.
A64: 3 | B64: This column refers to the calculated full year depreciation but excludes the depreciation expense on assets fully depreciated during the year. This column is used for the purpose of calculating depreciation expense in the following year on the next worksheet.
A66: General: | B66: Applicants must provide a breakdown of depreciation and amortization expense in the above format for all relevant accounts. Asset Retirement Obligations (AROs), depreciation and accretion expense should be disclosed separately consistent with the Notes of historical Audited Financial Statements.

Sheet App.2-CF_DepExp_Yr5
J1: File Number: | K1: =EBNUMBER -> EB-2016-0085
J2: Exhibit: | K2: 4
J3: Tab:
J4: Schedule:
J5: Page:
J7: Date: | K7: 2016-11-28
A9: Appendix 2-CF
A10: Depreciation and Amortization Expense
A11: MIFRS (Year 5) - 2016
A13: Select the set of appendices that apply | J13: Year Reflected in Schedule Below | K13: Accounting Standard
A14: 2012 Set of Appendices (2-CA to 2-CG) | C14: Assumes the applicant made capitalization and depreciation expense accounting policy changes under CGAAP effective January 1, 2012 and has adopted IFRS for financial reporting purposes effective January 1, 2015. Assumes that the applicant is reflecting these changes in a rebasing application for the first time. | J14: 2016 | K14: MIFRS
A15: 2013 Set of Appendices (2-CA to 2-CF) | C15: Assumes the applicant made capitalization and depreciation expense accounting policy changes under CGAAP effective January 1, 2013 and has adopted IFRS for financial reporting purposes effective January 1, 2015. Assumes that the applicant is reflecting these changes in a rebasing application for the first time. | J15: 2017 | K15: MIFRS
A18: Account | B18: Description | C18: Additions | D18: Years (new additions only) | E18: Depreciation Rate on New Additions | F18: Current Depreciation Expense1 | G18: Depreciation Expense per Appendix 2-BA Fixed Assets, Column J (l) | H18: Variance 2 | I18: Depreciation Expense on Current Full Year Additions | J18: Less Depreciation Expense on Assets Fully Depreciated During the Year (o) | K18: Current Full Year Depreciation 3
C19: (d) | D19: (f) | E19: (g) = 1 / (f) | F19: (h)= Prior Full Year Depreciation + ((d)*0.5)/(f) | H19: (m) = (h) - (l) | I19: (n)=((d))/(f) | K19: (p) = Prior Full Year Depreciation + (n) - (o)
A20: 1611 | B20: Computer Software (Formally known as Account 1925) | C20: 358500 | D20: 3 | E20: =IF(D20=0,0,1/D20) -> 0.3333333333 | F20: =IF(D20=0,'App.2-CE_DepExp_Yr4'!K20,+'App.2-CE_DepExp_Yr4'!K20+((C20*0.5)/D20)) -> 200006.0426 | G20: =-'App.2-BA_Fixed Asset Cont'!J280 -> 199987.6633 | H20: =IF(ISERROR(+F20-G20), 0, +F20-G20) -> 18.37925926 | I20: =IF(D20=0,0,+(C20)/D20) -> 119500 | J20: 30000 | K20: =IF(ISERROR(+I20+'App.2-CE_DepExp_Yr4'!K20-J20), 0,+I20 +'App.2-CE_DepExp_Yr4'!K20-J20) -> 229756.0426
A21: 1612 | B21: Land Rights (Formally known as Account 1906) | C21: 0 | D21: 50 | E21: 0.02 | F21: =IF(D21=0,'App.2-CE_DepExp_Yr4'!K21,+'App.2-CE_DepExp_Yr4'!K21+((C21*0.5)/D21)) -> 14575.08488 | G21: =-'App.2-BA_Fixed Asset Cont'!J281 -> 12699.01 | H21: 1876.07488 | I21: =IF(D21=0,0,+(C21)/D21) -> 0 | K21: =IF(ISERROR(+I21+'App.2-CE_DepExp_Yr4'!K21-J21), 0,+I21 +'App.2-CE_DepExp_Yr4'!K21-J21) -> 14575.08488
A22: 1805 | B22: Land | C22: 0 | D22: 0 | E22: 0 | F22: =IF(D22=0,'App.2-CE_DepExp_Yr4'!K22,+'App.2-CE_DepExp_Yr4'!K22+((C22*0.5)/D22)) -> 0 | G22: =-'App.2-BA_Fixed Asset Cont'!J282 -> 0 | H22: 0 | I22: 0 | K22: =IF(ISERROR(+I22+'App.2-CE_DepExp_Yr4'!K22-J22), 0,+I22 +'App.2-CE_DepExp_Yr4'!K22-J22) -> 0
A23: 1808 | B23: Buildings | C23: 0 | D23: 0 | E23: 0 | F23: =IF(D23=0,'App.2-CE_DepExp_Yr4'!K23,+'App.2-CE_DepExp_Yr4'!K23+((C23*0.5)/D23)) -> 0 | G23: =-'App.2-BA_Fixed Asset Cont'!J283 -> 0 | H23: 0 | I23: 0 | K23: =IF(ISERROR(+I23+'App.2-CE_DepExp_Yr4'!K23-J23), 0,+I23 +'App.2-CE_DepExp_Yr4'!K23-J23) -> 0
A24: 1810 | B24: Leasehold Improvements | C24: 0 | D24: 25 | E24: 0.04 | F24: =IF(D24=0,'App.2-CE_DepExp_Yr4'!K24,+'App.2-CE_DepExp_Yr4'!K24+((C24*0.5)/D24)) -> 0 | G24: =-'App.2-BA_Fixed Asset Cont'!J284 -> 0 | H24: 0 | I24: 0 | K24: =IF(ISERROR(+I24+'App.2-CE_DepExp_Yr4'!K24-J24), 0,+I24 +'App.2-CE_DepExp_Yr4'!K24-J24) -> 0
A25: 1815 | B25: Transformer Station Equipment >50 kV | C25: 0 | D25: 0 | E25: 0 | F25: =IF(D25=0,'App.2-CE_DepExp_Yr4'!K25,+'App.2-CE_DepExp_Yr4'!K25+((C25*0.5)/D25)) -> 0 | G25: =-'App.2-BA_Fixed Asset Cont'!J285 -> 0 | H25: 0 | I25: 0 | K25: =IF(ISERROR(+I25+'App.2-CE_DepExp_Yr4'!K25-J25), 0,+I25 +'App.2-CE_DepExp_Yr4'!K25-J25) -> 0
A26: 1820 | B26: Distribution Station Equipment <50 kV | C26: 2008854 | D26: 40 | E26: 0.025 | F26: =IF(D26=0,'App.2-CE_DepExp_Yr4'!K26,+'App.2-CE_DepExp_Yr4'!K26+((C26*0.5)/D26)) -> 223242.6947 | G26: =-'App.2-BA_Fixed Asset Cont'!J286 -> 226178.76 | H26: -2936.065309 | I26: 50221.35 | K26: =IF(ISERROR(+I26+'App.2-CE_DepExp_Yr4'!K26-J26), 0,+I26 +'App.2-CE_DepExp_Yr4'!K26-J26) -> 248353.3697
A27: 1825 | B27: Storage Battery Equipment | C27: 0 | D27: 0 | E27: 0 | F27: =IF(D27=0,'App.2-CE_DepExp_Yr4'!K27,+'App.2-CE_DepExp_Yr4'!K27+((C27*0.5)/D27)) -> 0 | G27: =-'App.2-BA_Fixed Asset Cont'!J287 -> 0 | H27: 0 | I27: 0 | K27: =IF(ISERROR(+I27+'App.2-CE_DepExp_Yr4'!K27-J27), 0,+I27 +'App.2-CE_DepExp_Yr4'!K27-J27) -> 0
A28: 1830 | B28: Poles, Towers & Fixtures | C28: 1245717 | D28: 40 | E28: 0.025 | F28: =IF(D28=0,'App.2-CE_DepExp_Yr4'!K28,+'App.2-CE_DepExp_Yr4'!K28+((C28*0.5)/D28)) -> 267522.7725 | G28: =-'App.2-BA_Fixed Asset Cont'!J288 -> 258788.7167 | H28: 8734.055797 | I28: 31142.925 | K28: =IF(ISERROR(+I28+'App.2-CE_DepExp_Yr4'!K28-J28), 0,+I28 +'App.2-CE_DepExp_Yr4'!K28-J28) -> 283094.235
A29: 1835 | B29: Overhead Conductors & Devices | C29: 1111002 | D29: 60 | E29: 0.01666666667 | F29: =IF(D29=0,'App.2-CE_DepExp_Yr4'!K29,+'App.2-CE_DepExp_Yr4'!K29+((C29*0.5)/D29)) -> 243573.3296 | G29: =-'App.2-BA_Fixed Asset Cont'!J289 -> 239829.93 | H29: 3743.399556 | I29: 18516.7 | K29: =IF(ISERROR(+I29+'App.2-CE_DepExp_Yr4'!K29-J29), 0,+I29 +'App.2-CE_DepExp_Yr4'!K29-J29) -> 252831.6796
A30: 1840 | B30: Underground Conduit | C30: 1282396 | D30: 40 | E30: 0.025 | F30: =IF(D30=0,'App.2-CE_DepExp_Yr4'!K30,+'App.2-CE_DepExp_Yr4'!K30+((C30*0.5)/D30)) -> 105661.0783 | G30: =-'App.2-BA_Fixed Asset Cont'!J290 -> 104328.805 | H30: 1332.273324 | I30: 32059.9 | K30: =IF(ISERROR(+I30+'App.2-CE_DepExp_Yr4'!K30-J30), 0,+I30 +'App.2-CE_DepExp_Yr4'!K30-J30) -> 121691.0283
A31: 1845 | B31: Underground Conductors & Devices | C31: 613881 | D31: 40 | E31: 0.025 | F31: =IF(D31=0,'App.2-CE_DepExp_Yr4'!K31,+'App.2-CE_DepExp_Yr4'!K31+((C31*0.5)/D31)) -> 267556.7405 | G31: =-'App.2-BA_Fixed Asset Cont'!J291 -> 265602.9325 | H31: 1953.808032 | I31: 15347.025 | K31: =IF(ISERROR(+I31+'App.2-CE_DepExp_Yr4'!K31-J31), 0,+I31 +'App.2-CE_DepExp_Yr4'!K31-J31) -> 275230.253
A32: 1850 | B32: Line Transformers | C32: 1818685 | D32: 40 | E32: 0.025 | F32: =IF(D32=0,'App.2-CE_DepExp_Yr4'!K32,+'App.2-CE_DepExp_Yr4'!K32+((C32*0.5)/D32)) -> 201203.1533 | G32: =-'App.2-BA_Fixed Asset Cont'!J292 -> 198414.545 | H32: 2788.60825 | I32: 45467.125 | K32: =IF(ISERROR(+I32+'App.2-CE_DepExp_Yr4'!K32-J32), 0,+I32 +'App.2-CE_DepExp_Yr4'!K32-J32) -> 223936.7158
A33: 1855 | B33: Services (Overhead & Underground) | C33: 983373 | D33: 50 | E33: 0.02 | F33: =IF(D33=0,'App.2-CE_DepExp_Yr4'!K33,+'App.2-CE_DepExp_Yr4'!K33+((C33*0.5)/D33)) -> 105296.0301 | G33: =-'App.2-BA_Fixed Asset Cont'!J293 -> 107846.2217 | H33: -2550.191549 | I33: 19667.46 | K33: =IF(ISERROR(+I33+'App.2-CE_DepExp_Yr4'!K33-J33), 0,+I33 +'App.2-CE_DepExp_Yr4'!K33-J33) -> 115129.7601
A34: 1860 | B34: Meters | C34: 168055 | D34: 15 | E34: 0.06666666667 | F34: =IF(D34=0,'App.2-CE_DepExp_Yr4'!K34,+'App.2-CE_DepExp_Yr4'!K34+((C34*0.5)/D34)) -> 188121.6612 | G34: =-'App.2-BA_Fixed Asset Cont'!J294 -> 188147.35 | H34: -25.68877551 | I34: 11203.66667 | K34: =IF(ISERROR(+I34+'App.2-CE_DepExp_Yr4'!K34-J34), 0,+I34 +'App.2-CE_DepExp_Yr4'!K34-J34) -> 193723.4946
A35: 1860 | B35: Meters (Smart Meters) | D35: 25 | E35: 0.04 | F35: =IF(D35=0,'App.2-CE_DepExp_Yr4'!K35,+'App.2-CE_DepExp_Yr4'!K35+((C35*0.5)/D35)) -> -0.3684210526 | G35: =-'App.2-BA_Fixed Asset Cont'!J295 -> 0 | H35: -0.3684210526 | I35: 0 | K35: =IF(ISERROR(+I35+'App.2-CE_DepExp_Yr4'!K35-J35), 0,+I35 +'App.2-CE_DepExp_Yr4'!K35-J35) -> -0.3684210526
A36: 1905 | B36: Land | C36: 0 | D36: 0 | E36: 0 | F36: =IF(D36=0,'App.2-CE_DepExp_Yr4'!K36,+'App.2-CE_DepExp_Yr4'!K36+((C36*0.5)/D36)) -> 0 | G36: =-'App.2-BA_Fixed Asset Cont'!J296 -> 0 | H36: 0 | I36: 0 | K36: =IF(ISERROR(+I36+'App.2-CE_DepExp_Yr4'!K36-J36), 0,+I36 +'App.2-CE_DepExp_Yr4'!K36-J36) -> 0
A37: 1908 | B37: Buildings & Fixtures | C37: 15000 | D37: 50 | E37: 0.02 | F37: =IF(D37=0,'App.2-CE_DepExp_Yr4'!K37,+'App.2-CE_DepExp_Yr4'!K37+((C37*0.5)/D37)) -> 268010.4049 | G37: =-'App.2-BA_Fixed Asset Cont'!J297 -> 268987.2 | H37: -976.7950869 | I37: 300 | K37: =IF(ISERROR(+I37+'App.2-CE_DepExp_Yr4'!K37-J37), 0,+I37 +'App.2-CE_DepExp_Yr4'!K37-J37) -> 268160.4049
A38: 1910 | B38: Leasehold Improvements | C38: 0 | D38: 0 | E38: 0 | F38: =IF(D38=0,'App.2-CE_DepExp_Yr4'!K38,+'App.2-CE_DepExp_Yr4'!K38+((C38*0.5)/D38)) -> 0 | G38: =-'App.2-BA_Fixed Asset Cont'!J298 -> 0 | H38: 0 | I38: 0 | K38: =IF(ISERROR(+I38+'App.2-CE_DepExp_Yr4'!K38-J38), 0,+I38 +'App.2-CE_DepExp_Yr4'!K38-J38) -> 0
A39: 1915 | B39: Office Furniture & Equipment (10 years) | C39: 0 | D39: 10 | E39: 0.1 | F39: =IF(D39=0,'App.2-CE_DepExp_Yr4'!K39,+'App.2-CE_DepExp_Yr4'!K39+((C39*0.5)/D39)) -> 31219.3 | G39: =-'App.2-BA_Fixed Asset Cont'!J299 -> 28030.87 | H39: 3188.43 | I39: 0 | K39: =IF(ISERROR(+I39+'App.2-CE_DepExp_Yr4'!K39-J39), 0,+I39 +'App.2-CE_DepExp_Yr4'!K39-J39) -> 31219.3
A40: 1915 | B40: Office Furniture & Equipment (5 years) | C40: 0 | D40: 0 | E40: 0 | F40: =IF(D40=0,'App.2-CE_DepExp_Yr4'!K40,+'App.2-CE_DepExp_Yr4'!K40+((C40*0.5)/D40)) -> 0 | G40: =-'App.2-BA_Fixed Asset Cont'!J300 -> 0 | H40: 0 | I40: 0 | K40: =IF(ISERROR(+I40+'App.2-CE_DepExp_Yr4'!K40-J40), 0,+I40 +'App.2-CE_DepExp_Yr4'!K40-J40) -> 0
A41: 1920 | B41: Computer Equipment - Hardware | C41: 130000 | D41: 5 | E41: 0.2 | F41: =IF(D41=0,'App.2-CE_DepExp_Yr4'!K41,+'App.2-CE_DepExp_Yr4'!K41+((C41*0.5)/D41)) -> 110622.5288 | G41: =-'App.2-BA_Fixed Asset Cont'!J301 -> 110609.13 | H41: 13.39884211 | I41: 26000 | K41: =IF(ISERROR(+I41+'App.2-CE_DepExp_Yr4'!K41-J41), 0,+I41 +'App.2-CE_DepExp_Yr4'!K41-J41) -> 123622.5288
A42: 1920 | B42: Computer Equip.-Hardware(Post Mar. 22/04) | C42: 0 | D42: 0 | E42: 0 | F42: =IF(D42=0,'App.2-CE_DepExp_Yr4'!K42,+'App.2-CE_DepExp_Yr4'!K42+((C42*0.5)/D42)) -> 0 | G42: =-'App.2-BA_Fixed Asset Cont'!J302 -> 0 | H42: 0 | I42: 0 | K42: =IF(ISERROR(+I42+'App.2-CE_DepExp_Yr4'!K42-J42), 0,+I42 +'App.2-CE_DepExp_Yr4'!K42-J42) -> 0
A43: 1920 | B43: Computer Equip.-Hardware(Post Mar. 19/07) | C43: 0 | D43: 0 | E43: 0 | F43: =IF(D43=0,'App.2-CE_DepExp_Yr4'!K43,+'App.2-CE_DepExp_Yr4'!K43+((C43*0.5)/D43)) -> 0 | G43: =-'App.2-BA_Fixed Asset Cont'!J303 -> 0 | H43: 0 | I43: 0 | K43: =IF(ISERROR(+I43+'App.2-CE_DepExp_Yr4'!K43-J43), 0,+I43 +'App.2-CE_DepExp_Yr4'!K43-J43) -> 0
A44: 1930 | B44: Transportation Equipment | C44: 0 | D44: 5 | E44: 0.2 | F44: =IF(D44=0,'App.2-CE_DepExp_Yr4'!K44,+'App.2-CE_DepExp_Yr4'!K44+((C44*0.5)/D44)) -> 123555.1209 | G44: =-'App.2-BA_Fixed Asset Cont'!J304 -> 123384.7 | H44: 170.4208627 | I44: 0 | K44: =IF(ISERROR(+I44+'App.2-CE_DepExp_Yr4'!K44-J44), 0,+I44 +'App.2-CE_DepExp_Yr4'!K44-J44) -> 123555.1209
A45: 1935 | B45: Stores Equipment | C45: 5000 | D45: 10 | E45: 0.1 | F45: =IF(D45=0,'App.2-CE_DepExp_Yr4'!K45,+'App.2-CE_DepExp_Yr4'!K45+((C45*0.5)/D45)) -> 14648.88777 | G45: =-'App.2-BA_Fixed Asset Cont'!J305 -> 14712.75 | H45: -63.86222672 | I45: 500 | K45: =IF(ISERROR(+I45+'App.2-CE_DepExp_Yr4'!K45-J45), 0,+I45 +'App.2-CE_DepExp_Yr4'!K45-J45) -> 14898.88777
A46: 1940 | B46: Tools, Shop & Garage Equipment | C46: 38000 | D46: 10 | E46: 0.1 | F46: =IF(D46=0,'App.2-CE_DepExp_Yr4'!K46,+'App.2-CE_DepExp_Yr4'!K46+((C46*0.5)/D46)) -> 45191.21082 | G46: =-'App.2-BA_Fixed Asset Cont'!J306 -> 45264 | H46: -72.78917647 | I46: 3800 | K46: =IF(ISERROR(+I46+'App.2-CE_DepExp_Yr4'!K46-J46), 0,+I46 +'App.2-CE_DepExp_Yr4'!K46-J46) -> 47091.21082
A47: 1945 | B47: Measurement & Testing Equipment | C47: 15000 | D47: 10 | E47: 0.1 | F47: =IF(D47=0,'App.2-CE_DepExp_Yr4'!K47,+'App.2-CE_DepExp_Yr4'!K47+((C47*0.5)/D47)) -> 4679.651932 | G47: =-'App.2-BA_Fixed Asset Cont'!J307 -> 4911.35 | H47: -231.6980682 | I47: 1500 | K47: =IF(ISERROR(+I47+'App.2-CE_DepExp_Yr4'!K47-J47), 0,+I47 +'App.2-CE_DepExp_Yr4'!K47-J47) -> 5429.651932
A48: 1950 | B48: Power Operated Equipment | C48: 0 | D48: 0 | E48: 0 | F48: =IF(D48=0,'App.2-CE_DepExp_Yr4'!K48,+'App.2-CE_DepExp_Yr4'!K48+((C48*0.5)/D48)) -> 0 | G48: =-'App.2-BA_Fixed Asset Cont'!J308 -> 0 | H48: 0 | I48: 0 | K48: =IF(ISERROR(+I48+'App.2-CE_DepExp_Yr4'!K48-J48), 0,+I48 +'App.2-CE_DepExp_Yr4'!K48-J48) -> 0
A49: 1955 | B49: Communications Equipment | C49: 0 | D49: 0 | E49: 0 | F49: =IF(D49=0,'App.2-CE_DepExp_Yr4'!K49,+'App.2-CE_DepExp_Yr4'!K49+((C49*0.5)/D49)) -> 0 | G49: =-'App.2-BA_Fixed Asset Cont'!J309 -> 0 | H49: 0 | I49: 0 | K49: =IF(ISERROR(+I49+'App.2-CE_DepExp_Yr4'!K49-J49), 0,+I49 +'App.2-CE_DepExp_Yr4'!K49-J49) -> 0
A50: 1955 | B50: Communication Equipment (Smart Meters) | C50: 0 | D50: 0 | E50: 0 | F50: =IF(D50=0,'App.2-CE_DepExp_Yr4'!K50,+'App.2-CE_DepExp_Yr4'!K50+((C50*0.5)/D50)) -> 0 | G50: =-'App.2-BA_Fixed Asset Cont'!J310 -> 0 | H50: 0 | I50: 0 | K50: =IF(ISERROR(+I50+'App.2-CE_DepExp_Yr4'!K50-J50), 0,+I50 +'App.2-CE_DepExp_Yr4'!K50-J50) -> 0
A51: 1960 | B51: Miscellaneous Equipment | C51: 0 | D51: 0 | E51: 0 | F51: =IF(D51=0,'App.2-CE_DepExp_Yr4'!K51,+'App.2-CE_DepExp_Yr4'!K51+((C51*0.5)/D51)) -> 0 | G51: =-'App.2-BA_Fixed Asset Cont'!J311 -> 0 | H51: 0 | I51: 0 | K51: =IF(ISERROR(+I51+'App.2-CE_DepExp_Yr4'!K51-J51), 0,+I51 +'App.2-CE_DepExp_Yr4'!K51-J51) -> 0
A52: 1970 | B52: Load Management Controls Customer Premises | C52: 0 | E52: 0 | F52: =IF(D52=0,'App.2-CE_DepExp_Yr4'!K52,+'App.2-CE_DepExp_Yr4'!K52+((C52*0.5)/D52)) -> 0 | G52: =-'App.2-BA_Fixed Asset Cont'!J312 -> 0 | H52: 0 | I52: 0 | K52: =IF(ISERROR(+I52+'App.2-CE_DepExp_Yr4'!K52-J52), 0,+I52 +'App.2-CE_DepExp_Yr4'!K52-J52) -> 0
A53: 1975 | B53: Load Management Controls Utility Premises | C53: 0 | D53: 0 | E53: 0 | F53: =IF(D53=0,'App.2-CE_DepExp_Yr4'!K53,+'App.2-CE_DepExp_Yr4'!K53+((C53*0.5)/D53)) -> 0 | G53: =-'App.2-BA_Fixed Asset Cont'!J313 -> 0 | H53: 0 | I53: 0 | K53: =IF(ISERROR(+I53+'App.2-CE_DepExp_Yr4'!K53-J53), 0,+I53 +'App.2-CE_DepExp_Yr4'!K53-J53) -> 0
A54: 1980 | B54: System Supervisor Equipment | C54: 84002 | D54: 15 | E54: 0.06666666667 | F54: =IF(D54=0,'App.2-CE_DepExp_Yr4'!K54,+'App.2-CE_DepExp_Yr4'!K54+((C54*0.5)/D54)) -> 155285.0506 | G54: =-'App.2-BA_Fixed Asset Cont'!J314 -> 155283.33 | H54: 1.720571429 | I54: 5600.133333 | K54: =IF(ISERROR(+I54+'App.2-CE_DepExp_Yr4'!K54-J54), 0,+I54 +'App.2-CE_DepExp_Yr4'!K54-J54) -> 158085.1172
A55: 1985 | B55: Miscellaneous Fixed Assets | C55: 0 | D55: 0 | E55: 0 | F55: =IF(D55=0,'App.2-CE_DepExp_Yr4'!K55,+'App.2-CE_DepExp_Yr4'!K55+((C55*0.5)/D55)) -> 0 | G55: =-'App.2-BA_Fixed Asset Cont'!J315 -> 0 | H55: 0 | I55: 0 | K55: =IF(ISERROR(+I55+'App.2-CE_DepExp_Yr4'!K55-J55), 0,+I55 +'App.2-CE_DepExp_Yr4'!K55-J55) -> 0
A56: 1990 | B56: Other Tangible Property | C56: 0 | E56: 0 | F56: =IF(D56=0,'App.2-CE_DepExp_Yr4'!K56,+'App.2-CE_DepExp_Yr4'!K56+((C56*0.5)/D56)) -> 0 | G56: =-'App.2-BA_Fixed Asset Cont'!J316 -> 0 | H56: 0 | I56: 0 | K56: =IF(ISERROR(+I56+'App.2-CE_DepExp_Yr4'!K56-J56), 0,+I56 +'App.2-CE_DepExp_Yr4'!K56-J56) -> 0
A57: 1995 | B57: Contributions & Grants | C57: -4227692 | D57: 35 | E57: 0.02857142857 | F57: =IF(D57=0,'App.2-CE_DepExp_Yr4'!K57,+'App.2-CE_DepExp_Yr4'!K57+((C57*0.5)/D57)) -> -406181.6328 | G57: =-'App.2-BA_Fixed Asset Cont'!J317 -> -421161.7241 | H57: 14980.09131 | I57: -120791.2 | J57: -14700 | K57: =IF(ISERROR(+I57+'App.2-CE_DepExp_Yr4'!K57-J57), 0,+I57 +'App.2-CE_DepExp_Yr4'!K57-J57) -> -451877.2328
B58: Total | C58: =SUM(C20:C57) -> 5649773 | F58: =SUM(F20:F57) -> 2163788.742 | G58: =SUM(G20:G57) -> 2131845.54 | H58: =SUM(H20:H57) -> 31943.20207 | I58: =SUM(I20:I57) -> 260035.085 | J58: 15300 | K58: 2278506.285
B59: Depreciation exp. adj. from gain or loss on the retirement of assets (pool of like assets)
B60: Total Depreciation Expense | F60: =SUM(F58:F59) -> 2163788.742
A61: Notes:
A62: 1 | B62: Board policy of the "half-year" rule - the applicant must ensure that additions in the year attract a half-year depreciation expense in the first year. Deviations from this standard practice must be supported in the application.
A63: 2 | B63: The applicant must provide an explanation of material variances in evidence.
A64: 3 | B64: This column refers to the calculated full year depreciation but excludes the depreciation expense on assets fully depreciated during the year. This column is used for the purpose of calculating depreciation expense in the following year on the next worksheet.
A66: General: | B66: Applicants must provide a breakdown of depreciation and amortization expense in the above format for all relevant accounts. Asset Retirement Obligations (AROs), depreciation and accretion expense should be disclosed separately consistent with the Notes of historical Audited Financial Statements.

Sheet App.2-CG_DepExp_Yr6
J1: File Number: | K1: =EBNUMBER -> EB-2016-0085
J2: Exhibit: | K2: 4
J3: Tab:
J4: Schedule:
J5: Page:
J7: Date: | K7: 2016-11-28
A9: Appendix 2-CG
A10: Depreciation and Amortization Expense
A11: MIFRS (Year 6) - 2017
A13: Select the set of appendices that apply | J13: Year Reflected in Schedule Below | K13: Accounting Standard
A14: 2012 Set of Appendices (2-CA to 2-CG) | C14: Assumes the applicant made capitalization and depreciation expense accounting policy changes under CGAAP effective January 1, 2012 and has adopted IFRS for financial reporting purposes effective January 1, 2015. Assumes that the applicant is reflecting these changes in a rebasing application for the first time. | J14: 2017 | K14: MIFRS
A15: N/A | B15: 2013 Set of Appendices | C15: Not applicable as the test year depreciation is already calculated in Appendix 2-CF. Note that this appendix is not to be used even though depreciation expense calculations will flow through from previous years to this appendix. | J15: N/A | K15: N/A
A18: Account | B18: Description | C18: Additions | D18: Years (new additions only) | E18: Depreciation Rate on New Additions | F18: Current Depreciation Expense1 | G18: Depreciation Expense per Appendix 2-BA Fixed Assets, Column J (l) | H18: Variance 2
C19: (d) | D19: (f) | E19: (g) = 1 / (f) | F19: (h)= Prior Full Year Depreciation + ((d)*0.5)/(f) | H19: (m) = (h) - (l)
A20: 1611 | B20: Computer Software (Formally known as Account 1925) | C20: ='App.2-BA_Fixed Asset Cont'!E341 -> 339325 | D20: 3 | E20: =IF(D20=0,0,1/D20) -> 0.3333333333 | F20: =IF(D20=0,'App.2-CF_DepExp_Yr5'!K20,+'App.2-CF_DepExp_Yr5'!K20+((C20*0.5)/D20)) -> 286310.2093 | G20: =-'App.2-BA_Fixed Asset Cont'!J341 -> 286492.83 | H20: =IF(ISERROR(+F20-G20), 0, +F20-G20) -> -182.6207407
A21: 1612 | B21: Land Rights (Formally known as Account 1906) | C21: ='App.2-BA_Fixed Asset Cont'!E342 -> 0 | D21: 50 | E21: 0.02 | F21: =IF(D21=0,'App.2-CF_DepExp_Yr5'!K21,+'App.2-CF_DepExp_Yr5'!K21+((C21*0.5)/D21)) -> 14575.08488 | G21: =-'App.2-BA_Fixed Asset Cont'!J342 -> 12699.01 | H21: =IF(ISERROR(+F21-G21), 0, +F21-G21) -> 1876.07488
A22: 1805 | B22: Land | C22: ='App.2-BA_Fixed Asset Cont'!E343 -> 0 | D22: 0 | E22: 0 | F22: =IF(D22=0,'App.2-CF_DepExp_Yr5'!K22,+'App.2-CF_DepExp_Yr5'!K22+((C22*0.5)/D22)) -> 0 | G22: =-'App.2-BA_Fixed Asset Cont'!J343 -> 0 | H22: 0
A23: 1808 | B23: Buildings | C23: ='App.2-BA_Fixed Asset Cont'!E344 -> 0 | D23: 0 | E23: 0 | F23: =IF(D23=0,'App.2-CF_DepExp_Yr5'!K23,+'App.2-CF_DepExp_Yr5'!K23+((C23*0.5)/D23)) -> 0 | G23: =-'App.2-BA_Fixed Asset Cont'!J344 -> 0 | H23: 0
A24: 1810 | B24: Leasehold Improvements | C24: ='App.2-BA_Fixed Asset Cont'!E345 -> 0 | D24: 25 | E24: 0.04 | F24: =IF(D24=0,'App.2-CF_DepExp_Yr5'!K24,+'App.2-CF_DepExp_Yr5'!K24+((C24*0.5)/D24)) -> 0 | G24: =-'App.2-BA_Fixed Asset Cont'!J345 -> 0 | H24: 0
A25: 1815 | B25: Transformer Station Equipment >50 kV | C25: ='App.2-BA_Fixed Asset Cont'!E346 -> 0 | D25: 0 | E25: 0 | F25: =IF(D25=0,'App.2-CF_DepExp_Yr5'!K25,+'App.2-CF_DepExp_Yr5'!K25+((C25*0.5)/D25)) -> 0 | G25: =-'App.2-BA_Fixed Asset Cont'!J346 -> 0 | H25: 0
A26: 1820 | B26: Distribution Station Equipment <50 kV | C26: ='App.2-BA_Fixed Asset Cont'!E347 -> 325114 | D26: 40 | E26: 0.025 | F26: =IF(D26=0,'App.2-CF_DepExp_Yr5'!K26,+'App.2-CF_DepExp_Yr5'!K26+((C26*0.5)/D26)) -> 252417.2947 | G26: =-'App.2-BA_Fixed Asset Cont'!J347 -> 255544.36 | H26: -3127.065309
A27: 1825 | B27: Storage Battery Equipment | C27: ='App.2-BA_Fixed Asset Cont'!E348 -> 0 | D27: 0 | E27: 0 | F27: =IF(D27=0,'App.2-CF_DepExp_Yr5'!K27,+'App.2-CF_DepExp_Yr5'!K27+((C27*0.5)/D27)) -> 0 | G27: =-'App.2-BA_Fixed Asset Cont'!J348 -> 0 | H27: 0
A28: 1830 | B28: Poles, Towers & Fixtures | C28: ='App.2-BA_Fixed Asset Cont'!E349 -> 2921679 | D28: 45 | E28: 0.02222222222 | F28: =IF(D28=0,'App.2-CF_DepExp_Yr5'!K28,+'App.2-CF_DepExp_Yr5'!K28+((C28*0.5)/D28)) -> 315557.335 | G28: =-'App.2-BA_Fixed Asset Cont'!J349 -> 299803.7722 | H28: 15753.56274
A29: 1835 | B29: Overhead Conductors & Devices | C29: ='App.2-BA_Fixed Asset Cont'!E350 -> 2266734 | D29: 60 | E29: 0.01666666667 | F29: =IF(D29=0,'App.2-CF_DepExp_Yr5'!K29,+'App.2-CF_DepExp_Yr5'!K29+((C29*0.5)/D29)) -> 271721.1296 | G29: =-'App.2-BA_Fixed Asset Cont'!J350 -> 263899.5967 | H29: 7821.532889
A30: 1840 | B30: Underground Conduit | C30: ='App.2-BA_Fixed Asset Cont'!E351 -> 221375 | D30: 40 | E30: 0.025 | F30: =IF(D30=0,'App.2-CF_DepExp_Yr5'!K30,+'App.2-CF_DepExp_Yr5'!K30+((C30*0.5)/D30)) -> 124458.2158 | G30: =-'App.2-BA_Fixed Asset Cont'!J351 -> 123123.9425 | H30: 1334.273324
A31: 1845 | B31: Underground Conductors & Devices | C31: ='App.2-BA_Fixed Asset Cont'!E352 -> 133681 | D31: 40 | E31: 0.025 | F31: =IF(D31=0,'App.2-CF_DepExp_Yr5'!K31,+'App.2-CF_DepExp_Yr5'!K31+((C31*0.5)/D31)) -> 276901.2655 | G31: =-'App.2-BA_Fixed Asset Cont'!J352 -> 274863.4575 | H31: 2037.808032
A32: 1850 | B32: Line Transformers | C32: ='App.2-BA_Fixed Asset Cont'!E353 -> 746731 | D32: 40 | E32: 0.025 | F32: =IF(D32=0,'App.2-CF_DepExp_Yr5'!K32,+'App.2-CF_DepExp_Yr5'!K32+((C32*0.5)/D32)) -> 233270.8533 | G32: =-'App.2-BA_Fixed Asset Cont'!J353 -> 230095.9325 | H32: 3174.92075
A33: 1855 | B33: Services (Overhead & Underground) | C33: ='App.2-BA_Fixed Asset Cont'!E354 -> 505121 | D33: 50 | E33: 0.02 | F33: =IF(D33=0,'App.2-CF_DepExp_Yr5'!K33,+'App.2-CF_DepExp_Yr5'!K33+((C33*0.5)/D33)) -> 120180.9701 | G33: =-'App.2-BA_Fixed Asset Cont'!J354 -> 125788.2258 | H33: =IF(ISERROR(+F33-G33), 0, +F33-G33) -> -5607.255716
A34: 1860 | B34: Meters | C34: ='App.2-BA_Fixed Asset Cont'!E355 -> 250632 | D34: 15 | E34: 0.06666666667 | F34: =IF(D34=0,'App.2-CF_DepExp_Yr5'!K34,+'App.2-CF_DepExp_Yr5'!K34+((C34*0.5)/D34)) -> 202077.8946 | G34: =-'App.2-BA_Fixed Asset Cont'!J355 -> 202133.5833 | H34: -55.68877551
A35: 1860 | B35: Meters (Smart Meters) | C35: ='App.2-BA_Fixed Asset Cont'!E356 -> 0 | D35: 25 | E35: 0.04 | F35: =IF(D35=0,'App.2-CF_DepExp_Yr5'!K35,+'App.2-CF_DepExp_Yr5'!K35+((C35*0.5)/D35)) -> -0.3684210526 | G35: =-'App.2-BA_Fixed Asset Cont'!J356 -> 0 | H35: -0.3684210526
A36: 1905 | B36: Land | C36: ='App.2-BA_Fixed Asset Cont'!E357 -> 0 | D36: 0 | E36: 0 | F36: =IF(D36=0,'App.2-CF_DepExp_Yr5'!K36,+'App.2-CF_DepExp_Yr5'!K36+((C36*0.5)/D36)) -> 0 | G36: =-'App.2-BA_Fixed Asset Cont'!J357 -> 0 | H36: 0
A37: 1908 | B37: Buildings & Fixtures | C37: ='App.2-BA_Fixed Asset Cont'!E358 -> 15000 | D37: 50 | E37: 0.02 | F37: =IF(D37=0,'App.2-CF_DepExp_Yr5'!K37,+'App.2-CF_DepExp_Yr5'!K37+((C37*0.5)/D37)) -> 268310.4049 | G37: =-'App.2-BA_Fixed Asset Cont'!J358 -> 269587.2 | H37: -1276.795087
A38: 1910 | B38: Leasehold Improvements | C38: ='App.2-BA_Fixed Asset Cont'!E359 -> 0 | D38: 0 | E38: 0 | F38: =IF(D38=0,'App.2-CF_DepExp_Yr5'!K38,+'App.2-CF_DepExp_Yr5'!K38+((C38*0.5)/D38)) -> 0 | G38: =-'App.2-BA_Fixed Asset Cont'!J359 -> 0 | H38: 0
A39: 1915 | B39: Office Furniture & Equipment (10 years) | C39: ='App.2-BA_Fixed Asset Cont'!E360 -> 15000 | D39: 10 | E39: 0.1 | F39: =IF(D39=0,'App.2-CF_DepExp_Yr5'!K39,+'App.2-CF_DepExp_Yr5'!K39+((C39*0.5)/D39)) -> 31969.3 | G39: =-'App.2-BA_Fixed Asset Cont'!J360 -> 29530.87 | H39: 2438.43
A40: 1915 | B40: Office Furniture & Equipment (5 years) | C40: ='App.2-BA_Fixed Asset Cont'!E361 -> 0 | D40: 0 | E40: 0 | F40: =IF(D40=0,'App.2-CF_DepExp_Yr5'!K40,+'App.2-CF_DepExp_Yr5'!K40+((C40*0.5)/D40)) -> 0 | G40: =-'App.2-BA_Fixed Asset Cont'!J361 -> 0 | H40: 0
A41: 1920 | B41: Computer Equipment - Hardware | C41: ='App.2-BA_Fixed Asset Cont'!E362 -> 165000 | D41: 5 | E41: 0.2 | F41: =IF(D41=0,'App.2-CF_DepExp_Yr5'!K41,+'App.2-CF_DepExp_Yr5'!K41+((C41*0.5)/D41)) -> 140122.5288 | G41: =-'App.2-BA_Fixed Asset Cont'!J362 -> 140109.13 | H41: 13.39884211
A42: 1920 | B42: Computer Equip.-Hardware(Post Mar. 22/04) | C42: ='App.2-BA_Fixed Asset Cont'!E363 -> 0 | D42: 0 | E42: 0 | F42: =IF(D42=0,'App.2-CF_DepExp_Yr5'!K42,+'App.2-CF_DepExp_Yr5'!K42+((C42*0.5)/D42)) -> 0 | G42: =-'App.2-BA_Fixed Asset Cont'!J363 -> 0 | H42: 0
A43: 1920 | B43: Computer Equip.-Hardware(Post Mar. 19/07) | C43: ='App.2-BA_Fixed Asset Cont'!E364 -> 0 | D43: 0 | E43: 0 | F43: =IF(D43=0,'App.2-CF_DepExp_Yr5'!K43,+'App.2-CF_DepExp_Yr5'!K43+((C43*0.5)/D43)) -> 0 | G43: =-'App.2-BA_Fixed Asset Cont'!J364 -> 0 | H43: 0
A44: 1930 | B44: Transportation Equipment | C44: ='App.2-BA_Fixed Asset Cont'!E365 -> 505500 | D44: 5 | E44: 0.2 | F44: =IF(D44=0,'App.2-CF_DepExp_Yr5'!K44,+'App.2-CF_DepExp_Yr5'!K44+((C44*0.5)/D44)) -> 174105.1209 | G44: =-'App.2-BA_Fixed Asset Cont'!J365 -> 173934.7 | H44: 170.4208627
A45: 1935 | B45: Stores Equipment | C45: ='App.2-BA_Fixed Asset Cont'!E366 -> 5250 | D45: 10 | E45: 0.1 | F45: =IF(D45=0,'App.2-CF_DepExp_Yr5'!K45,+'App.2-CF_DepExp_Yr5'!K45+((C45*0.5)/D45)) -> 15161.38777 | G45: =-'App.2-BA_Fixed Asset Cont'!J366 -> 15225.25 | H45: -63.86222672
A46: 1940 | B46: Tools, Shop & Garage Equipment | C46: ='App.2-BA_Fixed Asset Cont'!E367 -> 39900 | D46: 10 | E46: 0.1 | F46: =IF(D46=0,'App.2-CF_DepExp_Yr5'!K46,+'App.2-CF_DepExp_Yr5'!K46+((C46*0.5)/D46)) -> 49086.21082 | G46: =-'App.2-BA_Fixed Asset Cont'!J367 -> 49159 | H46: -72.78917647
A47: 1945 | B47: Measurement & Testing Equipment | C47: ='App.2-BA_Fixed Asset Cont'!E368 -> 69760 | D47: 10 | E47: 0.1 | F47: =IF(D47=0,'App.2-CF_DepExp_Yr5'!K47,+'App.2-CF_DepExp_Yr5'!K47+((C47*0.5)/D47)) -> 8917.651932 | G47: =-'App.2-BA_Fixed Asset Cont'!J368 -> 9149.35 | H47: -231.6980682
A48: 1950 | B48: Power Operated Equipment | C48: ='App.2-BA_Fixed Asset Cont'!E369 -> 0 | D48: 0 | E48: 0 | F48: =IF(D48=0,'App.2-CF_DepExp_Yr5'!K48,+'App.2-CF_DepExp_Yr5'!K48+((C48*0.5)/D48)) -> 0 | G48: =-'App.2-BA_Fixed Asset Cont'!J369 -> 0 | H48: 0
A49: 1955 | B49: Communications Equipment | C49: ='App.2-BA_Fixed Asset Cont'!E370 -> 0 | D49: 0 | E49: 0 | F49: =IF(D49=0,'App.2-CF_DepExp_Yr5'!K49,+'App.2-CF_DepExp_Yr5'!K49+((C49*0.5)/D49)) -> 0 | G49: =-'App.2-BA_Fixed Asset Cont'!J370 -> 0 | H49: 0
A50: 1955 | B50: Communication Equipment (Smart Meters) | C50: ='App.2-BA_Fixed Asset Cont'!E371 -> 0 | D50: 0 | E50: 0 | F50: =IF(D50=0,'App.2-CF_DepExp_Yr5'!K50,+'App.2-CF_DepExp_Yr5'!K50+((C50*0.5)/D50)) -> 0 | G50: =-'App.2-BA_Fixed Asset Cont'!J371 -> 0 | H50: 0
A51: 1960 | B51: Miscellaneous Equipment | C51: ='App.2-BA_Fixed Asset Cont'!E372 -> 0 | D51: 0 | E51: 0 | F51: =IF(D51=0,'App.2-CF_DepExp_Yr5'!K51,+'App.2-CF_DepExp_Yr5'!K51+((C51*0.5)/D51)) -> 0 | G51: =-'App.2-BA_Fixed Asset Cont'!J372 -> 0 | H51: 0
A52: 1970 | B52: Load Management Controls Customer Premises | C52: ='App.2-BA_Fixed Asset Cont'!E373 -> 0 | E52: 0 | F52: =IF(D52=0,'App.2-CF_DepExp_Yr5'!K52,+'App.2-CF_DepExp_Yr5'!K52+((C52*0.5)/D52)) -> 0 | G52: =-'App.2-BA_Fixed Asset Cont'!J373 -> 0 | H52: 0
A53: 1975 | B53: Load Management Controls Utility Premises | C53: ='App.2-BA_Fixed Asset Cont'!E374 -> 0 | D53: 0 | E53: 0 | F53: =IF(D53=0,'App.2-CF_DepExp_Yr5'!K53,+'App.2-CF_DepExp_Yr5'!K53+((C53*0.5)/D53)) -> 0 | G53: =-'App.2-BA_Fixed Asset Cont'!J374 -> 0 | H53: 0
A54: 1980 | B54: System Supervisor Equipment | C54: ='App.2-BA_Fixed Asset Cont'!E375 -> 32400 | D54: 15 | E54: 0.06666666667 | F54: =IF(D54=0,'App.2-CF_DepExp_Yr5'!K54,+'App.2-CF_DepExp_Yr5'!K54+((C54*0.5)/D54)) -> 159165.1172 | G54: =-'App.2-BA_Fixed Asset Cont'!J375 -> 159163.41 | H54: 1.707238095
A55: 1985 | B55: Miscellaneous Fixed Assets | C55: ='App.2-BA_Fixed Asset Cont'!E376 -> 0 | D55: 0 | E55: 0 | F55: =IF(D55=0,'App.2-CF_DepExp_Yr5'!K55,+'App.2-CF_DepExp_Yr5'!K55+((C55*0.5)/D55)) -> 0 | G55: =-'App.2-BA_Fixed Asset Cont'!J376 -> 0 | H55: 0
A56: 1990 | B56: Other Tangible Property | C56: ='App.2-BA_Fixed Asset Cont'!E377 -> 0 | E56: 0 | F56: =IF(D56=0,'App.2-CF_DepExp_Yr5'!K56,+'App.2-CF_DepExp_Yr5'!K56+((C56*0.5)/D56)) -> 0 | G56: =-'App.2-BA_Fixed Asset Cont'!J377 -> 0 | H56: 0
A57: 1995 | B57: Contributions & Grants | C57: ='App.2-BA_Fixed Asset Cont'!E378 -> -1869254 | D57: 35 | E57: 0.02857142857 | F57: =IF(D57=0,'App.2-CF_DepExp_Yr5'!K57,+'App.2-CF_DepExp_Yr5'!K57+((C57*0.5)/D57)) -> -478580.8614 | G57: =-'App.2-BA_Fixed Asset Cont'!J378 -> -522115.6897 | H57: 43534.82825
B58: Total | C58: =SUM(C20:C57) -> 6688948 | F58: =SUM(F20:F57) -> 2465726.745 | G58: =SUM(G20:G57) -> 2398187.931 | H58: =SUM(H20:H57) -> 67538.81429
B59: Depreciation exp. adj. from gain or loss on the retirement of assets (pool of like assets)
B60: Total Depreciation Expense | F60: =SUM(F58:F59) -> 2465726.745
A61: Notes:
A62: 1 | B62: Board policy of the "half-year" rule - the applicant must ensure that additions in the year attract a half-year depreciation expense in the first year. Deviations from this standard practice must be supported in the application.
A63: 2 | B63: The applicant must provide an explanation of material variances in evidence.
A66: General: | B66: Applicants must provide a breakdown of depreciation and amortization expense in the above format for all relevant accounts. Asset Retirement Obligations (AROs), depreciation and accretion expense should be disclosed separately consistent with the Notes of historical Audited Financial Statements.

Sheet App.2-CH_DepExp
K1: File Number: | L1: =EBNUMBER -> EB-2016-0085
K2: Exhibit:
K3: Tab:
K4: Schedule:
K5: Page:
K7: Date:
A9: Appendix 2-CH1
A10: Depreciation and Amortization Expense
A11: Revised CGAAP or MIFRS
A13: Assumes the applicant changed capitalization and depreciation policies and reflected these changes in a prior rebasing application
D15: Accounting Standard
D16: Year
A18: Account | B18: Description | C18: Opening Regulatory Gross PP&E as at Jan. 1 | D18: Less Fully Depreciated | E18: Net for Depreciation | F18: Additions | G18: Total for Depreciation 2 | H18: Years | I18: Depreciation Rate | J18: Current Year Depreciation Expense | K18: Depreciation Expense per Appendix 2-BA Fixed Assets, Column J (l) | L18: Variance 3
C19: (a) | D19: (b) | E19: (c) | F19: (d) | G19: (e) = (c) + ½ x (d) | H19: (f) | I19: (g) = 1 / (f) | J19: (h) = (e) / (f) | L19: (m) = (h) - (l)
A20: 1611 | B20: Computer Software (Formally known as Account 1925) | E20: =C20-D20 -> 0 | G20: =E20+0.5*F20 -> 0 | I20: =IF(H20=0,0,1/H20) -> 0 | J20: =IF(H20=0,0,G20/H20) -> 0 | L20: =IF(ISERROR(+J20-K20), 0, +J20-K20) -> 0
A21: 1612 | B21: Land Rights (Formally known as Account 1906) | E21: =C21-D21 -> 0 | G21: =E21+0.5*F21 -> 0 | I21: 0 | J21: 0 | L21: 0
A22: 1805 | B22: Land | E22: 0 | G22: 0 | I22: 0 | J22: 0 | L22: 0
A23: 1808 | B23: Buildings | E23: 0 | G23: 0 | I23: 0 | J23: 0 | L23: 0
A24: 1810 | B24: Leasehold Improvements | E24: 0 | G24: 0 | I24: 0 | J24: 0 | L24: 0
A25: 1815 | B25: Transformer Station Equipment >50 kV | E25: 0 | G25: 0 | I25: 0 | J25: 0 | L25: 0
A26: 1820 | B26: Distribution Station Equipment <50 kV | E26: 0 | G26: 0 | I26: 0 | J26: 0 | L26: 0
A27: 1825 | B27: Storage Battery Equipment | E27: 0 | G27: 0 | I27: 0 | J27: 0 | L27: 0
A28: 1830 | B28: Poles, Towers & Fixtures | E28: 0 | G28: 0 | I28: 0 | J28: 0 | L28: 0
A29: 1835 | B29: Overhead Conductors & Devices | E29: 0 | G29: 0 | I29: 0 | J29: 0 | L29: 0
A30: 1840 | B30: Underground Conduit | E30: 0 | G30: 0 | I30: 0 | J30: 0 | L30: 0
A31: 1845 | B31: Underground Conductors & Devices | E31: 0 | G31: 0 | I31: 0 | J31: 0 | L31: 0
A32: 1850 | B32: Line Transformers | E32: 0 | G32: 0 | I32: 0 | J32: 0 | L32: 0
A33: 1855 | B33: Services (Overhead & Underground) | E33: 0 | G33: 0 | I33: 0 | J33: 0 | L33: 0
A34: 1860 | B34: Meters | E34: 0 | G34: 0 | I34: 0 | J34: 0 | L34: 0
A35: 1860 | B35: Meters (Smart Meters) | E35: 0 | G35: 0 | I35: 0 | J35: 0 | L35: 0
A36: 1905 | B36: Land | E36: 0 | G36: 0 | I36: 0 | J36: 0 | L36: 0
A37: 1908 | B37: Buildings & Fixtures | E37: 0 | G37: 0 | I37: 0 | J37: 0 | L37: 0
A38: 1910 | B38: Leasehold Improvements | E38: 0 | G38: 0 | I38: 0 | J38: 0 | L38: 0
A39: 1915 | B39: Office Furniture & Equipment (10 years) | E39: 0 | G39: 0 | I39: 0 | J39: 0 | L39: 0
A40: 1915 | B40: Office Furniture & Equipment (5 years) | E40: 0 | G40: 0 | I40: 0 | J40: 0 | L40: 0
A41: 1920 | B41: Computer Equipment - Hardware | E41: 0 | G41: 0 | I41: 0 | J41: 0 | L41: 0
A42: 1920 | B42: Computer Equip.-Hardware(Post Mar. 22/04) | E42: 0 | G42: 0 | I42: 0 | J42: 0 | L42: 0
A43: 1920 | B43: Computer Equip.-Hardware(Post Mar. 19/07) | E43: 0 | G43: 0 | I43: 0 | J43: 0 | L43: 0
A44: 1930 | B44: Transportation Equipment | E44: 0 | G44: 0 | I44: 0 | J44: 0 | L44: 0
A45: 1935 | B45: Stores Equipment | E45: 0 | G45: 0 | I45: 0 | J45: 0 | L45: 0
A46: 1940 | B46: Tools, Shop & Garage Equipment | E46: 0 | G46: 0 | I46: 0 | J46: 0 | L46: 0
A47: 1945 | B47: Measurement & Testing Equipment | E47: 0 | G47: 0 | I47: 0 | J47: 0 | L47: 0
A48: 1950 | B48: Power Operated Equipment | E48: 0 | G48: 0 | I48: 0 | J48: 0 | L48: 0
A49: 1955 | B49: Communications Equipment | E49: 0 | G49: 0 | I49: 0 | J49: 0 | L49: 0
A50: 1955 | B50: Communication Equipment (Smart Meters) | E50: 0 | G50: 0 | I50: 0 | J50: 0 | L50: 0
A51: 1960 | B51: Miscellaneous Equipment | E51: 0 | G51: 0 | I51: 0 | J51: 0 | L51: 0
A52: 1970 | B52: Load Management Controls - Customer Premises | E52: 0 | G52: 0 | I52: 0 | J52: 0 | L52: 0
A53: 1975 | B53: Load Management Controls Utility Premises | E53: 0 | G53: 0 | I53: 0 | J53: 0 | L53: 0
A54: 1980 | B54: System Supervisor Equipment | E54: 0 | G54: 0 | I54: 0 | J54: 0 | L54: 0
A55: 1985 | B55: Miscellaneous Fixed Assets | E55: 0 | G55: 0 | I55: 0 | J55: 0 | L55: 0
A56: 1990 | B56: Other Tangible Property | E56: 0 | G56: 0 | I56: 0 | J56: 0 | L56: 0
A57: 1995 | B57: Contributions & Grants | E57: 0 | G57: 0 | I57: 0 | J57: 0 | L57: 0
B58: Total | C58: =SUM(C20:C57) -> 0 | D58: =SUM(D20:D57) -> 0 | E58: =SUM(E20:E57) -> 0 | F58: =SUM(F20:F57) -> 0 | G58: =SUM(G20:G57) -> 0 | J58: =SUM(J20:J57) -> 0 | K58: =SUM(K20:K57) -> 0 | L58: =SUM(L20:L57) -> 0
B59: Depreciation exp. adj. from gain or loss on the retirement of assets (pool of like assets) (under MIFRS)
B60: Total Depreciation Expense | J60: =SUM(J58:J59) -> 0
A62: Notes:
A64: 1 | B64: The appendix should be submitted for the Test Year, Bridge Year and all relevant historical years. At a minimum , the applicant must provide data for the earlier of: 1) all historical years back to its last rebasing; or 2) at least three years of historical actuals, in addition to Bridge Year and Test Year forecasts.
A66: 2 | B66: Board policy of the "half-year" rule - the applicant must ensure that additions in the year attract a half-year depreciation expense in the first year. Deviations from this standard practice must be supported in the application.
A67: 3 | B67: The applicant must provide an explanation of material variances in evidence.
A69: General | B69: Applicants must provide a breakdown of depreciation and amortization expense in the above format for all relevant accounts. Asset Retirement Obligations (AROs), depreciation and accretion expense should be disclosed separately consistent with the Notes of historical Audited Financial Statements.

Sheet App.2-D_Overhead
F1: File Number: | G1: =EBNUMBER -> EB-2016-0085
F2: Exhibit: | G2: 4
F3: Tab:
F4: Schedule:
F5: Page:
F7: Date: | G7: Novemeber 28, 2016
A9: Appendix 2-D
A10: Overhead Expense
A12: Applicants are to provide a breakdown of OM&A before capitalization in the below table. OM&A before capitalization may be broken down by cost center, program, drivers or another format best suited to focus on capitalized vs. uncapitalized OM&A.
A14: OM&A Before Capitalization
B15: =F15-4 -> 2013 | C15: =F15-3 -> 2014 | D15: =F15-2 -> 2015 | E15: =F15-1 -> 2016 | F15: =TestYear -> 2017
B16: Historical Year | C16: Historical Year | D16: Historical Year | E16: Bridge Year | F16: Test Year
A27: Total OM&A Before Capitalization (B) | B27: =SUM(B17:B26) -> 0 | C27: =SUM(C17:C26) -> 0 | D27: 0 | E27: 0 | F27: 0
A29: Applicants are to provide a breakdown of capitalized OM&A in the below table. Capitalized OM&A may be broken down using the categories listed in the table below if possible. Otherwise, applicants are to provide its own break down of capitalized OM&A.
A31: Capitalized OM&A | G31: Directly | H31: Explanation for Change in Overhead Capitalized
B32: =F32-4 -> 2013 | C32: =F32-3 -> 2014 | D32: =F32-2 -> 2015 | E32: =F32-1 -> 2016 | F32: =TestYear -> 2017 | G32: Attributable?
B33: Historical Year | C33: Historical Year | D33: Historical Year | E33: Bridge Year | F33: Test Year | G33: (Yes/No)
A34: employee benefits
A35: costs of site preparation
A36: initial delivery and handling costs
A37: costs of testing whether the asset is functioning properly
A38: professional fees
A40: costs of opening a new facility
A41: costs of introducing a new product or service (including costs of advertising and promotional activities)
A42: costs of conducting business in a new location or with a new class of customer (including costs of staff training)
A43: administration and other general overhead costs
A45: Insert description of additional item(s) and new rows if needed
A47: Total Capitalized OM&A (A) | B47: =SUM(B34:B46) -> 0 | C47: =SUM(C34:C46) -> 0 | D47: =SUM(D34:D46) -> 0 | E47: =SUM(E34:E46) -> 0 | F47: =SUM(F34:F46) -> 0
A49: % of Capitalized OM&A (=A/B) | B49: =IF(ISERROR(B47/B27),"0%",B47/B27) -> 0% | C49: =IF(ISERROR(C47/C27),"0%",C47/C27) -> 0% | D49: 0% | E49: 0% | F49: 0%

Sheet App.2-EA_Account 1575 (2015)
H1: File Number: | I1: =EBNUMBER -> EB-2016-0085
H2: Exhibit:
H3: Tab:
H4: Schedule:
H5: Page:
H7: Date:
A9: Appendix 2-EA
A10: Account 1575 - IFRS-CGAAP Transitional PP&E Amounts
A11: 2015 Adopters of IFRS for Financial Reporting Purposes
A13: For applicants that adopted IFRS on January 1, 2015 for financial reporting purposes
B17: =RebaseYear &" Rebasing Year" -> 2013 Rebasing Year | C17: =TestYear-3 -> 2014 | D17: =TestYear-2 -> 2015 | E17: =CONCATENATE(TestYear-1," Bridge Year") -> 2016 Bridge Year | F17: =CONCATENATE(TestYear," Rebasing Year") -> 2017 Rebasing Year
A18: Reporting Basis | B18: CGAAP | C18: CGAAP | D18: CGAAP | E18: MIFRS | F18: MIFRS
B19: Forecast | C19: Actual | D19: Actual | E19: Forecast | F19: Forecast
D20: $ | E20: $
A21: PP&E Values under CGAAP
A22: Opening net PP&E - Note 1 | D22: =+C25 -> 0 | E22: =+D25 -> 0
A23: Net Additions - Note 4
A24: Net Depreciation (amounts should be negative) - Note 4
A25: Closing net PP&E (1) | C25: =C22+C23+C24 -> 0 | D25: =SUM(D22:D24) -> 0 | E25: =SUM(E22:E24) -> 0
A27: PP&E Values under MIFRS (Starts from 2014, the transition year)
A28: Opening net PP&E - Note 1 | D28: =+C31 -> 0 | E28: =+D31 -> 0
A29: Net Additions - Note 4
A30: Net Depreciation (amounts should be negative) - Note 4
A31: Closing net PP&E (2) | C31: =SUM(C28:C30) -> 0 | D31: =SUM(D28:D30) -> 0 | E31: =SUM(E28:E30) -> 0
A33: Difference in Closing net PP&E, former CGAAP vs. revised CGAAP | C33: =C25-C31 -> 0 | D33: =D25-D31 -> 0 | E33: =E25-E31 -> 0
A36: Effect on Deferral and Variance Account Rate Riders
A37: Closing balance in Account 1576 | F37: =IF(ISERROR(E33), 0, E33) -> 0 | H37: WACC
A38: Return on Rate Base Associated with Account 1576 balance at WACC - Note 2 | F38: =E33*I37*I38 -> 0 | G38: # of years of rate rider disposition period
A39: Amount included in Deferral and Variance Account Rate Rider Calculation | F39: =F37+F38 -> 0
A41: Notes:
A42: 1 For an applicant that adopted IFRS on January 1, 2015, the PP&E values as of January 1, 2014 under both CGAAP and MIFRS should be the same.
A43: 2 Return on rate base associated with deferred balance is calculated as:
A44: the deferral account closing balance as of 2016 x WACC X # of years of rate rider disposition period
A45: * Please note that the calculation should be adjusted once WACC is updated and finalized in the rate application.
A46: 3 The PP&E deferral account is cleared by including the total balance in the deferral and variance account rate rider calculation.
A47: 4 Net additions are additions net of disposals; Net depreciation is additions to depreciation net of disposals.

Sheet App.2-EB_Account 1576 (2012)
J1: File Number: | K1: =EBNUMBER -> EB-2016-0085
J2: Exhibit:
J3: Tab:
J4: Schedule:
J5: Page:
J7: Date:
A9: Appendix 2-EB
A10: Account 1576 - Accounting Changes under CGAAP
A11: 2012 Changes in Accounting Policies under CGAAP
A13: For applicants with a balance in Account 1576 and made capitalization and depreciation expense accounting policy changes under CGAAP effective January 1, 2012
B17: 2011 Rebasing Year | C17: 2012 | D17: 2013 | E17: 2014 | F17: 2015 | G17: 2016 | H17: 2017 Rebasing Year
A18: Reporting Basis | B18: CGAAP | C18: CGAAP | D18: CGAAP | E18: CGAAP | F18: MIFRS - Note 5 | G18: MIFRS | H18: MIFRS
B19: Forecast | C19: Actual | D19: Actual | E19: Actual | F19: Actual | G19: Forecast | H19: Forecast
C20: $ | D20: $ | E20: $ | G20: $
A21: PP&E Values under former CGAAP
A22: Opening net PP&E - Note 1 | D22: =+C25 -> 0 | E22: =+D25 -> 0 | F22: =+D25 -> 0 | G22: =+E25 -> 0
A23: Net Additions - Note 4
A24: Net Depreciation (amounts should be negative) - Note 4
A25: Closing net PP&E (1) | C25: =C22+C23+C24 -> 0 | D25: =D22+D23+D24 -> 0 | E25: =E22+E23+E24 -> 0 | F25: =F22+F23+F24 -> 0 | G25: =G22+G23+G24 -> 0
A27: PP&E Values under revised CGAAP (Starts from 2012)
A28: Opening net PP&E - Note 1 | D28: =+C31 -> 0 | E28: =+D31 -> 0 | F28: =+D31 -> 0 | G28: =+E31 -> 0
A29: Net Additions - Note 4
A30: Net Depreciation (amounts should be negative) - Note 4
A31: Closing net PP&E (2) | C31: =SUM(C28:C30) -> 0 | D31: =SUM(D28:D30) -> 0 | E31: =SUM(E28:E30) -> 0 | F31: =SUM(F28:F30) -> 0 | G31: =SUM(G28:G30) -> 0
A33: Difference in Closing net PP&E, former CGAAP vs. revised CGAAP | C33: =C25-C31 -> 0 | D33: =D25-D31 -> 0 | E33: =E25-E31 -> 0 | F33: =F25-F31 -> 0 | G33: =G25-G31 -> 0
A36: Effect on Deferral and Variance Account Rate Riders
A37: Closing balance in Account 1576 | H37: =IF(ISERROR(G33), 0, G33) -> 0 | J37: WACC
A38: Return on Rate Base Associated with Account 1576 balance at WACC - Note 2 | H38: =G33*K37*K38 -> 0 | I38: # of years of rate rider disposition period
A39: Amount included in Deferral and Variance Account Rate Rider Calculation | H39: =H37+H38 -> 0
A41: Notes:
A42: 1 For an applicant that made the capitalization and depreciation expense accounting policy changes on January 1, 2012, the PP&E values as of January 1, 2012 under both former CGAAP and revised CGAAP should be the same.
A43: 2 Return on rate base associated with Account 1576 balance is calculated as:
A44: the variance account ending balance as of 2016 x WACC X # of years of rate rider disposition period
A45: * Please note that the calculation should be adjusted once WACC is updated and finalized in the rate application.
A46: 3 Account 1576 is cleared by including the total balance in the deferral and variance account rate rider calculation.
A47: 4 Net additions are additions net of disposals; Net depreciation is additions to depreciation net of disposals.
A48: 5 Differences due to the adoption of MIFRS are to be shown separately in Account 1575 in Appendix 2-EA as Accounts 1575 and 1576 cannot be used interchangably.

Sheet App.2-EC_Account 1576 (2013)
I1: File Number: | J1: =EBNUMBER -> EB-2016-0085
I2: Exhibit:
I3: Tab:
I4: Schedule:
I5: Page:
I7: Date:
A9: Appendix 2-EC
A10: Account 1576 - Accounting Changes under CGAAP
A11: 2013 Changes in Accounting Policies under CGAAP
A13: For applicants with a balance in Account 1576 and made capitalization and depreciation expense accounting policy changes under CGAAP effective January 1, 2013
B17: 2012 Rebasing Year | C17: 2013 | D17: 2014 | E17: 2015 | F17: 2016 | G17: 2017 Rebasing Year
A18: Reporting Basis | B18: CGAAP | C18: CGAAP | D18: CGAAP | E18: MIFRS - Note 5 | F18: MIFRS | G18: MIFRS
B19: Actual | C19: Actual | D19: Actual | E19: Actual | F19: Forecast | G19: Forecast
C20: $ | D20: $ | F20: $
A21: PP&E Values under former CGAAP
A22: Opening net PP&E - Note 1 | D22: =+C25 -> 0 | E22: =+D25 -> 0 | F22: =+D25 -> 0
A23: Net Additions - Note 4
A24: Net Depreciation (amounts should be negative) - Note 4
A25: Closing net PP&E (1) | C25: =C22+C23+C24 -> 0 | D25: =D22+D23+D24 -> 0 | E25: =E22+E23+E24 -> 0 | F25: =F22+F23+F24 -> 0
A27: PP&E Values under revised CGAAP (Starts from 2012)
A28: Opening net PP&E - Note 1 | D28: =+C31 -> 0 | E28: =+D31 -> 0 | F28: =+D31 -> 0
A29: Net Additions - Note 4
A30: Net Depreciation (amounts should be negative) - Note 4
A31: Closing net PP&E (2) | C31: =SUM(C28:C30) -> 0 | D31: =SUM(D28:D30) -> 0 | E31: =SUM(E28:E30) -> 0 | F31: =SUM(F28:F30) -> 0
A33: Difference in Closing net PP&E, former CGAAP vs. revised CGAAP | C33: =C25-C31 -> 0 | D33: =D25-D31 -> 0 | E33: =E25-E31 -> 0 | F33: =F25-F31 -> 0
A36: Effect on Deferral and Variance Account Rate Riders
A37: Closing balance in Account 1576 | G37: =IF(ISERROR(F33), 0, F33) -> 0 | I37: WACC
A38: Return on Rate Base Associated with Account 1576 balance at WACC - Note 2 | G38: =F33*J37*J38 -> 0 | H38: # of years of rate rider disposition period
A39: Amount included in Deferral and Variance Account Rate Rider Calculation | G39: =G37+G38 -> 0
A41: Notes:
A42: 1 For an applicant that made the capitalization and depreciation expense accounting policy changes on January 1, 2013, the PP&E values as of January 1, 2013 under both former CGAAP and revised CGAAP should be the same.
A43: 2 Return on rate base associated with Account 1576 balance is calculated as:
A44: the variance account ending balance as of 2016 x WACC X # of years of rate rider disposition period
A45: * Please note that the calculation should be adjusted once WACC is updated and finalized in the rate application.
A46: 3 Account 1576 is cleared by including the total balance in the deferral and variance account rate rider calculation.
A47: 4 Net additions are additions net of disposals; Net depreciation is additions to depreciation net of disposals.
A48: 5 Differences due to the adoption of MIFRS are to be shown separately in Account 1575 in Appendix 2-EA as Accounts 1575 and 1576 cannot be used interchangably.

Sheet App.2-FA Proposed REG Invest.
J1: File Number: | K1: =EBNUMBER -> EB-2016-0085
J2: Exhibit:
J3: Tab:
J4: Schedule:
J5: Page:
J7: Date:
A9: Appendix 2-FA
A10: Renewable Generation Connection Investment Summary (past investments or over the future rate setting period)
A12: Enter the details of the Renewable Generation Connection projects as described in the appropriate section of the Filing Requirements.
A13: All costs entered on this page will be transferred to the appropriate cells in the appendices that follow.
A14: For Part A, Renewable Enabling Improvements (REI), these amounts will be transferred to Appendix 2 - FB
A15: For Part B, Expansions, these amounts will be transferred to Appendix 2 - FC
A17: If there are more than five projects proposed to be in-service in a certain year, please amend the tables below and ensure that the formulae for the Total Amounts in any given rate year are updated.
A18: Based on the current methodology and allocation, amounts allocated represent 6% for REI Connection Investments and 17% for Expansion Investments. (EB-2009-0349, 6-10-2010, p. 15, note 9)
A20: There are two scenarios described below. Separate sets of spreadsheets (2-FA, 2-FB, 2-FC) should be submited for each scenario as required.
A21: Scenario 1: Past Investments with No Recovery. The distributor has made investments in the past (during the IRM Years), but has not received approval for these projects and therefore did not receive
A22: revenue from the IESO under Regulation 330/09 and did not receive ratepayer revenue for the direct benefit portion of the investment.
A23: The WCA percentage, debt percentages, interest rates, kWh, tax rates, amortization period, CCA Class and percentage should correspond to the distributor's last Cost of Service approval.
A24: The Direct Benefit portion of the calculated Revenue Requirement for each year should be summed and can be applied for recovery from the distributor's ratepayers through a rate rider.
A25: The Provincial Recovery portion of the calculated Revenue Requirement for each year should be summed and can be applied for recovery from the IESO through a separate order.
A27: Scenario 2: Investments in the Test Year and Beyond. Distributor plans to make investments in 2017 and/or beyond. These investments should be added to 2-FA in the appropriate year.
A28: The WCA percentage, debt percentages, interest rates, kWh, tax rates, amortization period, CCA Class and percentage should correspond to the distributor's current application.
A30: Part A | G30: Test Year
A31: REI Investments (Direct Benefit at 6%) | C31: =D31-1 -> 2013 | D31: =E31-1 -> 2014 | E31: =F31-1 -> 2015 | F31: =G31-1 -> 2016 | G31: =TestYear -> 2017 | H31: =G31+1 -> 2018 | I31: =H31+1 -> 2019 | J31: =I31+1 -> 2020 | K31: =J31+1 -> 2021
A32: Project 1
A33: Name: REI Connection Project
A34: Capital Costs | C34: 0 | D34: 0 | E34: 0 | F34: 0 | G34: 0 | H34: 0 | I34: 0 | J34: 0 | K34: 0
A35: OM&A (Start-Up) | C35: 0 | D35: 0 | E35: 0 | F35: 0 | G35: 0 | H35: 0 | I35: 0 | J35: 0 | K35: 0
A36: OM&A (Ongoing) | C36: 0 | D36: 0 | E36: 0 | F36: 0 | G36: 0 | H36: 0 | I36: 0 | J36: 0 | K36: 0
A38: Project 2
A39: Name: REI Connection Project
A40: Capital Costs | C40: 0 | D40: 0 | E40: 0 | F40: 0 | G40: 0 | H40: 0 | I40: 0 | J40: 0 | K40: 0
A41: OM&A (Start-Up) | C41: 0 | D41: 0 | E41: 0 | F41: 0 | G41: 0 | H41: 0 | I41: 0 | J41: 0 | K41: 0
A42: OM&A (Ongoing) | C42: 0 | D42: 0 | E42: 0 | F42: 0 | G42: 0 | H42: 0 | I42: 0 | J42: 0 | K42: 0
A44: Project 3
A45: Name: REI Connection Project
A46: Capital Costs | C46: 0 | D46: 0 | E46: 0 | F46: 0 | G46: 0 | H46: 0 | I46: 0 | J46: 0 | K46: 0
A47: OM&A (Start-Up) | C47: 0 | D47: 0 | E47: 0 | F47: 0 | G47: 0 | H47: 0 | I47: 0 | J47: 0 | K47: 0
A48: OM&A (Ongoing) | C48: 0 | D48: 0 | E48: 0 | F48: 0 | G48: 0 | H48: 0 | I48: 0 | J48: 0 | K48: 0
A50: Project 4
A51: Name: REI Connection Project
A52: Capital Costs | C52: 0 | D52: 0 | E52: 0 | F52: 0 | G52: 0 | H52: 0 | I52: 0 | J52: 0 | K52: 0
A53: OM&A (Start-Up) | C53: 0 | D53: 0 | E53: 0 | F53: 0 | G53: 0 | H53: 0 | I53: 0 | J53: 0 | K53: 0
A54: OM&A (Ongoing) | C54: 0 | D54: 0 | E54: 0 | F54: 0 | G54: 0 | H54: 0 | I54: 0 | J54: 0 | K54: 0
A56: Project 5
A57: Name: REI Connection Project
A58: Capital Costs | C58: 0 | D58: 0 | E58: 0 | F58: 0 | G58: 0 | H58: 0 | I58: 0 | J58: 0 | K58: 0
A59: OM&A (Start-Up) | C59: 0 | D59: 0 | E59: 0 | F59: 0 | G59: 0 | H59: 0 | I59: 0 | J59: 0 | K59: 0
A60: OM&A (Ongoing) | C60: 0 | D60: 0 | E60: 0 | F60: 0 | G60: 0 | H60: 0 | I60: 0 | J60: 0 | K60: 0
A62: Total Capital Costs | C62: =SUM(C58,C52,C46,C40,C34) -> 0 | D62: 0 | E62: 0 | F62: 0 | G62: =SUM(G58,G52,G46,G40,G34) -> 0 | H62: =SUM(H58,H52,H46,H40,H34) -> 0 | I62: 0 | J62: 0 | K62: 0
A63: Total OM&A (Start-Up) | C63: 0 | D63: 0 | E63: 0 | F63: 0 | G63: =SUM(G59,G53,G47,G41,G35) -> 0 | H63: 0 | I63: 0 | J63: 0 | K63: 0
A64: Total OM&A (Ongoing) | C64: 0 | D64: 0 | E64: 0 | F64: 0 | G64: =SUM(G60,G54,G48,G42,G36) -> 0 | H64: 0 | I64: 0 | J64: 0 | K64: 0
A67: Part B | G67: Test Year
A68: Expansion Investments (Direct Benefit at 17%) | C68: =D68-1 -> 2013 | D68: =E68-1 -> 2014 | E68: =F68-1 -> 2015 | F68: =G68-1 -> 2016 | G68: =TestYear -> 2017 | H68: =G68+1 -> 2018 | I68: =H68+1 -> 2019 | J68: 2020 | K68: 2021
A69: Project 1
A70: Name: Expansion Connection Project
A71: Capital Costs | C71: 0 | D71: 0 | E71: 0 | F71: 0 | G71: 0 | H71: 0 | I71: 0 | J71: 0 | K71: 0
A72: OM&A (Start-Up) | C72: 0 | D72: 0 | E72: 0 | F72: 0 | G72: 0 | H72: 0 | I72: 0 | J72: 0 | K72: 0
A73: OM&A (Ongoing) | C73: 0 | D73: 0 | E73: 0 | F73: 0 | G73: 0 | H73: 0 | I73: 0 | J73: 0 | K73: 0
A75: Project 2
A76: Name: Expansion Connection Project
A77: Capital Costs | C77: 0 | D77: 0 | E77: 0 | F77: 0 | G77: 0 | H77: 0 | I77: 0 | J77: 0 | K77: 0
A78: OM&A (Start-Up) | C78: 0 | D78: 0 | E78: 0 | F78: 0 | G78: 0 | H78: 0 | I78: 0 | J78: 0 | K78: 0
A79: OM&A (Ongoing) | C79: 0 | D79: 0 | E79: 0 | F79: 0 | G79: 0 | H79: 0 | I79: 0 | J79: 0 | K79: 0
A81: Project 3
A82: Name: Expansion Connection Project
A83: Capital Costs | C83: 0 | D83: 0 | E83: 0 | F83: 0 | G83: 0 | H83: 0 | I83: 0 | J83: 0 | K83: 0
A84: OM&A (Start-Up) | C84: 0 | D84: 0 | E84: 0 | F84: 0 | G84: 0 | H84: 0 | I84: 0 | J84: 0 | K84: 0
A85: OM&A (Ongoing) | C85: 0 | D85: 0 | E85: 0 | F85: 0 | G85: 0 | H85: 0 | I85: 0 | J85: 0 | K85: 0
A87: Project 4
A88: Name: Expansion Connection Project
A89: Capital Costs | C89: 0 | D89: 0 | E89: 0 | F89: 0 | G89: 0 | H89: 0 | I89: 0 | J89: 0 | K89: 0
A90: OM&A (Start-Up) | C90: 0 | D90: 0 | E90: 0 | F90: 0 | G90: 0 | H90: 0 | I90: 0 | J90: 0 | K90: 0
A91: OM&A (Ongoing) | C91: 0 | D91: 0 | E91: 0 | F91: 0 | G91: 0 | H91: 0 | I91: 0 | J91: 0 | K91: 0
A93: Project 5
A94: Name: Expansion Connection Project
A95: Capital Costs | C95: 0 | D95: 0 | E95: 0 | F95: 0 | G95: 0 | H95: 0 | I95: 0 | J95: 0 | K95: 0
A96: OM&A (Start-Up) | C96: 0 | D96: 0 | E96: 0 | F96: 0 | G96: 0 | H96: 0 | I96: 0 | J96: 0 | K96: 0
A97: OM&A (Ongoing) | C97: 0 | D97: 0 | E97: 0 | F97: 0 | G97: 0 | H97: 0 | I97: 0 | J97: 0 | K97: 0
A99: Total Capital Costs | C99: =SUM(C95,C89,C83,C77,C71) -> 0 | D99: 0 | E99: 0 | F99: 0 | G99: =SUM(G95,G89,G83,G77,G71) -> 0 | H99: =SUM(H95,H89,H83,H77,H71) -> 0 | I99: 0 | J99: 0 | K99: 0
A100: Total OM&A (Start-Up) | C100: 0 | D100: 0 | E100: 0 | F100: 0 | G100: =SUM(G96,G90,G84,G78,G72) -> 0 | H100: 0 | I100: 0 | J100: 0 | K100: 0
A101: Total OM&A (Ongoing) | C101: 0 | D101: 0 | E101: 0 | F101: 0 | G101: =SUM(G97,G91,G85,G79,G73) -> 0 | H101: 0 | I101: 0 | J101: 0 | K101: 0

Sheet App.2-FB Calc of REG Improvemnt
N1: File Number: | O1: =EBNUMBER -> EB-2016-0085
N2: Exhibit:
N3: Tab:
N4: Schedule:
N5: Page:
N7: Date:
A9: Appendix 2-FB
A10: Calculation of Renewable Generation Connection Direct Benefits/Provincial Amount: Renewable Enabling Improvement Investments
A12: This table will calculate the distributor/provincial shares of the investments entered in Part A of Appendix 2-FA.
A13: Enter values in green shaded cells: WCA percentage, debt percentages, interest rates, kWh, tax rates, amortization period, CCA Class and percentage.
A14: For historical investments, enter these variables for your last cost of service test year. For 2017 and beyond, enter variables as in the application.
A15: Rate Riders are not calculated for the Test Year as these assets and costs are already in the distributor's rate base/revenue requirement.
C17: =F17-1 -> 2013 | F17: =I17-1 -> 2014 | I17: =L17-1 -> 2015 | L17: =BridgeYear -> 2016 | O17: =CONCATENATE(TestYear," Test Year") -> 2017 Test Year | R17: =TestYear+1 -> 2018 | U17: =R17+1 -> 2019 | V17: 2016 | X17: =U17+1 -> 2020 | AA17: =X17+1 -> 2021
D18: Direct Benefit | E18: Provincial | G18: Direct Benefit | H18: Provincial | J18: Direct Benefit | K18: Provincial | M18: Direct Benefit | N18: Provincial | P18: Direct Benefit | Q18: Provincial | S18: Direct Benefit | T18: Provincial | V18: Direct Benefit | W18: Provincial | Y18: Direct Benefit | Z18: Provincial | AB18: Direct Benefit | AC18: Provincial
C19: Total | D19: 0.06 | E19: 0.94 | F19: Total | G19: 0.06 | H19: 0.94 | I19: Total | J19: 0.06 | K19: 0.94 | L19: Total | M19: 0.06 | N19: 0.94 | O19: Total | P19: 0.06 | Q19: 0.94 | R19: Total | S19: 0.06 | T19: 0.94 | U19: Total | V19: 0.06 | W19: 0.94 | X19: Total | Y19: 0.06 | Z19: 0.94 | AA19: Total | AB19: 0.06 | AC19: 0.94
A20: Net Fixed Assets (average) | C20: =D82 -> 0 | D20: =C20*D19 -> 0 | E20: =C20*E19 -> 0 | F20: =E82 -> 0 | G20: =F20*G19 -> 0 | H20: =F20*H19 -> 0 | I20: =F82 -> 0 | J20: =I20*J19 -> 0 | K20: =I20*K19 -> 0 | L20: =G82 -> 0 | M20: =L20*M19 -> 0 | N20: =L20*N19 -> 0 | O20: =H82 -> 0 | P20: =O20*P19 -> 0 | Q20: =O20*Q19 -> 0 | R20: =I82 -> 0 | S20: =R20*S19 -> 0 | T20: =R20*T19 -> 0 | U20: =J82 -> 0 | V20: =U20*V19 -> 0 | W20: =U20*W19 -> 0 | X20: =K82 -> 0 | Y20: =X20*Y19 -> 0 | Z20: =X20*Z19 -> 0 | AA20: =L82 -> 0 | AB20: =AA20*AB19 -> 0 | AC20: =AA20*AC19 -> 0
A21: Incremental OM&A (on-going, N/A for Provincial Recovery) | C21: ='App.2-FA Proposed REG Invest.'!C64 -> 0 | D21: =C21 -> 0 | F21: ='App.2-FA Proposed REG Invest.'!D64 -> 0 | G21: =F21 -> 0 | I21: ='App.2-FA Proposed REG Invest.'!E64 -> 0 | J21: =I21 -> 0 | L21: ='App.2-FA Proposed REG Invest.'!F64 -> 0 | M21: =L21 -> 0 | O21: ='App.2-FA Proposed REG Invest.'!G64 -> 0 | P21: =O21 -> 0 | R21: ='App.2-FA Proposed REG Invest.'!H64 -> 0 | S21: =R21 -> 0 | U21: ='App.2-FA Proposed REG Invest.'!I64 -> 0 | V21: =U21 -> 0 | X21: ='App.2-FA Proposed REG Invest.'!J64 -> 0 | Y21: =X21 -> 0 | AA21: ='App.2-FA Proposed REG Invest.'!K64 -> 0 | AB21: =AA21 -> 0
A22: Incremental OM&A (start-up, applicable for Provincial Recovery) | C22: ='App.2-FA Proposed REG Invest.'!C63 -> 0 | D22: =C22*D19 -> 0 | E22: =C22*E19 -> 0 | F22: ='App.2-FA Proposed REG Invest.'!D63 -> 0 | G22: =F22*G19 -> 0 | H22: =F22*H19 -> 0 | I22: ='App.2-FA Proposed REG Invest.'!E63 -> 0 | J22: =I22*J19 -> 0 | K22: =I22*K19 -> 0 | L22: ='App.2-FA Proposed REG Invest.'!F63 -> 0 | M22: =L22*M19 -> 0 | N22: =L22*N19 -> 0 | O22: ='App.2-FA Proposed REG Invest.'!G63 -> 0 | P22: =O22*P19 -> 0 | Q22: =O22*Q19 -> 0 | R22: ='App.2-FA Proposed REG Invest.'!H63 -> 0 | S22: =R22*S19 -> 0 | T22: =R22*T19 -> 0 | U22: ='App.2-FA Proposed REG Invest.'!I63 -> 0 | V22: =U22*V19 -> 0 | W22: =U22*W19 -> 0 | X22: ='App.2-FA Proposed REG Invest.'!J63 -> 0 | Y22: =X22*Y19 -> 0 | Z22: =X22*Z19 -> 0 | AA22: ='App.2-FA Proposed REG Invest.'!K63 -> 0 | AB22: =AA22*AB19 -> 0 | AC22: =AA22*AC19 -> 0
A23: WCA | D23: =(D21+D22)*$B$23 -> 0 | E23: =E22*$B$23 -> 0 | G23: =(G21+G22)*$B$23 -> 0 | H23: =H22*$B$23 -> 0 | J23: =(J21+J22)*$B$23 -> 0 | K23: =K22*$B$23 -> 0 | M23: =(M21+M22)*$B$23 -> 0 | N23: =N22*$B$23 -> 0 | P23: =(P21+P22)*$B$23 -> 0 | Q23: =Q22*$B$23 -> 0 | S23: =(S21+S22)*$B$23 -> 0 | T23: =T22*$B$23 -> 0 | V23: =(V21+V22)*$B$23 -> 0 | W23: =W22*$B$23 -> 0 | Y23: =(Y21+Y22)*$B$23 -> 0 | Z23: =Z22*$B$23 -> 0 | AB23: =(AB21+AB22)*$B$23 -> 0 | AC23: =AC22*$B$23 -> 0
A24: Rate Base | D24: =SUM(D20+D23) -> 0 | E24: =SUM(E20+E23) -> 0 | G24: =SUM(G20+G23) -> 0 | H24: =SUM(H20+H23) -> 0 | J24: =SUM(J20+J23) -> 0 | K24: =SUM(K20+K23) -> 0 | M24: =SUM(M20+M23) -> 0 | N24: =SUM(N20+N23) -> 0 | P24: =SUM(P20+P23) -> 0 | Q24: =SUM(Q20+Q23) -> 0 | S24: =SUM(S20+S23) -> 0 | T24: =SUM(T20+T23) -> 0 | V24: =SUM(V20+V23) -> 0 | W24: =SUM(W20+W23) -> 0 | Y24: =SUM(Y20+Y23) -> 0 | Z24: =SUM(Z20+Z23) -> 0 | AB24: =SUM(AB20+AB23) -> 0 | AC24: =SUM(AC20+AC23) -> 0
A27: Deemed ST Debt | D27: =D24*$B$27 -> 0 | E27: =E24*$B$27 -> 0 | G27: =G24*$B$27 -> 0 | H27: =H24*$B$27 -> 0 | J27: =J24*$B$27 -> 0 | K27: =K24*$B$27 -> 0 | M27: =M24*$B$27 -> 0 | N27: =N24*$B$27 -> 0 | P27: =P24*$B$27 -> 0 | Q27: =Q24*$B$27 -> 0 | S27: =S24*$B$27 -> 0 | T27: =T24*$B$27 -> 0 | V27: =V24*$B$27 -> 0 | W27: =W24*$B$27 -> 0 | Y27: =Y24*$B$27 -> 0 | Z27: =Z24*$B$27 -> 0 | AB27: =AB24*$B$27 -> 0 | AC27: =AC24*$B$27 -> 0
A28: Deemed LT Debt | D28: =D24*$B$28 -> 0 | E28: =E24*$B$28 -> 0 | G28: =G24*$B$28 -> 0 | H28: =H24*$B$28 -> 0 | J28: =J24*$B$28 -> 0 | K28: =K24*$B$28 -> 0 | M28: =M24*$B$28 -> 0 | N28: =N24*$B$28 -> 0 | P28: =P24*$B$28 -> 0 | Q28: =Q24*$B$28 -> 0 | S28: =S24*$B$28 -> 0 | T28: =T24*$B$28 -> 0 | V28: =V24*$B$28 -> 0 | W28: =W24*$B$28 -> 0 | Y28: =Y24*$B$28 -> 0 | Z28: =Z24*$B$28 -> 0 | AB28: =AB24*$B$28 -> 0 | AC28: =AC24*$B$28 -> 0
A29: Deemed Equity | D29: =D24*$B$29 -> 0 | E29: =E24*$B$29 -> 0 | G29: =G24*$B$29 -> 0 | H29: =H24*$B$29 -> 0 | J29: =J24*$B$29 -> 0 | K29: =K24*$B$29 -> 0 | M29: =M24*$B$29 -> 0 | N29: =N24*$B$29 -> 0 | P29: =P24*$B$29 -> 0 | Q29: =Q24*$B$29 -> 0 | S29: =S24*$B$29 -> 0 | T29: =T24*$B$29 -> 0 | V29: =V24*$B$29 -> 0 | W29: =W24*$B$29 -> 0 | Y29: =Y24*$B$29 -> 0 | Z29: =Z24*$B$29 -> 0 | AB29: =AB24*$B$29 -> 0 | AC29: =AC24*$B$29 -> 0
A31: ST Interest | D31: =D27*$B31 -> 0 | E31: =E27*$B31 -> 0 | G31: =G27*$B31 -> 0 | H31: =H27*$B31 -> 0 | J31: =J27*$B31 -> 0 | K31: =K27*$B31 -> 0 | M31: =M27*$B31 -> 0 | N31: =N27*$B31 -> 0 | P31: =P27*$B31 -> 0 | Q31: =Q27*$B31 -> 0 | S31: =S27*$B31 -> 0 | T31: =T27*$B31 -> 0 | V31: =V27*$B31 -> 0 | W31: =W27*$B31 -> 0 | Y31: =Y27*$B31 -> 0 | Z31: =Z27*$B31 -> 0 | AB31: =AB27*$B31 -> 0 | AC31: =AC27*$B31 -> 0
A32: LT Interest | D32: =D28*$B32 -> 0 | E32: 0 | G32: =G28*$B32 -> 0 | H32: 0 | J32: =J28*$B32 -> 0 | K32: 0 | M32: =M28*$B32 -> 0 | N32: 0 | P32: =P28*$B32 -> 0 | Q32: 0 | S32: =S28*$B32 -> 0 | T32: 0 | V32: =V28*$B32 -> 0 | W32: 0 | Y32: =Y28*$B32 -> 0 | Z32: 0 | AB32: =AB28*$B32 -> 0 | AC32: 0
A33: ROE | D33: 0 | E33: 0 | G33: 0 | H33: 0 | J33: 0 | K33: 0 | M33: 0 | N33: 0 | P33: 0 | Q33: 0 | S33: 0 | T33: 0 | V33: 0 | W33: 0 | Y33: 0 | Z33: 0 | AB33: 0 | AC33: 0
A34: Cost of Capital Total | D34: =SUM(D31:D33) -> 0 | E34: =SUM(E31:E33) -> 0 | G34: =SUM(G31:G33) -> 0 | H34: =SUM(H31:H33) -> 0 | J34: =SUM(J31:J33) -> 0 | K34: =SUM(K31:K33) -> 0 | M34: =SUM(M31:M33) -> 0 | N34: =SUM(N31:N33) -> 0 | P34: =SUM(P31:P33) -> 0 | Q34: =SUM(Q31:Q33) -> 0 | S34: =SUM(S31:S33) -> 0 | T34: =SUM(T31:T33) -> 0 | V34: =SUM(V31:V33) -> 0 | W34: =SUM(W31:W33) -> 0 | Y34: =SUM(Y31:Y33) -> 0 | Z34: =SUM(Z31:Z33) -> 0 | AB34: =SUM(AB31:AB33) -> 0 | AC34: =SUM(AC31:AC33) -> 0
A36: OM&A | D36: =D21+D22 -> 0 | E36: =E22 -> 0 | G36: =G21+G22 -> 0 | H36: =H22 -> 0 | J36: =J21+J22 -> 0 | K36: =K22 -> 0 | M36: =M21+M22 -> 0 | N36: =N22 -> 0 | P36: =P21+P22 -> 0 | Q36: =Q22 -> 0 | S36: =S21+S22 -> 0 | T36: =T22 -> 0 | V36: =V21+V22 -> 0 | W36: =W22 -> 0 | Y36: =Y21+Y22 -> 0 | Z36: =Z22 -> 0 | AB36: =AB21+AB22 -> 0 | AC36: =AC22 -> 0
A37: Amortization | C37: =D77 -> 0 | D37: =C37*D$19 -> 0 | E37: =C37*E$19 -> 0 | F37: =E77 -> 0 | G37: =F37*G$19 -> 0 | H37: =F37*H$19 -> 0 | I37: =F77 -> 0 | J37: =I37*J$19 -> 0 | K37: =I37*K$19 -> 0 | L37: =G77 -> 0 | M37: =L37*M$19 -> 0 | N37: =L37*N$19 -> 0 | O37: =H77 -> 0 | P37: =O37*P$19 -> 0 | Q37: =O37*Q$19 -> 0 | R37: =I76+I77 -> 0 | S37: =R37*S$19 -> 0 | T37: =R37*T$19 -> 0 | U37: =J76+J77 -> 0 | V37: =U37*V$19 -> 0 | W37: =U37*W$19 -> 0 | X37: =K76+K77 -> 0 | Y37: =X37*Y$19 -> 0 | Z37: =X37*Z$19 -> 0 | AA37: =L76+L77 -> 0 | AB37: =AA37*AB$19 -> 0 | AC37: =AA37*AC$19 -> 0
A38: Grossed-up PILs | D38: =D65 -> 0 | E38: =E65 -> 0 | G38: =G65 -> 0 | H38: =H65 -> 0 | J38: =J65 -> 0 | K38: =K65 -> 0 | M38: =M65 -> 0 | N38: =N65 -> 0 | P38: =P65 -> 0 | Q38: =Q65 -> 0 | S38: =S65 -> 0 | T38: =T65 -> 0 | V38: =V65 -> 0 | W38: =W65 -> 0 | Y38: =Y65 -> 0 | Z38: =Z65 -> 0 | AB38: =AB65 -> 0 | AC38: =AC65 -> 0
A40: Revenue Requirement | D40: =SUM(D34:D38) -> 0 | E40: =SUM(E34:E38) -> 0 | G40: =SUM(G34:G38) -> 0 | H40: =SUM(H34:H38) -> 0 | J40: =SUM(J34:J38) -> 0 | K40: =SUM(K34:K38) -> 0 | M40: =SUM(M34:M38) -> 0 | N40: =SUM(N34:N38) -> 0 | P40: =SUM(P34:P38) -> 0 | Q40: =SUM(Q34:Q38) -> 0 | S40: =SUM(S34:S38) -> 0 | T40: =SUM(T34:T38) -> 0 | V40: =SUM(V34:V38) -> 0 | W40: =SUM(W34:W38) -> 0 | Y40: =SUM(Y34:Y38) -> 0 | Z40: =SUM(Z34:Z38) -> 0 | AB40: =SUM(AB34:AB38) -> 0 | AC40: =SUM(AC34:AC38) -> 0
A43: Provincial Rate Protection | E43: =E40 -> 0 | H43: =H40 -> 0 | K43: =K40 -> 0 | N43: =N40 -> 0 | Q43: =Q40 -> 0 | T43: =T40 -> 0 | W43: =W40 -> 0 | Z43: =Z40 -> 0 | AC43: =AC40 -> 0
A45: Monthly Amount Paid by IESO | E45: =E43/12 -> 0 | H45: =H43/12 -> 0 | K45: =K43/12 -> 0 | N45: =N43/12 -> 0 | Q45: =Q43/12 -> 0 | T45: =T43/12 -> 0 | W45: =W43/12 -> 0 | Z45: =Z43/12 -> 0 | AC45: =AC43/12 -> 0
A47: Note 1: The difference between the actual costs of approved eligible investments and revenue received from the IESO should be recorded in a variance account. The Board may provide
A48: regulatory accounting guidance regarding a variance account either in an individual proceeding or on a generic basis.
A49: Note 2: For the 2016 Test Year, Costs and Revenues of the Direct Benefit are to be included in the test year applicant Rate Base and Revenues.
A51: PILs Calculation
D52: =C17 -> 2013 | G52: =F17 -> 2014 | J52: =I17 -> 2015 | M52: =L17 -> 2016 | P52: =O17 -> 2017 Test Year | S52: =R17 -> 2018 | V52: =U17 -> 2019 | Y52: =X17 -> 2020 | AB52: =AA17 -> 2021
A53: Income Tax | D53: Direct Benefit | E53: Provincial | G53: Direct Benefit | H53: Provincial | J53: Direct Benefit | K53: Provincial | M53: Direct Benefit | N53: Provincial | P53: Direct Benefit | Q53: Provincial | S53: Direct Benefit | T53: Provincial | V53: Direct Benefit | W53: Provincial | Y53: Direct Benefit | Z53: Provincial | AB53: Direct Benefit | AC53: Provincial
X54: Total | AA54: Total
A55: Net Income - ROE on Rate Base | D55: =D33 -> 0 | E55: =E33 -> 0 | G55: =G33 -> 0 | H55: =H33 -> 0 | J55: =J33 -> 0 | K55: =K33 -> 0 | M55: =M33 -> 0 | N55: =N33 -> 0 | P55: =P33 -> 0 | Q55: =Q33 -> 0 | S55: =S33 -> 0 | T55: =T33 -> 0 | V55: =V33 -> 0 | W55: =W33 -> 0 | Y55: =Y33 -> 0 | Z55: =Z33 -> 0 | AB55: =AB33 -> 0 | AC55: =AC33 -> 0
A56: Amortization (6% DB and 94% P) | D56: =D37 -> 0 | E56: =E37 -> 0 | G56: =G37 -> 0 | H56: =H37 -> 0 | J56: =J37 -> 0 | K56: =K37 -> 0 | M56: =M37 -> 0 | N56: =N37 -> 0 | P56: =P37 -> 0 | Q56: =Q37 -> 0 | S56: =S37 -> 0 | T56: =T37 -> 0 | V56: =V37 -> 0 | W56: =W37 -> 0 | Y56: =Y37 -> 0 | Z56: =Z37 -> 0 | AB56: =AB37 -> 0 | AC56: =AC37 -> 0
A57: CCA (6% DB and 94% P) | D57: =-D94*D$19 -> 0 | E57: =-D94*E$19 -> 0 | G57: =-E94*G19 -> 0 | H57: =-E94*H$19 -> 0 | J57: =-F94*J$19 -> 0 | K57: =-F94*K$19 -> 0 | M57: =-G94*M$19 -> 0 | N57: =-G94*N$19 -> 0 | P57: =-H94*P$19 -> 0 | Q57: =-H94*Q$19 -> 0 | S57: =-I94*S$19 -> 0 | T57: =-I94*T$19 -> 0 | V57: =-J94*V$19 -> 0 | W57: =-J94*W$19 -> 0 | Y57: =-K94*Y$19 -> 0 | Z57: =-K94*Z$19 -> 0 | AB57: =-L94*AB$19 -> 0 | AC57: =-L94*AC$19 -> 0
A58: Taxable income | D58: =SUM(D55:D57) -> 0 | E58: =SUM(E55:E57) -> 0 | G58: =SUM(G55:G57) -> 0 | H58: =SUM(H55:H57) -> 0 | J58: =SUM(J55:J57) -> 0 | K58: =SUM(K55:K57) -> 0 | M58: =SUM(M55:M57) -> 0 | N58: =SUM(N55:N57) -> 0 | P58: =SUM(P55:P57) -> 0 | Q58: =SUM(Q55:Q57) -> 0 | S58: =SUM(S55:S57) -> 0 | T58: =SUM(T55:T57) -> 0 | V58: =SUM(V55:V57) -> 0 | W58: =SUM(W55:W57) -> 0 | Y58: =SUM(Y55:Y57) -> 0 | Z58: =SUM(Z55:Z57) -> 0 | AB58: =SUM(AB55:AB57) -> 0 | AC58: =SUM(AC55:AC57) -> 0
A60: Tax Rate (to be entered)
A62: Income Taxes Payable | D62: =D58*D60 -> 0 | E62: =E58*E60 -> 0 | G62: =G58*G60 -> 0 | H62: =H58*H60 -> 0 | J62: =J58*J60 -> 0 | K62: =K58*K60 -> 0 | M62: =M58*M60 -> 0 | N62: =N58*N60 -> 0 | P62: =P58*P60 -> 0 | Q62: =Q58*Q60 -> 0 | S62: =S58*S60 -> 0 | T62: =T58*T60 -> 0 | V62: =V58*V60 -> 0 | W62: =W58*W60 -> 0 | Y62: =Y58*Y60 -> 0 | Z62: =Z58*Z60 -> 0 | AB62: =AB58*AB60 -> 0 | AC62: =AC58*AC60 -> 0
A63: Gross Up
A64: Income Taxes Payable | D64: =D62/(1-D60) -> 0 | E64: =E62/(1-E60) -> 0 | G64: =G62/(1-G60) -> 0 | H64: =H62/(1-H60) -> 0 | J64: =J62/(1-J60) -> 0 | K64: =K62/(1-K60) -> 0 | M64: =M62/(1-M60) -> 0 | N64: =N62/(1-N60) -> 0 | P64: =P62/(1-P60) -> 0 | Q64: =Q62/(1-Q60) -> 0 | S64: =S62/(1-S60) -> 0 | T64: =T62/(1-T60) -> 0 | V64: =V62/(1-V60) -> 0 | W64: =W62/(1-W60) -> 0 | Y64: =Y62/(1-Y60) -> 0 | Z64: =Z62/(1-Z60) -> 0 | AB64: =AB62/(1-AB60) -> 0 | AC64: =AC62/(1-AC60) -> 0
A65: Grossed Up PILs | D65: =SUM(D64:D64) -> 0 | E65: =SUM(E64:E64) -> 0 | G65: =SUM(G64:G64) -> 0 | H65: =SUM(H64:H64) -> 0 | J65: =SUM(J64:J64) -> 0 | K65: =SUM(K64:K64) -> 0 | M65: =SUM(M64:M64) -> 0 | N65: =SUM(N64:N64) -> 0 | P65: =SUM(P64:P64) -> 0 | Q65: =SUM(Q64:Q64) -> 0 | S65: =SUM(S64:S64) -> 0 | T65: =SUM(T64:T64) -> 0 | V65: =SUM(V64:V64) -> 0 | W65: =SUM(W64:W64) -> 0 | Y65: =SUM(Y64:Y64) -> 0 | Z65: =SUM(Z64:Z64) -> 0 | AB65: =SUM(AB64:AB64) -> 0 | AC65: =SUM(AC64:AC64) -> 0
D68: =E68-1 -> 2013 | E68: =F68-1 -> 2014 | F68: =G68-1 -> 2015 | G68: =H68-1 -> 2016 | H68: =TestYear -> 2017 | I68: =H68+1 -> 2018 | J68: =I68+1 -> 2019 | K68: =J68+1 -> 2020 | L68: =K68+1 -> 2021
A69: Net Fixed Assets
B70: Enter applicable amortization in years: | C70: 25
A71: Opening Gross Fixed Assets | E71: =D73 -> 0 | F71: 0 | G71: 0 | H71: 0 | I71: =H73 -> 0 | J71: =I73 -> 0 | K71: =J73 -> 0 | L71: =K73 -> 0
A72: Gross Capital Additions | D72: ='App.2-FA Proposed REG Invest.'!C62 -> 0 | E72: ='App.2-FA Proposed REG Invest.'!D62 -> 0 | F72: ='App.2-FA Proposed REG Invest.'!E62 -> 0 | G72: ='App.2-FA Proposed REG Invest.'!F62 -> 0 | H72: ='App.2-FA Proposed REG Invest.'!G62 -> 0 | I72: ='App.2-FA Proposed REG Invest.'!H62 -> 0 | J72: ='App.2-FA Proposed REG Invest.'!I62 -> 0 | K72: ='App.2-FA Proposed REG Invest.'!J62 -> 0 | L72: ='App.2-FA Proposed REG Invest.'!K62 -> 0
A73: Closing Gross Fixed Assets | D73: =SUM(D71:D72) -> 0 | E73: 0 | F73: 0 | G73: 0 | H73: =SUM(H71:H72) -> 0 | I73: =SUM(I71:I72) -> 0 | J73: 0 | K73: 0 | L73: 0
A75: Opening Accumulated Amortization | E75: =+D78 -> 0 | F75: =E78 -> 0 | G75: 0 | H75: 0 | I75: 0 | J75: 0 | K75: 0 | L75: 0
A76: Current Year Amortization (before additions) | D76: =IF(ISERROR(D71/$C$70), 0, D71/$C$70) -> 0 | E76: 0 | F76: 0 | G76: 0 | H76: 0 | I76: =IF(ISERROR(I71/$C$70), 0, I71/$C$70) -> 0 | J76: =IF(ISERROR(J71/$C$70), 0, J71/$C$70) -> 0 | K76: =IF(ISERROR(K71/$C$70), 0, K71/$C$70) -> 0 | L76: =IF(ISERROR(L71/$C$70), 0, L71/$C$70) -> 0
A77: Additions (half year) | D77: =D72/$C$70/2 -> 0 | E77: =E72/$C$70/2 -> 0 | F77: =F72/$C$70/2 -> 0 | G77: 0 | H77: =H72/$C$70/2 -> 0 | I77: =I72/C70/2 -> 0 | J77: =J72/C70/2 -> 0 | K77: =K72/C70/2 -> 0 | L77: =L72/C70/2 -> 0
A78: Closing Accumulated Amortization | D78: =SUM(D75+D76+D77) -> 0 | E78: =SUM(E75+E76+E77) -> 0 | F78: =SUM(F75+F76+F77) -> 0 | G78: =SUM(G75+G76+G77) -> 0 | H78: =SUM(H75+H76+H77) -> 0 | I78: =SUM(I75:I77) -> 0 | J78: =SUM(J75:J77) -> 0 | K78: =SUM(K75:K77) -> 0 | L78: =SUM(L75:L77) -> 0
A80: Opening Net Fixed Assets | D80: =D71-D75 -> 0 | E80: 0 | F80: =F71-F75 -> 0 | G80: 0 | H80: =H71-H75 -> 0 | I80: =H81 -> 0 | J80: =I81 -> 0 | K80: =J81 -> 0 | L80: =K81 -> 0
A81: Closing Net Fixed Assets | D81: =D73-D78 -> 0 | E81: =E73-E78 -> 0 | F81: 0 | G81: 0 | H81: =H73-H78 -> 0 | I81: =I73-I78 -> 0 | J81: =J73-J78 -> 0 | K81: =K73-K78 -> 0 | L81: =L73-L78 -> 0
A82: Average Net Fixed Assets | D82: =SUM(D80:D81)/2 -> 0 | E82: 0 | F82: 0 | G82: 0 | H82: =SUM(H80:H81)/2 -> 0 | I82: =SUM(I80:I81)/2 -> 0 | J82: =SUM(J80:J81)/2 -> 0 | K82: =SUM(K80:K81)/2 -> 0 | L82: =SUM(L80:L81)/2 -> 0
A84: UCC for PILs Calculation
D85: =D68 -> 2013 | E85: =E68 -> 2014 | F85: 2015 | G85: 2016 | H85: 2017 | I85: 2018 | J85: 2019 | K85: 2020 | L85: 2021
A87: Opening UCC | E87: =D95 -> 0 | F87: 0 | G87: 0 | H87: 0 | I87: 0 | J87: 0 | K87: 0 | L87: 0
A88: Capital Additions (from Appendix 2-FA) | D88: =D72 -> 0 | E88: 0 | F88: 0 | G88: 0 | H88: =H72 -> 0 | I88: =I72 -> 0 | J88: 0 | K88: 0 | L88: 0
A89: UCC Before Half Year Rule | D89: =SUM(D87:D88) -> 0 | E89: 0 | F89: 0 | G89: 0 | H89: =SUM(H87:H88) -> 0 | I89: =SUM(I87:I88) -> 0 | J89: =SUM(J87:J88) -> 0 | K89: =SUM(K87:K88) -> 0 | L89: =SUM(L87:L88) -> 0
A90: Half Year Rule (1/2 Additions - Disposals) | D90: =D88/2 -> 0 | E90: 0 | F90: 0 | G90: 0 | H90: =H88/2 -> 0 | I90: =I88/2 -> 0 | J90: =J88/2 -> 0 | K90: =K88/2 -> 0 | L90: =L88/2 -> 0
A91: Reduced UCC | D91: =D89-D90 -> 0 | E91: 0 | F91: 0 | G91: 0 | H91: =H89-H90 -> 0 | I91: =I89-I90 -> 0 | J91: =J89-J90 -> 0 | K91: =K89-K90 -> 0 | L91: =L89-L90 -> 0
A92: CCA Rate Class (to be entered) | C92: 47 | D92: =C92 -> 47 | E92: =D92 -> 47 | F92: 47 | G92: 47 | H92: 47 | I92: 47 | J92: 47 | K92: 47 | L92: 47
A93: CCA Rate (to be entered) | C93: 0.08 | D93: =C93 -> 0.08 | E93: 0.08 | F93: 0.08 | G93: 0.08 | H93: 0.08 | I93: 0.08 | J93: 0.08 | K93: 0.08 | L93: 0.08
A94: CCA | D94: =D91*D93 -> 0 | E94: 0 | F94: 0 | G94: 0 | H94: =H91*H93 -> 0 | I94: =I91*I93 -> 0 | J94: 0 | K94: 0 | L94: =L91*L93 -> 0
A95: Closing UCC | D95: =D89-D94 -> 0 | E95: 0 | F95: 0 | G95: 0 | H95: =H89-H94 -> 0 | I95: =I89-I94 -> 0 | J95: =J89-J94 -> 0 | K95: =K89-K94 -> 0 | L95: =L89-L94 -> 0

Sheet App.2-FC Calc of REG Expansion
N1: File Number: | O1: =EBNUMBER -> EB-2016-0085
N2: Exhibit:
N3: Tab:
N4: Schedule:
N5: Page:
N7: Date:
A9: Appendix 2-FC
A10: Calculation of Renewable Generation Connection Direct Benefits/Provincial Amount: Renewable Expansion Investments
A12: This table will calculate the distributor/provincial shares of the investments entered in Part B of Appendix 2-FA.
A13: Enter values in green shaded cells: WCA percentage, debt percentages, interest rates, kWh, tax rates, amortization period, CCA Class and percentage.
A14: For historical investments, enter these variables for your last cost of service test year. For 2016 and beyond, enter variables as in the application.
A15: Rate Riders are not calculated for the Test Year as these assets and costs are already in the distributor's rate base.
D18: =G18-1 -> 2013 | G18: =J18-1 -> 2014 | J18: =M18-1 -> 2015 | M18: =BridgeYear -> 2016 | P18: =CONCATENATE(TestYear," Test Year") -> 2017 Test Year | S18: =TestYear+1 -> 2018 | T18: 2016 | V18: =S18+1 -> 2019 | Y18: =V18+1 -> 2020 | AB18: =Y18+1 -> 2021
E19: Direct Benefit | F19: Provincial | H19: Direct Benefit | I19: Provincial | K19: Direct Benefit | L19: Provincial | N19: Direct Benefit | O19: Provincial | Q19: Direct Benefit | R19: Provincial | T19: Direct Benefit | U19: Provincial | W19: Direct Benefit | X19: Provincial | Z19: Direct Benefit | AA19: Provincial | AC19: Direct Benefit | AD19: Provincial
D20: Total | E20: 0.17 | F20: 0.83 | G20: Total | H20: 0.17 | I20: 0.83 | J20: Total | K20: 0.17 | L20: 0.83 | M20: Total | N20: 0.17 | O20: 0.83 | P20: Total | Q20: 0.17 | R20: 0.83 | S20: Total | T20: 0.17 | U20: 0.83 | V20: Total | W20: 0.17 | X20: 0.83 | Y20: Total | Z20: 0.17 | AA20: 0.83 | AB20: Total | AC20: 0.17 | AD20: 0.83
A21: Net Fixed Assets (average) | D21: =D82 -> 0 | E21: =D21*E20 -> 0 | F21: =D21*F20 -> 0 | G21: =E82 -> 0 | H21: =G21*H20 -> 0 | I21: =G21*I20 -> 0 | J21: =F82 -> 0 | K21: =J21*K20 -> 0 | L21: =J21*L20 -> 0 | M21: =G82 -> 0 | N21: =M21*N20 -> 0 | O21: =M21*O20 -> 0 | P21: =H82 -> 0 | Q21: =P21*Q20 -> 0 | R21: =P21*R20 -> 0 | S21: =I82 -> 0 | T21: =S21*T20 -> 0 | U21: =S21*U20 -> 0 | V21: =J82 -> 0 | W21: =V21*W20 -> 0 | X21: =V21*X20 -> 0 | Y21: =K82 -> 0 | Z21: =Y21*Z20 -> 0 | AA21: =Y21*AA20 -> 0 | AB21: =L82 -> 0 | AC21: =AB21*AC20 -> 0 | AD21: =AB21*AD20 -> 0
A22: Incremental OM&A (on-going, N/A for Provincial Recovery) | D22: ='App.2-FA Proposed REG Invest.'!C101 -> 0 | E22: =D22 -> 0 | G22: ='App.2-FA Proposed REG Invest.'!D$101 -> 0 | H22: =G22 -> 0 | J22: ='App.2-FA Proposed REG Invest.'!E$101 -> 0 | K22: =J22 -> 0 | M22: ='App.2-FA Proposed REG Invest.'!F$101 -> 0 | N22: =M22 -> 0 | P22: ='App.2-FA Proposed REG Invest.'!G$101 -> 0 | Q22: =P22 -> 0 | S22: ='App.2-FA Proposed REG Invest.'!H$101 -> 0 | T22: =S22 -> 0 | V22: ='App.2-FA Proposed REG Invest.'!I$101 -> 0 | W22: =V22 -> 0 | Y22: ='App.2-FA Proposed REG Invest.'!J$101 -> 0 | Z22: =Y22 -> 0 | AB22: ='App.2-FA Proposed REG Invest.'!K$101 -> 0 | AC22: =AB22 -> 0
A23: Incremental OM&A (start-up, applicable for Provincial Recovery) | D23: ='App.2-FA Proposed REG Invest.'!C100 -> 0 | E23: =D23*E20 -> 0 | F23: =D23*F20 -> 0 | G23: ='App.2-FA Proposed REG Invest.'!D$100 -> 0 | H23: =G23*H20 -> 0 | I23: =G23*I20 -> 0 | J23: ='App.2-FA Proposed REG Invest.'!E$100 -> 0 | K23: =J23*K20 -> 0 | L23: =J23*L20 -> 0 | M23: ='App.2-FA Proposed REG Invest.'!F$100 -> 0 | N23: =M23*N20 -> 0 | O23: =M23*O20 -> 0 | P23: ='App.2-FA Proposed REG Invest.'!G$100 -> 0 | Q23: =P23*Q20 -> 0 | R23: =P23*R20 -> 0 | S23: ='App.2-FA Proposed REG Invest.'!H$100 -> 0 | T23: =S23*T20 -> 0 | U23: =S23*U20 -> 0 | V23: ='App.2-FA Proposed REG Invest.'!I$100 -> 0 | W23: =V23*W20 -> 0 | X23: =V23*X20 -> 0 | Y23: ='App.2-FA Proposed REG Invest.'!J$100 -> 0 | Z23: =Y23*Z20 -> 0 | AA23: =Y23*AA20 -> 0 | AB23: ='App.2-FA Proposed REG Invest.'!K$100 -> 0 | AC23: =AB23*AC20 -> 0 | AD23: =AB23*AD20 -> 0
A24: WCA | E24: =(E22+E23)*$B$24 -> 0 | F24: =F23*$B$24 -> 0 | H24: =(H22+H23)*$B$24 -> 0 | I24: =I23*$B$24 -> 0 | K24: =(K22+K23)*$B$24 -> 0 | L24: =L23*$B$24 -> 0 | N24: =(N22+N23)*$B$24 -> 0 | O24: =O23*$B$24 -> 0 | Q24: =(Q22+Q23)*$B$24 -> 0 | R24: =R23*$B$24 -> 0 | T24: =(T22+T23)*$B$24 -> 0 | U24: =U23*$B$24 -> 0 | W24: =(W22+W23)*$B$24 -> 0 | X24: =X23*$B$24 -> 0 | Z24: =(Z22+Z23)*$B$24 -> 0 | AA24: =AA23*$B$24 -> 0 | AC24: =(AC22+AC23)*$B$24 -> 0 | AD24: =AD23*$B$24 -> 0
A25: Rate Base | E25: =SUM(E21+E24) -> 0 | F25: =SUM(F21+F24) -> 0 | H25: =SUM(H21+H24) -> 0 | I25: =SUM(I21+I24) -> 0 | K25: =SUM(K21+K24) -> 0 | L25: =SUM(L21+L24) -> 0 | N25: =SUM(N21+N24) -> 0 | O25: =SUM(O21+O24) -> 0 | Q25: =SUM(Q21+Q24) -> 0 | R25: =SUM(R21+R24) -> 0 | T25: =SUM(T21+T24) -> 0 | U25: =SUM(U21+U24) -> 0 | W25: =SUM(W21+W24) -> 0 | X25: =SUM(X21+X24) -> 0 | Z25: =SUM(Z21+Z24) -> 0 | AA25: =SUM(AA21+AA24) -> 0 | AC25: =SUM(AC21+AC24) -> 0 | AD25: =SUM(AD21+AD24) -> 0
A28: Deemed ST Debt | E28: =E25*$B$28 -> 0 | F28: =F25*$B$28 -> 0 | H28: =H25*$B$28 -> 0 | I28: =I25*$B$28 -> 0 | K28: =K25*$B$28 -> 0 | L28: =L25*$B$28 -> 0 | N28: =N25*$B$28 -> 0 | O28: =O25*$B$28 -> 0 | Q28: =Q25*$B$28 -> 0 | R28: =R25*$B$28 -> 0 | T28: =T25*$B$28 -> 0 | U28: =U25*$B$28 -> 0 | W28: =W25*$B$28 -> 0 | X28: =X25*$B$28 -> 0 | Z28: =Z25*$B$28 -> 0 | AA28: =AA25*$B$28 -> 0 | AC28: =AC25*$B$28 -> 0 | AD28: =AD25*$B$28 -> 0
A29: Deemed LT Debt | E29: =E25*$B$29 -> 0 | F29: =F25*$B$29 -> 0 | H29: =H25*$B$29 -> 0 | I29: =I25*$B$29 -> 0 | K29: =K25*$B$29 -> 0 | L29: =L25*$B$29 -> 0 | N29: =N25*$B$29 -> 0 | O29: =O25*$B$29 -> 0 | Q29: =Q25*$B$29 -> 0 | R29: =R25*$B$29 -> 0 | T29: =T25*$B$29 -> 0 | U29: =U25*$B$29 -> 0 | W29: =W25*$B$29 -> 0 | X29: =X25*$B$29 -> 0 | Z29: =Z25*$B$29 -> 0 | AA29: =AA25*$B$29 -> 0 | AC29: =AC25*$B$29 -> 0 | AD29: =AD25*$B$29 -> 0
A30: Deemed Equity | E30: =E25*$B$30 -> 0 | F30: =F25*$B$30 -> 0 | H30: =H25*$B$30 -> 0 | I30: =I25*$B$30 -> 0 | K30: =K25*$B$30 -> 0 | L30: =L25*$B$30 -> 0 | N30: =N25*$B$30 -> 0 | O30: =O25*$B$30 -> 0 | Q30: =Q25*$B$30 -> 0 | R30: =R25*$B$30 -> 0 | T30: =T25*$B$30 -> 0 | U30: =U25*$B$30 -> 0 | W30: =W25*$B$30 -> 0 | X30: =X25*$B$30 -> 0 | Z30: =Z25*$B$30 -> 0 | AA30: =AA25*$B$30 -> 0 | AC30: =AC25*$B$30 -> 0 | AD30: =AD25*$B$30 -> 0
A32: ST Interest | E32: =E28*$B$32 -> 0 | F32: =F28*$B$32 -> 0 | H32: =H28*$B$32 -> 0 | I32: =I28*$B$32 -> 0 | K32: =K28*$B$32 -> 0 | L32: =L28*$B$32 -> 0 | N32: =N28*$B$32 -> 0 | O32: =O28*$B$32 -> 0 | Q32: =Q28*$B$32 -> 0 | R32: =R28*$B$32 -> 0 | T32: =T28*$B$32 -> 0 | U32: =U28*$B$32 -> 0 | W32: =W28*$B$32 -> 0 | X32: =X28*$B$32 -> 0 | Z32: =Z28*$B$32 -> 0 | AA32: =AA28*$B$32 -> 0 | AC32: =AC28*$B$32 -> 0 | AD32: =AD28*$B$32 -> 0
A33: LT Interest | E33: =E29*$B$33 -> 0 | F33: =F29*$B$33 -> 0 | H33: =H29*$B$33 -> 0 | I33: =I29*$B$33 -> 0 | K33: =K29*$B$33 -> 0 | L33: =L29*$B$33 -> 0 | N33: =N29*$B$33 -> 0 | O33: =O29*$B$33 -> 0 | Q33: =Q29*$B$33 -> 0 | R33: =R29*$B$33 -> 0 | T33: =T29*$B$33 -> 0 | U33: =U29*$B$33 -> 0 | W33: =W29*$B$33 -> 0 | X33: =X29*$B$33 -> 0 | Z33: =Z29*$B$33 -> 0 | AA33: =AA29*$B$33 -> 0 | AC33: =AC29*$B$33 -> 0 | AD33: =AD29*$B$33 -> 0
A34: ROE | E34: =E30*$B$34 -> 0 | F34: =F30*$B$34 -> 0 | H34: =H30*$B$34 -> 0 | I34: =I30*$B$34 -> 0 | K34: =K30*$B$34 -> 0 | L34: =L30*$B$34 -> 0 | N34: =N30*$B$34 -> 0 | O34: =O30*$B$34 -> 0 | Q34: =Q30*$B$34 -> 0 | R34: =R30*$B$34 -> 0 | T34: =T30*$B$34 -> 0 | U34: =U30*$B$34 -> 0 | W34: =W30*$B$34 -> 0 | X34: =X30*$B$34 -> 0 | Z34: =Z30*$B$34 -> 0 | AA34: =AA30*$B$34 -> 0 | AC34: =AC30*$B$34 -> 0 | AD34: =AD30*$B$34 -> 0
A35: Cost of Capital Total | E35: =SUM(E32:E34) -> 0 | F35: =SUM(F32:F34) -> 0 | H35: =SUM(H32:H34) -> 0 | I35: =SUM(I32:I34) -> 0 | K35: =SUM(K32:K34) -> 0 | L35: =SUM(L32:L34) -> 0 | N35: =SUM(N32:N34) -> 0 | O35: =SUM(O32:O34) -> 0 | Q35: =SUM(Q32:Q34) -> 0 | R35: =SUM(R32:R34) -> 0 | T35: =SUM(T32:T34) -> 0 | U35: =SUM(U32:U34) -> 0 | W35: =SUM(W32:W34) -> 0 | X35: =SUM(X32:X34) -> 0 | Z35: =SUM(Z32:Z34) -> 0 | AA35: =SUM(AA32:AA34) -> 0 | AC35: =SUM(AC32:AC34) -> 0 | AD35: =SUM(AD32:AD34) -> 0
A37: OM&A | E37: =E22+E23 -> 0 | F37: =F23 -> 0 | H37: =H22+H23 -> 0 | I37: =I23 -> 0 | K37: =K22+K23 -> 0 | L37: =L23 -> 0 | N37: =N22+N23 -> 0 | O37: =O23 -> 0 | Q37: =Q22+Q23 -> 0 | R37: =R23 -> 0 | T37: =T22+T23 -> 0 | U37: =U23 -> 0 | W37: =W22+W23 -> 0 | X37: =X23 -> 0 | Z37: =Z22+Z23 -> 0 | AA37: =AA23 -> 0 | AC37: =AC22+AC23 -> 0 | AD37: =AD23 -> 0
A38: Amortization | D38: =D78 -> 0 | E38: =D38*E$20 -> 0 | F38: =D38*F$20 -> 0 | G38: =E78 -> 0 | H38: =G38*H$20 -> 0 | I38: =G38*I$20 -> 0 | J38: =F78 -> 0 | K38: =J38*K$20 -> 0 | L38: =J38*L$20 -> 0 | M38: =G78 -> 0 | N38: =M38*N$20 -> 0 | O38: =M38*O$20 -> 0 | P38: =H76+H77 -> 0 | Q38: =P38*Q$20 -> 0 | R38: =P38*R$20 -> 0 | S38: =I76+I77 -> 0 | T38: =S38*T$20 -> 0 | U38: =S38*U$20 -> 0 | V38: =J76+J77 -> 0 | W38: =V38*W$20 -> 0 | X38: =V38*X$20 -> 0 | Y38: =K76+K77 -> 0 | Z38: =Y38*Z$20 -> 0 | AA38: =Y38*AA$20 -> 0 | AB38: =L76+L77 -> 0 | AC38: =AB38*AC$20 -> 0 | AD38: =AB38*AD$20 -> 0
A39: Grossed-up PILs | E39: =E66 -> 0 | F39: =F66 -> 0 | H39: =H66 -> 0 | I39: =I66 -> 0 | K39: =K66 -> 0 | L39: =L66 -> 0 | N39: =N66 -> 0 | O39: =O66 -> 0 | Q39: =Q66 -> 0 | R39: =R66 -> 0 | T39: =T66 -> 0 | U39: =U66 -> 0 | W39: =W66 -> 0 | X39: =X66 -> 0 | Z39: =Z66 -> 0 | AA39: =AA66 -> 0 | AC39: =AC66 -> 0 | AD39: =AD66 -> 0
A41: Revenue Requirement | E41: =SUM(E35:E39) -> 0 | F41: =SUM(F35:F39) -> 0 | H41: =SUM(H35:H39) -> 0 | I41: =SUM(I35:I39) -> 0 | K41: =SUM(K35:K39) -> 0 | L41: =SUM(L35:L39) -> 0 | N41: =SUM(N35:N39) -> 0 | O41: =SUM(O35:O39) -> 0 | Q41: =SUM(Q35:Q39) -> 0 | R41: =SUM(R35:R39) -> 0 | T41: =SUM(T35:T39) -> 0 | U41: =SUM(U35:U39) -> 0 | W41: =SUM(W35:W39) -> 0 | X41: =SUM(X35:X39) -> 0 | Z41: =SUM(Z35:Z39) -> 0 | AA41: =SUM(AA35:AA39) -> 0 | AC41: =SUM(AC35:AC39) -> 0 | AD41: =SUM(AD35:AD39) -> 0
A44: Provincial Rate Protection | F44: =F41 -> 0 | I44: =I41 -> 0 | L44: =L41 -> 0 | O44: =O41 -> 0 | R44: =R41 -> 0 | U44: =U41 -> 0 | X44: =X41 -> 0 | AA44: =AA41 -> 0 | AD44: =AD41 -> 0
A46: Monthly Amount Paid by IESO | F46: =F44/12 -> 0 | I46: =I44/12 -> 0 | L46: =L44/12 -> 0 | O46: =O44/12 -> 0 | R46: =R44/12 -> 0 | U46: =U44/12 -> 0 | X46: =X44/12 -> 0 | AA46: =AA44/12 -> 0 | AD46: =AD44/12 -> 0
A48: Note 1: The difference between the actual costs of approved eligible investments and revenue received from the IESO should be recorded in a variance account. The Board may provide
A49: regulatory accounting guidance regarding a variance account either in an individual proceeding or on a generic basis.
A50: Note 2: For the 2016 Test Year, Costs and Revenues of the Direct Benefit are to be included in the test year applicant Rate Base and Revenues.
A52: PILs Calculation
E53: =D18 -> 2013 | H53: =G18 -> 2014 | K53: =J18 -> 2015 | N53: =M18 -> 2016 | Q53: =P18 -> 2017 Test Year | T53: =S18 -> 2018 | W53: =V18 -> 2019 | Z53: =Y18 -> 2020 | AC53: =AB18 -> 2021
A54: Income Tax | E54: Direct Benefit | F54: Provincial | H54: Direct Benefit | I54: Provincial | K54: Direct Benefit | L54: Provincial | N54: Direct Benefit | O54: Provincial | Q54: Direct Benefit | R54: Provincial | T54: Direct Benefit | U54: Provincial | W54: Direct Benefit | X54: Provincial | Z54: Direct Benefit | AA54: Provincial | AC54: Direct Benefit | AD54: Provincial
V55: Total | Y55: Total | AB55: Total
A56: Net Income - ROE on Rate Base | E56: =E34 -> 0 | F56: =F34 -> 0 | H56: =H34 -> 0 | I56: =I34 -> 0 | K56: =K34 -> 0 | L56: =L34 -> 0 | N56: =N34 -> 0 | O56: =O34 -> 0 | Q56: =Q34 -> 0 | R56: =R34 -> 0 | T56: =T34 -> 0 | U56: =U34 -> 0 | W56: =W34 -> 0 | X56: =X34 -> 0 | Z56: =Z34 -> 0 | AA56: =AA34 -> 0 | AC56: =AC34 -> 0 | AD56: =AD34 -> 0
A57: Amortization (17% DB and 83% P) | E57: =E38 -> 0 | F57: =F38 -> 0 | H57: =H38 -> 0 | I57: =I38 -> 0 | K57: =K38 -> 0 | L57: =L38 -> 0 | N57: =N38 -> 0 | O57: =O38 -> 0 | Q57: =Q38 -> 0 | R57: =R38 -> 0 | T57: =T38 -> 0 | U57: =U38 -> 0 | W57: =W38 -> 0 | X57: =X38 -> 0 | Z57: =Z38 -> 0 | AA57: =AA38 -> 0 | AC57: =AC38 -> 0 | AD57: =AD38 -> 0
A58: CCA (17% DB and 83% P) | E58: =-D94*E$20 -> 0 | F58: =-D94*F$20 -> 0 | H58: =-E94*H$20 -> 0 | I58: =-E94*I$20 -> 0 | K58: =-F94*K$20 -> 0 | L58: =-F94*L$20 -> 0 | N58: =-G94*N$20 -> 0 | O58: =-G94*O$20 -> 0 | Q58: =-H94*Q$20 -> 0 | R58: =-H94*R$20 -> 0 | T58: =-I94*T$20 -> 0 | U58: =-I94*U$20 -> 0 | W58: =-J94*W$20 -> 0 | X58: =-J94*X$20 -> 0 | Z58: =-K94*Z$20 -> 0 | AA58: =-K94*AA$20 -> 0 | AC58: =-L94*AC$20 -> 0 | AD58: =-L94*AD$20 -> 0
A59: Taxable income | E59: =SUM(E56:E58) -> 0 | F59: =SUM(F56:F58) -> 0 | H59: =SUM(H56:H58) -> 0 | I59: =SUM(I56:I58) -> 0 | K59: =SUM(K56:K58) -> 0 | L59: =SUM(L56:L58) -> 0 | N59: =SUM(N56:N58) -> 0 | O59: =SUM(O56:O58) -> 0 | Q59: =SUM(Q56:Q58) -> 0 | R59: =SUM(R56:R58) -> 0 | T59: =SUM(T56:T58) -> 0 | U59: =SUM(U56:U58) -> 0 | W59: =SUM(W56:W58) -> 0 | X59: =SUM(X56:X58) -> 0 | Z59: =SUM(Z56:Z58) -> 0 | AA59: =SUM(AA56:AA58) -> 0 | AC59: =SUM(AC56:AC58) -> 0 | AD59: =SUM(AD56:AD58) -> 0
A61: Tax Rate (to be entered)
A63: Income Taxes Payable | E63: =E59*E61 -> 0 | F63: =F59*F61 -> 0 | H63: =H59*H61 -> 0 | I63: =I59*I61 -> 0 | K63: =K59*K61 -> 0 | L63: =L59*L61 -> 0 | N63: =N59*N61 -> 0 | O63: =O59*O61 -> 0 | Q63: =Q59*Q61 -> 0 | R63: =R59*R61 -> 0 | T63: =T59*T61 -> 0 | U63: =U59*U61 -> 0 | W63: =W59*W61 -> 0 | X63: =X59*X61 -> 0 | Z63: =Z59*Z61 -> 0 | AA63: =AA59*AA61 -> 0 | AC63: =AC59*AC61 -> 0 | AD63: =AD59*AD61 -> 0
A64: Gross Up
A65: Income Taxes Payable | E65: =E63/(1-E61) -> 0 | F65: =F63/(1-F61) -> 0 | H65: =H63/(1-H61) -> 0 | I65: =I63/(1-I61) -> 0 | K65: =K63/(1-K61) -> 0 | L65: =L63/(1-L61) -> 0 | N65: =N63/(1-N61) -> 0 | O65: =O63/(1-O61) -> 0 | Q65: =Q63/(1-Q61) -> 0 | R65: =R63/(1-R61) -> 0 | T65: =T63/(1-T61) -> 0 | U65: =U63/(1-U61) -> 0 | W65: =W63/(1-W61) -> 0 | X65: =X63/(1-X61) -> 0 | Z65: =Z63/(1-Z61) -> 0 | AA65: =AA63/(1-AA61) -> 0 | AC65: =AC63/(1-AC61) -> 0 | AD65: =AD63/(1-AD61) -> 0
A66: Grossed Up PILs | E66: =SUM(E65:E65) -> 0 | F66: =SUM(F65:F65) -> 0 | H66: =SUM(H65:H65) -> 0 | I66: =SUM(I65:I65) -> 0 | K66: =SUM(K65:K65) -> 0 | L66: =SUM(L65:L65) -> 0 | N66: =SUM(N65:N65) -> 0 | O66: =SUM(O65:O65) -> 0 | Q66: =SUM(Q65:Q65) -> 0 | R66: =SUM(R65:R65) -> 0 | T66: =SUM(T65:T65) -> 0 | U66: =SUM(U65:U65) -> 0 | W66: =SUM(W65:W65) -> 0 | X66: =SUM(X65:X65) -> 0 | Z66: =SUM(Z65:Z65) -> 0 | AA66: =SUM(AA65:AA65) -> 0 | AC66: =SUM(AC65:AC65) -> 0 | AD66: =SUM(AD65:AD65) -> 0
A69: Net Fixed Assets | D69: 2011 | E69: 2012 | F69: 2013 | G69: 2014 | H69: 2015 | I69: 2016 | J69: 2017 | K69: 2018 | L69: 2019
B70: Enter applicable amortization in years: | C70: 25
A71: Opening Gross Fixed Assets | E71: =D73 -> 0 | F71: 0 | G71: 0 | H71: 0 | I71: 0 | J71: 0 | K71: 0 | L71: 0
A72: Gross Capital Additions | D72: ='App.2-FA Proposed REG Invest.'!C99 -> 0 | E72: ='App.2-FA Proposed REG Invest.'!D99 -> 0 | F72: ='App.2-FA Proposed REG Invest.'!E99 -> 0 | G72: ='App.2-FA Proposed REG Invest.'!F99 -> 0 | H72: ='App.2-FA Proposed REG Invest.'!G99 -> 0 | I72: ='App.2-FA Proposed REG Invest.'!H99 -> 0 | J72: ='App.2-FA Proposed REG Invest.'!I99 -> 0 | K72: ='App.2-FA Proposed REG Invest.'!J99 -> 0 | L72: ='App.2-FA Proposed REG Invest.'!K99 -> 0
A73: Closing Gross Fixed Assets | D73: =SUM(D71:D72) -> 0 | E73: 0 | F73: 0 | G73: 0 | H73: 0 | I73: 0 | J73: 0 | K73: 0 | L73: 0
A75: Opening Accumulated Amortization | E75: =+D78 -> 0 | F75: =E78 -> 0 | G75: 0 | H75: =G78 -> 0 | I75: =H78 -> 0 | J75: =I78 -> 0 | K75: =J78 -> 0 | L75: =K78 -> 0
A76: Current Year Amortization (before additions) | E76: =IF(ISERROR(E71/$C$70), 0, E71/$C$70) -> 0 | F76: 0 | G76: 0 | H76: =H71/$C$70 -> 0 | I76: =I71/$C$70 -> 0 | J76: =J71/$C$70 -> 0 | K76: =K71/$C$70 -> 0 | L76: =L71/$C$70 -> 0
A77: Additions (half year) | D77: =D72/C70/2 -> 0 | E77: =E72/C70/2 -> 0 | F77: =F72/C70/2 -> 0 | G77: =G72/C70/2 -> 0 | H77: =H72/C70/2 -> 0 | I77: =I72/C70/2 -> 0 | J77: =J72/C70/2 -> 0 | K77: =K72/C70/2 -> 0 | L77: =L72/C70/2 -> 0
A78: Closing Accumulated Amortization | D78: =SUM(D75+D77) -> 0 | E78: =SUM(E75:E77) -> 0 | F78: 0 | G78: 0 | H78: 0 | I78: 0 | J78: 0 | K78: 0 | L78: 0
A80: Opening Net Fixed Assets | D80: =D71-D75 -> 0 | E80: =E71-E75 -> 0 | F80: =F71-F75 -> 0 | G80: =G71-G75 -> 0 | H80: =G81 -> 0 | I80: =H81 -> 0 | J80: =I81 -> 0 | K80: =J81 -> 0 | L80: =K81 -> 0
A81: Closing Net Fixed Assets | D81: =D73-D78 -> 0 | E81: 0 | F81: 0 | G81: 0 | H81: 0 | I81: 0 | J81: 0 | K81: 0 | L81: 0
A82: Average Net Fixed Assets | D82: =SUM(D80:D81)/2 -> 0 | E82: 0 | F82: 0 | G82: 0 | H82: 0 | I82: 0 | J82: 0 | K82: 0 | L82: 0
A84: UCC for PILs Calculation
D85: 2014 | E85: 2014 | F85: 2014 | G85: 2014 | H85: 2015 | I85: 2016 | J85: 2017 | K85: 2018 | L85: 2019
A87: Opening UCC | E87: =D95 -> 0 | F87: 0 | G87: 0 | H87: 0 | I87: 0 | J87: 0 | K87: 0 | L87: 0
A88: Capital Additions (from Appendix 2-FA) | D88: =D72 -> 0 | E88: 0 | F88: 0 | G88: 0 | H88: 0 | I88: 0 | J88: 0 | K88: 0 | L88: 0
A89: UCC Before Half Year Rule | D89: =SUM(D87:D88) -> 0 | E89: 0 | F89: 0 | G89: 0 | H89: 0 | I89: 0 | J89: 0 | K89: 0 | L89: 0
A90: Half Year Rule (1/2 Additions - Disposals) | D90: =D88/2 -> 0 | E90: 0 | F90: 0 | G90: 0 | H90: 0 | I90: 0 | J90: 0 | K90: 0 | L90: 0
A91: Reduced UCC | D91: =D89-D90 -> 0 | E91: 0 | F91: 0 | G91: 0 | H91: 0 | I91: 0 | J91: 0 | K91: 0 | L91: 0
A92: CCA Rate Class (to be entered) | C92: 47 | D92: =$C$92 -> 47 | E92: =$C$92 -> 47 | F92: 47 | G92: 47 | H92: 47 | I92: 47 | J92: 47 | K92: 47 | L92: 47
A93: CCA Rate (to be entered) | C93: 0.08 | D93: =$C$93 -> 0.08 | E93: =$C$93 -> 0.08 | F93: 0.08 | G93: 0.08 | H93: 0.08 | I93: 0.08 | J93: 0.08 | K93: 0.08 | L93: 0.08
A94: CCA | D94: =D91*D$93 -> 0 | E94: =E91*E$93 -> 0 | F94: =F91*F$93 -> 0 | G94: =G91*G$93 -> 0 | H94: =H91*H$93 -> 0 | I94: 0 | J94: 0 | K94: 0 | L94: 0
A95: Closing UCC | D95: =D89-D94 -> 0 | E95: 0 | F95: 0 | G95: 0 | H95: 0 | I95: 0 | J95: 0 | K95: 0 | L95: 0

Sheet App.2-G SQI
M1: File Number: | O1: =EBNUMBER -> EB-2016-0085
M2: Exhibit: | O2: 1
M3: Tab:
M4: Schedule:
M5: Page:
M7: Date: | O7: 2016-11-28
A9: Appendix 2-G
A10: Service Reliability and Quality Indicators
A11: 2011 - 2015
A13: Service Reliability
A15: Index | B15: Including outages caused by loss of supply | G15: Excluding outages caused by loss of supply | L15: Excluding Major Event Days
B16: =TestYear-6 -> 2011 | C16: =TestYear-5 -> 2012 | D16: =TestYear-4 -> 2013 | E16: =TestYear-3 -> 2014 | F16: =TestYear-2 -> 2015 | G16: =B16 -> 2011 | H16: 2012 | I16: 2013 | J16: 2014 | K16: 2015 | L16: 2011 | M16: 2012 | N16: 2013 | O16: 2014 | P16: 2015
A17: SAIDI | B17: 1.34 | C17: 0.98 | D17: 2.14 | E17: 4.07 | F17: 1.74 | G17: 0.98 | H17: 3.11 | I17: 2.6 | J17: 5.02 | K17: 1.51
A18: SAIFI | B18: 1.19 | C18: 1.1 | D18: 1.1 | E18: 3.14 | F18: 0.99 | G18: 1.12 | H18: 1.69 | I18: 1.1 | J18: 3.93 | K18: 1.08
A20: 5 Year Historical Average
A21: SAIDI | F21: =IF(ISERROR(AVERAGE(B17:F17)), "", AVERAGE(B17:F17)) -> 2.054 | K21: =IF(ISERROR(AVERAGE(G17:K17)), "", AVERAGE(G17:K17)) -> 2.644 | P21: =IF(ISERROR(AVERAGE(L17:P17)), "", AVERAGE(L17:P17)) -> 
A22: SAIFI | F22: =IF(ISERROR(AVERAGE(B18:F18)), "", AVERAGE(B18:F18)) -> 1.504 | K22: =IF(ISERROR(AVERAGE(G18:K18)), "", AVERAGE(G18:K18)) -> 1.784 | P22: =IF(ISERROR(AVERAGE(L18:P18)), "", AVERAGE(L18:P18)) -> 
A24: SAIDI = System Average Interruption Duration Index
A25: SAIFI = System Average Interruption Frequency Index
A27: Service Quality
A29: Indicator | E29: OEB Minimum Standard | G29: =B16 -> 2011 | H29: =C16 -> 2012 | I29: =D16 -> 2013 | J29: =E16 -> 2014 | K29: =F16 -> 2015
A30: Low Voltage Connections | E30: 0.9 | G30: 0.812 | H30: 0.953 | I30: 0.899 | J30: 0.964 | K30: 0.979
A31: High Voltage Connections | E31: 0.9 | G31: N/A | H31: N/A | I31: N/A | J31: N/A | K31: N/A
A32: Telephone Accessibility | E32: 0.65 | G32: 0.958 | H32: 0.746 | I32: 0.671 | J32: 0.706 | K32: 0.804
A33: Appointments Met | E33: 0.9 | G33: 0.604 | H33: 0.643 | I33: 0.83 | J33: 0.944 | K33: 0.918
A34: Written Response to Enquires | E34: 0.8 | G34: 1 | H34: 1 | I34: 1 | J34: 0.984 | K34: 0.975
A35: Emergency Urban Response | E35: 0.8 | G35: N/A | H35: N/A | I35: N/A | J35: N/A | K35: N/A
A36: Emergency Rural Response | E36: 0.8 | G36: 1 | H36: 1 | I36: 1 | J36: 1 | K36: 1
A37: Telephone Call Abandon Rate | E37: 0.1 | G37: 0.001 | H37: 0.067 | I37: 0.091 | J37: 0.075 | K37: 0.095
A38: Appointment Scheduling | E38: 0.9 | G38: 0.58 | H38: 0.983 | I38: 0.969 | J38: 0.977 | K38: 0.977
A39: Rescheduling a Missed Appointment | E39: 1 | G39: 1 | H39: 1 | I39: 1 | J39: 1 | K39: 1
A40: Reconnection Performance Standard | E40: 0.85 | G40: 0.93 | H40: 0.97 | I40: 0.99 | J40: 0.989 | K40: 0.997

Sheet App.2-H_Other_Oper_Rev
G1: File Number: | H1: =EBNUMBER -> EB-2016-0085
G2: Exhibit: | H2: 3
G3: Tab:
G4: Schedule:
G5: Page:
G7: Date: | H7: 2016-11-28
A9: Appendix 2-H
A10: Other Operating Revenue
A12: USoA # | B12: USoA Description | C12: =F13-2 & " Actual" -> 2013 Actual | D12: =F13-1 & " Actual" -> 2014 Actual | E12: =F13 & " Actual" & CHAR(178) -> 2015 Actual² | F12: ="Actual Year" & CHAR(178) -> Actual Year² | G12: ="Bridge Year" & CHAR(178) -> Bridge Year² | H12: Test Year
C13: =D13-1 -> 2013 | D13: =E13-1 -> 2014 | E13: =F13 -> 2015 | F13: =G13-1 -> 2015 | G13: =BridgeYear -> 2016 | H13: =TestYear -> 2017
B14: Reporting Basis | C14: CGAAP | D14: CGAAP | E14: CGAAP | F14: MIFRS | G14: MIFRS | H14: MIFRS
A15: 4210 | B15: Rent from Electric Property | C15: ='[11]2013 Income Statement'!$B$36 -> -153289 | D15: ='[11]2014 Income Statement'!$B$36 -> -169620 | E15: ='[11]2015 Income Statement'!$B$36 -> -161206.8 | F15: ='[11]2015 Income Statement'!$B$36 -> -161206.8 | G15: ='[11]2016 Income Statement '!$B$36 -> -155000 | H15: ='[11]2017 Income Statement'!$B$36 -> -326648.9126
A16: 4225 | B16: Late Payment Charges | C16: ='[11]2013 Income Statement'!$B$39 -> -73904 | D16: ='[11]2014 Income Statement'!$B$39 -> -84703 | E16: ='[11]2015 Income Statement'!$B$39 -> -96925.26 | F16: ='[11]2015 Income Statement'!$B$39 -> -96925.26 | G16: ='[11]2016 Income Statement '!$B$39 -> -108150 | H16: ='[11]2017 Income Statement'!$B$39 -> -78000
A17: 4235 | B17: Specific Service Charges | C17: ='[11]2013 Income Statement'!$B$41 -> -116157 | D17: ='[11]2014 Income Statement'!$B$41 -> -139676 | E17: ='[11]2015 Income Statement'!$B$41 -> -156169.52 | F17: ='[11]2015 Income Statement'!$B$41 -> -156169.52 | G17: ='[11]2016 Income Statement '!$B$41 -> -192331.31 | H17: ='[11]2017 Income Statement'!$B$41 -> -170000
A18: 4245 | B18: Deferred Revenues - Contributions | C18: ='[11]2013 Income Statement'!$B$43 -> 0 | D18: ='[11]2014 Income Statement'!$B$43 -> 0 | E18: 0 | F18: ='[11]2015 Income Statement'!$B$43 -> -313329.81 | G18: ='[11]2016 Income Statement '!$B$43 -> -421161.7241 | H18: ='[11]2017 Income Statement'!$B$43 -> -522115.6897
A19: 4355 | B19: Gain on Dispositions | C19: ='[11]2013 Income Statement'!$B$57 -> 0 | D19: ='[11]2014 Income Statement'!$B$57 -> -4450 | E19: ='[11]2015 Income Statement'!$B$57 -> -440397.48 | F19: ='[11]2015 Income Statement'!$B$57 -> -440397.48 | G19: ='[11]2016 Income Statement '!$B$57 -> 166450 | H19: ='[11]2017 Income Statement'!$B$57 -> 183094
A20: 4375 | B20: Revenues from Non Utility Operations | C20: ='[11]2013 Income Statement'!$B$61 -> -682460 | D20: ='[11]2014 Income Statement'!$B$61 -> -801855 | E20: ='[11]2015 Income Statement'!$B$61 -> -775119.7 | F20: ='[11]2015 Income Statement'!$B$61 -> -775119.7 | G20: ='[11]2016 Income Statement '!$B$61 -> -1077311 | H20: ='[11]2017 Income Statement'!$B$61 -> -1087311
A21: 4380 | B21: Expenses of Non Utility Operations | C21: ='[11]2013 Income Statement'!$B$62 -> 627785 | D21: ='[11]2014 Income Statement'!$B$62 -> 718395 | E21: ='[11]2015 Income Statement'!$B$62 -> 689823.14 | F21: ='[11]2015 Income Statement'!$B$62 -> 689823.14 | G21: ='[11]2016 Income Statement '!$B$62 -> 980311 | H21: ='[11]2017 Income Statement'!$B$62 -> 983861
A22: 4390 | B22: Misc Non Operating Expense | C22: ='[11]2013 Income Statement'!$B$64 -> -11015 | D22: ='[11]2014 Income Statement'!$B$64 -> -10882 | E22: ='[11]2015 Income Statement'!$B$64 -> -30115.79 | F22: ='[11]2015 Income Statement'!$B$64 -> -30115.79 | G22: ='[11]2016 Income Statement '!$B$64 -> -210000 | H22: ='[11]2017 Income Statement'!$B$64 -> -160000
A23: 4405 | B23: Interest and Dividend Income | C23: ='[11]2013 Income Statement'!$B$70 -> -26558 | D23: ='[11]2014 Income Statement'!$B$70 -> -39974 | E23: ='[11]2015 Income Statement'!$B$70 -> -27917.94 | F23: ='[11]2015 Income Statement'!$B$70 -> -27917.94 | G23: ='[11]2016 Income Statement '!$B$70 -> -30000 | H23: =-'[11]Revenue Requirement'!$D$53 -> -30000
B24: Total | C24: =SUM(C15:C23) -> -435598 | D24: =SUM(D15:D23) -> -532765 | E24: -998029.35 | F24: =SUM(F15:F23) -> -1311359.16 | G24: =SUM(G15:G23) -> -1047193.034 | H24: -1207120.602
A26: Specific Service Charges | C26: =C17 -> -116157 | D26: =D17 -> -139676 | E26: =E17 -> -156169.52 | F26: =F16 -> -96925.26 | G26: =G17 -> -192331.31 | H26: =H17 -> -170000
A27: Late Payment Charges | C27: =C16 -> -73904 | D27: =D16 -> -84703 | E27: =E16 -> -96925.26 | F27: =F17 -> -156169.52 | G27: =G16 -> -108150 | H27: =H16 -> -78000
A28: Other Operating Revenues (4210 & 4245) | C28: =C15+C18 -> -153289 | D28: -169620 | E28: -161206.8 | F28: -474536.61 | G28: -576161.7241 | H28: -848764.6022
A29: Other Income or Deductions (4355, 4375,4380, 4390, 4405) | C29: =C19+C20+C21+C22+C23 -> -92248 | D29: -138766 | E29: -583727.77 | F29: -583727.77 | G29: -170550 | H29: -110356
A30: Total | C30: =SUM(C26:C29) -> -435598 | D30: -532765 | E30: -998029.35 | F30: -1311359.16 | G30: -1047193.034 | H30: -1207120.602
A32: Description | C32: Account(s)
A33: Specific Service Charges: | C33: 4235
A34: Late Payment Charges: | C34: 4225
A35: Other Distribution Revenues: | C35: 4080, 4082, 4084, 4090, 4205, 4210, 4215, 4220, 4240, 4245
A36: Other Income and Expenses: | C36: 4305, 4310, 4315, 4320, 4325, 4330, 4335, 4340, 4345, 4350, 4355, 4360, 4365, 4370, 4375, 4380, 4385, 4390, 4395, 4398, 4405, 4415
A39: Note: Add all applicable accounts listed above to the table and include all relevant information.
A41: Account Breakdown Details
A43: For each "Other Operating Revenue" and "Other Income or Deductions" Account, a detailed breakdown of the account components is required. See the example below for Account 4405, Interest and Dividend Income.
A46: Account 4405 - Interest and Dividend Income
C47: =C12 -> 2013 Actual | D47: 2014 Actual | E47: 2015 Actual² | F47: Actual Year² | G47: Bridge Year² | H47: Test Year
F48: =F13 -> 2015 | G48: =G13 -> 2016 | H48: =H13 -> 2017
A49: Reporting Basis | C49: =IF(C14=0, "", C14) -> CGAAP | D49: CGAAP | E49: CGAAP | F49: MIFRS | G49: MIFRS | H49: MIFRS
A50: Short-term Investment Interest | E50: =IF(F50="","",F50) -> 
A51: Bank Deposit Interest | E51: =IF(F51="","",F51) -> 
A52: Miscellaneous Interest Revenue
A53: Interest Income - Bank & Cust | C53: ='[11]Trial Balance'!$E$259 -> -26558 | D53: =-[12]Revenue!$D$38-[12]Revenue!$D$39 -> -39973.62 | E53: -27917.94 | F53: ='[11]2015 Income Statement'!$B$70 -> -27917.94 | G53: =-[12]Revenue!$F$38-[12]Revenue!$F$39 -> -30000 | H53: =-[12]Revenue!$G$38-[12]Revenue!$G$39 -> -30000
A55: Total | C55: =SUM(C50:C54) -> -26558 | D55: -39973.62 | E55: -27917.94 | F55: -27917.94 | G55: -30000 | H55: -30000
A57: Account 4210 - Rent from Electric Property
C58: 2013 Actual | D58: 2014 Actual | E58: 2015 Actual² | F58: Actual Year² | G58: Bridge Year² | H58: Test Year
F59: 2015 | G59: 2016 | H59: 2017
A60: Reporting Basis | C60: CGAAP | D60: CGAAP | E60: CGAAP | F60: MIFRS | G60: MIFRS | H60: MIFRS
A61: Rogers - 2013 per OEB @ $22.35 | C61: ='[14]2013'!$E$5*'[14]2013'!$F$5 -> 85332.3 | D61: ='[14]2014'!$E$5*'[14]2014'!$F$5 -> 86516.85 | E61: =IF(F61="","",F61) -> 86516.85 | F61: ='[14]2015'!$E$5*'[14]2015'!$F$5 -> 86516.85
A62: Rogers - 2013 per OEB @ $5.59 | C62: ='[14]2013'!$G$5*'[14]2013'!$H$5 -> 7261.41 | D62: ='[14]2014'!$G$5*'[14]2014'!$H$5 -> 7261.41 | E62: 7261.41 | F62: ='[14]2015'!$G$5*'[14]2015'!$H$5 -> 7261.41
A63: Rogers Cable Inc (Previously Atria Networks) @ $22.35 | C63: ='[14]2013'!$I$6 -> 19645.65 | D63: ='[14]2014'!$K$6 -> 19645.65 | E63: 19645.65 | F63: ='[14]2015'!$K$6 -> 19645.65
A64: Hydro One @ $28.61 | C64: ='[14]2013'!$I$7 -> 1773.82 | D64: ='[14]2014'!$K$7 -> 1773.82 | E64: 1974.09 | F64: ='[14]2015'!$K$7 -> 1974.09
A65: Bell Canada @ $22.35 | C65: ='[14]2013'!$I$8 -> 36251.7 | D65: ='[14]2014'!$K$8 -> 37771.5 | E65: 38084.4 | F65: ='[14]2015'!$K$8 -> 38084.4
A66: Vianet Internet Solutions | C66: 0 | D66: ='[14]2014'!$K$9 -> 201.15 | E66: 201.15 | F66: ='[14]2015'!$K$9 -> 201.15
A67: MTS Allstream Inc. - 2013 per OEB @ $22.35 | C67: ='[14]2013'!$I$9 -> 2123.25 | D67: ='[14]2014'!$K$10 -> 2123.25 | E67: 2123.25 | F67: ='[14]2015'!$K$10 -> 2123.25
A68: Atria Networks (Pop use land fee) | C68: ='[14]2013'!$K$25 -> 900 | D68: ='[14]2014'!$K$26 -> 14325 | E68: 5400 | F68: ='[14]2015'!$K$26 -> 5400
A69: Forecasted 6880 poles @ $22.53 | G69: =[12]Revenue!$F$24 -> 155000
A70: Forecasted 6880 poles @ $47.48 | H70: =[12]Revenue!$G$24 -> 326648.9126
A72: Total | C72: =SUM(C61:C71) -> 153288.13 | D72: 169618.63 | E72: 161206.8 | F72: 161206.8 | G72: 155000 | H72: 326648.9126
A74: Account 4245 - Deferred Revenues - Contributions
C75: 2013 Actual | D75: 2014 Actual | E75: 2015 Actual² | F75: Actual Year² | G75: Bridge Year² | H75: Test Year
F76: 2015 | G76: 2016 | H76: 2017
A77: Reporting Basis | C77: CGAAP | D77: CGAAP | E77: CGAAP | F77: MIFRS | G77: MIFRS | H77: MIFRS
A78: Deferred Revenue | C78: 0 | D78: 0 | E78: 0 | F78: =-[12]Revenue!$E$41 -> -313335.6379 | G78: =-[12]Revenue!$F$41 -> -421161.7241 | H78: =-[12]Revenue!$G$41 -> -522115.6897
A81: etc.1
A83: Total | C83: =SUM(C78:C82) -> 0 | D83: 0 | E83: 0 | F83: -313335.6379 | G83: -421161.7241 | H83: -522115.6897
A85: Account 4380 - Expenses of Non Utility Operations
C86: 2013 Actual | D86: 2014 Actual | E86: 2015 Actual² | F86: Actual Year² | G86: Bridge Year² | H86: Test Year
F87: 2015 | G87: 2016 | H87: 2017
A88: Reporting Basis | C88: CGAAP | D88: CGAAP | E88: CGAAP | F88: MIFRS | G88: MIFRS | H88: MIFRS
A89: Misc. Non Utility Water | C89: ='[15]angi file'!$H$44 -> 190269.12 | D89: =-[12]Revenue!D34 -> 74549.45 | E89: =IF(F89="","",F89) -> 184243.26 | F89: ='[16]4380 2015'!$H$48 -> 184243.26 | G89: =-[12]Revenue!F34 -> 142000 | H89: =-[12]Revenue!G34 -> 145550
A90: IESL Expenses | C90: ='[15]angi file'!$H$48 -> 5174.2 | D90: =-[12]Revenue!D35 -> 8864.55 | E90: 9244.33 | F90: ='[16]4380 2015'!$H$42 -> 9244.33 | G90: =-[12]Revenue!F35 -> 8000 | H90: =-[12]Revenue!G35 -> 8000
A91: Misc. Non Utility Exp-OPA | C91: ='[15]angi file'!$H$38 -> 432342 | D91: =-[12]Revenue!D36 -> 634981.32 | E91: 496335.55 | F91: ='[16]4380 2015'!$H$39 -> 496335.55 | G91: =-[12]Revenue!F36 -> 830311 | H91: =-[12]Revenue!G36 -> 830311
A94: Total | C94: =SUM(C89:C93) -> 627785.32 | D94: 718395.32 | E94: 689823.14 | F94: 689823.14 | G94: 980311 | H94: 983861
A96: Account 4375 -Revenues from Non Utility Operations
C97: 2013 Actual | D97: 2014 Actual | E97: 2015 Actual² | F97: Actual Year² | G97: Bridge Year² | H97: Test Year
F98: 2015 | G98: 2016 | H98: 2017
A99: Reporting Basis | C99: CGAAP | D99: CGAAP | E99: CGAAP | F99: MIFRS | G99: MIFRS | H99: MIFRS
A100: Misc. Non-Utility Water | C100: ='[17]4375'!$H$42 -> -251043.77 | D100: =[12]Revenue!D31 -> 204916.1 | E100: =IF(F100="","",F100) -> -269613.8 | F100: ='[16]4375 2015'!$H$42 -> -269613.8 | G100: =-[12]Revenue!F31 -> -235000 | H100: =-[12]Revenue!G31 -> -245000
A101: MIESL Management Fee | C101: ='[17]4375'!$H$26 -> -3757.69 | D101: =[12]Revenue!$D32 -> 11572.67 | E101: -12319.18 | F101: ='[16]4375 2015'!$H$26 -> -12319.18 | G101: =-[12]Revenue!F32 -> -12000 | H101: =-[12]Revenue!G32 -> -12000
A102: Misc. Non Utility Income OPA | C102: ='[17]4375'!$H$23 -> -427658.42 | D102: =[12]Revenue!$D33 -> 585367.7 | E102: -493186.72 | F102: ='[16]4375 2015'!$H$23 -> -493186.72 | G102: =-[12]Revenue!F33 -> -830311 | H102: =-[12]Revenue!G33 -> -830311
A103: etc.1
A105: Total | C105: =SUM(C100:C104) -> -682459.88 | D105: 801856.47 | E105: -775119.7 | F105: =SUM(F100:F104) -> -775119.7 | G105: -1077311 | H105: -1087311
A107: Account 4390 - Misc Non Operating Expense
C108: 2013 Actual | D108: 2014 Actual | E108: 2015 Actual² | F108: Actual Year² | G108: Bridge Year² | H108: Test Year
F109: 2015 | G109: 2016 | H109: 2017 | J109: brenda to look at
A110: Reporting Basis | C110: CGAAP | D110: CGAAP | E110: CGAAP | F110: MIFRS | G110: MIFRS | H110: MIFRS
